Workbook

Sheet Weekly Report
A1: 2025 GE Golf League at Sharon Woods
A2: Arnold Palmer Division | Q2: Individual Match Results
A3: Rank | B3: ID | C3: Team | D3: H Won | E3: Holes H Lost | F3: H Tied | G3: M Won | H3: Match M Lost | I3: M Tied | J3: T Won | K3: Team T Loss | L3: T Tied | M3: Bonus | N3: POINTS
A4: 1 | B4: 42 | C4: =VLOOKUP(B4,GE_Teams_DBID,2,FALSE) -> Dingers Ringers | D4: =SUMIF($S$30:$S$504,B4,$T$30:$T$970) -> 44 | E4: =SUMIF($S$30:$S$504,B4,$U$30:$U$970) -> 27 | F4: =SUMIF($S$30:$S$504,B4,$V$30:$V$970) -> 21 | G4: =SUMIF($S$30:$S$504,B4,$W$30:$W$970) -> 7 | H4: =SUMIF($S$30:$S$504,B4,$X$30:$X$970) -> 1 | I4: =SUMIF($S$30:$S$504,B4,$Y$30:$Y$970) -> 0 | J4: =SUMIF($S$30:$S$504,B4,$Z$30:$Z$970) -> 4 | K4: =SUMIF($S$30:$S$504,B4,$AA$30:$AA$70) -> 0 | L4: =SUMIF($S$30:$S$504,B4,$AB$30:$AB$970) -> 0 | M4: =SUMIF($S$30:$S$504,C4,$AC$30:$AC$970) -> 0 | N4: =(D4*Setup!$J$17)+(E4*Setup!$J$18)+(F4*Setup!$J$19)+(G4*Setup!$J$22)+H4*(Setup!$J$23)+(I4*Setup!$J$24)+(J4*Setup!$J$27)+(K4*Setup!$J$28)+(L4*Setup!$J$29) -> 161 | AF4: Holes Total 18 | AG4: Holes Win - Loses Match 1 | AH4: Holes Ties Equal | AI4: Match Total 2 | AJ4: Match Win - Loses Match 1 | AK4: Match Ties Equal | AL4: Team Total 18 | AM4: Team Win - Loses Match 1 | AN4: Team Ties Equal
A5: 2 | B5: 35 | C5: =VLOOKUP(B5,GE_Teams_DBID,2,FALSE) -> Bill and John | D5: =SUMIF($S$30:$S$504,B5,$T$30:$T$970) -> 39 | E5: =SUMIF($S$30:$S$504,B5,$U$30:$U$970) -> 30 | F5: =SUMIF($S$30:$S$504,B5,$V$30:$V$970) -> 23 | G5: =SUMIF($S$30:$S$504,B5,$W$30:$W$970) -> 7 | H5: =SUMIF($S$30:$S$504,B5,$X$30:$X$970) -> 1 | I5: =SUMIF($S$30:$S$504,B5,$Y$30:$Y$970) -> 0 | J5: =SUMIF($S$30:$S$504,B5,$Z$30:$Z$970) -> 3 | K5: =SUMIF($S$30:$S$504,B5,$AA$30:$AA$70) -> 1 | L5: =SUMIF($S$30:$S$504,B5,$AB$30:$AB$970) -> 0 | M5: =SUMIF($S$30:$S$504,C5,$AC$30:$AC$970) -> 0 | N5: =(D5*Setup!$J$17)+(E5*Setup!$J$18)+(F5*Setup!$J$19)+(G5*Setup!$J$22)+H5*(Setup!$J$23)+(I5*Setup!$J$24)+(J5*Setup!$J$27)+(K5*Setup!$J$28)+(L5*Setup!$J$29) -> 147
A6: 3 | B6: 41 | C6: =VLOOKUP(B6,GE_Teams_DBID,2,FALSE) -> McAvoys | D6: =SUMIF($S$30:$S$504,B6,$T$30:$T$970) -> 36 | E6: =SUMIF($S$30:$S$504,B6,$U$30:$U$970) -> 28 | F6: =SUMIF($S$30:$S$504,B6,$V$30:$V$970) -> 24 | G6: =SUMIF($S$30:$S$504,B6,$W$30:$W$970) -> 3 | H6: =SUMIF($S$30:$S$504,B6,$X$30:$X$970) -> 4 | I6: =SUMIF($S$30:$S$504,B6,$Y$30:$Y$970) -> 1 | J6: =SUMIF($S$30:$S$504,B6,$Z$30:$Z$970) -> 2 | K6: =SUMIF($S$30:$S$504,B6,$AA$30:$AA$70) -> 2 | L6: =SUMIF($S$30:$S$504,B6,$AB$30:$AB$970) -> 0 | M6: =SUMIF($S$30:$S$504,C6,$AC$30:$AC$970) -> 0 | N6: =(D6*Setup!$J$17)+(E6*Setup!$J$18)+(F6*Setup!$J$19)+(G6*Setup!$J$22)+H6*(Setup!$J$23)+(I6*Setup!$J$24)+(J6*Setup!$J$27)+(K6*Setup!$J$28)+(L6*Setup!$J$29) -> 122
A7: 4 | B7: 36 | C7: =VLOOKUP(B7,GE_Teams_DBID,2,FALSE) -> Bob and Mike | D7: =SUMIF($S$30:$S$504,B7,$T$30:$T$970) -> 26 | E7: =SUMIF($S$30:$S$504,B7,$U$30:$U$970) -> 29 | F7: =SUMIF($S$30:$S$504,B7,$V$30:$V$970) -> 31 | G7: =SUMIF($S$30:$S$504,B7,$W$30:$W$970) -> 2 | H7: =SUMIF($S$30:$S$504,B7,$X$30:$X$970) -> 3 | I7: =SUMIF($S$30:$S$504,B7,$Y$30:$Y$970) -> 3 | J7: =SUMIF($S$30:$S$504,B7,$Z$30:$Z$970) -> 1 | K7: =SUMIF($S$30:$S$504,B7,$AA$30:$AA$70) -> 2 | L7: =SUMIF($S$30:$S$504,B7,$AB$30:$AB$970) -> 1 | M7: =SUMIF($S$30:$S$504,C7,$AC$30:$AC$970) -> 0 | N7: =(D7*Setup!$J$17)+(E7*Setup!$J$18)+(F7*Setup!$J$19)+(G7*Setup!$J$22)+H7*(Setup!$J$23)+(I7*Setup!$J$24)+(J7*Setup!$J$27)+(K7*Setup!$J$28)+(L7*Setup!$J$29) -> 106
A8: 5 | B8: 40 | C8: =VLOOKUP(B8,GE_Teams_DBID,2,FALSE) -> Schmitts Creek | D8: =SUMIF($S$30:$S$504,B8,$T$30:$T$970) -> 29 | E8: =SUMIF($S$30:$S$504,B8,$U$30:$U$970) -> 40 | F8: =SUMIF($S$30:$S$504,B8,$V$30:$V$970) -> 23 | G8: =SUMIF($S$30:$S$504,B8,$W$30:$W$970) -> 3 | H8: =SUMIF($S$30:$S$504,B8,$X$30:$X$970) -> 4 | I8: =SUMIF($S$30:$S$504,B8,$Y$30:$Y$970) -> 1 | J8: =SUMIF($S$30:$S$504,B8,$Z$30:$Z$970) -> 1 | K8: =SUMIF($S$30:$S$504,B8,$AA$30:$AA$70) -> 3 | L8: =SUMIF($S$30:$S$504,B8,$AB$30:$AB$970) -> 0 | M8: =SUMIF($S$30:$S$504,C8,$AC$30:$AC$970) -> 0 | N8: =(D8*Setup!$J$17)+(E8*Setup!$J$18)+(F8*Setup!$J$19)+(G8*Setup!$J$22)+H8*(Setup!$J$23)+(I8*Setup!$J$24)+(J8*Setup!$J$27)+(K8*Setup!$J$28)+(L8*Setup!$J$29) -> 101
A9: 6 | B9: 34 | C9: =VLOOKUP(B9,GE_Teams_DBID,2,FALSE) -> Alex and Carl | D9: =SUMIF($S$30:$S$504,B9,$T$30:$T$970) -> 27 | E9: =SUMIF($S$30:$S$504,B9,$U$30:$U$970) -> 36 | F9: =SUMIF($S$30:$S$504,B9,$V$30:$V$970) -> 29 | G9: =SUMIF($S$30:$S$504,B9,$W$30:$W$970) -> 3 | H9: =SUMIF($S$30:$S$504,B9,$X$30:$X$970) -> 5 | I9: =SUMIF($S$30:$S$504,B9,$Y$30:$Y$970) -> 0 | J9: =SUMIF($S$30:$S$504,B9,$Z$30:$Z$970) -> 1 | K9: =SUMIF($S$30:$S$504,B9,$AA$30:$AA$70) -> 3 | L9: =SUMIF($S$30:$S$504,B9,$AB$30:$AB$970) -> 0 | M9: =SUMIF($S$30:$S$504,C9,$AC$30:$AC$970) -> 0 | N9: =(D9*Setup!$J$17)+(E9*Setup!$J$18)+(F9*Setup!$J$19)+(G9*Setup!$J$22)+H9*(Setup!$J$23)+(I9*Setup!$J$24)+(J9*Setup!$J$27)+(K9*Setup!$J$28)+(L9*Setup!$J$29) -> 101
A10: 7 | B10: 38 | C10: =VLOOKUP(B10,GE_Teams_DBID,2,FALSE) -> Checkin Test Cells | D10: =SUMIF($S$30:$S$504,B10,$T$30:$T$970) -> 30 | E10: =SUMIF($S$30:$S$504,B10,$U$30:$U$970) -> 37 | F10: =SUMIF($S$30:$S$504,B10,$V$30:$V$970) -> 25 | G10: =SUMIF($S$30:$S$504,B10,$W$30:$W$970) -> 0 | H10: =SUMIF($S$30:$S$504,B10,$X$30:$X$970) -> 5 | I10: =SUMIF($S$30:$S$504,B10,$Y$30:$Y$970) -> 3 | J10: =SUMIF($S$30:$S$504,B10,$Z$30:$Z$970) -> 1 | K10: =SUMIF($S$30:$S$504,B10,$AA$30:$AA$70) -> 3 | L10: =SUMIF($S$30:$S$504,B10,$AB$30:$AB$970) -> 0 | M10: =SUMIF($S$30:$S$504,C10,$AC$30:$AC$970) -> 0 | N10: =(D10*Setup!$J$17)+(E10*Setup!$J$18)+(F10*Setup!$J$19)+(G10*Setup!$J$22)+H10*(Setup!$J$23)+(I10*Setup!$J$24)+(J10*Setup!$J$27)+(K10*Setup!$J$28)+(L10*Setup!$J$29) -> 97
A11: 8 | B11: 43 | C11: =VLOOKUP(B11,GE_Teams_DBID,2,FALSE) -> Stewart Shankers | D11: =SUMIF($S$30:$S$504,B11,$T$30:$T$970) -> 26 | E11: =SUMIF($S$30:$S$504,B11,$U$30:$U$970) -> 42 | F11: =SUMIF($S$30:$S$504,B11,$V$30:$V$970) -> 24 | G11: =SUMIF($S$30:$S$504,B11,$W$30:$W$970) -> 2 | H11: =SUMIF($S$30:$S$504,B11,$X$30:$X$970) -> 5 | I11: =SUMIF($S$30:$S$504,B11,$Y$30:$Y$970) -> 1 | J11: =SUMIF($S$30:$S$504,B11,$Z$30:$Z$970) -> 0 | K11: =SUMIF($S$30:$S$504,B11,$AA$30:$AA$70) -> 4 | L11: =SUMIF($S$30:$S$504,B11,$AB$30:$AB$970) -> 0 | M11: =SUMIF($S$30:$S$504,C11,$AC$30:$AC$970) -> 0 | N11: =(D11*Setup!$J$17)+(E11*Setup!$J$18)+(F11*Setup!$J$19)+(G11*Setup!$J$22)+H11*(Setup!$J$23)+(I11*Setup!$J$24)+(J11*Setup!$J$27)+(K11*Setup!$J$28)+(L11*Setup!$J$29) -> 86
A12: 9 | B12: 39 | C12: =VLOOKUP(B12,GE_Teams_DBID,2,FALSE) -> Dave, Joe and Rick | D12: =SUMIF($S$30:$S$504,B12,$T$30:$T$970) -> 23 | E12: =SUMIF($S$30:$S$504,B12,$U$30:$U$970) -> 33 | F12: =SUMIF($S$30:$S$504,B12,$V$30:$V$970) -> 14 | G12: =SUMIF($S$30:$S$504,B12,$W$30:$W$970) -> 2 | H12: =SUMIF($S$30:$S$504,B12,$X$30:$X$970) -> 4 | I12: =SUMIF($S$30:$S$504,B12,$Y$30:$Y$970) -> 0 | J12: =SUMIF($S$30:$S$504,B12,$Z$30:$Z$970) -> 1 | K12: =SUMIF($S$30:$S$504,B12,$AA$30:$AA$70) -> 3 | L12: =SUMIF($S$30:$S$504,B12,$AB$30:$AB$970) -> 0 | M12: =SUMIF($S$30:$S$504,C12,$AC$30:$AC$970) -> 0 | N12: =(D12*Setup!$J$17)+(E12*Setup!$J$18)+(F12*Setup!$J$19)+(G12*Setup!$J$22)+H12*(Setup!$J$23)+(I12*Setup!$J$24)+(J12*Setup!$J$27)+(K12*Setup!$J$28)+(L12*Setup!$J$29) -> 74
A13: 10 | B13: 37 | C13: =VLOOKUP(B13,GE_Teams_DBID,2,FALSE) -> Charles and Rob | D13: =SUMIF($S$30:$S$504,B13,$T$30:$T$970) -> 26 | E13: =SUMIF($S$30:$S$504,B13,$U$30:$U$970) -> 39 | F13: =SUMIF($S$30:$S$504,B13,$V$30:$V$970) -> 18 | G13: =SUMIF($S$30:$S$504,B13,$W$30:$W$970) -> 0 | H13: =SUMIF($S$30:$S$504,B13,$X$30:$X$970) -> 6 | I13: =SUMIF($S$30:$S$504,B13,$Y$30:$Y$970) -> 1 | J13: =SUMIF($S$30:$S$504,B13,$Z$30:$Z$970) -> 0 | K13: =SUMIF($S$30:$S$504,B13,$AA$30:$AA$70) -> 4 | L13: =SUMIF($S$30:$S$504,B13,$AB$30:$AB$970) -> 0 | M13: =SUMIF($S$30:$S$504,C13,$AC$30:$AC$970) -> 0 | N13: =(D13*Setup!$J$17)+(E13*Setup!$J$18)+(F13*Setup!$J$19)+(G13*Setup!$J$22)+H13*(Setup!$J$23)+(I13*Setup!$J$24)+(J13*Setup!$J$27)+(K13*Setup!$J$28)+(L13*Setup!$J$29) -> 72
A15: Jack Nicklaus Division
A16: Rank | B16: ID | C16: Team | D16: H Won | E16: Holes H Lost | F16: H Tied | G16: M Won | H16: Match M Lost | I16: M Tied | J16: T Won | K16: Team T Loss | L16: T Tied | M16: Bonus | N16: POINTS
A17: 1 | B17: 52 | C17: =VLOOKUP(B17,GE_Teams_DBID,2,FALSE) -> Shootist 2 | D17: =SUMIF($S$30:$S$504,B17,$T$30:$T$504) -> 40 | E17: =SUMIF($S$30:$S$504,B17,$U$30:$U$970) -> 24 | F17: =SUMIF($S$30:$S$504,B17,$V$30:$V$970) -> 28 | G17: =SUMIF($S$30:$S$504,B17,$W$30:$W$970) -> 5 | H17: =SUMIF($S$30:$S$504,B17,$X$30:$X$970) -> 1 | I17: =SUMIF($S$30:$S$504,B17,$Y$30:$Y$970) -> 2 | J17: =SUMIF($S$30:$S$504,B17,$Z$30:$Z$970) -> 4 | K17: =SUMIF($S$30:$S$504,B17,$AA$30:$AA$70) -> 0 | L17: =SUMIF($S$30:$S$504,B17,$AB$30:$AB$970) -> 0 | M17: =SUMIF($S$30:$S$504,C17,$AC$30:$AC$970) -> 0 | N17: =(D17*Setup!$J$17)+(E17*Setup!$J$18)+(F17*Setup!$J$19)+(G17*Setup!$J$22)+H17*(Setup!$J$23)+(I17*Setup!$J$24)+(J17*Setup!$J$27)+(K17*Setup!$J$28)+(L17*Setup!$J$29) -> 156
A18: 2 | B18: 51 | C18: =VLOOKUP(B18,GE_Teams_DBID,2,FALSE) -> Shootist 1 | D18: =SUMIF($S$30:$S$504,B18,$T$30:$T$504) -> 41 | E18: =SUMIF($S$30:$S$504,B18,$U$30:$U$970) -> 24 | F18: =SUMIF($S$30:$S$504,B18,$V$30:$V$970) -> 27 | G18: =SUMIF($S$30:$S$504,B18,$W$30:$W$970) -> 6 | H18: =SUMIF($S$30:$S$504,B18,$X$30:$X$970) -> 1 | I18: =SUMIF($S$30:$S$504,B18,$Y$30:$Y$970) -> 1 | J18: =SUMIF($S$30:$S$504,B18,$Z$30:$Z$970) -> 3 | K18: =SUMIF($S$30:$S$504,B18,$AA$30:$AA$70) -> 1 | L18: =SUMIF($S$30:$S$504,B18,$AB$30:$AB$970) -> 0 | M18: =SUMIF($S$30:$S$504,C18,$AC$30:$AC$970) -> 0 | N18: =(D18*Setup!$J$17)+(E18*Setup!$J$18)+(F18*Setup!$J$19)+(G18*Setup!$J$22)+H18*(Setup!$J$23)+(I18*Setup!$J$24)+(J18*Setup!$J$27)+(K18*Setup!$J$28)+(L18*Setup!$J$29) -> 153
A19: 3 | B19: 49 | C19: =VLOOKUP(B19,GE_Teams_DBID,2,FALSE) -> Putt Pirates | D19: =SUMIF($S$30:$S$504,B19,$T$30:$T$504) -> 35 | E19: =SUMIF($S$30:$S$504,B19,$U$30:$U$970) -> 28 | F19: =SUMIF($S$30:$S$504,B19,$V$30:$V$970) -> 29 | G19: =SUMIF($S$30:$S$504,B19,$W$30:$W$970) -> 5 | H19: =SUMIF($S$30:$S$504,B19,$X$30:$X$970) -> 2 | I19: =SUMIF($S$30:$S$504,B19,$Y$30:$Y$970) -> 1 | J19: =SUMIF($S$30:$S$504,B19,$Z$30:$Z$970) -> 3 | K19: =SUMIF($S$30:$S$504,B19,$AA$30:$AA$70) -> 1 | L19: =SUMIF($S$30:$S$504,B19,$AB$30:$AB$970) -> 0 | M19: =SUMIF($S$30:$S$504,C19,$AC$30:$AC$970) -> 0 | N19: =(D19*Setup!$J$17)+(E19*Setup!$J$18)+(F19*Setup!$J$19)+(G19*Setup!$J$22)+H19*(Setup!$J$23)+(I19*Setup!$J$24)+(J19*Setup!$J$27)+(K19*Setup!$J$28)+(L19*Setup!$J$29) -> 139
A20: 4 | B20: 45 | C20: =VLOOKUP(B20,GE_Teams_DBID,2,FALSE) -> Dude Wheres My Par | D20: =SUMIF($S$30:$S$504,B20,$T$30:$T$504) -> 35 | E20: =SUMIF($S$30:$S$504,B20,$U$30:$U$970) -> 26 | F20: =SUMIF($S$30:$S$504,B20,$V$30:$V$970) -> 18 | G20: =SUMIF($S$30:$S$504,B20,$W$30:$W$970) -> 4 | H20: =SUMIF($S$30:$S$504,B20,$X$30:$X$970) -> 1 | I20: =SUMIF($S$30:$S$504,B20,$Y$30:$Y$970) -> 2 | J20: =SUMIF($S$30:$S$504,B20,$Z$30:$Z$970) -> 3 | K20: =SUMIF($S$30:$S$504,B20,$AA$30:$AA$70) -> 1 | L20: =SUMIF($S$30:$S$504,B20,$AB$30:$AB$970) -> 0 | M20: =SUMIF($S$30:$S$504,C20,$AC$30:$AC$970) -> 0 | N20: =(D20*Setup!$J$17)+(E20*Setup!$J$18)+(F20*Setup!$J$19)+(G20*Setup!$J$22)+H20*(Setup!$J$23)+(I20*Setup!$J$24)+(J20*Setup!$J$27)+(K20*Setup!$J$28)+(L20*Setup!$J$29) -> 126
A21: 5 | B21: 50 | C21: =VLOOKUP(B21,GE_Teams_DBID,2,FALSE) -> Reckless Drivers | D21: =SUMIF($S$30:$S$504,B21,$T$30:$T$504) -> 31 | E21: =SUMIF($S$30:$S$504,B21,$U$30:$U$970) -> 28 | F21: =SUMIF($S$30:$S$504,B21,$V$30:$V$970) -> 23 | G21: =SUMIF($S$30:$S$504,B21,$W$30:$W$970) -> 4 | H21: =SUMIF($S$30:$S$504,B21,$X$30:$X$970) -> 2 | I21: =SUMIF($S$30:$S$504,B21,$Y$30:$Y$970) -> 2 | J21: =SUMIF($S$30:$S$504,B21,$Z$30:$Z$970) -> 3 | K21: =SUMIF($S$30:$S$504,B21,$AA$30:$AA$70) -> 1 | L21: =SUMIF($S$30:$S$504,B21,$AB$30:$AB$970) -> 0 | M21: =SUMIF($S$30:$S$504,C21,$AC$30:$AC$970) -> 0 | N21: =(D21*Setup!$J$17)+(E21*Setup!$J$18)+(F21*Setup!$J$19)+(G21*Setup!$J$22)+H21*(Setup!$J$23)+(I21*Setup!$J$24)+(J21*Setup!$J$27)+(K21*Setup!$J$28)+(L21*Setup!$J$29) -> 123
A22: 6 | B22: 48 | C22: =VLOOKUP(B22,GE_Teams_DBID,2,FALSE) -> Putt Buddies | D22: =SUMIF($S$30:$S$504,B22,$T$30:$T$504) -> 29 | E22: =SUMIF($S$30:$S$504,B22,$U$30:$U$970) -> 32 | F22: =SUMIF($S$30:$S$504,B22,$V$30:$V$970) -> 27 | G22: =SUMIF($S$30:$S$504,B22,$W$30:$W$970) -> 2 | H22: =SUMIF($S$30:$S$504,B22,$X$30:$X$970) -> 4 | I22: =SUMIF($S$30:$S$504,B22,$Y$30:$Y$970) -> 2 | J22: =SUMIF($S$30:$S$504,B22,$Z$30:$Z$970) -> 2 | K22: =SUMIF($S$30:$S$504,B22,$AA$30:$AA$70) -> 1 | L22: =SUMIF($S$30:$S$504,B22,$AB$30:$AB$970) -> 1 | M22: =SUMIF($S$30:$S$504,C22,$AC$30:$AC$970) -> 0 | N22: =(D22*Setup!$J$17)+(E22*Setup!$J$18)+(F22*Setup!$J$19)+(G22*Setup!$J$22)+H22*(Setup!$J$23)+(I22*Setup!$J$24)+(J22*Setup!$J$27)+(K22*Setup!$J$28)+(L22*Setup!$J$29) -> 112
A23: 7 | B23: 53 | C23: =VLOOKUP(B23,GE_Teams_DBID,2,FALSE) -> Snowmen | D23: =SUMIF($S$30:$S$504,B23,$T$30:$T$504) -> 27 | E23: =SUMIF($S$30:$S$504,B23,$U$30:$U$970) -> 39 | F23: =SUMIF($S$30:$S$504,B23,$V$30:$V$970) -> 13 | G23: =SUMIF($S$30:$S$504,B23,$W$30:$W$970) -> 4 | H23: =SUMIF($S$30:$S$504,B23,$X$30:$X$970) -> 2 | I23: =SUMIF($S$30:$S$504,B23,$Y$30:$Y$970) -> 1 | J23: =SUMIF($S$30:$S$504,B23,$Z$30:$Z$970) -> 3 | K23: =SUMIF($S$30:$S$504,B23,$AA$30:$AA$70) -> 1 | L23: =SUMIF($S$30:$S$504,B23,$AB$30:$AB$970) -> 0 | M23: =SUMIF($S$30:$S$504,C23,$AC$30:$AC$970) -> 0 | N23: =(D23*Setup!$J$17)+(E23*Setup!$J$18)+(F23*Setup!$J$19)+(G23*Setup!$J$22)+H23*(Setup!$J$23)+(I23*Setup!$J$24)+(J23*Setup!$J$27)+(K23*Setup!$J$28)+(L23*Setup!$J$29) -> 103
A24: 8 | B24: 44 | C24: =VLOOKUP(B24,GE_Teams_DBID,2,FALSE) -> Delivery Divots | D24: =SUMIF($S$30:$S$504,B24,$T$30:$T$504) -> 29 | E24: =SUMIF($S$30:$S$504,B24,$U$30:$U$970) -> 31 | F24: =SUMIF($S$30:$S$504,B24,$V$30:$V$970) -> 17 | G24: =SUMIF($S$30:$S$504,B24,$W$30:$W$970) -> 3 | H24: =SUMIF($S$30:$S$504,B24,$X$30:$X$970) -> 4 | I24: =SUMIF($S$30:$S$504,B24,$Y$30:$Y$970) -> 0 | J24: =SUMIF($S$30:$S$504,B24,$Z$30:$Z$970) -> 2 | K24: =SUMIF($S$30:$S$504,B24,$AA$30:$AA$70) -> 2 | L24: =SUMIF($S$30:$S$504,B24,$AB$30:$AB$970) -> 0 | M24: =SUMIF($S$30:$S$504,C24,$AC$30:$AC$970) -> 0 | N24: =(D24*Setup!$J$17)+(E24*Setup!$J$18)+(F24*Setup!$J$19)+(G24*Setup!$J$22)+H24*(Setup!$J$23)+(I24*Setup!$J$24)+(J24*Setup!$J$27)+(K24*Setup!$J$28)+(L24*Setup!$J$29) -> 99
A25: 9 | B25: 47 | C25: =VLOOKUP(B25,GE_Teams_DBID,2,FALSE) -> Hole N 8 | D25: =SUMIF($S$30:$S$504,B25,$T$30:$T$504) -> 31 | E25: =SUMIF($S$30:$S$504,B25,$U$30:$U$970) -> 30 | F25: =SUMIF($S$30:$S$504,B25,$V$30:$V$970) -> 22 | G25: =SUMIF($S$30:$S$504,B25,$W$30:$W$970) -> 2 | H25: =SUMIF($S$30:$S$504,B25,$X$30:$X$970) -> 5 | I25: =SUMIF($S$30:$S$504,B25,$Y$30:$Y$970) -> 0 | J25: =SUMIF($S$30:$S$504,B25,$Z$30:$Z$970) -> 1 | K25: =SUMIF($S$30:$S$504,B25,$AA$30:$AA$70) -> 3 | L25: =SUMIF($S$30:$S$504,B25,$AB$30:$AB$970) -> 0 | M25: =SUMIF($S$30:$S$504,C25,$AC$30:$AC$970) -> 0 | N25: =(D25*Setup!$J$17)+(E25*Setup!$J$18)+(F25*Setup!$J$19)+(G25*Setup!$J$22)+H25*(Setup!$J$23)+(I25*Setup!$J$24)+(J25*Setup!$J$27)+(K25*Setup!$J$28)+(L25*Setup!$J$29) -> 98
A26: 10 | B26: 46 | C26: =VLOOKUP(B26,GE_Teams_DBID,2,FALSE) -> Evan and Jon | D26: =SUMIF($S$30:$S$504,B26,$T$30:$T$504) -> 26 | E26: =SUMIF($S$30:$S$504,B26,$U$30:$U$970) -> 31 | F26: =SUMIF($S$30:$S$504,B26,$V$30:$V$970) -> 22 | G26: =SUMIF($S$30:$S$504,B26,$W$30:$W$970) -> 2 | H26: =SUMIF($S$30:$S$504,B26,$X$30:$X$970) -> 4 | I26: =SUMIF($S$30:$S$504,B26,$Y$30:$Y$970) -> 1 | J26: =SUMIF($S$30:$S$504,B26,$Z$30:$Z$970) -> 1 | K26: =SUMIF($S$30:$S$504,B26,$AA$30:$AA$70) -> 3 | L26: =SUMIF($S$30:$S$504,B26,$AB$30:$AB$970) -> 0 | M26: =SUMIF($S$30:$S$504,C26,$AC$30:$AC$970) -> 0 | N26: =(D26*Setup!$J$17)+(E26*Setup!$J$18)+(F26*Setup!$J$19)+(G26*Setup!$J$22)+H26*(Setup!$J$23)+(I26*Setup!$J$24)+(J26*Setup!$J$27)+(K26*Setup!$J$28)+(L26*Setup!$J$29) -> 90
A29: Legend | P29: Team | Q29: Week | R29: Match ID | S29: T ID | T29: Won | U29: Holes Lost | V29: Tied | W29: Won | X29: Match Lost | Y29: Tied | Z29: Won | AA29: Team Loss | AB29: Tied | AC29: Bonus | AD29: POINTS
A30: Holes Won | D30: Number of holes the golfer has won during the season | P30: =VLOOKUP(S30,GE_Teams_DBID,2,FALSE) -> Charles and Rob | Q30: 2 | R30: 260 | S30: 37 | T30: 6 | U30: 8 | V30: 4 | W30: 0 | X30: 2 | Y30: 0 | Z30: 0 | AA30: 1 | AB30: 0 | AC30: 0 | AD30: =(T30*Setup!$J$17)+(U30*Setup!$J$18)+(V30*Setup!$J$19)+(W30*Setup!$J$22)+X30*(Setup!$J$23)+(Y30*Setup!$J$24)+(Z30*Setup!$J$27)+(AA30*Setup!$J$28)+(AB30*Setup!$J$29) -> 16 | AE30: =IF(SUM(AF30:AN30)>0,"ERROR","") ->  | AF30: =IF((T30+U30+V30)<>18,1,0) -> 0 | AG30: =IF(T30<>U31,1,0) -> 0 | AH30: =IF(V30<>V31,1,0) -> 0 | AI30: =IF((W30+X30+Y30)<>2,1,0) -> 0 | AJ30: =IF(W30<>X31,1,0) -> 0 | AK30: =IF(Y30<>Y31,1,0) -> 0 | AL30: =IF((Z30+AA30+AB30)<>1,1,0) -> 0 | AM30: =IF(Z30<>AA31,1,0) -> 0 | AN30: =IF(AB30<>AB31,1,0) -> 0
A31: Holes Lost | D31: Number of holes the golfer has lost during the season | P31: Putt Pirates | Q31: 2 | R31: 260 | S31: 49 | T31: 8 | U31: 6 | V31: 4 | W31: 2 | X31: 0 | Y31: 0 | Z31: 1 | AA31: 0 | AB31: 0 | AC31: 0 | AD31: =(T31*Setup!$J$17)+(U31*Setup!$J$18)+(V31*Setup!$J$19)+(W31*Setup!$J$22)+X31*(Setup!$J$23)+(Y31*Setup!$J$24)+(Z31*Setup!$J$27)+(AA31*Setup!$J$28)+(AB31*Setup!$J$29) -> 34 | AE31: =IF(SUM(AF31:AN31)>0,"ERROR","") ->  | AF31: 0 | AG31: =IF(T31<>U30,1,0) -> 0 | AH31: =IF(V31<>V30,1,0) -> 0 | AI31: 0 | AJ31: =IF(W31<>X30,1,0) -> 0 | AK31: =IF(Y31<>Y30,1,0) -> 0 | AL31: 0 | AM31: =IF(Z31<>AA30,1,0) -> 0 | AN31: =IF(AB31<>AB30,1,0) -> 0
A32: Holes Tied | D32: Number of holes the golfer has tied during the season | P32: Checkin Test Cells | Q32: 2 | R32: 261 | S32: 38 | T32: 6 | U32: 7 | V32: 5 | W32: 0 | X32: 1 | Y32: 1 | Z32: 0 | AA32: 1 | AB32: 0 | AC32: 0 | AD32: =(T32*Setup!$J$17)+(U32*Setup!$J$18)+(V32*Setup!$J$19)+(W32*Setup!$J$22)+X32*(Setup!$J$23)+(Y32*Setup!$J$24)+(Z32*Setup!$J$27)+(AA32*Setup!$J$28)+(AB32*Setup!$J$29) -> 19 | AF32: 0 | AG32: =IF(T32<>U33,1,0) -> 0 | AH32: =IF(V32<>V33,1,0) -> 0 | AI32: 0 | AJ32: =IF(W32<>X33,1,0) -> 0 | AK32: =IF(Y32<>Y33,1,0) -> 0 | AL32: 0 | AM32: =IF(Z32<>AA33,1,0) -> 0 | AN32: =IF(AB32<>AB33,1,0) -> 0
A33: Total Score Bonus | D33: Points earned for having the lower net score in matches during the season | P33: Reckless Drivers | Q33: 2 | R33: 261 | S33: 50 | T33: 7 | U33: 6 | V33: 5 | W33: 1 | X33: 0 | Y33: 1 | Z33: 1 | AA33: 0 | AB33: 0 | AC33: 0 | AD33: =(T33*Setup!$J$17)+(U33*Setup!$J$18)+(V33*Setup!$J$19)+(W33*Setup!$J$22)+X33*(Setup!$J$23)+(Y33*Setup!$J$24)+(Z33*Setup!$J$27)+(AA33*Setup!$J$28)+(AB33*Setup!$J$29) -> 31 | AF33: 0 | AG33: =IF(T33<>U32,1,0) -> 0 | AH33: =IF(V33<>V32,1,0) -> 0 | AI33: 0 | AJ33: =IF(W33<>X32,1,0) -> 0 | AK33: =IF(Y33<>Y32,1,0) -> 0 | AL33: 0 | AM33: =IF(Z33<>AA32,1,0) -> 0 | AN33: =IF(AB33<>AB32,1,0) -> 0
A34: Sub Points | D34: Points earned for the golfer by a sub | P34: McAvoys | Q34: 2 | R34: 262 | S34: 41 | T34: 8 | U34: 5 | V34: 5 | W34: 2 | X34: 0 | Y34: 0 | Z34: 1 | AA34: 0 | AB34: 0 | AC34: 0 | AD34: =(T34*Setup!$J$17)+(U34*Setup!$J$18)+(V34*Setup!$J$19)+(W34*Setup!$J$22)+X34*(Setup!$J$23)+(Y34*Setup!$J$24)+(Z34*Setup!$J$27)+(AA34*Setup!$J$28)+(AB34*Setup!$J$29) -> 35 | AE34: ERROR | AF34: 0 | AG34: =IF(T34<>U35,1,0) -> 1 | AH34: =IF(V34<>V35,1,0) -> 1 | AI34: 0 | AJ34: =IF(W34<>X35,1,0) -> 0 | AK34: =IF(Y34<>Y35,1,0) -> 0 | AL34: 0 | AM34: =IF(Z34<>AA35,1,0) -> 0 | AN34: =IF(AB34<>AB35,1,0) -> 0
A35: Dropped Score | D35: Lowest point week for a golfer during the season is dropped from their point total | P35: Snowmen | Q35: 2 | R35: 262 | S35: 53 | T35: 0 | U35: 18 | V35: 0 | W35: 0 | X35: 2 | Y35: 0 | Z35: 0 | AA35: 1 | AB35: 0 | AC35: 0 | AD35: =(T35*Setup!$J$17)+(U35*Setup!$J$18)+(V35*Setup!$J$19)+(W35*Setup!$J$22)+X35*(Setup!$J$23)+(Y35*Setup!$J$24)+(Z35*Setup!$J$27)+(AA35*Setup!$J$28)+(AB35*Setup!$J$29) -> 0 | AE35: ERROR | AF35: 0 | AG35: =IF(T35<>U34,1,0) -> 1 | AH35: =IF(V35<>V34,1,0) -> 1 | AI35: 0 | AJ35: =IF(W35<>X34,1,0) -> 0 | AK35: =IF(Y35<>Y34,1,0) -> 0 | AL35: 0 | AM35: =IF(Z35<>AA34,1,0) -> 0 | AN35: =IF(AB35<>AB34,1,0) -> 0
A36: Points | D36: This is the column that counts, sum of all points earned. | P36: Schmitts Creek | Q36: 2 | R36: 263 | S36: 40 | T36: 4 | U36: 9 | V36: 5 | W36: 0 | X36: 1 | Y36: 1 | Z36: 0 | AA36: 1 | AB36: 0 | AC36: 0 | AD36: =(T36*Setup!$J$17)+(U36*Setup!$J$18)+(V36*Setup!$J$19)+(W36*Setup!$J$22)+X36*(Setup!$J$23)+(Y36*Setup!$J$24)+(Z36*Setup!$J$27)+(AA36*Setup!$J$28)+(AB36*Setup!$J$29) -> 15 | AF36: 0 | AG36: =IF(T36<>U37,1,0) -> 0 | AH36: =IF(V36<>V37,1,0) -> 0 | AI36: 0 | AJ36: =IF(W36<>X37,1,0) -> 0 | AK36: =IF(Y36<>Y37,1,0) -> 0 | AL36: 0 | AM36: =IF(Z36<>AA37,1,0) -> 0 | AN36: =IF(AB36<>AB37,1,0) -> 0
A37: Weeks | D37: Number of weeks the golfer earned point, either by playing or by having a sub | P37: Shootist 2 | Q37: 2 | R37: 263 | S37: 52 | T37: 9 | U37: 4 | V37: 5 | W37: 1 | X37: 0 | Y37: 1 | Z37: 1 | AA37: 0 | AB37: 0 | AC37: 0 | AD37: =(T37*Setup!$J$17)+(U37*Setup!$J$18)+(V37*Setup!$J$19)+(W37*Setup!$J$22)+X37*(Setup!$J$23)+(Y37*Setup!$J$24)+(Z37*Setup!$J$27)+(AA37*Setup!$J$28)+(AB37*Setup!$J$29) -> 35 | AF37: 0 | AG37: =IF(T37<>U36,1,0) -> 0 | AH37: =IF(V37<>V36,1,0) -> 0 | AI37: 0 | AJ37: =IF(W37<>X36,1,0) -> 0 | AK37: =IF(Y37<>Y36,1,0) -> 0 | AL37: 0 | AM37: =IF(Z37<>AA36,1,0) -> 0 | AN37: =IF(AB37<>AB36,1,0) -> 0
A38: Rnds | D38: Number of rounds the golfer has played | P38: Bill and John | Q38: 2 | R38: 264 | S38: 35 | T38: 5 | U38: 4 | V38: 9 | W38: 2 | X38: 0 | Y38: 0 | Z38: 1 | AA38: 0 | AB38: 0 | AC38: 0 | AD38: =(T38*Setup!$J$17)+(U38*Setup!$J$18)+(V38*Setup!$J$19)+(W38*Setup!$J$22)+X38*(Setup!$J$23)+(Y38*Setup!$J$24)+(Z38*Setup!$J$27)+(AA38*Setup!$J$28)+(AB38*Setup!$J$29) -> 33 | AF38: 0 | AG38: =IF(T38<>U39,1,0) -> 0 | AH38: =IF(V38<>V39,1,0) -> 0 | AI38: 0 | AJ38: =IF(W38<>X39,1,0) -> 0 | AK38: =IF(Y38<>Y39,1,0) -> 0 | AL38: 0 | AM38: =IF(Z38<>AA39,1,0) -> 0 | AN38: =IF(AB38<>AB39,1,0) -> 0
A39: Avg | D39: Golfers average. Golfers average will not include highest and lowest score after golfer has played 6 rounds | P39: Hole N 8 | Q39: 2 | R39: 264 | S39: 47 | T39: 4 | U39: 5 | V39: 9 | W39: 0 | X39: 2 | Y39: 0 | Z39: 0 | AA39: 1 | AB39: 0 | AC39: 0 | AD39: =(T39*Setup!$J$17)+(U39*Setup!$J$18)+(V39*Setup!$J$19)+(W39*Setup!$J$22)+X39*(Setup!$J$23)+(Y39*Setup!$J$24)+(Z39*Setup!$J$27)+(AA39*Setup!$J$28)+(AB39*Setup!$J$29) -> 17 | AF39: 0 | AG39: =IF(T39<>U38,1,0) -> 0 | AH39: =IF(V39<>V38,1,0) -> 0 | AI39: 0 | AJ39: =IF(W39<>X38,1,0) -> 0 | AK39: =IF(Y39<>Y38,1,0) -> 0 | AL39: 0 | AM39: =IF(Z39<>AA38,1,0) -> 0 | AN39: =IF(AB39<>AB38,1,0) -> 0
A40: Hdcp | D40: Golfers handicap. Golfers handicap will not include highest and lowest score after golfer has played 6 rou | P40: Bob and Mike | Q40: 2 | R40: 265 | S40: 36 | T40: 7 | U40: 7 | V40: 4 | W40: 0 | X40: 0 | Y40: 2 | Z40: 0 | AA40: 0 | AB40: 1 | AC40: 0 | AD40: =(T40*Setup!$J$17)+(U40*Setup!$J$18)+(V40*Setup!$J$19)+(W40*Setup!$J$22)+X40*(Setup!$J$23)+(Y40*Setup!$J$24)+(Z40*Setup!$J$27)+(AA40*Setup!$J$28)+(AB40*Setup!$J$29) -> 25 | AF40: 0 | AG40: =IF(T40<>U41,1,0) -> 0 | AH40: =IF(V40<>V41,1,0) -> 0 | AI40: 0 | AJ40: =IF(W40<>X41,1,0) -> 0 | AK40: =IF(Y40<>Y41,1,0) -> 0 | AL40: 0 | AM40: =IF(Z40<>AA41,1,0) -> 0 | AN40: =IF(AB40<>AB41,1,0) -> 0
A41: Pars | D41: Total number of Pars golfer has scored during the season | P41: Putt Buddies | Q41: 2 | R41: 265 | S41: 48 | T41: 7 | U41: 7 | V41: 4 | W41: 0 | X41: 0 | Y41: 2 | Z41: 0 | AA41: 0 | AB41: 1 | AC41: 0 | AD41: =(T41*Setup!$J$17)+(U41*Setup!$J$18)+(V41*Setup!$J$19)+(W41*Setup!$J$22)+X41*(Setup!$J$23)+(Y41*Setup!$J$24)+(Z41*Setup!$J$27)+(AA41*Setup!$J$28)+(AB41*Setup!$J$29) -> 25 | AF41: 0 | AG41: =IF(T41<>U40,1,0) -> 0 | AH41: =IF(V41<>V40,1,0) -> 0 | AI41: 0 | AJ41: =IF(W41<>X40,1,0) -> 0 | AK41: =IF(Y41<>Y40,1,0) -> 0 | AL41: 0 | AM41: =IF(Z41<>AA40,1,0) -> 0 | AN41: =IF(AB41<>AB40,1,0) -> 0
A42: Birdies | D42: Total number of Birdies the golfer has scored during the season | P42: Dave, Joe and Rick | Q42: 2 | R42: 266 | S42: 39 | T42: 5 | U42: 7 | V42: 6 | W42: 0 | X42: 2 | Y42: 0 | Z42: 0 | AA42: 1 | AB42: 0 | AC42: 0 | AD42: =(T42*Setup!$J$17)+(U42*Setup!$J$18)+(V42*Setup!$J$19)+(W42*Setup!$J$22)+X42*(Setup!$J$23)+(Y42*Setup!$J$24)+(Z42*Setup!$J$27)+(AA42*Setup!$J$28)+(AB42*Setup!$J$29) -> 16 | AF42: 0 | AG42: =IF(T42<>U43,1,0) -> 0 | AH42: =IF(V42<>V43,1,0) -> 0 | AI42: 0 | AJ42: =IF(W42<>X43,1,0) -> 0 | AK42: =IF(Y42<>Y43,1,0) -> 0 | AL42: 0 | AM42: =IF(Z42<>AA43,1,0) -> 0 | AN42: =IF(AB42<>AB43,1,0) -> 0
A43: Eagles | D43: Total number of Eagles the golfer has scored during the season | P43: Shootist 1 | Q43: 2 | R43: 266 | S43: 51 | T43: 7 | U43: 5 | V43: 6 | W43: 2 | X43: 0 | Y43: 0 | Z43: 1 | AA43: 0 | AB43: 0 | AC43: 0 | AD43: =(T43*Setup!$J$17)+(U43*Setup!$J$18)+(V43*Setup!$J$19)+(W43*Setup!$J$22)+X43*(Setup!$J$23)+(Y43*Setup!$J$24)+(Z43*Setup!$J$27)+(AA43*Setup!$J$28)+(AB43*Setup!$J$29) -> 34 | AF43: 0 | AG43: =IF(T43<>U42,1,0) -> 0 | AH43: =IF(V43<>V42,1,0) -> 0 | AI43: 0 | AJ43: =IF(W43<>X42,1,0) -> 0 | AK43: =IF(Y43<>Y42,1,0) -> 0 | AL43: 0 | AM43: =IF(Z43<>AA42,1,0) -> 0 | AN43: =IF(AB43<>AB42,1,0) -> 0
P44: Dingers Ringers | Q44: 2 | R44: 267 | S44: 42 | T44: 11 | U44: 7 | V44: 0 | W44: 2 | X44: 0 | Y44: 0 | Z44: 1 | AA44: 0 | AB44: 0 | AC44: 0 | AD44: =(T44*Setup!$J$17)+(U44*Setup!$J$18)+(V44*Setup!$J$19)+(W44*Setup!$J$22)+X44*(Setup!$J$23)+(Y44*Setup!$J$24)+(Z44*Setup!$J$27)+(AA44*Setup!$J$28)+(AB44*Setup!$J$29) -> 36 | AF44: 0 | AG44: =IF(T44<>U45,1,0) -> 0 | AH44: =IF(V44<>V45,1,0) -> 0 | AI44: 0 | AJ44: =IF(W44<>X45,1,0) -> 0 | AK44: =IF(Y44<>Y45,1,0) -> 0 | AL44: 0 | AM44: =IF(Z44<>AA45,1,0) -> 0 | AN44: =IF(AB44<>AB45,1,0) -> 0
P45: Delivery Divots | Q45: 2 | R45: 267 | S45: 44 | T45: 7 | U45: 11 | V45: 0 | W45: 0 | X45: 2 | Y45: 0 | Z45: 0 | AA45: 1 | AB45: 0 | AC45: 0 | AD45: =(T45*Setup!$J$17)+(U45*Setup!$J$18)+(V45*Setup!$J$19)+(W45*Setup!$J$22)+X45*(Setup!$J$23)+(Y45*Setup!$J$24)+(Z45*Setup!$J$27)+(AA45*Setup!$J$28)+(AB45*Setup!$J$29) -> 14 | AF45: 0 | AG45: =IF(T45<>U44,1,0) -> 0 | AH45: =IF(V45<>V44,1,0) -> 0 | AI45: 0 | AJ45: =IF(W45<>X44,1,0) -> 0 | AK45: =IF(Y45<>Y44,1,0) -> 0 | AL45: 0 | AM45: =IF(Z45<>AA44,1,0) -> 0 | AN45: =IF(AB45<>AB44,1,0) -> 0
P46: Stewart Shankers | Q46: 2 | R46: 268 | S46: 43 | T46: 8 | U46: 8 | V46: 2 | W46: 0 | X46: 1 | Y46: 1 | Z46: 0 | AA46: 1 | AB46: 0 | AC46: 0 | AD46: =(T46*Setup!$J$17)+(U46*Setup!$J$18)+(V46*Setup!$J$19)+(W46*Setup!$J$22)+X46*(Setup!$J$23)+(Y46*Setup!$J$24)+(Z46*Setup!$J$27)+(AA46*Setup!$J$28)+(AB46*Setup!$J$29) -> 20 | AF46: 0 | AG46: =IF(T46<>U47,1,0) -> 0 | AH46: =IF(V46<>V47,1,0) -> 0 | AI46: 0 | AJ46: =IF(W46<>X47,1,0) -> 0 | AK46: =IF(Y46<>Y47,1,0) -> 0 | AL46: 0 | AM46: =IF(Z46<>AA47,1,0) -> 0 | AN46: =IF(AB46<>AB47,1,0) -> 0
P47: Dude Wheres My Par | Q47: 2 | R47: 268 | S47: 45 | T47: 8 | U47: 8 | V47: 2 | W47: 1 | X47: 0 | Y47: 1 | Z47: 1 | AA47: 0 | AB47: 0 | AC47: 0 | AD47: =(T47*Setup!$J$17)+(U47*Setup!$J$18)+(V47*Setup!$J$19)+(W47*Setup!$J$22)+X47*(Setup!$J$23)+(Y47*Setup!$J$24)+(Z47*Setup!$J$27)+(AA47*Setup!$J$28)+(AB47*Setup!$J$29) -> 30 | AF47: 0 | AG47: =IF(T47<>U46,1,0) -> 0 | AH47: =IF(V47<>V46,1,0) -> 0 | AI47: 0 | AJ47: =IF(W47<>X46,1,0) -> 0 | AK47: =IF(Y47<>Y46,1,0) -> 0 | AL47: 0 | AM47: =IF(Z47<>AA46,1,0) -> 0 | AN47: =IF(AB47<>AB46,1,0) -> 0
P48: Alex and Carl | Q48: 2 | R48: 269 | S48: 34 | T48: 8 | U48: 4 | V48: 6 | W48: 2 | X48: 0 | Y48: 0 | Z48: 1 | AA48: 0 | AB48: 0 | AC48: 0 | AD48: =(T48*Setup!$J$17)+(U48*Setup!$J$18)+(V48*Setup!$J$19)+(W48*Setup!$J$22)+X48*(Setup!$J$23)+(Y48*Setup!$J$24)+(Z48*Setup!$J$27)+(AA48*Setup!$J$28)+(AB48*Setup!$J$29) -> 36 | AF48: 0 | AG48: =IF(T48<>U49,1,0) -> 0 | AH48: =IF(V48<>V49,1,0) -> 0 | AI48: 0 | AJ48: =IF(W48<>X49,1,0) -> 0 | AK48: =IF(Y48<>Y49,1,0) -> 0 | AL48: 0 | AM48: =IF(Z48<>AA49,1,0) -> 0 | AN48: =IF(AB48<>AB49,1,0) -> 0
P49: Evan and Jon | Q49: 2 | R49: 269 | S49: 46 | T49: 4 | U49: 8 | V49: 6 | W49: 0 | X49: 2 | Y49: 0 | Z49: 0 | AA49: 1 | AB49: 0 | AC49: 0 | AD49: =(T49*Setup!$J$17)+(U49*Setup!$J$18)+(V49*Setup!$J$19)+(W49*Setup!$J$22)+X49*(Setup!$J$23)+(Y49*Setup!$J$24)+(Z49*Setup!$J$27)+(AA49*Setup!$J$28)+(AB49*Setup!$J$29) -> 14 | AF49: 0 | AG49: =IF(T49<>U48,1,0) -> 0 | AH49: =IF(V49<>V48,1,0) -> 0 | AI49: 0 | AJ49: =IF(W49<>X48,1,0) -> 0 | AK49: =IF(Y49<>Y48,1,0) -> 0 | AL49: 0 | AM49: =IF(Z49<>AA48,1,0) -> 0 | AN49: =IF(AB49<>AB48,1,0) -> 0
P50: Dingers Ringers | Q50: 3 | R50: 270 | S50: 42 | T50: 7 | U50: 3 | V50: 8 | W50: 2 | X50: 0 | Y50: 0 | Z50: 1 | AA50: 0 | AB50: 0 | AC50: 0 | AD50: =(T50*Setup!$J$17)+(U50*Setup!$J$18)+(V50*Setup!$J$19)+(W50*Setup!$J$22)+X50*(Setup!$J$23)+(Y50*Setup!$J$24)+(Z50*Setup!$J$27)+(AA50*Setup!$J$28)+(AB50*Setup!$J$29) -> 36 | AF50: 0 | AG50: =IF(T50<>U51,1,0) -> 0 | AH50: =IF(V50<>V51,1,0) -> 0 | AI50: 0 | AJ50: =IF(W50<>X51,1,0) -> 0 | AK50: =IF(Y50<>Y51,1,0) -> 0 | AL50: 0 | AM50: =IF(Z50<>AA51,1,0) -> 0 | AN50: =IF(AB50<>AB51,1,0) -> 0
P51: Evan and Jon | Q51: 3 | R51: 270 | S51: 46 | T51: 3 | U51: 7 | V51: 8 | W51: 0 | X51: 2 | Y51: 0 | Z51: 0 | AA51: 1 | AB51: 0 | AC51: 0 | AD51: =(T51*Setup!$J$17)+(U51*Setup!$J$18)+(V51*Setup!$J$19)+(W51*Setup!$J$22)+X51*(Setup!$J$23)+(Y51*Setup!$J$24)+(Z51*Setup!$J$27)+(AA51*Setup!$J$28)+(AB51*Setup!$J$29) -> 14 | AF51: 0 | AG51: =IF(T51<>U50,1,0) -> 0 | AH51: =IF(V51<>V50,1,0) -> 0 | AI51: 0 | AJ51: =IF(W51<>X50,1,0) -> 0 | AK51: =IF(Y51<>Y50,1,0) -> 0 | AL51: 0 | AM51: =IF(Z51<>AA50,1,0) -> 0 | AN51: =IF(AB51<>AB50,1,0) -> 0
P52: Dave, Joe and Rick | Q52: 3 | R52: 271 | S52: 39 | T52: 8 | U52: 8 | V52: 2 | W52: 0 | X52: 2 | Y52: 0 | Z52: 0 | AA52: 1 | AB52: 0 | AC52: 0 | AD52: =(T52*Setup!$J$17)+(U52*Setup!$J$18)+(V52*Setup!$J$19)+(W52*Setup!$J$22)+X52*(Setup!$J$23)+(Y52*Setup!$J$24)+(Z52*Setup!$J$27)+(AA52*Setup!$J$28)+(AB52*Setup!$J$29) -> 18 | AF52: 0 | AG52: =IF(T52<>U53,1,0) -> 0 | AH52: =IF(V52<>V53,1,0) -> 0 | AI52: 0 | AJ52: =IF(W52<>X53,1,0) -> 0 | AK52: =IF(Y52<>Y53,1,0) -> 0 | AL52: 0 | AM52: =IF(Z52<>AA53,1,0) -> 0 | AN52: =IF(AB52<>AB53,1,0) -> 0
P53: Snowmen | Q53: 3 | R53: 271 | S53: 53 | T53: 8 | U53: 8 | V53: 2 | W53: 2 | X53: 0 | Y53: 0 | Z53: 1 | AA53: 0 | AB53: 0 | AC53: 0 | AD53: =(T53*Setup!$J$17)+(U53*Setup!$J$18)+(V53*Setup!$J$19)+(W53*Setup!$J$22)+X53*(Setup!$J$23)+(Y53*Setup!$J$24)+(Z53*Setup!$J$27)+(AA53*Setup!$J$28)+(AB53*Setup!$J$29) -> 32 | AF53: 0 | AG53: =IF(T53<>U52,1,0) -> 0 | AH53: =IF(V53<>V52,1,0) -> 0 | AI53: 0 | AJ53: =IF(W53<>X52,1,0) -> 0 | AK53: =IF(Y53<>Y52,1,0) -> 0 | AL53: 0 | AM53: =IF(Z53<>AA52,1,0) -> 0 | AN53: =IF(AB53<>AB52,1,0) -> 0
P54: Alex and Carl | Q54: 3 | R54: 272 | S54: 34 | T54: 6 | U54: 9 | V54: 3 | W54: 1 | X54: 1 | Y54: 0 | Z54: 0 | AA54: 1 | AB54: 0 | AC54: 0 | AD54: =(T54*Setup!$J$17)+(U54*Setup!$J$18)+(V54*Setup!$J$19)+(W54*Setup!$J$22)+X54*(Setup!$J$23)+(Y54*Setup!$J$24)+(Z54*Setup!$J$27)+(AA54*Setup!$J$28)+(AB54*Setup!$J$29) -> 19 | AF54: 0 | AG54: =IF(T54<>U55,1,0) -> 0 | AH54: =IF(V54<>V55,1,0) -> 0 | AI54: 0 | AJ54: =IF(W54<>X55,1,0) -> 0 | AK54: =IF(Y54<>Y55,1,0) -> 0 | AL54: 0 | AM54: =IF(Z54<>AA55,1,0) -> 0 | AN54: =IF(AB54<>AB55,1,0) -> 0
P55: Putt Buddies | Q55: 3 | R55: 272 | S55: 48 | T55: 9 | U55: 6 | V55: 3 | W55: 1 | X55: 1 | Y55: 0 | Z55: 1 | AA55: 0 | AB55: 0 | AC55: 0 | AD55: =(T55*Setup!$J$17)+(U55*Setup!$J$18)+(V55*Setup!$J$19)+(W55*Setup!$J$22)+X55*(Setup!$J$23)+(Y55*Setup!$J$24)+(Z55*Setup!$J$27)+(AA55*Setup!$J$28)+(AB55*Setup!$J$29) -> 31 | AF55: 0 | AG55: =IF(T55<>U54,1,0) -> 0 | AH55: =IF(V55<>V54,1,0) -> 0 | AI55: 0 | AJ55: =IF(W55<>X54,1,0) -> 0 | AK55: =IF(Y55<>Y54,1,0) -> 0 | AL55: 0 | AM55: =IF(Z55<>AA54,1,0) -> 0 | AN55: =IF(AB55<>AB54,1,0) -> 0
P56: Stewart Shankers | Q56: 3 | R56: 273 | S56: 43 | T56: 5 | U56: 9 | V56: 4 | W56: 1 | X56: 1 | Y56: 0 | Z56: 0 | AA56: 1 | AB56: 0 | AC56: 0 | AD56: =(T56*Setup!$J$17)+(U56*Setup!$J$18)+(V56*Setup!$J$19)+(W56*Setup!$J$22)+X56*(Setup!$J$23)+(Y56*Setup!$J$24)+(Z56*Setup!$J$27)+(AA56*Setup!$J$28)+(AB56*Setup!$J$29) -> 18 | AF56: 0 | AG56: =IF(T56<>U57,1,0) -> 0 | AH56: =IF(V56<>V57,1,0) -> 0 | AI56: 0 | AJ56: =IF(W56<>X57,1,0) -> 0 | AK56: =IF(Y56<>Y57,1,0) -> 0 | AL56: 0 | AM56: =IF(Z56<>AA57,1,0) -> 0 | AN56: =IF(AB56<>AB57,1,0) -> 0
P57: Hole N 8 | Q57: 3 | R57: 273 | S57: 47 | T57: 9 | U57: 5 | V57: 4 | W57: 1 | X57: 1 | Y57: 0 | Z57: 1 | AA57: 0 | AB57: 0 | AC57: 0 | AD57: =(T57*Setup!$J$17)+(U57*Setup!$J$18)+(V57*Setup!$J$19)+(W57*Setup!$J$22)+X57*(Setup!$J$23)+(Y57*Setup!$J$24)+(Z57*Setup!$J$27)+(AA57*Setup!$J$28)+(AB57*Setup!$J$29) -> 32 | AF57: 0 | AG57: =IF(T57<>U56,1,0) -> 0 | AH57: =IF(V57<>V56,1,0) -> 0 | AI57: 0 | AJ57: =IF(W57<>X56,1,0) -> 0 | AK57: =IF(Y57<>Y56,1,0) -> 0 | AL57: 0 | AM57: =IF(Z57<>AA56,1,0) -> 0 | AN57: =IF(AB57<>AB56,1,0) -> 0
P58: Schmitts Creek | Q58: 3 | R58: 274 | S58: 40 | T58: 5 | U58: 6 | V58: 7 | W58: 1 | X58: 1 | Y58: 0 | Z58: 0 | AA58: 1 | AB58: 0 | AC58: 0 | AD58: =(T58*Setup!$J$17)+(U58*Setup!$J$18)+(V58*Setup!$J$19)+(W58*Setup!$J$22)+X58*(Setup!$J$23)+(Y58*Setup!$J$24)+(Z58*Setup!$J$27)+(AA58*Setup!$J$28)+(AB58*Setup!$J$29) -> 21 | AF58: 0 | AG58: =IF(T58<>U59,1,0) -> 0 | AH58: =IF(V58<>V59,1,0) -> 0 | AI58: 0 | AJ58: =IF(W58<>X59,1,0) -> 0 | AK58: =IF(Y58<>Y59,1,0) -> 0 | AL58: 0 | AM58: =IF(Z58<>AA59,1,0) -> 0 | AN58: =IF(AB58<>AB59,1,0) -> 0
P59: Delivery Divots | Q59: 3 | R59: 274 | S59: 44 | T59: 6 | U59: 5 | V59: 7 | W59: 1 | X59: 1 | Y59: 0 | Z59: 1 | AA59: 0 | AB59: 0 | AC59: 0 | AD59: =(T59*Setup!$J$17)+(U59*Setup!$J$18)+(V59*Setup!$J$19)+(W59*Setup!$J$22)+X59*(Setup!$J$23)+(Y59*Setup!$J$24)+(Z59*Setup!$J$27)+(AA59*Setup!$J$28)+(AB59*Setup!$J$29) -> 29 | AF59: 0 | AG59: =IF(T59<>U58,1,0) -> 0 | AH59: =IF(V59<>V58,1,0) -> 0 | AI59: 0 | AJ59: =IF(W59<>X58,1,0) -> 0 | AK59: =IF(Y59<>Y58,1,0) -> 0 | AL59: 0 | AM59: =IF(Z59<>AA58,1,0) -> 0 | AN59: =IF(AB59<>AB58,1,0) -> 0
P60: Charles and Rob | Q60: 3 | R60: 275 | S60: 37 | T60: 3 | U60: 10 | V60: 5 | W60: 0 | X60: 2 | Y60: 0 | Z60: 0 | AA60: 1 | AB60: 0 | AC60: 0 | AD60: =(T60*Setup!$J$17)+(U60*Setup!$J$18)+(V60*Setup!$J$19)+(W60*Setup!$J$22)+X60*(Setup!$J$23)+(Y60*Setup!$J$24)+(Z60*Setup!$J$27)+(AA60*Setup!$J$28)+(AB60*Setup!$J$29) -> 11 | AF60: 0 | AG60: =IF(T60<>U61,1,0) -> 0 | AH60: =IF(V60<>V61,1,0) -> 0 | AI60: 0 | AJ60: =IF(W60<>X61,1,0) -> 0 | AK60: =IF(Y60<>Y61,1,0) -> 0 | AL60: 0 | AM60: =IF(Z60<>AA61,1,0) -> 0 | AN60: =IF(AB60<>AB61,1,0) -> 0
P61: Shootist 1 | Q61: 3 | R61: 275 | S61: 51 | T61: 10 | U61: 3 | V61: 5 | W61: 2 | X61: 0 | Y61: 0 | Z61: 1 | AA61: 0 | AB61: 0 | AC61: 0 | AD61: =(T61*Setup!$J$17)+(U61*Setup!$J$18)+(V61*Setup!$J$19)+(W61*Setup!$J$22)+X61*(Setup!$J$23)+(Y61*Setup!$J$24)+(Z61*Setup!$J$27)+(AA61*Setup!$J$28)+(AB61*Setup!$J$29) -> 39 | AF61: 0 | AG61: =IF(T61<>U60,1,0) -> 0 | AH61: =IF(V61<>V60,1,0) -> 0 | AI61: 0 | AJ61: =IF(W61<>X60,1,0) -> 0 | AK61: =IF(Y61<>Y60,1,0) -> 0 | AL61: 0 | AM61: =IF(Z61<>AA60,1,0) -> 0 | AN61: =IF(AB61<>AB60,1,0) -> 0
P62: Checkin Test Cells | Q62: 3 | R62: 276 | S62: 38 | T62: 5 | U62: 7 | V62: 6 | W62: 0 | X62: 1 | Y62: 1 | Z62: 0 | AA62: 1 | AB62: 0 | AC62: 0 | AD62: =(T62*Setup!$J$17)+(U62*Setup!$J$18)+(V62*Setup!$J$19)+(W62*Setup!$J$22)+X62*(Setup!$J$23)+(Y62*Setup!$J$24)+(Z62*Setup!$J$27)+(AA62*Setup!$J$28)+(AB62*Setup!$J$29) -> 18 | AF62: 0 | AG62: =IF(T62<>U63,1,0) -> 0 | AH62: =IF(V62<>V63,1,0) -> 0 | AI62: 0 | AJ62: =IF(W62<>X63,1,0) -> 0 | AK62: =IF(Y62<>Y63,1,0) -> 0 | AL62: 0 | AM62: =IF(Z62<>AA63,1,0) -> 0 | AN62: =IF(AB62<>AB63,1,0) -> 0
P63: Shootist 2 | Q63: 3 | R63: 276 | S63: 52 | T63: 7 | U63: 5 | V63: 6 | W63: 1 | X63: 0 | Y63: 1 | Z63: 1 | AA63: 0 | AB63: 0 | AC63: 0 | AD63: =(T63*Setup!$J$17)+(U63*Setup!$J$18)+(V63*Setup!$J$19)+(W63*Setup!$J$22)+X63*(Setup!$J$23)+(Y63*Setup!$J$24)+(Z63*Setup!$J$27)+(AA63*Setup!$J$28)+(AB63*Setup!$J$29) -> 32 | AF63: 0 | AG63: =IF(T63<>U62,1,0) -> 0 | AH63: =IF(V63<>V62,1,0) -> 0 | AI63: 0 | AJ63: =IF(W63<>X62,1,0) -> 0 | AK63: =IF(Y63<>Y62,1,0) -> 0 | AL63: 0 | AM63: =IF(Z63<>AA62,1,0) -> 0 | AN63: =IF(AB63<>AB62,1,0) -> 0
P64: McAvoys | Q64: 3 | R64: 277 | S64: 41 | T64: 4 | U64: 7 | V64: 7 | W64: 0 | X64: 1 | Y64: 1 | Z64: 0 | AA64: 1 | AB64: 0 | AC64: 0 | AD64: =(T64*Setup!$J$17)+(U64*Setup!$J$18)+(V64*Setup!$J$19)+(W64*Setup!$J$22)+X64*(Setup!$J$23)+(Y64*Setup!$J$24)+(Z64*Setup!$J$27)+(AA64*Setup!$J$28)+(AB64*Setup!$J$29) -> 17 | AF64: 0 | AG64: =IF(T64<>U65,1,0) -> 0 | AH64: =IF(V64<>V65,1,0) -> 0 | AI64: 0 | AJ64: =IF(W64<>X65,1,0) -> 0 | AK64: =IF(Y64<>Y65,1,0) -> 0 | AL64: 0 | AM64: =IF(Z64<>AA65,1,0) -> 0 | AN64: =IF(AB64<>AB65,1,0) -> 0
P65: Dude Wheres My Par | Q65: 3 | R65: 277 | S65: 45 | T65: 7 | U65: 4 | V65: 7 | W65: 1 | X65: 0 | Y65: 1 | Z65: 1 | AA65: 0 | AB65: 0 | AC65: 0 | AD65: =(T65*Setup!$J$17)+(U65*Setup!$J$18)+(V65*Setup!$J$19)+(W65*Setup!$J$22)+X65*(Setup!$J$23)+(Y65*Setup!$J$24)+(Z65*Setup!$J$27)+(AA65*Setup!$J$28)+(AB65*Setup!$J$29) -> 33 | AF65: 0 | AG65: =IF(T65<>U64,1,0) -> 0 | AH65: =IF(V65<>V64,1,0) -> 0 | AI65: 0 | AJ65: =IF(W65<>X64,1,0) -> 0 | AK65: =IF(Y65<>Y64,1,0) -> 0 | AL65: 0 | AM65: =IF(Z65<>AA64,1,0) -> 0 | AN65: =IF(AB65<>AB64,1,0) -> 0
P66: Bob and Mike | Q66: 3 | R66: 278 | S66: 36 | T66: 5 | U66: 7 | V66: 6 | W66: 0 | X66: 1 | Y66: 1 | Z66: 0 | AA66: 1 | AB66: 0 | AC66: 0 | AD66: =(T66*Setup!$J$17)+(U66*Setup!$J$18)+(V66*Setup!$J$19)+(W66*Setup!$J$22)+X66*(Setup!$J$23)+(Y66*Setup!$J$24)+(Z66*Setup!$J$27)+(AA66*Setup!$J$28)+(AB66*Setup!$J$29) -> 18 | AF66: 0 | AG66: =IF(T66<>U67,1,0) -> 0 | AH66: =IF(V66<>V67,1,0) -> 0 | AI66: 0 | AJ66: =IF(W66<>X67,1,0) -> 0 | AK66: =IF(Y66<>Y67,1,0) -> 0 | AL66: 0 | AM66: =IF(Z66<>AA67,1,0) -> 0 | AN66: =IF(AB66<>AB67,1,0) -> 0
P67: Reckless Drivers | Q67: 3 | R67: 278 | S67: 50 | T67: 7 | U67: 5 | V67: 6 | W67: 1 | X67: 0 | Y67: 1 | Z67: 1 | AA67: 0 | AB67: 0 | AC67: 0 | AD67: =(T67*Setup!$J$17)+(U67*Setup!$J$18)+(V67*Setup!$J$19)+(W67*Setup!$J$22)+X67*(Setup!$J$23)+(Y67*Setup!$J$24)+(Z67*Setup!$J$27)+(AA67*Setup!$J$28)+(AB67*Setup!$J$29) -> 32 | AF67: 0 | AG67: =IF(T67<>U66,1,0) -> 0 | AH67: =IF(V67<>V66,1,0) -> 0 | AI67: 0 | AJ67: =IF(W67<>X66,1,0) -> 0 | AK67: =IF(Y67<>Y66,1,0) -> 0 | AL67: 0 | AM67: =IF(Z67<>AA66,1,0) -> 0 | AN67: =IF(AB67<>AB66,1,0) -> 0
P68: Bill and John | Q68: 3 | R68: 279 | S68: 35 | T68: 7 | U68: 5 | V68: 6 | W68: 2 | X68: 0 | Y68: 0 | Z68: 1 | AA68: 0 | AB68: 0 | AC68: 0 | AD68: =(T68*Setup!$J$17)+(U68*Setup!$J$18)+(V68*Setup!$J$19)+(W68*Setup!$J$22)+X68*(Setup!$J$23)+(Y68*Setup!$J$24)+(Z68*Setup!$J$27)+(AA68*Setup!$J$28)+(AB68*Setup!$J$29) -> 34 | AF68: 0 | AG68: =IF(T68<>U69,1,0) -> 0 | AH68: =IF(V68<>V69,1,0) -> 0 | AI68: 0 | AJ68: =IF(W68<>X69,1,0) -> 0 | AK68: =IF(Y68<>Y69,1,0) -> 0 | AL68: 0 | AM68: =IF(Z68<>AA69,1,0) -> 0 | AN68: =IF(AB68<>AB69,1,0) -> 0
P69: Putt Pirates | Q69: 3 | R69: 279 | S69: 49 | T69: 5 | U69: 7 | V69: 6 | W69: 0 | X69: 2 | Y69: 0 | Z69: 0 | AA69: 1 | AB69: 0 | AC69: 0 | AD69: =(T69*Setup!$J$17)+(U69*Setup!$J$18)+(V69*Setup!$J$19)+(W69*Setup!$J$22)+X69*(Setup!$J$23)+(Y69*Setup!$J$24)+(Z69*Setup!$J$27)+(AA69*Setup!$J$28)+(AB69*Setup!$J$29) -> 16 | AF69: 0 | AG69: =IF(T69<>U68,1,0) -> 0 | AH69: =IF(V69<>V68,1,0) -> 0 | AI69: 0 | AJ69: =IF(W69<>X68,1,0) -> 0 | AK69: =IF(Y69<>Y68,1,0) -> 0 | AL69: 0 | AM69: =IF(Z69<>AA68,1,0) -> 0 | AN69: =IF(AB69<>AB68,1,0) -> 0
P70: Stewart Shankers | Q70: 4 | R70: 280 | S70: 43 | T70: 2 | U70: 5 | V70: 1 | W70: 0 | X70: 0 | Y70: 0 | Z70: 0 | AA70: 0 | AB70: 0 | AC70: 0 | AD70: =(T70*Setup!$J$17)+(U70*Setup!$J$18)+(V70*Setup!$J$19)+(W70*Setup!$J$22)+X70*(Setup!$J$23)+(Y70*Setup!$J$24)+(Z70*Setup!$J$27)+(AA70*Setup!$J$28)+(AB70*Setup!$J$29) -> 5 | AE70: ERROR | AF70: 1 | AG70: =IF(T70<>U71,1,0) -> 0 | AH70: =IF(V70<>V71,1,0) -> 0 | AI70: 1 | AJ70: =IF(W70<>X71,1,0) -> 0 | AK70: =IF(Y70<>Y71,1,0) -> 0 | AL70: 1 | AM70: =IF(Z70<>AA71,1,0) -> 0 | AN70: =IF(AB70<>AB71,1,0) -> 0
P71: Putt Pirates | Q71: 4 | R71: 280 | S71: 49 | T71: 5 | U71: 2 | V71: 1 | W71: 0 | X71: 0 | Y71: 0 | Z71: 0 | AA71: 0 | AB71: 0 | AC71: 0 | AD71: =(T71*Setup!$J$17)+(U71*Setup!$J$18)+(V71*Setup!$J$19)+(W71*Setup!$J$22)+X71*(Setup!$J$23)+(Y71*Setup!$J$24)+(Z71*Setup!$J$27)+(AA71*Setup!$J$28)+(AB71*Setup!$J$29) -> 11 | AE71: ERROR | AF71: 1 | AG71: =IF(T71<>U70,1,0) -> 0 | AH71: =IF(V71<>V70,1,0) -> 0 | AI71: 1 | AJ71: =IF(W71<>X70,1,0) -> 0 | AK71: =IF(Y71<>Y70,1,0) -> 0 | AL71: 1 | AM71: =IF(Z71<>AA70,1,0) -> 0 | AN71: =IF(AB71<>AB70,1,0) -> 0
P72: Checkin Test Cells | Q72: 4 | R72: 281 | S72: 38 | T72: 2 | U72: 5 | V72: 1 | W72: 0 | X72: 0 | Y72: 0 | Z72: 0 | AA72: 0 | AB72: 0 | AC72: 0 | AD72: =(T72*Setup!$J$17)+(U72*Setup!$J$18)+(V72*Setup!$J$19)+(W72*Setup!$J$22)+X72*(Setup!$J$23)+(Y72*Setup!$J$24)+(Z72*Setup!$J$27)+(AA72*Setup!$J$28)+(AB72*Setup!$J$29) -> 5 | AE72: ERROR | AF72: 1 | AG72: =IF(T72<>U73,1,0) -> 0 | AH72: =IF(V72<>V73,1,0) -> 0 | AI72: 1 | AJ72: =IF(W72<>X73,1,0) -> 0 | AK72: =IF(Y72<>Y73,1,0) -> 0 | AL72: 1 | AM72: =IF(Z72<>AA73,1,0) -> 0 | AN72: =IF(AB72<>AB73,1,0) -> 0
P73: Delivery Divots | Q73: 4 | R73: 281 | S73: 44 | T73: 5 | U73: 2 | V73: 1 | W73: 0 | X73: 0 | Y73: 0 | Z73: 0 | AA73: 0 | AB73: 0 | AC73: 0 | AD73: =(T73*Setup!$J$17)+(U73*Setup!$J$18)+(V73*Setup!$J$19)+(W73*Setup!$J$22)+X73*(Setup!$J$23)+(Y73*Setup!$J$24)+(Z73*Setup!$J$27)+(AA73*Setup!$J$28)+(AB73*Setup!$J$29) -> 11 | AE73: ERROR | AF73: 1 | AG73: =IF(T73<>U72,1,0) -> 0 | AH73: =IF(V73<>V72,1,0) -> 0 | AI73: 1 | AJ73: =IF(W73<>X72,1,0) -> 0 | AK73: =IF(Y73<>Y72,1,0) -> 0 | AL73: 1 | AM73: =IF(Z73<>AA72,1,0) -> 0 | AN73: =IF(AB73<>AB72,1,0) -> 0
P74: Bill and John | Q74: 4 | R74: 282 | S74: 35 | T74: 3 | U74: 4 | V74: 1 | W74: 0 | X74: 0 | Y74: 0 | Z74: 0 | AA74: 0 | AB74: 0 | AC74: 0 | AD74: =(T74*Setup!$J$17)+(U74*Setup!$J$18)+(V74*Setup!$J$19)+(W74*Setup!$J$22)+X74*(Setup!$J$23)+(Y74*Setup!$J$24)+(Z74*Setup!$J$27)+(AA74*Setup!$J$28)+(AB74*Setup!$J$29) -> 7 | AE74: ERROR | AF74: 1 | AG74: =IF(T74<>U75,1,0) -> 0 | AH74: =IF(V74<>V75,1,0) -> 0 | AI74: 1 | AJ74: =IF(W74<>X75,1,0) -> 0 | AK74: =IF(Y74<>Y75,1,0) -> 0 | AL74: 1 | AM74: =IF(Z74<>AA75,1,0) -> 0 | AN74: =IF(AB74<>AB75,1,0) -> 0
P75: Shootist 1 | Q75: 4 | R75: 282 | S75: 51 | T75: 4 | U75: 3 | V75: 1 | W75: 0 | X75: 0 | Y75: 0 | Z75: 0 | AA75: 0 | AB75: 0 | AC75: 0 | AD75: =(T75*Setup!$J$17)+(U75*Setup!$J$18)+(V75*Setup!$J$19)+(W75*Setup!$J$22)+X75*(Setup!$J$23)+(Y75*Setup!$J$24)+(Z75*Setup!$J$27)+(AA75*Setup!$J$28)+(AB75*Setup!$J$29) -> 9 | AE75: ERROR | AF75: 1 | AG75: =IF(T75<>U74,1,0) -> 0 | AH75: =IF(V75<>V74,1,0) -> 0 | AI75: 1 | AJ75: =IF(W75<>X74,1,0) -> 0 | AK75: =IF(Y75<>Y74,1,0) -> 0 | AL75: 1 | AM75: =IF(Z75<>AA74,1,0) -> 0 | AN75: =IF(AB75<>AB74,1,0) -> 0
P76: Alex and Carl | Q76: 4 | R76: 283 | S76: 34 | T76: 1 | U76: 3 | V76: 4 | W76: 0 | X76: 0 | Y76: 0 | Z76: 0 | AA76: 0 | AB76: 0 | AC76: 0 | AD76: =(T76*Setup!$J$17)+(U76*Setup!$J$18)+(V76*Setup!$J$19)+(W76*Setup!$J$22)+X76*(Setup!$J$23)+(Y76*Setup!$J$24)+(Z76*Setup!$J$27)+(AA76*Setup!$J$28)+(AB76*Setup!$J$29) -> 6 | AE76: ERROR | AF76: 1 | AG76: =IF(T76<>U77,1,0) -> 1 | AH76: =IF(V76<>V77,1,0) -> 1 | AI76: 1 | AJ76: =IF(W76<>X77,1,0) -> 0 | AK76: =IF(Y76<>Y77,1,0) -> 0 | AL76: 1 | AM76: =IF(Z76<>AA77,1,0) -> 0 | AN76: =IF(AB76<>AB77,1,0) -> 0
P77: Reckless Drivers | Q77: 4 | R77: 283 | S77: 50 | T77: 2 | U77: 0 | V77: 2 | W77: 0 | X77: 0 | Y77: 0 | Z77: 0 | AA77: 0 | AB77: 0 | AC77: 0 | AD77: =(T77*Setup!$J$17)+(U77*Setup!$J$18)+(V77*Setup!$J$19)+(W77*Setup!$J$22)+X77*(Setup!$J$23)+(Y77*Setup!$J$24)+(Z77*Setup!$J$27)+(AA77*Setup!$J$28)+(AB77*Setup!$J$29) -> 6 | AE77: ERROR | AF77: 1 | AG77: =IF(T77<>U76,1,0) -> 1 | AH77: =IF(V77<>V76,1,0) -> 1 | AI77: 1 | AJ77: =IF(W77<>X76,1,0) -> 0 | AK77: =IF(Y77<>Y76,1,0) -> 0 | AL77: 1 | AM77: =IF(Z77<>AA76,1,0) -> 0 | AN77: =IF(AB77<>AB76,1,0) -> 0
P78: McAvoys | Q78: 4 | R78: 284 | S78: 41 | T78: 3 | U78: 1 | V78: 0 | W78: 0 | X78: 0 | Y78: 0 | Z78: 0 | AA78: 0 | AB78: 0 | AC78: 0 | AD78: =(T78*Setup!$J$17)+(U78*Setup!$J$18)+(V78*Setup!$J$19)+(W78*Setup!$J$22)+X78*(Setup!$J$23)+(Y78*Setup!$J$24)+(Z78*Setup!$J$27)+(AA78*Setup!$J$28)+(AB78*Setup!$J$29) -> 6 | AE78: ERROR | AF78: 1 | AG78: =IF(T78<>U79,1,0) -> 1 | AH78: =IF(V78<>V79,1,0) -> 1 | AI78: 1 | AJ78: =IF(W78<>X79,1,0) -> 0 | AK78: =IF(Y78<>Y79,1,0) -> 0 | AL78: 1 | AM78: =IF(Z78<>AA79,1,0) -> 0 | AN78: =IF(AB78<>AB79,1,0) -> 0
P79: Hole N 8 | Q79: 4 | R79: 284 | S79: 47 | T79: 1 | U79: 6 | V79: 1 | W79: 0 | X79: 0 | Y79: 0 | Z79: 0 | AA79: 0 | AB79: 0 | AC79: 0 | AD79: =(T79*Setup!$J$17)+(U79*Setup!$J$18)+(V79*Setup!$J$19)+(W79*Setup!$J$22)+X79*(Setup!$J$23)+(Y79*Setup!$J$24)+(Z79*Setup!$J$27)+(AA79*Setup!$J$28)+(AB79*Setup!$J$29) -> 3 | AE79: ERROR | AF79: 1 | AG79: =IF(T79<>U78,1,0) -> 0 | AH79: =IF(V79<>V78,1,0) -> 1 | AI79: 1 | AJ79: =IF(W79<>X78,1,0) -> 0 | AK79: =IF(Y79<>Y78,1,0) -> 0 | AL79: 1 | AM79: =IF(Z79<>AA78,1,0) -> 0 | AN79: =IF(AB79<>AB78,1,0) -> 0
P80: Bob and Mike | Q80: 4 | R80: 285 | S80: 36 | T80: 0 | U80: 2 | V80: 6 | W80: 0 | X80: 0 | Y80: 0 | Z80: 0 | AA80: 0 | AB80: 0 | AC80: 0 | AD80: =(T80*Setup!$J$17)+(U80*Setup!$J$18)+(V80*Setup!$J$19)+(W80*Setup!$J$22)+X80*(Setup!$J$23)+(Y80*Setup!$J$24)+(Z80*Setup!$J$27)+(AA80*Setup!$J$28)+(AB80*Setup!$J$29) -> 6 | AE80: ERROR | AF80: 1 | AG80: =IF(T80<>U81,1,0) -> 0 | AH80: =IF(V80<>V81,1,0) -> 0 | AI80: 1 | AJ80: =IF(W80<>X81,1,0) -> 0 | AK80: =IF(Y80<>Y81,1,0) -> 0 | AL80: 1 | AM80: =IF(Z80<>AA81,1,0) -> 0 | AN80: =IF(AB80<>AB81,1,0) -> 0
P81: Shootist 2 | Q81: 4 | R81: 285 | S81: 52 | T81: 2 | U81: 0 | V81: 6 | W81: 0 | X81: 0 | Y81: 0 | Z81: 0 | AA81: 0 | AB81: 0 | AC81: 0 | AD81: =(T81*Setup!$J$17)+(U81*Setup!$J$18)+(V81*Setup!$J$19)+(W81*Setup!$J$22)+X81*(Setup!$J$23)+(Y81*Setup!$J$24)+(Z81*Setup!$J$27)+(AA81*Setup!$J$28)+(AB81*Setup!$J$29) -> 10 | AE81: ERROR | AF81: 1 | AG81: =IF(T81<>U80,1,0) -> 0 | AH81: =IF(V81<>V80,1,0) -> 0 | AI81: 1 | AJ81: =IF(W81<>X80,1,0) -> 0 | AK81: =IF(Y81<>Y80,1,0) -> 0 | AL81: 1 | AM81: =IF(Z81<>AA80,1,0) -> 0 | AN81: =IF(AB81<>AB80,1,0) -> 0
P82: Charles and Rob | Q82: 4 | R82: 286 | S82: 37 | T82: 6 | U82: 2 | V82: 0 | W82: 0 | X82: 0 | Y82: 0 | Z82: 0 | AA82: 0 | AB82: 0 | AC82: 0 | AD82: =(T82*Setup!$J$17)+(U82*Setup!$J$18)+(V82*Setup!$J$19)+(W82*Setup!$J$22)+X82*(Setup!$J$23)+(Y82*Setup!$J$24)+(Z82*Setup!$J$27)+(AA82*Setup!$J$28)+(AB82*Setup!$J$29) -> 12 | AE82: ERROR | AF82: 1 | AG82: =IF(T82<>U83,1,0) -> 1 | AH82: =IF(V82<>V83,1,0) -> 0 | AI82: 1 | AJ82: =IF(W82<>X83,1,0) -> 0 | AK82: =IF(Y82<>Y83,1,0) -> 0 | AL82: 1 | AM82: =IF(Z82<>AA83,1,0) -> 0 | AN82: =IF(AB82<>AB83,1,0) -> 0
P83: Snowmen | Q83: 4 | R83: 286 | S83: 53 | T83: 2 | U83: 2 | V83: 0 | W83: 0 | X83: 0 | Y83: 0 | Z83: 0 | AA83: 0 | AB83: 0 | AC83: 0 | AD83: =(T83*Setup!$J$17)+(U83*Setup!$J$18)+(V83*Setup!$J$19)+(W83*Setup!$J$22)+X83*(Setup!$J$23)+(Y83*Setup!$J$24)+(Z83*Setup!$J$27)+(AA83*Setup!$J$28)+(AB83*Setup!$J$29) -> 4 | AE83: ERROR | AF83: 1 | AG83: =IF(T83<>U82,1,0) -> 0 | AH83: =IF(V83<>V82,1,0) -> 0 | AI83: 1 | AJ83: =IF(W83<>X82,1,0) -> 0 | AK83: =IF(Y83<>Y82,1,0) -> 0 | AL83: 1 | AM83: =IF(Z83<>AA82,1,0) -> 0 | AN83: =IF(AB83<>AB82,1,0) -> 0
P84: Dingers Ringers | Q84: 4 | R84: 287 | S84: 42 | T84: 1 | U84: 2 | V84: 5 | W84: 0 | X84: 0 | Y84: 0 | Z84: 0 | AA84: 0 | AB84: 0 | AC84: 0 | AD84: =(T84*Setup!$J$17)+(U84*Setup!$J$18)+(V84*Setup!$J$19)+(W84*Setup!$J$22)+X84*(Setup!$J$23)+(Y84*Setup!$J$24)+(Z84*Setup!$J$27)+(AA84*Setup!$J$28)+(AB84*Setup!$J$29) -> 7 | AE84: ERROR | AF84: 1 | AG84: =IF(T84<>U85,1,0) -> 0 | AH84: =IF(V84<>V85,1,0) -> 1 | AI84: 1 | AJ84: =IF(W84<>X85,1,0) -> 0 | AK84: =IF(Y84<>Y85,1,0) -> 0 | AL84: 1 | AM84: =IF(Z84<>AA85,1,0) -> 0 | AN84: =IF(AB84<>AB85,1,0) -> 0
P85: Putt Buddies | Q85: 4 | R85: 287 | S85: 48 | T85: 0 | U85: 1 | V85: 3 | W85: 0 | X85: 0 | Y85: 0 | Z85: 0 | AA85: 0 | AB85: 0 | AC85: 0 | AD85: =(T85*Setup!$J$17)+(U85*Setup!$J$18)+(V85*Setup!$J$19)+(W85*Setup!$J$22)+X85*(Setup!$J$23)+(Y85*Setup!$J$24)+(Z85*Setup!$J$27)+(AA85*Setup!$J$28)+(AB85*Setup!$J$29) -> 3 | AE85: ERROR | AF85: 1 | AG85: =IF(T85<>U84,1,0) -> 1 | AH85: =IF(V85<>V84,1,0) -> 1 | AI85: 1 | AJ85: =IF(W85<>X84,1,0) -> 0 | AK85: =IF(Y85<>Y84,1,0) -> 0 | AL85: 1 | AM85: =IF(Z85<>AA84,1,0) -> 0 | AN85: =IF(AB85<>AB84,1,0) -> 0
P86: Dave, Joe and Rick | Q86: 4 | R86: 288 | S86: 39 | T86: 1 | U86: 3 | V86: 0 | W86: 0 | X86: 0 | Y86: 0 | Z86: 0 | AA86: 0 | AB86: 0 | AC86: 0 | AD86: =(T86*Setup!$J$17)+(U86*Setup!$J$18)+(V86*Setup!$J$19)+(W86*Setup!$J$22)+X86*(Setup!$J$23)+(Y86*Setup!$J$24)+(Z86*Setup!$J$27)+(AA86*Setup!$J$28)+(AB86*Setup!$J$29) -> 2 | AE86: ERROR | AF86: 1 | AG86: =IF(T86<>U87,1,0) -> 0 | AH86: =IF(V86<>V87,1,0) -> 0 | AI86: 1 | AJ86: =IF(W86<>X87,1,0) -> 0 | AK86: =IF(Y86<>Y87,1,0) -> 0 | AL86: 1 | AM86: =IF(Z86<>AA87,1,0) -> 0 | AN86: =IF(AB86<>AB87,1,0) -> 0
P87: Dude Wheres My Par | Q87: 4 | R87: 288 | S87: 45 | T87: 3 | U87: 1 | V87: 0 | W87: 0 | X87: 0 | Y87: 0 | Z87: 0 | AA87: 0 | AB87: 0 | AC87: 0 | AD87: =(T87*Setup!$J$17)+(U87*Setup!$J$18)+(V87*Setup!$J$19)+(W87*Setup!$J$22)+X87*(Setup!$J$23)+(Y87*Setup!$J$24)+(Z87*Setup!$J$27)+(AA87*Setup!$J$28)+(AB87*Setup!$J$29) -> 6 | AE87: ERROR | AF87: 1 | AG87: =IF(T87<>U86,1,0) -> 0 | AH87: =IF(V87<>V86,1,0) -> 0 | AI87: 1 | AJ87: =IF(W87<>X86,1,0) -> 0 | AK87: =IF(Y87<>Y86,1,0) -> 0 | AL87: 1 | AM87: =IF(Z87<>AA86,1,0) -> 0 | AN87: =IF(AB87<>AB86,1,0) -> 0
P88: Schmitts Creek | Q88: 4 | R88: 289 | S88: 40 | T88: 7 | U88: 1 | V88: 0 | W88: 0 | X88: 0 | Y88: 0 | Z88: 0 | AA88: 0 | AB88: 0 | AC88: 0 | AD88: =(T88*Setup!$J$17)+(U88*Setup!$J$18)+(V88*Setup!$J$19)+(W88*Setup!$J$22)+X88*(Setup!$J$23)+(Y88*Setup!$J$24)+(Z88*Setup!$J$27)+(AA88*Setup!$J$28)+(AB88*Setup!$J$29) -> 14 | AE88: ERROR | AF88: 1 | AG88: =IF(T88<>U89,1,0) -> 1 | AH88: =IF(V88<>V89,1,0) -> 0 | AI88: 1 | AJ88: =IF(W88<>X89,1,0) -> 0 | AK88: =IF(Y88<>Y89,1,0) -> 0 | AL88: 1 | AM88: =IF(Z88<>AA89,1,0) -> 0 | AN88: =IF(AB88<>AB89,1,0) -> 0
P89: Evan and Jon | Q89: 4 | R89: 289 | S89: 46 | T89: 1 | U89: 3 | V89: 0 | W89: 0 | X89: 0 | Y89: 0 | Z89: 0 | AA89: 0 | AB89: 0 | AC89: 0 | AD89: =(T89*Setup!$J$17)+(U89*Setup!$J$18)+(V89*Setup!$J$19)+(W89*Setup!$J$22)+X89*(Setup!$J$23)+(Y89*Setup!$J$24)+(Z89*Setup!$J$27)+(AA89*Setup!$J$28)+(AB89*Setup!$J$29) -> 2 | AE89: ERROR | AF89: 1 | AG89: =IF(T89<>U88,1,0) -> 0 | AH89: =IF(V89<>V88,1,0) -> 0 | AI89: 1 | AJ89: =IF(W89<>X88,1,0) -> 0 | AK89: =IF(Y89<>Y88,1,0) -> 0 | AL89: 1 | AM89: =IF(Z89<>AA88,1,0) -> 0 | AN89: =IF(AB89<>AB88,1,0) -> 0
P90: Schmitts Creek | Q90: 5 | R90: 290 | S90: 40 | T90: 7 | U90: 5 | V90: 6 | W90: 2 | X90: 0 | Y90: 0 | Z90: 1 | AA90: 0 | AB90: 0 | AC90: 0 | AD90: =(T90*Setup!$J$17)+(U90*Setup!$J$18)+(V90*Setup!$J$19)+(W90*Setup!$J$22)+X90*(Setup!$J$23)+(Y90*Setup!$J$24)+(Z90*Setup!$J$27)+(AA90*Setup!$J$28)+(AB90*Setup!$J$29) -> 34 | AF90: 0 | AG90: =IF(T90<>U91,1,0) -> 0 | AH90: =IF(V90<>V91,1,0) -> 0 | AI90: 0 | AJ90: =IF(W90<>X91,1,0) -> 0 | AK90: =IF(Y90<>Y91,1,0) -> 0 | AL90: 0 | AM90: =IF(Z90<>AA91,1,0) -> 0 | AN90: =IF(AB90<>AB91,1,0) -> 0
P91: Putt Buddies | Q91: 5 | R91: 290 | S91: 48 | T91: 5 | U91: 7 | V91: 6 | W91: 0 | X91: 2 | Y91: 0 | Z91: 0 | AA91: 1 | AB91: 0 | AC91: 0 | AD91: =(T91*Setup!$J$17)+(U91*Setup!$J$18)+(V91*Setup!$J$19)+(W91*Setup!$J$22)+X91*(Setup!$J$23)+(Y91*Setup!$J$24)+(Z91*Setup!$J$27)+(AA91*Setup!$J$28)+(AB91*Setup!$J$29) -> 16 | AF91: 0 | AG91: =IF(T91<>U90,1,0) -> 0 | AH91: =IF(V91<>V90,1,0) -> 0 | AI91: 0 | AJ91: =IF(W91<>X90,1,0) -> 0 | AK91: =IF(Y91<>Y90,1,0) -> 0 | AL91: 0 | AM91: =IF(Z91<>AA90,1,0) -> 0 | AN91: =IF(AB91<>AB90,1,0) -> 0
P92: Charles and Rob | Q92: 5 | R92: 291 | S92: 37 | T92: 4 | U92: 10 | V92: 4 | W92: 0 | X92: 2 | Y92: 0 | Z92: 0 | AA92: 1 | AB92: 0 | AC92: 0 | AD92: =(T92*Setup!$J$17)+(U92*Setup!$J$18)+(V92*Setup!$J$19)+(W92*Setup!$J$22)+X92*(Setup!$J$23)+(Y92*Setup!$J$24)+(Z92*Setup!$J$27)+(AA92*Setup!$J$28)+(AB92*Setup!$J$29) -> 12 | AF92: 0 | AG92: =IF(T92<>U93,1,0) -> 0 | AH92: =IF(V92<>V93,1,0) -> 0 | AI92: 0 | AJ92: =IF(W92<>X93,1,0) -> 0 | AK92: =IF(Y92<>Y93,1,0) -> 0 | AL92: 0 | AM92: =IF(Z92<>AA93,1,0) -> 0 | AN92: =IF(AB92<>AB93,1,0) -> 0
P93: Dude Wheres My Par | Q93: 5 | R93: 291 | S93: 45 | T93: 10 | U93: 4 | V93: 4 | W93: 2 | X93: 0 | Y93: 0 | Z93: 1 | AA93: 0 | AB93: 0 | AC93: 0 | AD93: =(T93*Setup!$J$17)+(U93*Setup!$J$18)+(V93*Setup!$J$19)+(W93*Setup!$J$22)+X93*(Setup!$J$23)+(Y93*Setup!$J$24)+(Z93*Setup!$J$27)+(AA93*Setup!$J$28)+(AB93*Setup!$J$29) -> 38 | AF93: 0 | AG93: =IF(T93<>U92,1,0) -> 0 | AH93: =IF(V93<>V92,1,0) -> 0 | AI93: 0 | AJ93: =IF(W93<>X92,1,0) -> 0 | AK93: =IF(Y93<>Y92,1,0) -> 0 | AL93: 0 | AM93: =IF(Z93<>AA92,1,0) -> 0 | AN93: =IF(AB93<>AB92,1,0) -> 0
P94: =VLOOKUP(S94,GE_Teams_DBID,2,FALSE) -> Alex and Carl | Q94: 5 | R94: 292 | S94: 34 | T94: 3 | U94: 8 | V94: 7 | W94: 0 | X94: 2 | Y94: 0 | Z94: 0 | AA94: 1 | AB94: 0 | AC94: 0 | AD94: =(T94*Setup!$J$17)+(U94*Setup!$J$18)+(V94*Setup!$J$19)+(W94*Setup!$J$22)+X94*(Setup!$J$23)+(Y94*Setup!$J$24)+(Z94*Setup!$J$27)+(AA94*Setup!$J$28)+(AB94*Setup!$J$29) -> 13 | AF94: =IF((T94+U94+V94)<>18,1,0) -> 0 | AG94: =IF(T94<>U95,1,0) -> 0 | AH94: =IF(V94<>V95,1,0) -> 0 | AI94: =IF((W94+X94+Y94)<>2,1,0) -> 0 | AJ94: =IF(W94<>X95,1,0) -> 0 | AK94: =IF(Y94<>Y95,1,0) -> 0 | AL94: =IF((Z94+AA94+AB94)<>1,1,0) -> 0 | AM94: =IF(Z94<>AA95,1,0) -> 0 | AN94: =IF(AB94<>AB95,1,0) -> 0
P95: Shootist 2 | Q95: 5 | R95: 292 | S95: 52 | T95: 8 | U95: 3 | V95: 7 | W95: 2 | X95: 0 | Y95: 0 | Z95: 1 | AA95: 0 | AB95: 0 | AC95: 0 | AD95: =(T95*Setup!$J$17)+(U95*Setup!$J$18)+(V95*Setup!$J$19)+(W95*Setup!$J$22)+X95*(Setup!$J$23)+(Y95*Setup!$J$24)+(Z95*Setup!$J$27)+(AA95*Setup!$J$28)+(AB95*Setup!$J$29) -> 37 | AE95: =IF(SUM(AF95:AN95)>0,"ERROR","") ->  | AF95: 0 | AG95: =IF(T95<>U94,1,0) -> 0 | AH95: =IF(V95<>V94,1,0) -> 0 | AI95: 0 | AJ95: =IF(W95<>X94,1,0) -> 0 | AK95: =IF(Y95<>Y94,1,0) -> 0 | AL95: 0 | AM95: =IF(Z95<>AA94,1,0) -> 0 | AN95: =IF(AB95<>AB94,1,0) -> 0
P96: Dave, Joe and Rick | Q96: 5 | R96: 293 | S96: 39 | T96: 8 | U96: 9 | V96: 1 | W96: 2 | X96: 0 | Y96: 0 | Z96: 1 | AA96: 0 | AB96: 0 | AC96: 0 | AD96: =(T96*Setup!$J$17)+(U96*Setup!$J$18)+(V96*Setup!$J$19)+(W96*Setup!$J$22)+X96*(Setup!$J$23)+(Y96*Setup!$J$24)+(Z96*Setup!$J$27)+(AA96*Setup!$J$28)+(AB96*Setup!$J$29) -> 31 | AF96: 0 | AG96: =IF(T96<>U97,1,0) -> 0 | AH96: =IF(V96<>V97,1,0) -> 0 | AI96: 0 | AJ96: =IF(W96<>X97,1,0) -> 0 | AK96: =IF(Y96<>Y97,1,0) -> 0 | AL96: 0 | AM96: =IF(Z96<>AA97,1,0) -> 0 | AN96: =IF(AB96<>AB97,1,0) -> 0
P97: Hole N 8 | Q97: 5 | R97: 293 | S97: 47 | T97: 9 | U97: 8 | V97: 1 | W97: 0 | X97: 2 | Y97: 0 | Z97: 0 | AA97: 1 | AB97: 0 | AC97: 0 | AD97: =(T97*Setup!$J$17)+(U97*Setup!$J$18)+(V97*Setup!$J$19)+(W97*Setup!$J$22)+X97*(Setup!$J$23)+(Y97*Setup!$J$24)+(Z97*Setup!$J$27)+(AA97*Setup!$J$28)+(AB97*Setup!$J$29) -> 19 | AF97: 0 | AG97: =IF(T97<>U96,1,0) -> 0 | AH97: =IF(V97<>V96,1,0) -> 0 | AI97: 0 | AJ97: =IF(W97<>X96,1,0) -> 0 | AK97: =IF(Y97<>Y96,1,0) -> 0 | AL97: 0 | AM97: =IF(Z97<>AA96,1,0) -> 0 | AN97: =IF(AB97<>AB96,1,0) -> 0
P98: Dingers Ringers | Q98: 5 | R98: 294 | S98: 42 | T98: 8 | U98: 5 | V98: 5 | W98: 1 | X98: 1 | Y98: 0 | Z98: 1 | AA98: 0 | AB98: 0 | AC98: 0 | AD98: =(T98*Setup!$J$17)+(U98*Setup!$J$18)+(V98*Setup!$J$19)+(W98*Setup!$J$22)+X98*(Setup!$J$23)+(Y98*Setup!$J$24)+(Z98*Setup!$J$27)+(AA98*Setup!$J$28)+(AB98*Setup!$J$29) -> 31 | AF98: 0 | AG98: =IF(T98<>U99,1,0) -> 0 | AH98: =IF(V98<>V99,1,0) -> 0 | AI98: 0 | AJ98: =IF(W98<>X99,1,0) -> 0 | AK98: =IF(Y98<>Y99,1,0) -> 0 | AL98: 0 | AM98: =IF(Z98<>AA99,1,0) -> 0 | AN98: =IF(AB98<>AB99,1,0) -> 0
P99: Reckless Drivers | Q99: 5 | R99: 294 | S99: 50 | T99: 5 | U99: 8 | V99: 5 | W99: 1 | X99: 1 | Y99: 0 | Z99: 0 | AA99: 1 | AB99: 0 | AC99: 0 | AD99: =(T99*Setup!$J$17)+(U99*Setup!$J$18)+(V99*Setup!$J$19)+(W99*Setup!$J$22)+X99*(Setup!$J$23)+(Y99*Setup!$J$24)+(Z99*Setup!$J$27)+(AA99*Setup!$J$28)+(AB99*Setup!$J$29) -> 19 | AF99: 0 | AG99: =IF(T99<>U98,1,0) -> 0 | AH99: =IF(V99<>V98,1,0) -> 0 | AI99: 0 | AJ99: =IF(W99<>X98,1,0) -> 0 | AK99: =IF(Y99<>Y98,1,0) -> 0 | AL99: 0 | AM99: =IF(Z99<>AA98,1,0) -> 0 | AN99: =IF(AB99<>AB98,1,0) -> 0
P100: Stewart Shankers | Q100: 5 | R100: 295 | S100: 43 | T100: 3 | U100: 8 | V100: 7 | W100: 0 | X100: 2 | Y100: 0 | Z100: 0 | AA100: 1 | AB100: 0 | AC100: 0 | AD100: =(T100*Setup!$J$17)+(U100*Setup!$J$18)+(V100*Setup!$J$19)+(W100*Setup!$J$22)+X100*(Setup!$J$23)+(Y100*Setup!$J$24)+(Z100*Setup!$J$27)+(AA100*Setup!$J$28)+(AB100*Setup!$J$29) -> 13 | AF100: 0 | AG100: =IF(T100<>U101,1,0) -> 0 | AH100: =IF(V100<>V101,1,0) -> 0 | AI100: 0 | AJ100: =IF(W100<>X101,1,0) -> 0 | AK100: =IF(Y100<>Y101,1,0) -> 0 | AL100: 0 | AM100: =IF(Z100<>AA101,1,0) -> 0 | AN100: =IF(AB100<>AB101,1,0) -> 0
P101: Shootist 1 | Q101: 5 | R101: 295 | S101: 51 | T101: 8 | U101: 3 | V101: 7 | W101: 2 | X101: 0 | Y101: 0 | Z101: 1 | AA101: 0 | AB101: 0 | AC101: 0 | AD101: =(T101*Setup!$J$17)+(U101*Setup!$J$18)+(V101*Setup!$J$19)+(W101*Setup!$J$22)+X101*(Setup!$J$23)+(Y101*Setup!$J$24)+(Z101*Setup!$J$27)+(AA101*Setup!$J$28)+(AB101*Setup!$J$29) -> 37 | AF101: 0 | AG101: =IF(T101<>U100,1,0) -> 0 | AH101: =IF(V101<>V100,1,0) -> 0 | AI101: 0 | AJ101: =IF(W101<>X100,1,0) -> 0 | AK101: =IF(Y101<>Y100,1,0) -> 0 | AL101: 0 | AM101: =IF(Z101<>AA100,1,0) -> 0 | AN101: =IF(AB101<>AB100,1,0) -> 0
P102: Checkin Test Cells | Q102: 5 | R102: 296 | S102: 38 | T102: 5 | U102: 10 | V102: 3 | W102: 0 | X102: 2 | Y102: 0 | Z102: 0 | AA102: 1 | AB102: 0 | AC102: 0 | AD102: =(T102*Setup!$J$17)+(U102*Setup!$J$18)+(V102*Setup!$J$19)+(W102*Setup!$J$22)+X102*(Setup!$J$23)+(Y102*Setup!$J$24)+(Z102*Setup!$J$27)+(AA102*Setup!$J$28)+(AB102*Setup!$J$29) -> 13 | AF102: 0 | AG102: =IF(T102<>U103,1,0) -> 0 | AH102: =IF(V102<>V103,1,0) -> 0 | AI102: 0 | AJ102: =IF(W102<>X103,1,0) -> 0 | AK102: =IF(Y102<>Y103,1,0) -> 0 | AL102: 0 | AM102: =IF(Z102<>AA103,1,0) -> 0 | AN102: =IF(AB102<>AB103,1,0) -> 0
P103: Evan and Jon | Q103: 5 | R103: 296 | S103: 46 | T103: 10 | U103: 5 | V103: 3 | W103: 2 | X103: 0 | Y103: 0 | Z103: 1 | AA103: 0 | AB103: 0 | AC103: 0 | AD103: =(T103*Setup!$J$17)+(U103*Setup!$J$18)+(V103*Setup!$J$19)+(W103*Setup!$J$22)+X103*(Setup!$J$23)+(Y103*Setup!$J$24)+(Z103*Setup!$J$27)+(AA103*Setup!$J$28)+(AB103*Setup!$J$29) -> 37 | AF103: 0 | AG103: =IF(T103<>U102,1,0) -> 0 | AH103: =IF(V103<>V102,1,0) -> 0 | AI103: 0 | AJ103: =IF(W103<>X102,1,0) -> 0 | AK103: =IF(Y103<>Y102,1,0) -> 0 | AL103: 0 | AM103: =IF(Z103<>AA102,1,0) -> 0 | AN103: =IF(AB103<>AB102,1,0) -> 0
P104: Bill and John | Q104: 5 | R104: 297 | S104: 35 | T104: 5 | U104: 9 | V104: 4 | W104: 1 | X104: 1 | Y104: 0 | Z104: 0 | AA104: 1 | AB104: 0 | AC104: 0 | AD104: =(T104*Setup!$J$17)+(U104*Setup!$J$18)+(V104*Setup!$J$19)+(W104*Setup!$J$22)+X104*(Setup!$J$23)+(Y104*Setup!$J$24)+(Z104*Setup!$J$27)+(AA104*Setup!$J$28)+(AB104*Setup!$J$29) -> 18 | AE104: ERROR | AF104: 0 | AG104: =IF(T104<>U105,1,0) -> 1 | AH104: =IF(V104<>V105,1,0) -> 1 | AI104: 0 | AJ104: =IF(W104<>X105,1,0) -> 1 | AK104: =IF(Y104<>Y105,1,0) -> 0 | AL104: 0 | AM104: =IF(Z104<>AA105,1,0) -> 0 | AN104: =IF(AB104<>AB105,1,0) -> 0
P105: Snowmen | Q105: 5 | R105: 297 | S105: 53 | T105: 6 | U105: 1 | V105: 2 | W105: 1 | X105: 0 | Y105: 0 | Z105: 1 | AA105: 0 | AB105: 0 | AC105: 0 | AD105: =(T105*Setup!$J$17)+(U105*Setup!$J$18)+(V105*Setup!$J$19)+(W105*Setup!$J$22)+X105*(Setup!$J$23)+(Y105*Setup!$J$24)+(Z105*Setup!$J$27)+(AA105*Setup!$J$28)+(AB105*Setup!$J$29) -> 24 | AE105: ERROR | AF105: 1 | AG105: =IF(T105<>U104,1,0) -> 1 | AH105: =IF(V105<>V104,1,0) -> 1 | AI105: 1 | AJ105: =IF(W105<>X104,1,0) -> 0 | AK105: =IF(Y105<>Y104,1,0) -> 0 | AL105: 0 | AM105: =IF(Z105<>AA104,1,0) -> 0 | AN105: =IF(AB105<>AB104,1,0) -> 0
P106: Bob and Mike | Q106: 5 | R106: 298 | S106: 36 | T106: 5 | U106: 5 | V106: 8 | W106: 0 | X106: 2 | Y106: 0 | Z106: 0 | AA106: 1 | AB106: 0 | AC106: 0 | AD106: =(T106*Setup!$J$17)+(U106*Setup!$J$18)+(V106*Setup!$J$19)+(W106*Setup!$J$22)+X106*(Setup!$J$23)+(Y106*Setup!$J$24)+(Z106*Setup!$J$27)+(AA106*Setup!$J$28)+(AB106*Setup!$J$29) -> 18 | AF106: 0 | AG106: =IF(T106<>U107,1,0) -> 0 | AH106: =IF(V106<>V107,1,0) -> 0 | AI106: 0 | AJ106: =IF(W106<>X107,1,0) -> 0 | AK106: =IF(Y106<>Y107,1,0) -> 0 | AL106: 0 | AM106: =IF(Z106<>AA107,1,0) -> 0 | AN106: =IF(AB106<>AB107,1,0) -> 0
P107: Delivery Divots | Q107: 5 | R107: 298 | S107: 44 | T107: 5 | U107: 5 | V107: 8 | W107: 2 | X107: 0 | Y107: 0 | Z107: 1 | AA107: 0 | AB107: 0 | AC107: 0 | AD107: =(T107*Setup!$J$17)+(U107*Setup!$J$18)+(V107*Setup!$J$19)+(W107*Setup!$J$22)+X107*(Setup!$J$23)+(Y107*Setup!$J$24)+(Z107*Setup!$J$27)+(AA107*Setup!$J$28)+(AB107*Setup!$J$29) -> 32 | AF107: 0 | AG107: =IF(T107<>U106,1,0) -> 0 | AH107: =IF(V107<>V106,1,0) -> 0 | AI107: 0 | AJ107: =IF(W107<>X106,1,0) -> 0 | AK107: =IF(Y107<>Y106,1,0) -> 0 | AL107: 0 | AM107: =IF(Z107<>AA106,1,0) -> 0 | AN107: =IF(AB107<>AB106,1,0) -> 0
P108: McAvoys | Q108: 5 | R108: 299 | S108: 41 | T108: 5 | U108: 8 | V108: 5 | W108: 0 | X108: 2 | Y108: 0 | Z108: 0 | AA108: 1 | AB108: 0 | AC108: 0 | AD108: =(T108*Setup!$J$17)+(U108*Setup!$J$18)+(V108*Setup!$J$19)+(W108*Setup!$J$22)+X108*(Setup!$J$23)+(Y108*Setup!$J$24)+(Z108*Setup!$J$27)+(AA108*Setup!$J$28)+(AB108*Setup!$J$29) -> 15 | AF108: 0 | AG108: =IF(T108<>U109,1,0) -> 0 | AH108: =IF(V108<>V109,1,0) -> 0 | AI108: 0 | AJ108: =IF(W108<>X109,1,0) -> 0 | AK108: =IF(Y108<>Y109,1,0) -> 0 | AL108: 0 | AM108: =IF(Z108<>AA109,1,0) -> 0 | AN108: =IF(AB108<>AB109,1,0) -> 0
P109: Putt Pirates | Q109: 5 | R109: 299 | S109: 49 | T109: 8 | U109: 5 | V109: 5 | W109: 2 | X109: 0 | Y109: 0 | Z109: 1 | AA109: 0 | AB109: 0 | AC109: 0 | AD109: =(T109*Setup!$J$17)+(U109*Setup!$J$18)+(V109*Setup!$J$19)+(W109*Setup!$J$22)+X109*(Setup!$J$23)+(Y109*Setup!$J$24)+(Z109*Setup!$J$27)+(AA109*Setup!$J$28)+(AB109*Setup!$J$29) -> 35 | AF109: 0 | AG109: =IF(T109<>U108,1,0) -> 0 | AH109: =IF(V109<>V108,1,0) -> 0 | AI109: 0 | AJ109: =IF(W109<>X108,1,0) -> 0 | AK109: =IF(Y109<>Y108,1,0) -> 0 | AL109: 0 | AM109: =IF(Z109<>AA108,1,0) -> 0 | AN109: =IF(AB109<>AB108,1,0) -> 0
P110: Alex and Carl | Q110: 6 | R110: 300 | S110: 34 | T110: 3 | U110: 2 | V110: 7 | W110: 0 | X110: 0 | Y110: 0 | Z110: 0 | AA110: 0 | AB110: 0 | AC110: 0 | AD110: =(T110*Setup!$J$17)+(U110*Setup!$J$18)+(V110*Setup!$J$19)+(W110*Setup!$J$22)+X110*(Setup!$J$23)+(Y110*Setup!$J$24)+(Z110*Setup!$J$27)+(AA110*Setup!$J$28)+(AB110*Setup!$J$29) -> 13 | AE110: ERROR | AF110: 1 | AG110: =IF(T110<>U111,1,0) -> 0 | AH110: =IF(V110<>V111,1,0) -> 0 | AI110: 1 | AJ110: =IF(W110<>X111,1,0) -> 0 | AK110: =IF(Y110<>Y111,1,0) -> 0 | AL110: 1 | AM110: =IF(Z110<>AA111,1,0) -> 0 | AN110: =IF(AB110<>AB111,1,0) -> 0
P111: Stewart Shankers | Q111: 6 | R111: 300 | S111: 43 | T111: 2 | U111: 3 | V111: 7 | W111: 0 | X111: 0 | Y111: 0 | Z111: 0 | AA111: 0 | AB111: 0 | AC111: 0 | AD111: =(T111*Setup!$J$17)+(U111*Setup!$J$18)+(V111*Setup!$J$19)+(W111*Setup!$J$22)+X111*(Setup!$J$23)+(Y111*Setup!$J$24)+(Z111*Setup!$J$27)+(AA111*Setup!$J$28)+(AB111*Setup!$J$29) -> 11 | AE111: ERROR | AF111: 1 | AG111: =IF(T111<>U110,1,0) -> 0 | AH111: =IF(V111<>V110,1,0) -> 0 | AI111: 1 | AJ111: =IF(W111<>X110,1,0) -> 0 | AK111: =IF(Y111<>Y110,1,0) -> 0 | AL111: 1 | AM111: =IF(Z111<>AA110,1,0) -> 0 | AN111: =IF(AB111<>AB110,1,0) -> 0
P112: Delivery Divots | Q112: 6 | R112: 301 | S112: 44 | T112: 1 | U112: 4 | V112: 1 | W112: 0 | X112: 0 | Y112: 0 | Z112: 0 | AA112: 0 | AB112: 0 | AC112: 0 | AD112: =(T112*Setup!$J$17)+(U112*Setup!$J$18)+(V112*Setup!$J$19)+(W112*Setup!$J$22)+X112*(Setup!$J$23)+(Y112*Setup!$J$24)+(Z112*Setup!$J$27)+(AA112*Setup!$J$28)+(AB112*Setup!$J$29) -> 3 | AE112: ERROR | AF112: 1 | AG112: =IF(T112<>U113,1,0) -> 1 | AH112: =IF(V112<>V113,1,0) -> 1 | AI112: 1 | AJ112: =IF(W112<>X113,1,0) -> 0 | AK112: =IF(Y112<>Y113,1,0) -> 0 | AL112: 1 | AM112: =IF(Z112<>AA113,1,0) -> 0 | AN112: =IF(AB112<>AB113,1,0) -> 0
P113: Snowmen | Q113: 6 | R113: 301 | S113: 53 | T113: 5 | U113: 4 | V113: 3 | W113: 0 | X113: 0 | Y113: 0 | Z113: 0 | AA113: 0 | AB113: 0 | AC113: 0 | AD113: =(T113*Setup!$J$17)+(U113*Setup!$J$18)+(V113*Setup!$J$19)+(W113*Setup!$J$22)+X113*(Setup!$J$23)+(Y113*Setup!$J$24)+(Z113*Setup!$J$27)+(AA113*Setup!$J$28)+(AB113*Setup!$J$29) -> 13 | AE113: ERROR | AF113: 1 | AG113: =IF(T113<>U112,1,0) -> 1 | AH113: =IF(V113<>V112,1,0) -> 1 | AI113: 1 | AJ113: =IF(W113<>X112,1,0) -> 0 | AK113: =IF(Y113<>Y112,1,0) -> 0 | AL113: 1 | AM113: =IF(Z113<>AA112,1,0) -> 0 | AN113: =IF(AB113<>AB112,1,0) -> 0
P114: Bill and John | Q114: 6 | R114: 302 | S114: 35 | T114: 4 | U114: 7 | V114: 1 | W114: 0 | X114: 0 | Y114: 0 | Z114: 0 | AA114: 0 | AB114: 0 | AC114: 0 | AD114: =(T114*Setup!$J$17)+(U114*Setup!$J$18)+(V114*Setup!$J$19)+(W114*Setup!$J$22)+X114*(Setup!$J$23)+(Y114*Setup!$J$24)+(Z114*Setup!$J$27)+(AA114*Setup!$J$28)+(AB114*Setup!$J$29) -> 9 | AE114: ERROR | AF114: 1 | AG114: =IF(T114<>U115,1,0) -> 0 | AH114: =IF(V114<>V115,1,0) -> 0 | AI114: 1 | AJ114: =IF(W114<>X115,1,0) -> 0 | AK114: =IF(Y114<>Y115,1,0) -> 0 | AL114: 1 | AM114: =IF(Z114<>AA115,1,0) -> 0 | AN114: =IF(AB114<>AB115,1,0) -> 0
P115: Dingers Ringers | Q115: 6 | R115: 302 | S115: 42 | T115: 7 | U115: 4 | V115: 1 | W115: 0 | X115: 0 | Y115: 0 | Z115: 0 | AA115: 0 | AB115: 0 | AC115: 0 | AD115: =(T115*Setup!$J$17)+(U115*Setup!$J$18)+(V115*Setup!$J$19)+(W115*Setup!$J$22)+X115*(Setup!$J$23)+(Y115*Setup!$J$24)+(Z115*Setup!$J$27)+(AA115*Setup!$J$28)+(AB115*Setup!$J$29) -> 15 | AE115: ERROR | AF115: 1 | AG115: =IF(T115<>U114,1,0) -> 0 | AH115: =IF(V115<>V114,1,0) -> 0 | AI115: 1 | AJ115: =IF(W115<>X114,1,0) -> 0 | AK115: =IF(Y115<>Y114,1,0) -> 0 | AL115: 1 | AM115: =IF(Z115<>AA114,1,0) -> 0 | AN115: =IF(AB115<>AB114,1,0) -> 0
P116: Dude Wheres My Par | Q116: 6 | R116: 303 | S116: 45 | T116: 4 | U116: 6 | V116: 2 | W116: 0 | X116: 0 | Y116: 0 | Z116: 0 | AA116: 0 | AB116: 0 | AC116: 0 | AD116: =(T116*Setup!$J$17)+(U116*Setup!$J$18)+(V116*Setup!$J$19)+(W116*Setup!$J$22)+X116*(Setup!$J$23)+(Y116*Setup!$J$24)+(Z116*Setup!$J$27)+(AA116*Setup!$J$28)+(AB116*Setup!$J$29) -> 10 | AE116: ERROR | AF116: 1 | AG116: =IF(T116<>U117,1,0) -> 0 | AH116: =IF(V116<>V117,1,0) -> 0 | AI116: 1 | AJ116: =IF(W116<>X117,1,0) -> 0 | AK116: =IF(Y116<>Y117,1,0) -> 0 | AL116: 1 | AM116: =IF(Z116<>AA117,1,0) -> 0 | AN116: =IF(AB116<>AB117,1,0) -> 0
P117: Shootist 2 | Q117: 6 | R117: 303 | S117: 52 | T117: 6 | U117: 4 | V117: 2 | W117: 0 | X117: 0 | Y117: 0 | Z117: 0 | AA117: 0 | AB117: 0 | AC117: 0 | AD117: =(T117*Setup!$J$17)+(U117*Setup!$J$18)+(V117*Setup!$J$19)+(W117*Setup!$J$22)+X117*(Setup!$J$23)+(Y117*Setup!$J$24)+(Z117*Setup!$J$27)+(AA117*Setup!$J$28)+(AB117*Setup!$J$29) -> 14 | AE117: ERROR | AF117: 1 | AG117: =IF(T117<>U116,1,0) -> 0 | AH117: =IF(V117<>V116,1,0) -> 0 | AI117: 1 | AJ117: =IF(W117<>X116,1,0) -> 0 | AK117: =IF(Y117<>Y116,1,0) -> 0 | AL117: 1 | AM117: =IF(Z117<>AA116,1,0) -> 0 | AN117: =IF(AB117<>AB116,1,0) -> 0
P118: Bob and Mike | Q118: 6 | R118: 304 | S118: 36 | T118: 0 | U118: 4 | V118: 2 | W118: 0 | X118: 0 | Y118: 0 | Z118: 0 | AA118: 0 | AB118: 0 | AC118: 0 | AD118: =(T118*Setup!$J$17)+(U118*Setup!$J$18)+(V118*Setup!$J$19)+(W118*Setup!$J$22)+X118*(Setup!$J$23)+(Y118*Setup!$J$24)+(Z118*Setup!$J$27)+(AA118*Setup!$J$28)+(AB118*Setup!$J$29) -> 2 | AE118: ERROR | AF118: 1 | AG118: =IF(T118<>U119,1,0) -> 1 | AH118: =IF(V118<>V119,1,0) -> 1 | AI118: 1 | AJ118: =IF(W118<>X119,1,0) -> 0 | AK118: =IF(Y118<>Y119,1,0) -> 0 | AL118: 1 | AM118: =IF(Z118<>AA119,1,0) -> 0 | AN118: =IF(AB118<>AB119,1,0) -> 0
P119: McAvoys | Q119: 6 | R119: 304 | S119: 41 | T119: 7 | U119: 1 | V119: 4 | W119: 0 | X119: 0 | Y119: 0 | Z119: 0 | AA119: 0 | AB119: 0 | AC119: 0 | AD119: =(T119*Setup!$J$17)+(U119*Setup!$J$18)+(V119*Setup!$J$19)+(W119*Setup!$J$22)+X119*(Setup!$J$23)+(Y119*Setup!$J$24)+(Z119*Setup!$J$27)+(AA119*Setup!$J$28)+(AB119*Setup!$J$29) -> 18 | AE119: ERROR | AF119: 1 | AG119: =IF(T119<>U118,1,0) -> 1 | AH119: =IF(V119<>V118,1,0) -> 1 | AI119: 1 | AJ119: =IF(W119<>X118,1,0) -> 0 | AK119: =IF(Y119<>Y118,1,0) -> 0 | AL119: 1 | AM119: =IF(Z119<>AA118,1,0) -> 0 | AN119: =IF(AB119<>AB118,1,0) -> 0
P120: Evan and Jon | Q120: 6 | R120: 305 | S120: 46 | T120: 4 | U120: 6 | V120: 2 | W120: 0 | X120: 0 | Y120: 0 | Z120: 0 | AA120: 0 | AB120: 0 | AC120: 0 | AD120: =(T120*Setup!$J$17)+(U120*Setup!$J$18)+(V120*Setup!$J$19)+(W120*Setup!$J$22)+X120*(Setup!$J$23)+(Y120*Setup!$J$24)+(Z120*Setup!$J$27)+(AA120*Setup!$J$28)+(AB120*Setup!$J$29) -> 10 | AE120: ERROR | AF120: 1 | AG120: =IF(T120<>U121,1,0) -> 0 | AH120: =IF(V120<>V121,1,0) -> 0 | AI120: 1 | AJ120: =IF(W120<>X121,1,0) -> 0 | AK120: =IF(Y120<>Y121,1,0) -> 0 | AL120: 1 | AM120: =IF(Z120<>AA121,1,0) -> 0 | AN120: =IF(AB120<>AB121,1,0) -> 0
P121: Shootist 1 | Q121: 6 | R121: 305 | S121: 51 | T121: 6 | U121: 4 | V121: 2 | W121: 0 | X121: 0 | Y121: 0 | Z121: 0 | AA121: 0 | AB121: 0 | AC121: 0 | AD121: =(T121*Setup!$J$17)+(U121*Setup!$J$18)+(V121*Setup!$J$19)+(W121*Setup!$J$22)+X121*(Setup!$J$23)+(Y121*Setup!$J$24)+(Z121*Setup!$J$27)+(AA121*Setup!$J$28)+(AB121*Setup!$J$29) -> 14 | AE121: ERROR | AF121: 1 | AG121: =IF(T121<>U120,1,0) -> 0 | AH121: =IF(V121<>V120,1,0) -> 0 | AI121: 1 | AJ121: =IF(W121<>X120,1,0) -> 0 | AK121: =IF(Y121<>Y120,1,0) -> 0 | AL121: 1 | AM121: =IF(Z121<>AA120,1,0) -> 0 | AN121: =IF(AB121<>AB120,1,0) -> 0
P122: Charles and Rob | Q122: 6 | R122: 306 | S122: 37 | T122: 4 | U122: 5 | V122: 3 | W122: 0 | X122: 0 | Y122: 0 | Z122: 0 | AA122: 0 | AB122: 0 | AC122: 0 | AD122: =(T122*Setup!$J$17)+(U122*Setup!$J$18)+(V122*Setup!$J$19)+(W122*Setup!$J$22)+X122*(Setup!$J$23)+(Y122*Setup!$J$24)+(Z122*Setup!$J$27)+(AA122*Setup!$J$28)+(AB122*Setup!$J$29) -> 11 | AE122: ERROR | AF122: 1 | AG122: =IF(T122<>U123,1,0) -> 0 | AH122: =IF(V122<>V123,1,0) -> 0 | AI122: 1 | AJ122: =IF(W122<>X123,1,0) -> 0 | AK122: =IF(Y122<>Y123,1,0) -> 0 | AL122: 1 | AM122: =IF(Z122<>AA123,1,0) -> 0 | AN122: =IF(AB122<>AB123,1,0) -> 0
P123: Schmitts Creek | Q123: 6 | R123: 306 | S123: 40 | T123: 5 | U123: 4 | V123: 3 | W123: 0 | X123: 0 | Y123: 0 | Z123: 0 | AA123: 0 | AB123: 0 | AC123: 0 | AD123: =(T123*Setup!$J$17)+(U123*Setup!$J$18)+(V123*Setup!$J$19)+(W123*Setup!$J$22)+X123*(Setup!$J$23)+(Y123*Setup!$J$24)+(Z123*Setup!$J$27)+(AA123*Setup!$J$28)+(AB123*Setup!$J$29) -> 13 | AE123: ERROR | AF123: 1 | AG123: =IF(T123<>U122,1,0) -> 0 | AH123: =IF(V123<>V122,1,0) -> 0 | AI123: 1 | AJ123: =IF(W123<>X122,1,0) -> 0 | AK123: =IF(Y123<>Y122,1,0) -> 0 | AL123: 1 | AM123: =IF(Z123<>AA122,1,0) -> 0 | AN123: =IF(AB123<>AB122,1,0) -> 0
P124: Hole N 8 | Q124: 6 | R124: 307 | S124: 47 | T124: 3 | U124: 5 | V124: 4 | W124: 0 | X124: 0 | Y124: 0 | Z124: 0 | AA124: 0 | AB124: 0 | AC124: 0 | AD124: =(T124*Setup!$J$17)+(U124*Setup!$J$18)+(V124*Setup!$J$19)+(W124*Setup!$J$22)+X124*(Setup!$J$23)+(Y124*Setup!$J$24)+(Z124*Setup!$J$27)+(AA124*Setup!$J$28)+(AB124*Setup!$J$29) -> 10 | AE124: ERROR | AF124: 1 | AG124: =IF(T124<>U125,1,0) -> 1 | AH124: =IF(V124<>V125,1,0) -> 1 | AI124: 1 | AJ124: =IF(W124<>X125,1,0) -> 0 | AK124: =IF(Y124<>Y125,1,0) -> 0 | AL124: 1 | AM124: =IF(Z124<>AA125,1,0) -> 0 | AN124: =IF(AB124<>AB125,1,0) -> 0
P125: Reckless Drivers | Q125: 6 | R125: 307 | S125: 50 | T125: 4 | U125: 1 | V125: 1 | W125: 0 | X125: 0 | Y125: 0 | Z125: 0 | AA125: 0 | AB125: 0 | AC125: 0 | AD125: =(T125*Setup!$J$17)+(U125*Setup!$J$18)+(V125*Setup!$J$19)+(W125*Setup!$J$22)+X125*(Setup!$J$23)+(Y125*Setup!$J$24)+(Z125*Setup!$J$27)+(AA125*Setup!$J$28)+(AB125*Setup!$J$29) -> 9 | AE125: ERROR | AF125: 1 | AG125: =IF(T125<>U124,1,0) -> 1 | AH125: =IF(V125<>V124,1,0) -> 1 | AI125: 1 | AJ125: =IF(W125<>X124,1,0) -> 0 | AK125: =IF(Y125<>Y124,1,0) -> 0 | AL125: 1 | AM125: =IF(Z125<>AA124,1,0) -> 0 | AN125: =IF(AB125<>AB124,1,0) -> 0
P126: Checkin Test Cells | Q126: 6 | R126: 308 | S126: 38 | T126: 6 | U126: 1 | V126: 5 | W126: 0 | X126: 0 | Y126: 0 | Z126: 0 | AA126: 0 | AB126: 0 | AC126: 0 | AD126: =(T126*Setup!$J$17)+(U126*Setup!$J$18)+(V126*Setup!$J$19)+(W126*Setup!$J$22)+X126*(Setup!$J$23)+(Y126*Setup!$J$24)+(Z126*Setup!$J$27)+(AA126*Setup!$J$28)+(AB126*Setup!$J$29) -> 17 | AE126: ERROR | AF126: 1 | AG126: =IF(T126<>U127,1,0) -> 0 | AH126: =IF(V126<>V127,1,0) -> 0 | AI126: 1 | AJ126: =IF(W126<>X127,1,0) -> 0 | AK126: =IF(Y126<>Y127,1,0) -> 0 | AL126: 1 | AM126: =IF(Z126<>AA127,1,0) -> 0 | AN126: =IF(AB126<>AB127,1,0) -> 0
P127: Dave, Joe and Rick | Q127: 6 | R127: 308 | S127: 39 | T127: 1 | U127: 6 | V127: 5 | W127: 0 | X127: 0 | Y127: 0 | Z127: 0 | AA127: 0 | AB127: 0 | AC127: 0 | AD127: =(T127*Setup!$J$17)+(U127*Setup!$J$18)+(V127*Setup!$J$19)+(W127*Setup!$J$22)+X127*(Setup!$J$23)+(Y127*Setup!$J$24)+(Z127*Setup!$J$27)+(AA127*Setup!$J$28)+(AB127*Setup!$J$29) -> 7 | AE127: ERROR | AF127: 1 | AG127: =IF(T127<>U126,1,0) -> 0 | AH127: =IF(V127<>V126,1,0) -> 0 | AI127: 1 | AJ127: =IF(W127<>X126,1,0) -> 0 | AK127: =IF(Y127<>Y126,1,0) -> 0 | AL127: 1 | AM127: =IF(Z127<>AA126,1,0) -> 0 | AN127: =IF(AB127<>AB126,1,0) -> 0
P128: Putt Buddies | Q128: 6 | R128: 309 | S128: 48 | T128: 2 | U128: 4 | V128: 6 | W128: 0 | X128: 0 | Y128: 0 | Z128: 0 | AA128: 0 | AB128: 0 | AC128: 0 | AD128: =(T128*Setup!$J$17)+(U128*Setup!$J$18)+(V128*Setup!$J$19)+(W128*Setup!$J$22)+X128*(Setup!$J$23)+(Y128*Setup!$J$24)+(Z128*Setup!$J$27)+(AA128*Setup!$J$28)+(AB128*Setup!$J$29) -> 10 | AE128: ERROR | AF128: 1 | AG128: =IF(T128<>U129,1,0) -> 0 | AH128: =IF(V128<>V129,1,0) -> 0 | AI128: 1 | AJ128: =IF(W128<>X129,1,0) -> 0 | AK128: =IF(Y128<>Y129,1,0) -> 0 | AL128: 1 | AM128: =IF(Z128<>AA129,1,0) -> 0 | AN128: =IF(AB128<>AB129,1,0) -> 0
P129: Putt Pirates | Q129: 6 | R129: 309 | S129: 49 | T129: 4 | U129: 2 | V129: 6 | W129: 0 | X129: 0 | Y129: 0 | Z129: 0 | AA129: 0 | AB129: 0 | AC129: 0 | AD129: =(T129*Setup!$J$17)+(U129*Setup!$J$18)+(V129*Setup!$J$19)+(W129*Setup!$J$22)+X129*(Setup!$J$23)+(Y129*Setup!$J$24)+(Z129*Setup!$J$27)+(AA129*Setup!$J$28)+(AB129*Setup!$J$29) -> 14 | AE129: ERROR | AF129: 1 | AG129: =IF(T129<>U128,1,0) -> 0 | AH129: =IF(V129<>V128,1,0) -> 0 | AI129: 1 | AJ129: =IF(W129<>X128,1,0) -> 0 | AK129: =IF(Y129<>Y128,1,0) -> 0 | AL129: 1 | AM129: =IF(Z129<>AA128,1,0) -> 0 | AN129: =IF(AB129<>AB128,1,0) -> 0
P130: Putt Buddies | Q130: 7 | R130: 310 | S130: 48 | T130: 6 | U130: 7 | V130: 5 | W130: 1 | X130: 1 | Y130: 0 | Z130: 1 | AA130: 0 | AB130: 0 | AC130: 0 | AD130: =(T130*Setup!$J$17)+(U130*Setup!$J$18)+(V130*Setup!$J$19)+(W130*Setup!$J$22)+X130*(Setup!$J$23)+(Y130*Setup!$J$24)+(Z130*Setup!$J$27)+(AA130*Setup!$J$28)+(AB130*Setup!$J$29) -> 27 | AE130: ERROR | AF130: 0 | AG130: =IF(T130<>U131,1,0) -> 1 | AH130: =IF(V130<>V131,1,0) -> 1 | AI130: 0 | AJ130: =IF(W130<>X131,1,0) -> 1 | AK130: =IF(Y130<>Y131,1,0) -> 0 | AL130: 0 | AM130: =IF(Z130<>AA131,1,0) -> 0 | AN130: =IF(AB130<>AB131,1,0) -> 0
P131: Hole N 8 | Q131: 7 | R131: 310 | S131: 47 | T131: 5 | U131: 1 | V131: 3 | W131: 1 | X131: 0 | Y131: 0 | Z131: 0 | AA131: 1 | AB131: 0 | AC131: 0 | AD131: =(T131*Setup!$J$17)+(U131*Setup!$J$18)+(V131*Setup!$J$19)+(W131*Setup!$J$22)+X131*(Setup!$J$23)+(Y131*Setup!$J$24)+(Z131*Setup!$J$27)+(AA131*Setup!$J$28)+(AB131*Setup!$J$29) -> 17 | AE131: ERROR | AF131: 1 | AG131: =IF(T131<>U130,1,0) -> 1 | AH131: =IF(V131<>V130,1,0) -> 1 | AI131: 1 | AJ131: =IF(W131<>X130,1,0) -> 0 | AK131: =IF(Y131<>Y130,1,0) -> 0 | AL131: 0 | AM131: =IF(Z131<>AA130,1,0) -> 0 | AN131: =IF(AB131<>AB130,1,0) -> 0
P132: Checkin Test Cells | Q132: 7 | R132: 311 | S132: 38 | T132: 6 | U132: 7 | V132: 5 | W132: 0 | X132: 1 | Y132: 1 | Z132: 1 | AA132: 0 | AB132: 0 | AC132: 0 | AD132: =(T132*Setup!$J$17)+(U132*Setup!$J$18)+(V132*Setup!$J$19)+(W132*Setup!$J$22)+X132*(Setup!$J$23)+(Y132*Setup!$J$24)+(Z132*Setup!$J$27)+(AA132*Setup!$J$28)+(AB132*Setup!$J$29) -> 25 | AE132: ERROR | AF132: 0 | AG132: =IF(T132<>U133,1,0) -> 1 | AH132: =IF(V132<>V133,1,0) -> 1 | AI132: 0 | AJ132: =IF(W132<>X133,1,0) -> 0 | AK132: =IF(Y132<>Y133,1,0) -> 0 | AL132: 0 | AM132: =IF(Z132<>AA133,1,0) -> 0 | AN132: =IF(AB132<>AB133,1,0) -> 0
P133: Charles and Rob | Q133: 7 | R133: 311 | S133: 37 | T133: 3 | U133: 4 | V133: 2 | W133: 0 | X133: 0 | Y133: 1 | Z133: 0 | AA133: 1 | AB133: 0 | AC133: 0 | AD133: =(T133*Setup!$J$17)+(U133*Setup!$J$18)+(V133*Setup!$J$19)+(W133*Setup!$J$22)+X133*(Setup!$J$23)+(Y133*Setup!$J$24)+(Z133*Setup!$J$27)+(AA133*Setup!$J$28)+(AB133*Setup!$J$29) -> 10 | AE133: ERROR | AF133: 1 | AG133: =IF(T133<>U132,1,0) -> 1 | AH133: =IF(V133<>V132,1,0) -> 1 | AI133: 1 | AJ133: =IF(W133<>X132,1,0) -> 1 | AK133: =IF(Y133<>Y132,1,0) -> 0 | AL133: 0 | AM133: =IF(Z133<>AA132,1,0) -> 0 | AN133: =IF(AB133<>AB132,1,0) -> 0
P134: Putt Pirates | Q134: 7 | R134: 312 | S134: 49 | T134: 5 | U134: 6 | V134: 7 | W134: 1 | X134: 0 | Y134: 1 | Z134: 1 | AA134: 0 | AB134: 0 | AC134: 0 | AD134: =(T134*Setup!$J$17)+(U134*Setup!$J$18)+(V134*Setup!$J$19)+(W134*Setup!$J$22)+X134*(Setup!$J$23)+(Y134*Setup!$J$24)+(Z134*Setup!$J$27)+(AA134*Setup!$J$28)+(AB134*Setup!$J$29) -> 29 | AE134: ERROR | AF134: 0 | AG134: =IF(T134<>U135,1,0) -> 1 | AH134: =IF(V134<>V135,1,0) -> 1 | AI134: 0 | AJ134: =IF(W134<>X135,1,0) -> 1 | AK134: =IF(Y134<>Y135,1,0) -> 0 | AL134: 0 | AM134: =IF(Z134<>AA135,1,0) -> 0 | AN134: =IF(AB134<>AB135,1,0) -> 0
P135: Evan and Jon | Q135: 7 | R135: 312 | S135: 46 | T135: 4 | U135: 2 | V135: 3 | W135: 0 | X135: 0 | Y135: 1 | Z135: 0 | AA135: 1 | AB135: 0 | AC135: 0 | AD135: =(T135*Setup!$J$17)+(U135*Setup!$J$18)+(V135*Setup!$J$19)+(W135*Setup!$J$22)+X135*(Setup!$J$23)+(Y135*Setup!$J$24)+(Z135*Setup!$J$27)+(AA135*Setup!$J$28)+(AB135*Setup!$J$29) -> 13 | AE135: ERROR | AF135: 1 | AG135: =IF(T135<>U134,1,0) -> 1 | AH135: =IF(V135<>V134,1,0) -> 1 | AI135: 1 | AJ135: =IF(W135<>X134,1,0) -> 0 | AK135: =IF(Y135<>Y134,1,0) -> 0 | AL135: 0 | AM135: =IF(Z135<>AA134,1,0) -> 0 | AN135: =IF(AB135<>AB134,1,0) -> 0
P136: Dave, Joe and Rick | Q136: 7 | R136: 313 | S136: 39 | T136: 0 | U136: 0 | V136: 0 | W136: 0 | X136: 0 | Y136: 0 | Z136: 0 | AA136: 1 | AB136: 0 | AC136: 0 | AD136: =(T136*Setup!$J$17)+(U136*Setup!$J$18)+(V136*Setup!$J$19)+(W136*Setup!$J$22)+X136*(Setup!$J$23)+(Y136*Setup!$J$24)+(Z136*Setup!$J$27)+(AA136*Setup!$J$28)+(AB136*Setup!$J$29) -> 0 | AE136: ERROR | AF136: 1 | AG136: =IF(T136<>U137,1,0) -> 1 | AH136: =IF(V136<>V137,1,0) -> 1 | AI136: 1 | AJ136: =IF(W136<>X137,1,0) -> 0 | AK136: =IF(Y136<>Y137,1,0) -> 0 | AL136: 0 | AM136: =IF(Z136<>AA137,1,0) -> 0 | AN136: =IF(AB136<>AB137,1,0) -> 0
P137: Bob and Mike | Q137: 7 | R137: 313 | S137: 36 | T137: 9 | U137: 4 | V137: 5 | W137: 2 | X137: 0 | Y137: 0 | Z137: 1 | AA137: 0 | AB137: 0 | AC137: 0 | AD137: =(T137*Setup!$J$17)+(U137*Setup!$J$18)+(V137*Setup!$J$19)+(W137*Setup!$J$22)+X137*(Setup!$J$23)+(Y137*Setup!$J$24)+(Z137*Setup!$J$27)+(AA137*Setup!$J$28)+(AB137*Setup!$J$29) -> 37 | AE137: ERROR | AF137: 0 | AG137: =IF(T137<>U136,1,0) -> 1 | AH137: =IF(V137<>V136,1,0) -> 1 | AI137: 0 | AJ137: =IF(W137<>X136,1,0) -> 1 | AK137: =IF(Y137<>Y136,1,0) -> 0 | AL137: 0 | AM137: =IF(Z137<>AA136,1,0) -> 0 | AN137: =IF(AB137<>AB136,1,0) -> 0
P138: Reckless Drivers | Q138: 7 | R138: 314 | S138: 50 | T138: 6 | U138: 8 | V138: 4 | W138: 1 | X138: 1 | Y138: 0 | Z138: 1 | AA138: 0 | AB138: 0 | AC138: 0 | AD138: =(T138*Setup!$J$17)+(U138*Setup!$J$18)+(V138*Setup!$J$19)+(W138*Setup!$J$22)+X138*(Setup!$J$23)+(Y138*Setup!$J$24)+(Z138*Setup!$J$27)+(AA138*Setup!$J$28)+(AB138*Setup!$J$29) -> 26 | AE138: ERROR | AF138: 0 | AG138: =IF(T138<>U139,1,0) -> 1 | AH138: =IF(V138<>V139,1,0) -> 1 | AI138: 0 | AJ138: =IF(W138<>X139,1,0) -> 0 | AK138: =IF(Y138<>Y139,1,0) -> 0 | AL138: 0 | AM138: =IF(Z138<>AA139,1,0) -> 0 | AN138: =IF(AB138<>AB139,1,0) -> 0
P139: Dude Wheres My Par | Q139: 7 | R139: 314 | S139: 45 | T139: 3 | U139: 3 | V139: 3 | W139: 0 | X139: 1 | Y139: 0 | Z139: 0 | AA139: 1 | AB139: 0 | AC139: 0 | AD139: =(T139*Setup!$J$17)+(U139*Setup!$J$18)+(V139*Setup!$J$19)+(W139*Setup!$J$22)+X139*(Setup!$J$23)+(Y139*Setup!$J$24)+(Z139*Setup!$J$27)+(AA139*Setup!$J$28)+(AB139*Setup!$J$29) -> 9 | AE139: ERROR | AF139: 1 | AG139: =IF(T139<>U138,1,0) -> 1 | AH139: =IF(V139<>V138,1,0) -> 1 | AI139: 1 | AJ139: =IF(W139<>X138,1,0) -> 1 | AK139: =IF(Y139<>Y138,1,0) -> 0 | AL139: 0 | AM139: =IF(Z139<>AA138,1,0) -> 0 | AN139: =IF(AB139<>AB138,1,0) -> 0
P140: Schmitts Creek | Q140: 7 | R140: 315 | S140: 40 | T140: 1 | U140: 15 | V140: 2 | W140: 0 | X140: 2 | Y140: 0 | Z140: 0 | AA140: 1 | AB140: 0 | AC140: 0 | AD140: =(T140*Setup!$J$17)+(U140*Setup!$J$18)+(V140*Setup!$J$19)+(W140*Setup!$J$22)+X140*(Setup!$J$23)+(Y140*Setup!$J$24)+(Z140*Setup!$J$27)+(AA140*Setup!$J$28)+(AB140*Setup!$J$29) -> 4 | AF140: 0 | AG140: =IF(T140<>U141,1,0) -> 0 | AH140: =IF(V140<>V141,1,0) -> 0 | AI140: 0 | AJ140: =IF(W140<>X141,1,0) -> 0 | AK140: =IF(Y140<>Y141,1,0) -> 0 | AL140: 0 | AM140: =IF(Z140<>AA141,1,0) -> 0 | AN140: =IF(AB140<>AB141,1,0) -> 0
P141: Bill and John | Q141: 7 | R141: 315 | S141: 35 | T141: 15 | U141: 1 | V141: 2 | W141: 2 | X141: 0 | Y141: 0 | Z141: 1 | AA141: 0 | AB141: 0 | AC141: 0 | AD141: =(T141*Setup!$J$17)+(U141*Setup!$J$18)+(V141*Setup!$J$19)+(W141*Setup!$J$22)+X141*(Setup!$J$23)+(Y141*Setup!$J$24)+(Z141*Setup!$J$27)+(AA141*Setup!$J$28)+(AB141*Setup!$J$29) -> 46 | AF141: 0 | AG141: =IF(T141<>U140,1,0) -> 0 | AH141: =IF(V141<>V140,1,0) -> 0 | AI141: 0 | AJ141: =IF(W141<>X140,1,0) -> 0 | AK141: =IF(Y141<>Y140,1,0) -> 0 | AL141: 0 | AM141: =IF(Z141<>AA140,1,0) -> 0 | AN141: =IF(AB141<>AB140,1,0) -> 0
P142: Shootist 1 | Q142: 7 | R142: 316 | S142: 51 | T142: 6 | U142: 6 | V142: 6 | W142: 0 | X142: 1 | Y142: 1 | Z142: 0 | AA142: 1 | AB142: 0 | AC142: 0 | AD142: =(T142*Setup!$J$17)+(U142*Setup!$J$18)+(V142*Setup!$J$19)+(W142*Setup!$J$22)+X142*(Setup!$J$23)+(Y142*Setup!$J$24)+(Z142*Setup!$J$27)+(AA142*Setup!$J$28)+(AB142*Setup!$J$29) -> 20 | AF142: 0 | AG142: =IF(T142<>U143,1,0) -> 0 | AH142: =IF(V142<>V143,1,0) -> 0 | AI142: 0 | AJ142: =IF(W142<>X143,1,0) -> 0 | AK142: =IF(Y142<>Y143,1,0) -> 0 | AL142: 0 | AM142: =IF(Z142<>AA143,1,0) -> 0 | AN142: =IF(AB142<>AB143,1,0) -> 0
P143: Snowmen | Q143: 7 | R143: 316 | S143: 53 | T143: 6 | U143: 6 | V143: 6 | W143: 1 | X143: 0 | Y143: 1 | Z143: 1 | AA143: 0 | AB143: 0 | AC143: 0 | AD143: =(T143*Setup!$J$17)+(U143*Setup!$J$18)+(V143*Setup!$J$19)+(W143*Setup!$J$22)+X143*(Setup!$J$23)+(Y143*Setup!$J$24)+(Z143*Setup!$J$27)+(AA143*Setup!$J$28)+(AB143*Setup!$J$29) -> 30 | AF143: 0 | AG143: =IF(T143<>U142,1,0) -> 0 | AH143: =IF(V143<>V142,1,0) -> 0 | AI143: 0 | AJ143: =IF(W143<>X142,1,0) -> 0 | AK143: =IF(Y143<>Y142,1,0) -> 0 | AL143: 0 | AM143: =IF(Z143<>AA142,1,0) -> 0 | AN143: =IF(AB143<>AB142,1,0) -> 0
P144: McAvoys | Q144: 7 | R144: 317 | S144: 41 | T144: 9 | U144: 6 | V144: 3 | W144: 1 | X144: 1 | Y144: 0 | Z144: 1 | AA144: 0 | AB144: 0 | AC144: 0 | AD144: =(T144*Setup!$J$17)+(U144*Setup!$J$18)+(V144*Setup!$J$19)+(W144*Setup!$J$22)+X144*(Setup!$J$23)+(Y144*Setup!$J$24)+(Z144*Setup!$J$27)+(AA144*Setup!$J$28)+(AB144*Setup!$J$29) -> 31 | AF144: 0 | AG144: =IF(T144<>U145,1,0) -> 0 | AH144: =IF(V144<>V145,1,0) -> 0 | AI144: 0 | AJ144: =IF(W144<>X145,1,0) -> 0 | AK144: =IF(Y144<>Y145,1,0) -> 0 | AL144: 0 | AM144: =IF(Z144<>AA145,1,0) -> 0 | AN144: =IF(AB144<>AB145,1,0) -> 0
P145: Stewart Shankers | Q145: 7 | R145: 317 | S145: 43 | T145: 6 | U145: 9 | V145: 3 | W145: 1 | X145: 1 | Y145: 0 | Z145: 0 | AA145: 1 | AB145: 0 | AC145: 0 | AD145: =(T145*Setup!$J$17)+(U145*Setup!$J$18)+(V145*Setup!$J$19)+(W145*Setup!$J$22)+X145*(Setup!$J$23)+(Y145*Setup!$J$24)+(Z145*Setup!$J$27)+(AA145*Setup!$J$28)+(AB145*Setup!$J$29) -> 19 | AF145: 0 | AG145: =IF(T145<>U144,1,0) -> 0 | AH145: =IF(V145<>V144,1,0) -> 0 | AI145: 0 | AJ145: =IF(W145<>X144,1,0) -> 0 | AK145: =IF(Y145<>Y144,1,0) -> 0 | AL145: 0 | AM145: =IF(Z145<>AA144,1,0) -> 0 | AN145: =IF(AB145<>AB144,1,0) -> 0
P146: Shootist 2 | Q146: 7 | R146: 318 | S146: 52 | T146: 8 | U146: 8 | V146: 2 | W146: 1 | X146: 1 | Y146: 0 | Z146: 1 | AA146: 0 | AB146: 0 | AC146: 0 | AD146: =(T146*Setup!$J$17)+(U146*Setup!$J$18)+(V146*Setup!$J$19)+(W146*Setup!$J$22)+X146*(Setup!$J$23)+(Y146*Setup!$J$24)+(Z146*Setup!$J$27)+(AA146*Setup!$J$28)+(AB146*Setup!$J$29) -> 28 | AE146: ERROR | AF146: 0 | AG146: =IF(T146<>U147,1,0) -> 1 | AH146: =IF(V146<>V147,1,0) -> 1 | AI146: 0 | AJ146: =IF(W146<>X147,1,0) -> 0 | AK146: =IF(Y146<>Y147,1,0) -> 0 | AL146: 0 | AM146: =IF(Z146<>AA147,1,0) -> 0 | AN146: =IF(AB146<>AB147,1,0) -> 0
P147: Delivery Divots | Q147: 7 | R147: 318 | S147: 44 | T147: 5 | U147: 4 | V147: 0 | W147: 0 | X147: 1 | Y147: 0 | Z147: 0 | AA147: 1 | AB147: 0 | AC147: 0 | AD147: =(T147*Setup!$J$17)+(U147*Setup!$J$18)+(V147*Setup!$J$19)+(W147*Setup!$J$22)+X147*(Setup!$J$23)+(Y147*Setup!$J$24)+(Z147*Setup!$J$27)+(AA147*Setup!$J$28)+(AB147*Setup!$J$29) -> 10 | AE147: ERROR | AF147: 1 | AG147: =IF(T147<>U146,1,0) -> 1 | AH147: =IF(V147<>V146,1,0) -> 1 | AI147: 1 | AJ147: =IF(W147<>X146,1,0) -> 1 | AK147: =IF(Y147<>Y146,1,0) -> 0 | AL147: 0 | AM147: =IF(Z147<>AA146,1,0) -> 0 | AN147: =IF(AB147<>AB146,1,0) -> 0
P148: Dingers Ringers | Q148: 7 | R148: 319 | S148: 42 | T148: 10 | U148: 6 | V148: 2 | W148: 2 | X148: 0 | Y148: 0 | Z148: 1 | AA148: 0 | AB148: 0 | AC148: 0 | AD148: =(T148*Setup!$J$17)+(U148*Setup!$J$18)+(V148*Setup!$J$19)+(W148*Setup!$J$22)+X148*(Setup!$J$23)+(Y148*Setup!$J$24)+(Z148*Setup!$J$27)+(AA148*Setup!$J$28)+(AB148*Setup!$J$29) -> 36 | AF148: 0 | AG148: =IF(T148<>U149,1,0) -> 0 | AH148: =IF(V148<>V149,1,0) -> 0 | AI148: 0 | AJ148: =IF(W148<>X149,1,0) -> 0 | AK148: =IF(Y148<>Y149,1,0) -> 0 | AL148: 0 | AM148: =IF(Z148<>AA149,1,0) -> 0 | AN148: =IF(AB148<>AB149,1,0) -> 0
P149: Alex and Carl | Q149: 7 | R149: 319 | S149: 34 | T149: 6 | U149: 10 | V149: 2 | W149: 0 | X149: 2 | Y149: 0 | Z149: 0 | AA149: 1 | AB149: 0 | AC149: 0 | AD149: =(T149*Setup!$J$17)+(U149*Setup!$J$18)+(V149*Setup!$J$19)+(W149*Setup!$J$22)+X149*(Setup!$J$23)+(Y149*Setup!$J$24)+(Z149*Setup!$J$27)+(AA149*Setup!$J$28)+(AB149*Setup!$J$29) -> 14 | AF149: 0 | AG149: =IF(T149<>U148,1,0) -> 0 | AH149: =IF(V149<>V148,1,0) -> 0 | AI149: 0 | AJ149: =IF(W149<>X148,1,0) -> 0 | AK149: =IF(Y149<>Y148,1,0) -> 0 | AL149: 0 | AM149: =IF(Z149<>AA148,1,0) -> 0 | AN149: =IF(AB149<>AB148,1,0) -> 0
AD150: =(T150*Setup!$J$17)+(U150*Setup!$J$18)+(V150*Setup!$J$19)+(W150*Setup!$J$22)+X150*(Setup!$J$23)+(Y150*Setup!$J$24)+(Z150*Setup!$J$27)+(AA150*Setup!$J$28)+(AB150*Setup!$J$29) -> 0 | AE150: ERROR | AF150: 1 | AG150: =IF(T150<>U151,1,0) -> 0 | AH150: =IF(V150<>V151,1,0) -> 0 | AI150: 1 | AJ150: =IF(W150<>X151,1,0) -> 0 | AK150: =IF(Y150<>Y151,1,0) -> 0 | AL150: 1 | AM150: =IF(Z150<>AA151,1,0) -> 0 | AN150: =IF(AB150<>AB151,1,0) -> 0
AD151: =(T151*Setup!$J$17)+(U151*Setup!$J$18)+(V151*Setup!$J$19)+(W151*Setup!$J$22)+X151*(Setup!$J$23)+(Y151*Setup!$J$24)+(Z151*Setup!$J$27)+(AA151*Setup!$J$28)+(AB151*Setup!$J$29) -> 0 | AE151: ERROR | AF151: 1 | AG151: =IF(T151<>U150,1,0) -> 0 | AH151: =IF(V151<>V150,1,0) -> 0 | AI151: 1 | AJ151: =IF(W151<>X150,1,0) -> 0 | AK151: =IF(Y151<>Y150,1,0) -> 0 | AL151: 1 | AM151: =IF(Z151<>AA150,1,0) -> 0 | AN151: =IF(AB151<>AB150,1,0) -> 0
AD152: =(T152*Setup!$J$17)+(U152*Setup!$J$18)+(V152*Setup!$J$19)+(W152*Setup!$J$22)+X152*(Setup!$J$23)+(Y152*Setup!$J$24)+(Z152*Setup!$J$27)+(AA152*Setup!$J$28)+(AB152*Setup!$J$29) -> 0 | AE152: ERROR | AF152: 1 | AG152: =IF(T152<>U153,1,0) -> 0 | AH152: =IF(V152<>V153,1,0) -> 0 | AI152: 1 | AJ152: =IF(W152<>X153,1,0) -> 0 | AK152: =IF(Y152<>Y153,1,0) -> 0 | AL152: 1 | AM152: =IF(Z152<>AA153,1,0) -> 0 | AN152: =IF(AB152<>AB153,1,0) -> 0
AD153: =(T153*Setup!$J$17)+(U153*Setup!$J$18)+(V153*Setup!$J$19)+(W153*Setup!$J$22)+X153*(Setup!$J$23)+(Y153*Setup!$J$24)+(Z153*Setup!$J$27)+(AA153*Setup!$J$28)+(AB153*Setup!$J$29) -> 0 | AE153: ERROR | AF153: 1 | AG153: =IF(T153<>U152,1,0) -> 0 | AH153: =IF(V153<>V152,1,0) -> 0 | AI153: 1 | AJ153: =IF(W153<>X152,1,0) -> 0 | AK153: =IF(Y153<>Y152,1,0) -> 0 | AL153: 1 | AM153: =IF(Z153<>AA152,1,0) -> 0 | AN153: =IF(AB153<>AB152,1,0) -> 0
AD154: =(T154*Setup!$J$17)+(U154*Setup!$J$18)+(V154*Setup!$J$19)+(W154*Setup!$J$22)+X154*(Setup!$J$23)+(Y154*Setup!$J$24)+(Z154*Setup!$J$27)+(AA154*Setup!$J$28)+(AB154*Setup!$J$29) -> 0 | AE154: ERROR | AF154: 1 | AG154: =IF(T154<>U155,1,0) -> 0 | AH154: =IF(V154<>V155,1,0) -> 0 | AI154: 1 | AJ154: =IF(W154<>X155,1,0) -> 0 | AK154: =IF(Y154<>Y155,1,0) -> 0 | AL154: 1 | AM154: =IF(Z154<>AA155,1,0) -> 0 | AN154: =IF(AB154<>AB155,1,0) -> 0
AD155: =(T155*Setup!$J$17)+(U155*Setup!$J$18)+(V155*Setup!$J$19)+(W155*Setup!$J$22)+X155*(Setup!$J$23)+(Y155*Setup!$J$24)+(Z155*Setup!$J$27)+(AA155*Setup!$J$28)+(AB155*Setup!$J$29) -> 0 | AE155: ERROR | AF155: 1 | AG155: =IF(T155<>U154,1,0) -> 0 | AH155: =IF(V155<>V154,1,0) -> 0 | AI155: 1 | AJ155: =IF(W155<>X154,1,0) -> 0 | AK155: =IF(Y155<>Y154,1,0) -> 0 | AL155: 1 | AM155: =IF(Z155<>AA154,1,0) -> 0 | AN155: =IF(AB155<>AB154,1,0) -> 0
AD156: =(T156*Setup!$J$17)+(U156*Setup!$J$18)+(V156*Setup!$J$19)+(W156*Setup!$J$22)+X156*(Setup!$J$23)+(Y156*Setup!$J$24)+(Z156*Setup!$J$27)+(AA156*Setup!$J$28)+(AB156*Setup!$J$29) -> 0 | AE156: ERROR | AF156: 1 | AG156: =IF(T156<>U157,1,0) -> 0 | AH156: =IF(V156<>V157,1,0) -> 0 | AI156: 1 | AJ156: =IF(W156<>X157,1,0) -> 0 | AK156: =IF(Y156<>Y157,1,0) -> 0 | AL156: 1 | AM156: =IF(Z156<>AA157,1,0) -> 0 | AN156: =IF(AB156<>AB157,1,0) -> 0
AD157: =(T157*Setup!$J$17)+(U157*Setup!$J$18)+(V157*Setup!$J$19)+(W157*Setup!$J$22)+X157*(Setup!$J$23)+(Y157*Setup!$J$24)+(Z157*Setup!$J$27)+(AA157*Setup!$J$28)+(AB157*Setup!$J$29) -> 0 | AE157: ERROR | AF157: 1 | AG157: =IF(T157<>U156,1,0) -> 0 | AH157: =IF(V157<>V156,1,0) -> 0 | AI157: 1 | AJ157: =IF(W157<>X156,1,0) -> 0 | AK157: =IF(Y157<>Y156,1,0) -> 0 | AL157: 1 | AM157: =IF(Z157<>AA156,1,0) -> 0 | AN157: =IF(AB157<>AB156,1,0) -> 0
P158: =VLOOKUP(S158,GE_Teams_DBID,2,FALSE) ->  | AD158: =(T158*Setup!$J$17)+(U158*Setup!$J$18)+(V158*Setup!$J$19)+(W158*Setup!$J$22)+X158*(Setup!$J$23)+(Y158*Setup!$J$24)+(Z158*Setup!$J$27)+(AA158*Setup!$J$28)+(AB158*Setup!$J$29) -> 0 | AE158: ERROR | AF158: =IF((T158+U158+V158)<>18,1,0) -> 1 | AG158: =IF(T158<>U159,1,0) -> 0 | AH158: =IF(V158<>V159,1,0) -> 0 | AI158: =IF((W158+X158+Y158)<>2,1,0) -> 1 | AJ158: =IF(W158<>X159,1,0) -> 0 | AK158: =IF(Y158<>Y159,1,0) -> 0 | AL158: =IF((Z158+AA158+AB158)<>1,1,0) -> 1 | AM158: =IF(Z158<>AA159,1,0) -> 0 | AN158: =IF(AB158<>AB159,1,0) -> 0
AD159: =(T159*Setup!$J$17)+(U159*Setup!$J$18)+(V159*Setup!$J$19)+(W159*Setup!$J$22)+X159*(Setup!$J$23)+(Y159*Setup!$J$24)+(Z159*Setup!$J$27)+(AA159*Setup!$J$28)+(AB159*Setup!$J$29) -> 0 | AE159: =IF(SUM(AF159:AN159)>0,"ERROR","") -> ERROR | AF159: 1 | AG159: =IF(T159<>U158,1,0) -> 0 | AH159: =IF(V159<>V158,1,0) -> 0 | AI159: 1 | AJ159: =IF(W159<>X158,1,0) -> 0 | AK159: =IF(Y159<>Y158,1,0) -> 0 | AL159: 1 | AM159: =IF(Z159<>AA158,1,0) -> 0 | AN159: =IF(AB159<>AB158,1,0) -> 0
AD160: =(T160*Setup!$J$17)+(U160*Setup!$J$18)+(V160*Setup!$J$19)+(W160*Setup!$J$22)+X160*(Setup!$J$23)+(Y160*Setup!$J$24)+(Z160*Setup!$J$27)+(AA160*Setup!$J$28)+(AB160*Setup!$J$29) -> 0 | AE160: ERROR | AF160: 1 | AG160: =IF(T160<>U161,1,0) -> 0 | AH160: =IF(V160<>V161,1,0) -> 0 | AI160: 1 | AJ160: =IF(W160<>X161,1,0) -> 0 | AK160: =IF(Y160<>Y161,1,0) -> 0 | AL160: 1 | AM160: =IF(Z160<>AA161,1,0) -> 0 | AN160: =IF(AB160<>AB161,1,0) -> 0
AD161: =(T161*Setup!$J$17)+(U161*Setup!$J$18)+(V161*Setup!$J$19)+(W161*Setup!$J$22)+X161*(Setup!$J$23)+(Y161*Setup!$J$24)+(Z161*Setup!$J$27)+(AA161*Setup!$J$28)+(AB161*Setup!$J$29) -> 0 | AE161: ERROR | AF161: 1 | AG161: =IF(T161<>U160,1,0) -> 0 | AH161: =IF(V161<>V160,1,0) -> 0 | AI161: 1 | AJ161: =IF(W161<>X160,1,0) -> 0 | AK161: =IF(Y161<>Y160,1,0) -> 0 | AL161: 1 | AM161: =IF(Z161<>AA160,1,0) -> 0 | AN161: =IF(AB161<>AB160,1,0) -> 0
AD162: =(T162*Setup!$J$17)+(U162*Setup!$J$18)+(V162*Setup!$J$19)+(W162*Setup!$J$22)+X162*(Setup!$J$23)+(Y162*Setup!$J$24)+(Z162*Setup!$J$27)+(AA162*Setup!$J$28)+(AB162*Setup!$J$29) -> 0 | AE162: ERROR | AF162: 1 | AG162: =IF(T162<>U163,1,0) -> 0 | AH162: =IF(V162<>V163,1,0) -> 0 | AI162: 1 | AJ162: =IF(W162<>X163,1,0) -> 0 | AK162: =IF(Y162<>Y163,1,0) -> 0 | AL162: 1 | AM162: =IF(Z162<>AA163,1,0) -> 0 | AN162: =IF(AB162<>AB163,1,0) -> 0
AD163: =(T163*Setup!$J$17)+(U163*Setup!$J$18)+(V163*Setup!$J$19)+(W163*Setup!$J$22)+X163*(Setup!$J$23)+(Y163*Setup!$J$24)+(Z163*Setup!$J$27)+(AA163*Setup!$J$28)+(AB163*Setup!$J$29) -> 0 | AE163: ERROR | AF163: 1 | AG163: =IF(T163<>U162,1,0) -> 0 | AH163: =IF(V163<>V162,1,0) -> 0 | AI163: 1 | AJ163: =IF(W163<>X162,1,0) -> 0 | AK163: =IF(Y163<>Y162,1,0) -> 0 | AL163: 1 | AM163: =IF(Z163<>AA162,1,0) -> 0 | AN163: =IF(AB163<>AB162,1,0) -> 0
AD164: =(T164*Setup!$J$17)+(U164*Setup!$J$18)+(V164*Setup!$J$19)+(W164*Setup!$J$22)+X164*(Setup!$J$23)+(Y164*Setup!$J$24)+(Z164*Setup!$J$27)+(AA164*Setup!$J$28)+(AB164*Setup!$J$29) -> 0 | AE164: ERROR | AF164: 1 | AG164: =IF(T164<>U165,1,0) -> 0 | AH164: =IF(V164<>V165,1,0) -> 0 | AI164: 1 | AJ164: =IF(W164<>X165,1,0) -> 0 | AK164: =IF(Y164<>Y165,1,0) -> 0 | AL164: 1 | AM164: =IF(Z164<>AA165,1,0) -> 0 | AN164: =IF(AB164<>AB165,1,0) -> 0
AD165: =(T165*Setup!$J$17)+(U165*Setup!$J$18)+(V165*Setup!$J$19)+(W165*Setup!$J$22)+X165*(Setup!$J$23)+(Y165*Setup!$J$24)+(Z165*Setup!$J$27)+(AA165*Setup!$J$28)+(AB165*Setup!$J$29) -> 0 | AE165: ERROR | AF165: 1 | AG165: =IF(T165<>U164,1,0) -> 0 | AH165: =IF(V165<>V164,1,0) -> 0 | AI165: 1 | AJ165: =IF(W165<>X164,1,0) -> 0 | AK165: =IF(Y165<>Y164,1,0) -> 0 | AL165: 1 | AM165: =IF(Z165<>AA164,1,0) -> 0 | AN165: =IF(AB165<>AB164,1,0) -> 0
AD166: =(T166*Setup!$J$17)+(U166*Setup!$J$18)+(V166*Setup!$J$19)+(W166*Setup!$J$22)+X166*(Setup!$J$23)+(Y166*Setup!$J$24)+(Z166*Setup!$J$27)+(AA166*Setup!$J$28)+(AB166*Setup!$J$29) -> 0 | AE166: ERROR | AF166: 1 | AG166: =IF(T166<>U167,1,0) -> 0 | AH166: =IF(V166<>V167,1,0) -> 0 | AI166: 1 | AJ166: =IF(W166<>X167,1,0) -> 0 | AK166: =IF(Y166<>Y167,1,0) -> 0 | AL166: 1 | AM166: =IF(Z166<>AA167,1,0) -> 0 | AN166: =IF(AB166<>AB167,1,0) -> 0
AD167: =(T167*Setup!$J$17)+(U167*Setup!$J$18)+(V167*Setup!$J$19)+(W167*Setup!$J$22)+X167*(Setup!$J$23)+(Y167*Setup!$J$24)+(Z167*Setup!$J$27)+(AA167*Setup!$J$28)+(AB167*Setup!$J$29) -> 0 | AE167: ERROR | AF167: 1 | AG167: =IF(T167<>U166,1,0) -> 0 | AH167: =IF(V167<>V166,1,0) -> 0 | AI167: 1 | AJ167: =IF(W167<>X166,1,0) -> 0 | AK167: =IF(Y167<>Y166,1,0) -> 0 | AL167: 1 | AM167: =IF(Z167<>AA166,1,0) -> 0 | AN167: =IF(AB167<>AB166,1,0) -> 0
AD168: =(T168*Setup!$J$17)+(U168*Setup!$J$18)+(V168*Setup!$J$19)+(W168*Setup!$J$22)+X168*(Setup!$J$23)+(Y168*Setup!$J$24)+(Z168*Setup!$J$27)+(AA168*Setup!$J$28)+(AB168*Setup!$J$29) -> 0 | AE168: ERROR | AF168: 1 | AG168: =IF(T168<>U169,1,0) -> 0 | AH168: =IF(V168<>V169,1,0) -> 0 | AI168: 1 | AJ168: =IF(W168<>X169,1,0) -> 0 | AK168: =IF(Y168<>Y169,1,0) -> 0 | AL168: 1 | AM168: =IF(Z168<>AA169,1,0) -> 0 | AN168: =IF(AB168<>AB169,1,0) -> 0
AD169: =(T169*Setup!$J$17)+(U169*Setup!$J$18)+(V169*Setup!$J$19)+(W169*Setup!$J$22)+X169*(Setup!$J$23)+(Y169*Setup!$J$24)+(Z169*Setup!$J$27)+(AA169*Setup!$J$28)+(AB169*Setup!$J$29) -> 0 | AE169: ERROR | AF169: 1 | AG169: =IF(T169<>U168,1,0) -> 0 | AH169: =IF(V169<>V168,1,0) -> 0 | AI169: 1 | AJ169: =IF(W169<>X168,1,0) -> 0 | AK169: =IF(Y169<>Y168,1,0) -> 0 | AL169: 1 | AM169: =IF(Z169<>AA168,1,0) -> 0 | AN169: =IF(AB169<>AB168,1,0) -> 0
AD170: =(T170*Setup!$J$17)+(U170*Setup!$J$18)+(V170*Setup!$J$19)+(W170*Setup!$J$22)+X170*(Setup!$J$23)+(Y170*Setup!$J$24)+(Z170*Setup!$J$27)+(AA170*Setup!$J$28)+(AB170*Setup!$J$29) -> 0 | AE170: ERROR | AF170: 1 | AG170: =IF(T170<>U171,1,0) -> 0 | AH170: =IF(V170<>V171,1,0) -> 0 | AI170: 1 | AJ170: =IF(W170<>X171,1,0) -> 0 | AK170: =IF(Y170<>Y171,1,0) -> 0 | AL170: 1 | AM170: =IF(Z170<>AA171,1,0) -> 0 | AN170: =IF(AB170<>AB171,1,0) -> 0
AD171: =(T171*Setup!$J$17)+(U171*Setup!$J$18)+(V171*Setup!$J$19)+(W171*Setup!$J$22)+X171*(Setup!$J$23)+(Y171*Setup!$J$24)+(Z171*Setup!$J$27)+(AA171*Setup!$J$28)+(AB171*Setup!$J$29) -> 0 | AE171: ERROR | AF171: 1 | AG171: =IF(T171<>U170,1,0) -> 0 | AH171: =IF(V171<>V170,1,0) -> 0 | AI171: 1 | AJ171: =IF(W171<>X170,1,0) -> 0 | AK171: =IF(Y171<>Y170,1,0) -> 0 | AL171: 1 | AM171: =IF(Z171<>AA170,1,0) -> 0 | AN171: =IF(AB171<>AB170,1,0) -> 0
AD172: =(T172*Setup!$J$17)+(U172*Setup!$J$18)+(V172*Setup!$J$19)+(W172*Setup!$J$22)+X172*(Setup!$J$23)+(Y172*Setup!$J$24)+(Z172*Setup!$J$27)+(AA172*Setup!$J$28)+(AB172*Setup!$J$29) -> 0 | AE172: ERROR | AF172: 1 | AG172: =IF(T172<>U173,1,0) -> 0 | AH172: =IF(V172<>V173,1,0) -> 0 | AI172: 1 | AJ172: =IF(W172<>X173,1,0) -> 0 | AK172: =IF(Y172<>Y173,1,0) -> 0 | AL172: 1 | AM172: =IF(Z172<>AA173,1,0) -> 0 | AN172: =IF(AB172<>AB173,1,0) -> 0
AD173: =(T173*Setup!$J$17)+(U173*Setup!$J$18)+(V173*Setup!$J$19)+(W173*Setup!$J$22)+X173*(Setup!$J$23)+(Y173*Setup!$J$24)+(Z173*Setup!$J$27)+(AA173*Setup!$J$28)+(AB173*Setup!$J$29) -> 0 | AE173: ERROR | AF173: 1 | AG173: =IF(T173<>U172,1,0) -> 0 | AH173: =IF(V173<>V172,1,0) -> 0 | AI173: 1 | AJ173: =IF(W173<>X172,1,0) -> 0 | AK173: =IF(Y173<>Y172,1,0) -> 0 | AL173: 1 | AM173: =IF(Z173<>AA172,1,0) -> 0 | AN173: =IF(AB173<>AB172,1,0) -> 0
AD174: =(T174*Setup!$J$17)+(U174*Setup!$J$18)+(V174*Setup!$J$19)+(W174*Setup!$J$22)+X174*(Setup!$J$23)+(Y174*Setup!$J$24)+(Z174*Setup!$J$27)+(AA174*Setup!$J$28)+(AB174*Setup!$J$29) -> 0 | AE174: ERROR | AF174: 1 | AG174: =IF(T174<>U175,1,0) -> 0 | AH174: =IF(V174<>V175,1,0) -> 0 | AI174: 1 | AJ174: =IF(W174<>X175,1,0) -> 0 | AK174: =IF(Y174<>Y175,1,0) -> 0 | AL174: 1 | AM174: =IF(Z174<>AA175,1,0) -> 0 | AN174: =IF(AB174<>AB175,1,0) -> 0
AD175: =(T175*Setup!$J$17)+(U175*Setup!$J$18)+(V175*Setup!$J$19)+(W175*Setup!$J$22)+X175*(Setup!$J$23)+(Y175*Setup!$J$24)+(Z175*Setup!$J$27)+(AA175*Setup!$J$28)+(AB175*Setup!$J$29) -> 0 | AE175: ERROR | AF175: 1 | AG175: =IF(T175<>U174,1,0) -> 0 | AH175: =IF(V175<>V174,1,0) -> 0 | AI175: 1 | AJ175: =IF(W175<>X174,1,0) -> 0 | AK175: =IF(Y175<>Y174,1,0) -> 0 | AL175: 1 | AM175: =IF(Z175<>AA174,1,0) -> 0 | AN175: =IF(AB175<>AB174,1,0) -> 0
AD176: =(T176*Setup!$J$17)+(U176*Setup!$J$18)+(V176*Setup!$J$19)+(W176*Setup!$J$22)+X176*(Setup!$J$23)+(Y176*Setup!$J$24)+(Z176*Setup!$J$27)+(AA176*Setup!$J$28)+(AB176*Setup!$J$29) -> 0 | AE176: ERROR | AF176: 1 | AG176: =IF(T176<>U177,1,0) -> 0 | AH176: =IF(V176<>V177,1,0) -> 0 | AI176: 1 | AJ176: =IF(W176<>X177,1,0) -> 0 | AK176: =IF(Y176<>Y177,1,0) -> 0 | AL176: 1 | AM176: =IF(Z176<>AA177,1,0) -> 0 | AN176: =IF(AB176<>AB177,1,0) -> 0
AD177: =(T177*Setup!$J$17)+(U177*Setup!$J$18)+(V177*Setup!$J$19)+(W177*Setup!$J$22)+X177*(Setup!$J$23)+(Y177*Setup!$J$24)+(Z177*Setup!$J$27)+(AA177*Setup!$J$28)+(AB177*Setup!$J$29) -> 0 | AE177: ERROR | AF177: 1 | AG177: =IF(T177<>U176,1,0) -> 0 | AH177: =IF(V177<>V176,1,0) -> 0 | AI177: 1 | AJ177: =IF(W177<>X176,1,0) -> 0 | AK177: =IF(Y177<>Y176,1,0) -> 0 | AL177: 1 | AM177: =IF(Z177<>AA176,1,0) -> 0 | AN177: =IF(AB177<>AB176,1,0) -> 0
AD178: =(T178*Setup!$J$17)+(U178*Setup!$J$18)+(V178*Setup!$J$19)+(W178*Setup!$J$22)+X178*(Setup!$J$23)+(Y178*Setup!$J$24)+(Z178*Setup!$J$27)+(AA178*Setup!$J$28)+(AB178*Setup!$J$29) -> 0 | AE178: ERROR | AF178: 1 | AG178: =IF(T178<>U179,1,0) -> 0 | AH178: =IF(V178<>V179,1,0) -> 0 | AI178: 1 | AJ178: =IF(W178<>X179,1,0) -> 0 | AK178: =IF(Y178<>Y179,1,0) -> 0 | AL178: 1 | AM178: =IF(Z178<>AA179,1,0) -> 0 | AN178: =IF(AB178<>AB179,1,0) -> 0
AD179: =(T179*Setup!$J$17)+(U179*Setup!$J$18)+(V179*Setup!$J$19)+(W179*Setup!$J$22)+X179*(Setup!$J$23)+(Y179*Setup!$J$24)+(Z179*Setup!$J$27)+(AA179*Setup!$J$28)+(AB179*Setup!$J$29) -> 0 | AE179: ERROR | AF179: 1 | AG179: =IF(T179<>U178,1,0) -> 0 | AH179: =IF(V179<>V178,1,0) -> 0 | AI179: 1 | AJ179: =IF(W179<>X178,1,0) -> 0 | AK179: =IF(Y179<>Y178,1,0) -> 0 | AL179: 1 | AM179: =IF(Z179<>AA178,1,0) -> 0 | AN179: =IF(AB179<>AB178,1,0) -> 0
AD180: =(T180*Setup!$J$17)+(U180*Setup!$J$18)+(V180*Setup!$J$19)+(W180*Setup!$J$22)+X180*(Setup!$J$23)+(Y180*Setup!$J$24)+(Z180*Setup!$J$27)+(AA180*Setup!$J$28)+(AB180*Setup!$J$29) -> 0 | AE180: ERROR | AF180: 1 | AG180: =IF(T180<>U181,1,0) -> 0 | AH180: =IF(V180<>V181,1,0) -> 0 | AI180: 1 | AJ180: =IF(W180<>X181,1,0) -> 0 | AK180: =IF(Y180<>Y181,1,0) -> 0 | AL180: 1 | AM180: =IF(Z180<>AA181,1,0) -> 0 | AN180: =IF(AB180<>AB181,1,0) -> 0
AD181: =(T181*Setup!$J$17)+(U181*Setup!$J$18)+(V181*Setup!$J$19)+(W181*Setup!$J$22)+X181*(Setup!$J$23)+(Y181*Setup!$J$24)+(Z181*Setup!$J$27)+(AA181*Setup!$J$28)+(AB181*Setup!$J$29) -> 0 | AE181: ERROR | AF181: 1 | AG181: =IF(T181<>U180,1,0) -> 0 | AH181: =IF(V181<>V180,1,0) -> 0 | AI181: 1 | AJ181: =IF(W181<>X180,1,0) -> 0 | AK181: =IF(Y181<>Y180,1,0) -> 0 | AL181: 1 | AM181: =IF(Z181<>AA180,1,0) -> 0 | AN181: =IF(AB181<>AB180,1,0) -> 0
AD182: =(T182*Setup!$J$17)+(U182*Setup!$J$18)+(V182*Setup!$J$19)+(W182*Setup!$J$22)+X182*(Setup!$J$23)+(Y182*Setup!$J$24)+(Z182*Setup!$J$27)+(AA182*Setup!$J$28)+(AB182*Setup!$J$29) -> 0 | AE182: ERROR | AF182: 1 | AG182: =IF(T182<>U183,1,0) -> 0 | AH182: =IF(V182<>V183,1,0) -> 0 | AI182: 1 | AJ182: =IF(W182<>X183,1,0) -> 0 | AK182: =IF(Y182<>Y183,1,0) -> 0 | AL182: 1 | AM182: =IF(Z182<>AA183,1,0) -> 0 | AN182: =IF(AB182<>AB183,1,0) -> 0
AD183: =(T183*Setup!$J$17)+(U183*Setup!$J$18)+(V183*Setup!$J$19)+(W183*Setup!$J$22)+X183*(Setup!$J$23)+(Y183*Setup!$J$24)+(Z183*Setup!$J$27)+(AA183*Setup!$J$28)+(AB183*Setup!$J$29) -> 0 | AE183: ERROR | AF183: 1 | AG183: =IF(T183<>U182,1,0) -> 0 | AH183: =IF(V183<>V182,1,0) -> 0 | AI183: 1 | AJ183: =IF(W183<>X182,1,0) -> 0 | AK183: =IF(Y183<>Y182,1,0) -> 0 | AL183: 1 | AM183: =IF(Z183<>AA182,1,0) -> 0 | AN183: =IF(AB183<>AB182,1,0) -> 0
AD184: =(T184*Setup!$J$17)+(U184*Setup!$J$18)+(V184*Setup!$J$19)+(W184*Setup!$J$22)+X184*(Setup!$J$23)+(Y184*Setup!$J$24)+(Z184*Setup!$J$27)+(AA184*Setup!$J$28)+(AB184*Setup!$J$29) -> 0 | AE184: ERROR | AF184: 1 | AG184: =IF(T184<>U185,1,0) -> 0 | AH184: =IF(V184<>V185,1,0) -> 0 | AI184: 1 | AJ184: =IF(W184<>X185,1,0) -> 0 | AK184: =IF(Y184<>Y185,1,0) -> 0 | AL184: 1 | AM184: =IF(Z184<>AA185,1,0) -> 0 | AN184: =IF(AB184<>AB185,1,0) -> 0
AD185: =(T185*Setup!$J$17)+(U185*Setup!$J$18)+(V185*Setup!$J$19)+(W185*Setup!$J$22)+X185*(Setup!$J$23)+(Y185*Setup!$J$24)+(Z185*Setup!$J$27)+(AA185*Setup!$J$28)+(AB185*Setup!$J$29) -> 0 | AE185: ERROR | AF185: 1 | AG185: =IF(T185<>U184,1,0) -> 0 | AH185: =IF(V185<>V184,1,0) -> 0 | AI185: 1 | AJ185: =IF(W185<>X184,1,0) -> 0 | AK185: =IF(Y185<>Y184,1,0) -> 0 | AL185: 1 | AM185: =IF(Z185<>AA184,1,0) -> 0 | AN185: =IF(AB185<>AB184,1,0) -> 0
AD186: =(T186*Setup!$J$17)+(U186*Setup!$J$18)+(V186*Setup!$J$19)+(W186*Setup!$J$22)+X186*(Setup!$J$23)+(Y186*Setup!$J$24)+(Z186*Setup!$J$27)+(AA186*Setup!$J$28)+(AB186*Setup!$J$29) -> 0 | AE186: ERROR | AF186: 1 | AG186: =IF(T186<>U187,1,0) -> 0 | AH186: =IF(V186<>V187,1,0) -> 0 | AI186: 1 | AJ186: =IF(W186<>X187,1,0) -> 0 | AK186: =IF(Y186<>Y187,1,0) -> 0 | AL186: 1 | AM186: =IF(Z186<>AA187,1,0) -> 0 | AN186: =IF(AB186<>AB187,1,0) -> 0
AD187: =(T187*Setup!$J$17)+(U187*Setup!$J$18)+(V187*Setup!$J$19)+(W187*Setup!$J$22)+X187*(Setup!$J$23)+(Y187*Setup!$J$24)+(Z187*Setup!$J$27)+(AA187*Setup!$J$28)+(AB187*Setup!$J$29) -> 0 | AE187: ERROR | AF187: 1 | AG187: =IF(T187<>U186,1,0) -> 0 | AH187: =IF(V187<>V186,1,0) -> 0 | AI187: 1 | AJ187: =IF(W187<>X186,1,0) -> 0 | AK187: =IF(Y187<>Y186,1,0) -> 0 | AL187: 1 | AM187: =IF(Z187<>AA186,1,0) -> 0 | AN187: =IF(AB187<>AB186,1,0) -> 0
AD188: =(T188*Setup!$J$17)+(U188*Setup!$J$18)+(V188*Setup!$J$19)+(W188*Setup!$J$22)+X188*(Setup!$J$23)+(Y188*Setup!$J$24)+(Z188*Setup!$J$27)+(AA188*Setup!$J$28)+(AB188*Setup!$J$29) -> 0 | AE188: ERROR | AF188: 1 | AG188: =IF(T188<>U189,1,0) -> 0 | AH188: =IF(V188<>V189,1,0) -> 0 | AI188: 1 | AJ188: =IF(W188<>X189,1,0) -> 0 | AK188: =IF(Y188<>Y189,1,0) -> 0 | AL188: 1 | AM188: =IF(Z188<>AA189,1,0) -> 0 | AN188: =IF(AB188<>AB189,1,0) -> 0
AD189: =(T189*Setup!$J$17)+(U189*Setup!$J$18)+(V189*Setup!$J$19)+(W189*Setup!$J$22)+X189*(Setup!$J$23)+(Y189*Setup!$J$24)+(Z189*Setup!$J$27)+(AA189*Setup!$J$28)+(AB189*Setup!$J$29) -> 0 | AE189: ERROR | AF189: 1 | AG189: =IF(T189<>U188,1,0) -> 0 | AH189: =IF(V189<>V188,1,0) -> 0 | AI189: 1 | AJ189: =IF(W189<>X188,1,0) -> 0 | AK189: =IF(Y189<>Y188,1,0) -> 0 | AL189: 1 | AM189: =IF(Z189<>AA188,1,0) -> 0 | AN189: =IF(AB189<>AB188,1,0) -> 0
AD190: =(T190*Setup!$J$17)+(U190*Setup!$J$18)+(V190*Setup!$J$19)+(W190*Setup!$J$22)+X190*(Setup!$J$23)+(Y190*Setup!$J$24)+(Z190*Setup!$J$27)+(AA190*Setup!$J$28)+(AB190*Setup!$J$29) -> 0 | AE190: ERROR | AF190: 1 | AG190: =IF(T190<>U191,1,0) -> 0 | AH190: =IF(V190<>V191,1,0) -> 0 | AI190: 1 | AJ190: =IF(W190<>X191,1,0) -> 0 | AK190: =IF(Y190<>Y191,1,0) -> 0 | AL190: 1 | AM190: =IF(Z190<>AA191,1,0) -> 0 | AN190: =IF(AB190<>AB191,1,0) -> 0
AD191: =(T191*Setup!$J$17)+(U191*Setup!$J$18)+(V191*Setup!$J$19)+(W191*Setup!$J$22)+X191*(Setup!$J$23)+(Y191*Setup!$J$24)+(Z191*Setup!$J$27)+(AA191*Setup!$J$28)+(AB191*Setup!$J$29) -> 0 | AE191: ERROR | AF191: 1 | AG191: =IF(T191<>U190,1,0) -> 0 | AH191: =IF(V191<>V190,1,0) -> 0 | AI191: 1 | AJ191: =IF(W191<>X190,1,0) -> 0 | AK191: =IF(Y191<>Y190,1,0) -> 0 | AL191: 1 | AM191: =IF(Z191<>AA190,1,0) -> 0 | AN191: =IF(AB191<>AB190,1,0) -> 0
AD192: =(T192*Setup!$J$17)+(U192*Setup!$J$18)+(V192*Setup!$J$19)+(W192*Setup!$J$22)+X192*(Setup!$J$23)+(Y192*Setup!$J$24)+(Z192*Setup!$J$27)+(AA192*Setup!$J$28)+(AB192*Setup!$J$29) -> 0 | AE192: ERROR | AF192: 1 | AG192: =IF(T192<>U193,1,0) -> 0 | AH192: =IF(V192<>V193,1,0) -> 0 | AI192: 1 | AJ192: =IF(W192<>X193,1,0) -> 0 | AK192: =IF(Y192<>Y193,1,0) -> 0 | AL192: 1 | AM192: =IF(Z192<>AA193,1,0) -> 0 | AN192: =IF(AB192<>AB193,1,0) -> 0
AD193: =(T193*Setup!$J$17)+(U193*Setup!$J$18)+(V193*Setup!$J$19)+(W193*Setup!$J$22)+X193*(Setup!$J$23)+(Y193*Setup!$J$24)+(Z193*Setup!$J$27)+(AA193*Setup!$J$28)+(AB193*Setup!$J$29) -> 0 | AE193: ERROR | AF193: 1 | AG193: =IF(T193<>U192,1,0) -> 0 | AH193: =IF(V193<>V192,1,0) -> 0 | AI193: 1 | AJ193: =IF(W193<>X192,1,0) -> 0 | AK193: =IF(Y193<>Y192,1,0) -> 0 | AL193: 1 | AM193: =IF(Z193<>AA192,1,0) -> 0 | AN193: =IF(AB193<>AB192,1,0) -> 0
AD194: =(T194*Setup!$J$17)+(U194*Setup!$J$18)+(V194*Setup!$J$19)+(W194*Setup!$J$22)+X194*(Setup!$J$23)+(Y194*Setup!$J$24)+(Z194*Setup!$J$27)+(AA194*Setup!$J$28)+(AB194*Setup!$J$29) -> 0 | AE194: ERROR | AF194: 1 | AG194: =IF(T194<>U195,1,0) -> 0 | AH194: =IF(V194<>V195,1,0) -> 0 | AI194: 1 | AJ194: =IF(W194<>X195,1,0) -> 0 | AK194: =IF(Y194<>Y195,1,0) -> 0 | AL194: 1 | AM194: =IF(Z194<>AA195,1,0) -> 0 | AN194: =IF(AB194<>AB195,1,0) -> 0
AD195: =(T195*Setup!$J$17)+(U195*Setup!$J$18)+(V195*Setup!$J$19)+(W195*Setup!$J$22)+X195*(Setup!$J$23)+(Y195*Setup!$J$24)+(Z195*Setup!$J$27)+(AA195*Setup!$J$28)+(AB195*Setup!$J$29) -> 0 | AE195: ERROR | AF195: 1 | AG195: =IF(T195<>U194,1,0) -> 0 | AH195: =IF(V195<>V194,1,0) -> 0 | AI195: 1 | AJ195: =IF(W195<>X194,1,0) -> 0 | AK195: =IF(Y195<>Y194,1,0) -> 0 | AL195: 1 | AM195: =IF(Z195<>AA194,1,0) -> 0 | AN195: =IF(AB195<>AB194,1,0) -> 0
AD196: =(T196*Setup!$J$17)+(U196*Setup!$J$18)+(V196*Setup!$J$19)+(W196*Setup!$J$22)+X196*(Setup!$J$23)+(Y196*Setup!$J$24)+(Z196*Setup!$J$27)+(AA196*Setup!$J$28)+(AB196*Setup!$J$29) -> 0 | AE196: ERROR | AF196: 1 | AG196: =IF(T196<>U197,1,0) -> 0 | AH196: =IF(V196<>V197,1,0) -> 0 | AI196: 1 | AJ196: =IF(W196<>X197,1,0) -> 0 | AK196: =IF(Y196<>Y197,1,0) -> 0 | AL196: 1 | AM196: =IF(Z196<>AA197,1,0) -> 0 | AN196: =IF(AB196<>AB197,1,0) -> 0
AD197: =(T197*Setup!$J$17)+(U197*Setup!$J$18)+(V197*Setup!$J$19)+(W197*Setup!$J$22)+X197*(Setup!$J$23)+(Y197*Setup!$J$24)+(Z197*Setup!$J$27)+(AA197*Setup!$J$28)+(AB197*Setup!$J$29) -> 0 | AE197: ERROR | AF197: 1 | AG197: =IF(T197<>U196,1,0) -> 0 | AH197: =IF(V197<>V196,1,0) -> 0 | AI197: 1 | AJ197: =IF(W197<>X196,1,0) -> 0 | AK197: =IF(Y197<>Y196,1,0) -> 0 | AL197: 1 | AM197: =IF(Z197<>AA196,1,0) -> 0 | AN197: =IF(AB197<>AB196,1,0) -> 0
AD198: =(T198*Setup!$J$17)+(U198*Setup!$J$18)+(V198*Setup!$J$19)+(W198*Setup!$J$22)+X198*(Setup!$J$23)+(Y198*Setup!$J$24)+(Z198*Setup!$J$27)+(AA198*Setup!$J$28)+(AB198*Setup!$J$29) -> 0 | AE198: ERROR | AF198: 1 | AG198: =IF(T198<>U199,1,0) -> 0 | AH198: =IF(V198<>V199,1,0) -> 0 | AI198: 1 | AJ198: =IF(W198<>X199,1,0) -> 0 | AK198: =IF(Y198<>Y199,1,0) -> 0 | AL198: 1 | AM198: =IF(Z198<>AA199,1,0) -> 0 | AN198: =IF(AB198<>AB199,1,0) -> 0
AD199: =(T199*Setup!$J$17)+(U199*Setup!$J$18)+(V199*Setup!$J$19)+(W199*Setup!$J$22)+X199*(Setup!$J$23)+(Y199*Setup!$J$24)+(Z199*Setup!$J$27)+(AA199*Setup!$J$28)+(AB199*Setup!$J$29) -> 0 | AE199: ERROR | AF199: 1 | AG199: =IF(T199<>U198,1,0) -> 0 | AH199: =IF(V199<>V198,1,0) -> 0 | AI199: 1 | AJ199: =IF(W199<>X198,1,0) -> 0 | AK199: =IF(Y199<>Y198,1,0) -> 0 | AL199: 1 | AM199: =IF(Z199<>AA198,1,0) -> 0 | AN199: =IF(AB199<>AB198,1,0) -> 0
AD200: =(T200*Setup!$J$17)+(U200*Setup!$J$18)+(V200*Setup!$J$19)+(W200*Setup!$J$22)+X200*(Setup!$J$23)+(Y200*Setup!$J$24)+(Z200*Setup!$J$27)+(AA200*Setup!$J$28)+(AB200*Setup!$J$29) -> 0 | AE200: ERROR | AF200: 1 | AG200: =IF(T200<>U201,1,0) -> 0 | AH200: =IF(V200<>V201,1,0) -> 0 | AI200: 1 | AJ200: =IF(W200<>X201,1,0) -> 0 | AK200: =IF(Y200<>Y201,1,0) -> 0 | AL200: 1 | AM200: =IF(Z200<>AA201,1,0) -> 0 | AN200: =IF(AB200<>AB201,1,0) -> 0
AD201: =(T201*Setup!$J$17)+(U201*Setup!$J$18)+(V201*Setup!$J$19)+(W201*Setup!$J$22)+X201*(Setup!$J$23)+(Y201*Setup!$J$24)+(Z201*Setup!$J$27)+(AA201*Setup!$J$28)+(AB201*Setup!$J$29) -> 0 | AE201: ERROR | AF201: 1 | AG201: =IF(T201<>U200,1,0) -> 0 | AH201: =IF(V201<>V200,1,0) -> 0 | AI201: 1 | AJ201: =IF(W201<>X200,1,0) -> 0 | AK201: =IF(Y201<>Y200,1,0) -> 0 | AL201: 1 | AM201: =IF(Z201<>AA200,1,0) -> 0 | AN201: =IF(AB201<>AB200,1,0) -> 0
AD202: =(T202*Setup!$J$17)+(U202*Setup!$J$18)+(V202*Setup!$J$19)+(W202*Setup!$J$22)+X202*(Setup!$J$23)+(Y202*Setup!$J$24)+(Z202*Setup!$J$27)+(AA202*Setup!$J$28)+(AB202*Setup!$J$29) -> 0 | AE202: ERROR | AF202: 1 | AG202: =IF(T202<>U203,1,0) -> 0 | AH202: =IF(V202<>V203,1,0) -> 0 | AI202: 1 | AJ202: =IF(W202<>X203,1,0) -> 0 | AK202: =IF(Y202<>Y203,1,0) -> 0 | AL202: 1 | AM202: =IF(Z202<>AA203,1,0) -> 0 | AN202: =IF(AB202<>AB203,1,0) -> 0
AD203: =(T203*Setup!$J$17)+(U203*Setup!$J$18)+(V203*Setup!$J$19)+(W203*Setup!$J$22)+X203*(Setup!$J$23)+(Y203*Setup!$J$24)+(Z203*Setup!$J$27)+(AA203*Setup!$J$28)+(AB203*Setup!$J$29) -> 0 | AE203: ERROR | AF203: 1 | AG203: =IF(T203<>U202,1,0) -> 0 | AH203: =IF(V203<>V202,1,0) -> 0 | AI203: 1 | AJ203: =IF(W203<>X202,1,0) -> 0 | AK203: =IF(Y203<>Y202,1,0) -> 0 | AL203: 1 | AM203: =IF(Z203<>AA202,1,0) -> 0 | AN203: =IF(AB203<>AB202,1,0) -> 0
... 850 more rows

Sheet LN1
A1: Date: | B1: =LOOKUP(B3,Date_Numbers,LeagueDates) -> 2025-05-20 | AI1: ROUND UP ALL DECIMALS
A2: Couse:
A3: Week: | B3: 7
B5: Regular Player | C5: Avg | D5: Hdcp | F5: Sub ID | G5: Sub Player | H5: Avg | I5: Hdcp | M5: =$B$1 -> 2025-05-20 | O5: Hole | P5: 1 | Q5: 2 | R5: 3 | S5: 4 | T5: 5 | U5: 6 | V5: 7 | W5: 8 | X5: 9 | AI5: =$B$1 -> 2025-05-20 | AK5: Hole | AL5: 1 | AM5: 2 | AN5: 3 | AO5: 4 | AP5: 5 | AQ5: 6 | AR5: 7 | AS5: 8 | AT5: 9
O6: Par | P6: =VLOOKUP($L12,GE_Course_Pars,3,FALSE) -> 4 | Q6: =VLOOKUP($L12,GE_Course_Pars,4,FALSE) -> 3 | R6: =VLOOKUP($L12,GE_Course_Pars,5,FALSE) -> 4 | S6: =VLOOKUP($L12,GE_Course_Pars,6,FALSE) -> 4 | T6: =VLOOKUP($L12,GE_Course_Pars,7,FALSE) -> 4 | U6: =VLOOKUP($L12,GE_Course_Pars,8,FALSE) -> 4 | V6: =VLOOKUP($L12,GE_Course_Pars,9,FALSE) -> 4 | W6: =VLOOKUP($L12,GE_Course_Pars,10,FALSE) -> 3 | X6: =VLOOKUP($L12,GE_Course_Pars,11,FALSE) -> 5 | AK6: Par | AL6: =VLOOKUP($L12,GE_Course_Pars,3,FALSE) -> 4 | AM6: =VLOOKUP($L12,GE_Course_Pars,4,FALSE) -> 3 | AN6: =VLOOKUP($L12,GE_Course_Pars,5,FALSE) -> 4 | AO6: =VLOOKUP($L12,GE_Course_Pars,6,FALSE) -> 4 | AP6: =VLOOKUP($L12,GE_Course_Pars,7,FALSE) -> 4 | AQ6: =VLOOKUP($L12,GE_Course_Pars,8,FALSE) -> 4 | AR6: =VLOOKUP($L12,GE_Course_Pars,9,FALSE) -> 4 | AS6: =VLOOKUP($L12,GE_Course_Pars,10,FALSE) -> 3 | AT6: =VLOOKUP($L12,GE_Course_Pars,11,FALSE) -> 5
A7: =Setup!B17 -> 4:30 | B7: =VLOOKUP(Setup!Q41,GE_Teams_DBID,2,FALSE) -> Putt Buddies | D7: =Setup!Q41 -> 48 | E7: vs. | F7: =Setup!R41 -> 47 | G7: =VLOOKUP(Setup!R41,GE_Teams_DBID,2,FALSE) -> Hole N 8 | L7: ID | M7: Name | N7: Team | O7: Hdcp | P7: =LOOKUP(L12,Setup!$A$5:$A$7,Setup!$C$5:$C$7) -> 8 | Q7: =LOOKUP(L12,Setup!$A$5:$A$7,Setup!$D$5:$D$7) -> 6 | R7: =LOOKUP(L12,Setup!$A$5:$A$7,Setup!$E$5:$E$7) -> 1 | S7: =LOOKUP(L12,Setup!$A$5:$A$7,Setup!$F$5:$F$7) -> 2 | T7: =LOOKUP(L12,Setup!$A$5:$A$7,Setup!$G$5:$G$7) -> 9 | U7: =LOOKUP(L12,Setup!$A$5:$A$7,Setup!$H$5:$H$7) -> 5 | V7: =LOOKUP(L12,Setup!$A$5:$A$7,Setup!$I$5:$I$7) -> 4 | W7: =LOOKUP(L12,Setup!$A$5:$A$7,Setup!$J$5:$J$7) -> 7 | X7: =LOOKUP(L12,Setup!$A$5:$A$7,Setup!$K$5:$K$7) -> 3 | Y7: TOT | Z7: Net | AA7: Results | AB7: W | AC7: L | AD7: T | AE7: All 9 | AF7: Partial | AH7: ID | AI7: Name | AJ7: Team | AK7: Hdcp | AL7: =LOOKUP(AH12,Setup!$A$5:$A$7,Setup!$C$5:$C$7) -> 8 | AM7: =LOOKUP(AH12,Setup!$A$5:$A$7,Setup!$D$5:$D$7) -> 6 | AN7: =LOOKUP(AH12,Setup!$A$5:$A$7,Setup!$E$5:$E$7) -> 1 | AO7: =LOOKUP(AH12,Setup!$A$5:$A$7,Setup!$F$5:$F$7) -> 2 | AP7: =LOOKUP(AH12,Setup!$A$5:$A$7,Setup!$G$5:$G$7) -> 9 | AQ7: =LOOKUP(AH12,Setup!$A$5:$A$7,Setup!$H$5:$H$7) -> 5 | AR7: =LOOKUP(AH12,Setup!$A$5:$A$7,Setup!$I$5:$I$7) -> 4 | AS7: =LOOKUP(AH12,Setup!$A$5:$A$7,Setup!$J$5:$J$7) -> 7 | AT7: =LOOKUP(AH12,Setup!$A$5:$A$7,Setup!$K$5:$K$7) -> 3 | AU7: TOT | AV7: Net | AW7: Results | AX7: W | AY7: L | AZ7: T | BA7: All 9 | BB7: Partial
A8: =VLOOKUP(Setup!Q41,GE_Team_PlayerIDs_1, 2,FALSE) -> 115 | B8: =VLOOKUP(A8,GE_Player_ID_Name,2,FALSE) -> Kohler, Evan | C8: =ROUND(VLOOKUP(A8,GE_Player_ID_Stats,10,FALSE),1) -> 46.7 | D8: =VLOOKUP(A8,GE_Player_ID_Stats,11,FALSE) -> 9.333333333 | F8: =IF(G8<>"",VLOOKUP(G8,GE_SubList,2,FALSE),"") -> 157 | G8: Kimmet, Ben | H8: =IF(F8="","",ROUND(VLOOKUP(F8,GE_Player_ID_Stats,10,FALSE),1)) -> 41 | I8: =IF(F8="","",VLOOKUP(F8,GE_Player_ID_Stats,11,FALSE)) -> 4.8 | L8: 116 | M8: =VLOOKUP(L8,GE_Player_ID_Name,2,FALSE) -> Kohler, Jeff | N8: =D7 -> 48 | O8: =ROUND(VLOOKUP(L8,GE_Player_ID_Stats,11,FALSE),0) -> 4 | P8: 6 | Q8: 3 | R8: 5 | S8: 6 | T8: 4 | U8: 4 | V8: 6 | W8: 5 | X8: 5 | Y8: =SUM(P8:X8) -> 44 | Z8: =Y8-O8 -> 40 | AA8: Holes | AB8: =IF(AB11="D",0,COUNTIF(P11:X11,Setup!$J$17)) -> 2 | AC8: =IF(AB11="D",0,COUNTIF(P11:X11,Setup!$J$18)) -> 4 | AD8: =IF(AB11="D",0,COUNTIF(P11:X11,Setup!$J$19)) -> 3 | AH8: 157 | AI8: =VLOOKUP(AH8,GE_Player_ID_Name,2,FALSE) -> Kimmet, Ben | AJ8: =D7 -> 48 | AK8: =ROUND(VLOOKUP(AH8,GE_Player_ID_Stats,11,FALSE),0) -> 5 | AL8: 4 | AM8: 3 | AN8: 5 | AO8: 6 | AP8: 6 | AQ8: 4 | AR8: 5 | AS8: 4 | AT8: 4 | AU8: =SUM(AL8:AT8) -> 41 | AV8: =AU8-AK8 -> 36 | AW8: Holes | AX8: =IF(AX11="D",0,COUNTIF(AL11:AT11,Setup!$J$17)) -> 5 | AY8: =IF(AX11="D",0,COUNTIF(AL11:AT11,Setup!$J$18)) -> 2 | AZ8: =IF(AX11="D",0,COUNTIF(AL11:AT11,Setup!$J$19)) -> 2
A9: =VLOOKUP(Setup!Q41,GE_Team_PlayerIDs_1, 4,FALSE) -> 116 | B9: Kohler, Jeff | C9: =ROUND(VLOOKUP(A9,GE_Player_ID_Stats,10,FALSE),1) -> 40.5 | D9: =VLOOKUP(A9,GE_Player_ID_Stats,11,FALSE) -> 4.4 | H9: =IF(F9="","",ROUND(VLOOKUP(F9,GE_Player_ID_Stats,10,FALSE),1)) ->  | I9: =IF(F9="","",VLOOKUP(F9,GE_Player_ID_Stats,11,FALSE)) ->  | M9: ="FT: "&VLOOKUP(L9,GE_Player_ID_Name,2,FALSE) ->  | N9: Strokes | O9: =IF(O8>O15,O8-O15,0) -> 0 | P9: =IF(O9>0,AE9+IF(AF9>=$P7,1,0),0) -> 0 | Q9: =IF(O9>0,AE9+IF(AF9>=$Q7,1,0),0) -> 0 | R9: =IF(O9>0,AE9+IF(AF9>=$R7,1,0),0) -> 0 | S9: =IF(O9>0,AE9+IF(AF9>=$S7,1,0),0) -> 0 | T9: =IF(O9>0,AE9+IF(AF9>=$T7,1,0),0) -> 0 | U9: =IF(O9>0,AE9+IF(AF9>=$U7,1,0),0) -> 0 | V9: =IF(O9>0,AE9+IF(AF9>=$V7,1,0),0) -> 0 | W9: =IF(O9>0,AE9+IF(AF9>=$W7,1,0),0) -> 0 | X9: =IF(O9>0,AE9+IF(AF9>=$X7,1,0),0) -> 0 | AA9: Match | AB9: =IF(AB11="D",0,COUNTIF(Z11:Z11,Setup!$J$22)) -> 0 | AC9: =IF(AB11="D",0,COUNTIF(Z11:Z11,Setup!$J$23)) -> 1 | AD9: =IF(AB11="D",0,COUNTIF(Z11:Z11,Setup!$J$24)) -> 0 | AE9: =IF(O9<9,0,IF(O9<18,1,IF(O9<27,2,3))) -> 0 | AF9: =IF(O9<9,O9,IF(O9<18,O9-9,IF(O9<27,O9-18,IF(O9<36,O9-27,0)))) -> 0 | AH9: 115 | AI9: ="FT: "&VLOOKUP(AH9,GE_Player_ID_Name,2,FALSE) -> FT: Kohler, Evan | AJ9: Strokes | AK9: =IF(AK8>AK15,AK8-AK15,0) -> 0 | AL9: =IF(AK9>0,BA9+IF(BB9>=$AL7,1,0),0) -> 0 | AM9: =IF(AK9>0,BA9+IF(BB9>=$AM7,1,0),0) -> 0 | AN9: =IF(AK9>0,BA9+IF(BB9>=$AN7,1,0),0) -> 0 | AO9: =IF(AK9>0,BA9+IF(BB9>=$AO7,1,0),0) -> 0 | AP9: =IF(AK9>0,BA9+IF(BB9>=$AP7,1,0),0) -> 0 | AQ9: =IF(AK9>0,BA9+IF(BB9>=$AQ7,1,0),0) -> 0 | AR9: =IF(AK9>0,BA9+IF(BB9>=$AR7,1,0),0) -> 0 | AS9: =IF(AK9>0,BA9+IF(BB9>=$AS7,1,0),0) -> 0 | AT9: =IF(AK9>0,BA9+IF(BB9>=$AT7,1,0),0) -> 0 | AW9: Match | AX9: =IF(AX11="D",0,COUNTIF(AV11:AV11,Setup!$J$22)) -> 1 | AY9: =IF(AX11="D",0,COUNTIF(AV11:AV11,Setup!$J$23)) -> 0 | AZ9: =IF(AX11="D",0,COUNTIF(AV11:AV11,Setup!$J$24)) -> 0 | BA9: =IF(AK9<9,0,IF(AK9<18,1,IF(AK9<27,2,3))) -> 0 | BB9: =IF(AK9<9,AK9,IF(AK9<18,AK9-9,IF(AK9<27,8-18,IF(AK9<36,AK9-27,0)))) -> 0
A10: =VLOOKUP(Setup!R41,GE_Team_PlayerIDs_1, 2,FALSE) -> 113 | B10: Boswell, Clyde | C10: =ROUND(VLOOKUP(A10,GE_Player_ID_Stats,10,FALSE),1) -> 56.5 | D10: =VLOOKUP(A10,GE_Player_ID_Stats,11,FALSE) -> 17.2 | H10: =IF(F10="","",ROUND(VLOOKUP(F10,GE_Player_ID_Stats,10,FALSE),1)) ->  | I10: =IF(F10="","",VLOOKUP(F10,GE_Player_ID_Stats,11,FALSE)) ->  | N10: Net | P10: =P8-P9 -> 6 | Q10: =Q8-Q9 -> 3 | R10: 5 | S10: 6 | T10: 4 | U10: 4 | V10: 6 | W10: 5 | X10: 5 | AA10: =(AB8*Setup!$J$17)+(AC8*Setup!$J$18)+(AD8*Setup!$J$19)+(AB9*Setup!$J$22)+(AC9*Setup!$J$23)+(AD9*Setup!$J$24) -> 7 | AB10: =IF(AB11="D",0,IF(D15=Setup!$J$27,1,0)) -> 1 | AC10: =IF(AB11="D",0,IF(D15=Setup!$J$28,1,0)) -> 0 | AD10: =IF(AB11="D",0,IF(D15=Setup!$J$29,1,0)) -> 0 | AJ10: Net | AL10: =AL8-AL9 -> 4 | AM10: =AM8-AM9 -> 3 | AN10: =AN8-AN9 -> 5 | AO10: =AO8-AO9 -> 6 | AP10: =AP8-AP9 -> 6 | AQ10: =AQ8-AQ9 -> 4 | AR10: =AR8-AR9 -> 5 | AS10: =AS8-AS9 -> 4 | AT10: =AT8-AT9 -> 4 | AW10: =(AX8*Setup!$J$17)+(AY8*Setup!$J$18)+(AZ8*Setup!$J$19)+(AX9*Setup!$J$22)+(AY9*Setup!$J$23)+(AZ9*Setup!$J$24) -> 16
A11: =VLOOKUP(Setup!R41,GE_Team_PlayerIDs_1, 4,FALSE) -> 114 | B11: Brook, DeeDee | C11: =ROUND(VLOOKUP(A11,GE_Player_ID_Stats,10,FALSE),1) -> 54.3 | D11: =VLOOKUP(A11,GE_Player_ID_Stats,11,FALSE) -> 15.4 | H11: =IF(F11="","",ROUND(VLOOKUP(F11,GE_Player_ID_Stats,10,FALSE),1)) ->  | I11: =IF(F11="","",VLOOKUP(F11,GE_Player_ID_Stats,11,FALSE)) ->  | L11: A | N11: Points | P11: =IF(P10<P13,Setup!$J$17,IF(P10=P13,Setup!$J$19,Setup!$J$18)) -> 1 | Q11: =IF(Q10<Q13,Setup!$J$17,IF(Q10=Q13,Setup!$J$19,Setup!$J$18)) -> 2 | R11: =IF(R10<R13,Setup!$J$17,IF(R10=R13,Setup!$J$19,Setup!$J$18)) -> 1 | S11: =IF(S10<S13,Setup!$J$17,IF(S10=S13,Setup!$J$19,Setup!$J$18)) -> 0 | T11: =IF(T10<T13,Setup!$J$17,IF(T10=T13,Setup!$J$19,Setup!$J$18)) -> 0 | U11: =IF(U10<U13,Setup!$J$17,IF(U10=U13,Setup!$J$19,Setup!$J$18)) -> 2 | V11: =IF(V10<V13,Setup!$J$17,IF(V10=V13,Setup!$J$19,Setup!$J$18)) -> 0 | W11: =IF(W10<W13,Setup!$J$17,IF(W10=W13,Setup!$J$19,Setup!$J$18)) -> 0 | X11: =IF(X10<X13,Setup!$J$17,IF(X10=X13,Setup!$J$19,Setup!$J$18)) -> 1 | Z11: =IF(Z8<Z15,Setup!$J$22,IF(Z8=Z15,Setup!$J$24,Setup!$J$23)) -> 0 | AA11: =IF(AB11="P","","DNP") ->  | AB11: P | AH11: B | AJ11: Points | AL11: =IF(AL10<AL13,Setup!$J$17,IF(AL10=AL13,Setup!$J$19,Setup!$J$18)) -> 2 | AM11: =IF(AM10<AM13,Setup!$J$17,IF(AM10=AM13,Setup!$J$19,Setup!$J$18)) -> 2 | AN11: =IF(AN10<AN13,Setup!$J$17,IF(AN10=AN13,Setup!$J$19,Setup!$J$18)) -> 1 | AO11: =IF(AO10<AO13,Setup!$J$17,IF(AO10=AO13,Setup!$J$19,Setup!$J$18)) -> 0 | AP11: =IF(AP10<AP13,Setup!$J$17,IF(AP10=AP13,Setup!$J$19,Setup!$J$18)) -> 0 | AQ11: =IF(AQ10<AQ13,Setup!$J$17,IF(AQ10=AQ13,Setup!$J$19,Setup!$J$18)) -> 2 | AR11: =IF(AR10<AR13,Setup!$J$17,IF(AR10=AR13,Setup!$J$19,Setup!$J$18)) -> 2 | AS11: =IF(AS10<AS13,Setup!$J$17,IF(AS10=AS13,Setup!$J$19,Setup!$J$18)) -> 1 | AT11: =IF(AT10<AT13,Setup!$J$17,IF(AT10=AT13,Setup!$J$19,Setup!$J$18)) -> 2 | AV11: =IF(AV8<AV15,Setup!$J$22,IF(AV8=AV15,Setup!$J$24,Setup!$J$23)) -> 4 | AW11: =IF(AX11="P","","DNP") ->  | AX11: P
A12: H | B12: =(AB8+AX8)&"-"&(AC8+AY8)&"-"&(AD8+AZ8) -> 7-6-5 | D12: =Z8 -> 40 | E12: A Net | F12: =Z15 -> 38 | G12: =(AB15+AX15)&"-"&(AC15+AY15)&"-"&(AD15+AZ15) -> 4-2-3 | H12: H | L12: 1 | M12: =VLOOKUP(L12,GE_SideNames,2,FALSE) -> Front 9 | N12: Points | P12: =IF(P13<P10,Setup!$J$17,IF(P13=P10,Setup!$J$19,Setup!$J$18)) -> 1 | Q12: =IF(Q13<Q10,Setup!$J$17,IF(Q13=Q10,Setup!$J$19,Setup!$J$18)) -> 0 | R12: =IF(R13<R10,Setup!$J$17,IF(R13=R10,Setup!$J$19,Setup!$J$18)) -> 1 | S12: =IF(S13<S10,Setup!$J$17,IF(S13=S10,Setup!$J$19,Setup!$J$18)) -> 2 | T12: =IF(T13<T10,Setup!$J$17,IF(T13=T10,Setup!$J$19,Setup!$J$18)) -> 2 | U12: =IF(U13<U10,Setup!$J$17,IF(U13=U10,Setup!$J$19,Setup!$J$18)) -> 0 | V12: =IF(V13<V10,Setup!$J$17,IF(V13=V10,Setup!$J$19,Setup!$J$18)) -> 2 | W12: =IF(W13<W10,Setup!$J$17,IF(W13=W10,Setup!$J$19,Setup!$J$18)) -> 2 | X12: =IF(X13<X10,Setup!$J$17,IF(X13=X10,Setup!$J$19,Setup!$J$18)) -> 1 | Z12: =IF(Z15<Z8,Setup!$J$22,IF(Z15=Z8,Setup!$J$24,Setup!$J$23)) -> 4 | AA12: =IF(AB12="P","","DNP") ->  | AB12: P | AH12: 1 | AI12: =VLOOKUP(AH12,GE_SideNames,2,FALSE) -> Front 9 | AJ12: Points | AL12: =IF(AL13<AL10,Setup!$J$17,IF(AL13=AL10,Setup!$J$19,Setup!$J$18)) -> 0 | AM12: =IF(AM13<AM10,Setup!$J$17,IF(AM13=AM10,Setup!$J$19,Setup!$J$18)) -> 0 | AN12: =IF(AN13<AN10,Setup!$J$17,IF(AN13=AN10,Setup!$J$19,Setup!$J$18)) -> 1 | AO12: =IF(AO13<AO10,Setup!$J$17,IF(AO13=AO10,Setup!$J$19,Setup!$J$18)) -> 2 | AP12: =IF(AP13<AP10,Setup!$J$17,IF(AP13=AP10,Setup!$J$19,Setup!$J$18)) -> 2 | AQ12: =IF(AQ13<AQ10,Setup!$J$17,IF(AQ13=AQ10,Setup!$J$19,Setup!$J$18)) -> 0 | AR12: =IF(AR13<AR10,Setup!$J$17,IF(AR13=AR10,Setup!$J$19,Setup!$J$18)) -> 0 | AS12: =IF(AS13<AS10,Setup!$J$17,IF(AS13=AS10,Setup!$J$19,Setup!$J$18)) -> 1 | AT12: =IF(AT13<AT10,Setup!$J$17,IF(AT13=AT10,Setup!$J$19,Setup!$J$18)) -> 0 | AV12: =IF(AV15<AV8,Setup!$J$22,IF(AV15=AV8,Setup!$J$24,Setup!$J$23)) -> 0 | AW12: =IF(AX12="P","","DNP") -> DNP | AX12: D
A13: M | B13: =(AB9+AX9)&"-"&(AC9+AY9)&"-"&(AD9+AZ9) -> 1-1-0 | D13: =AV8 -> 36 | E13: B Net | F13: =AV15 -> 40 | G13: =(AB14+AX14)&"-"&(AC14+AY14)&"-"&(AD14+AZ14) -> 1-0-0 | H13: M | N13: Net | P13: =P15-P14 -> 6 | Q13: =Q15-Q14 -> 4 | R13: 5 | S13: 5 | T13: 3 | U13: 5 | V13: 5 | W13: 4 | X13: 5 | AA13: =(AB15*Setup!$J$17)+(AC15*Setup!$J$18)+(AD15*Setup!$J$19)+(AB14*Setup!$J$22)+(AC14*Setup!$J$23)+(AD14*Setup!$J$24) -> 15 | AB13: =IF(AB12="D",0,IF(F15=Setup!$J$27,1,0)) -> 0 | AC13: =IF(AB12="D",0,IF(F15=Setup!$J$28,1,0)) -> 1 | AD13: =IF(AB12="D",0,IF(F15=Setup!$J$29,1,0)) -> 0 | AJ13: Net | AL13: =AL15-AL14 -> 5 | AM13: =AM15-AM14 -> 4 | AN13: =AN15-AN14 -> 5 | AO13: =AO15-AO14 -> 5 | AP13: =AP15-AP14 -> 5 | AQ13: =AQ15-AQ14 -> 5 | AR13: =AR15-AR14 -> 6 | AS13: =AS15-AS14 -> 4 | AT13: =AT15-AT14 -> 6 | AW13: =(AX15*Setup!$J$17)+(AY15*Setup!$J$18)+(AZ15*Setup!$J$19)+(AX14*Setup!$J$22)+(AY14*Setup!$J$23)+(AZ14*Setup!$J$24) -> 0
A14: T | B14: =(AB10)&"-"&(AC10)&"-"&(AD10) -> 1-0-0 | D14: =D12+D13 -> 76 | E14: Total | F14: =F12+F13 -> 78 | G14: =(AB13)&"-"&(AC13)&"-"&(AD13) -> 0-1-0 | H14: T | M14: ="FT: "&VLOOKUP(L14,GE_Player_ID_Name,2,FALSE) ->  | N14: Strokes | O14: =IF(O15>O8,O15-O8,0) -> 11 | P14: =IF(O14>0,AE14+IF(AF14>=$P7,1,0),0) -> 1 | Q14: =IF(O14>0,AE14+IF(AF14>=$Q7,1,0),0) -> 1 | R14: =IF(O14>0,AE14+IF(AF14>=$R7,1,0),0) -> 2 | S14: =IF(O14>0,AE14+IF(AF14>=$S7,1,0),0) -> 2 | T14: =IF(O14>0,AE14+IF(AF14>=$T7,1,0),0) -> 1 | U14: =IF(O14>0,AE14+IF(AF14>=$U7,1,0),0) -> 1 | V14: =IF(O14>0,AE14+IF(AF14>=$V7,1,0),0) -> 1 | W14: =IF(O14>0,AE14+IF(AF14>=$W7,1,0),0) -> 1 | X14: =IF(O14>0,AE14+IF(AF14>=$X7,1,0),0) -> 1 | AA14: Match | AB14: =IF(AB12="D",0,COUNTIF(Z12:Z12,Setup!$J$22)) -> 1 | AC14: =IF(AB12="D",0,COUNTIF(Z12:Z12,Setup!$J$23)) -> 0 | AD14: =IF(AB12="D",0,COUNTIF(Z12:Z12,Setup!$J$24)) -> 0 | AE14: =IF(O14<9,0,IF(O14<18,1,IF(O14<27,2,3))) -> 1 | AF14: =IF(O14<9,O14,IF(O14<18,O14-9,IF(O14<27,8-18,IF(O14<36,O14-27,0)))) -> 2 | AI14: ="FT: "&VLOOKUP(AH14,GE_Player_ID_Name,2,FALSE) ->  | AJ14: Strokes | AK14: =IF(AK15>AK8,AK15-AK8,0) -> 12 | AL14: =IF(AK14>0,BA14+IF(BB14>=$AL7,1,0),0) -> 1 | AM14: =IF(AK14>0,BA14+IF(BB14>=$AM7,1,0),0) -> 1 | AN14: =IF(AK14>0,BA14+IF(BB14>=$AN7,1,0),0) -> 2 | AO14: =IF(AK14>0,BA14+IF(BB14>=$AO7,1,0),0) -> 2 | AP14: =IF(AK14>0,BA14+IF(BB14>=$AP7,1,0),0) -> 1 | AQ14: =IF(AK14>0,BA14+IF(BB14>=$AQ7,1,0),0) -> 1 | AR14: =IF(AK14>0,BA14+IF(BB14>=$AR7,1,0),0) -> 1 | AS14: =IF(AK14>0,BA14+IF(BB14>=$AS7,1,0),0) -> 1 | AT14: =IF(AK14>0,BA14+IF(BB14>=$AT7,1,0),0) -> 2 | AW14: Match | AX14: =IF(AX12="D",0,COUNTIF(AV12:AV12,Setup!$J$22)) -> 0 | AY14: =IF(AX12="D",0,COUNTIF(AV12:AV12,Setup!$J$23)) -> 0 | AZ14: =IF(AX12="D",0,COUNTIF(AV12:AV12,Setup!$J$24)) -> 0 | BA14: =IF(AK14<9,0,IF(AK14<18,1,IF(AK14<27,2,3))) -> 1 | BB14: =IF(AK14<9,AK14,IF(AK14<18,AK14-9,IF(AK14<27,8-18,IF(AK14<36,AK14-27,0)))) -> 3
B15: ="Match ID - "&Setup!S41 -> Match ID - 310 | D15: =IF(D14<F14,Setup!$J$27,IF(D14=F14,Setup!$J$29,Setup!$J$28)) -> 6 | E15: Points | F15: =IF(F14<D14,Setup!$J$27,IF(F14=D14,Setup!$J$29,Setup!$J$28)) -> 0 | L15: 114 | M15: =VLOOKUP(L15,GE_Player_ID_Name,2,FALSE) -> Brook, DeeDee | N15: =F7 -> 47 | O15: =ROUND(VLOOKUP(L15,GE_Player_ID_Stats,11,FALSE),0) -> 15 | P15: 7 | Q15: 5 | R15: 7 | S15: 7 | T15: 4 | U15: 6 | V15: 6 | W15: 5 | X15: 6 | Y15: =SUM(P15:X15) -> 53 | Z15: =Y15-O15 -> 38 | AA15: Holes | AB15: =IF(AB12="D",0,COUNTIF(P12:X12,Setup!$J$17)) -> 4 | AC15: =IF(AB12="D",0,COUNTIF(P12:X12,Setup!$J$18)) -> 2 | AD15: =IF(AB12="D",0,COUNTIF(P12:X12,Setup!$J$19)) -> 3 | AH15: 113 | AI15: =VLOOKUP(AH15,GE_Player_ID_Name,2,FALSE) -> Boswell, Clyde | AJ15: =F7 -> 47 | AK15: =ROUND(VLOOKUP(AH15,GE_Player_ID_Stats,11,FALSE),0) -> 17 | AL15: 6 | AM15: 5 | AN15: 7 | AO15: 7 | AP15: 6 | AQ15: 6 | AR15: 7 | AS15: 5 | AT15: 8 | AU15: =SUM(AL15:AT15) -> 57 | AV15: =AU15-AK15 -> 40 | AW15: Holes | AX15: =IF(AX12="D",0,COUNTIF(AL12:AT12,Setup!$J$17)) -> 0 | AY15: =IF(AX12="D",0,COUNTIF(AL12:AT12,Setup!$J$18)) -> 0 | AZ15: =IF(AX12="D",0,COUNTIF(AL12:AT12,Setup!$J$19)) -> 0
O16: Par | P16: =VLOOKUP($L22,GE_Course_Pars,3,FALSE) -> 4 | Q16: =VLOOKUP($L22,GE_Course_Pars,4,FALSE) -> 3 | R16: =VLOOKUP($L22,GE_Course_Pars,5,FALSE) -> 4 | S16: =VLOOKUP($L22,GE_Course_Pars,6,FALSE) -> 3 | T16: =VLOOKUP($L22,GE_Course_Pars,7,FALSE) -> 4 | U16: =VLOOKUP($L22,GE_Course_Pars,8,FALSE) -> 4 | V16: =VLOOKUP($L22,GE_Course_Pars,9,FALSE) -> 5 | W16: =VLOOKUP($L22,GE_Course_Pars,10,FALSE) -> 4 | X16: =VLOOKUP($L22,GE_Course_Pars,11,FALSE) -> 4 | AK16: Par | AL16: =VLOOKUP($L22,GE_Course_Pars,3,FALSE) -> 4 | AM16: =VLOOKUP($L22,GE_Course_Pars,4,FALSE) -> 3 | AN16: =VLOOKUP($L22,GE_Course_Pars,5,FALSE) -> 4 | AO16: =VLOOKUP($L22,GE_Course_Pars,6,FALSE) -> 3 | AP16: =VLOOKUP($L22,GE_Course_Pars,7,FALSE) -> 4 | AQ16: =VLOOKUP($L22,GE_Course_Pars,8,FALSE) -> 4 | AR16: =VLOOKUP($L22,GE_Course_Pars,9,FALSE) -> 5 | AS16: =VLOOKUP($L22,GE_Course_Pars,10,FALSE) -> 4 | AT16: =VLOOKUP($L22,GE_Course_Pars,11,FALSE) -> 4
A17: =Setup!B18 -> 4:40 | B17: =VLOOKUP(Setup!Q42,GE_Teams_DBID,2,FALSE) -> Checkin Test Cells | D17: =Setup!Q42 -> 38 | E17: vs. | F17: =Setup!R42 -> 37 | G17: =VLOOKUP(Setup!R42,GE_Teams_DBID,2,FALSE) -> Charles and Rob | O17: Hdcp | P17: =LOOKUP(L22,Setup!$A$5:$A$7,Setup!$C$5:$C$7) -> 4 | Q17: =LOOKUP(L22,Setup!$A$5:$A$7,Setup!$D$5:$D$7) -> 6 | R17: =LOOKUP(L22,Setup!$A$5:$A$7,Setup!$E$5:$E$7) -> 7 | S17: =LOOKUP(L22,Setup!$A$5:$A$7,Setup!$F$5:$F$7) -> 8 | T17: =LOOKUP(L22,Setup!$A$5:$A$7,Setup!$G$5:$G$7) -> 9 | U17: =LOOKUP(L22,Setup!$A$5:$A$7,Setup!$H$5:$H$7) -> 1 | V17: =LOOKUP(L22,Setup!$A$5:$A$7,Setup!$I$5:$I$7) -> 3 | W17: =LOOKUP(L22,Setup!$A$5:$A$7,Setup!$J$5:$J$7) -> 5 | X17: =LOOKUP(L22,Setup!$A$5:$A$7,Setup!$K$5:$K$7) -> 2 | AK17: Hdcp | AL17: =LOOKUP(AH22,Setup!$A$5:$A$7,Setup!$C$5:$C$7) -> 4 | AM17: =LOOKUP(AH22,Setup!$A$5:$A$7,Setup!$D$5:$D$7) -> 6 | AN17: =LOOKUP(AH22,Setup!$A$5:$A$7,Setup!$E$5:$E$7) -> 7 | AO17: =LOOKUP(AH22,Setup!$A$5:$A$7,Setup!$F$5:$F$7) -> 8 | AP17: =LOOKUP(AH22,Setup!$A$5:$A$7,Setup!$G$5:$G$7) -> 9 | AQ17: =LOOKUP(AH22,Setup!$A$5:$A$7,Setup!$H$5:$H$7) -> 1 | AR17: =LOOKUP(AH22,Setup!$A$5:$A$7,Setup!$I$5:$I$7) -> 3 | AS17: =LOOKUP(AH22,Setup!$A$5:$A$7,Setup!$J$5:$J$7) -> 5 | AT17: =LOOKUP(AH22,Setup!$A$5:$A$7,Setup!$K$5:$K$7) -> 2
A18: =VLOOKUP(Setup!Q42,GE_Team_PlayerIDs_1, 2,FALSE) -> 88 | B18: =VLOOKUP(A18,GE_Player_ID_Name,2,FALSE) -> Bridwell, Glen | C18: =ROUND(VLOOKUP(A18,GE_Player_ID_Stats,10,FALSE),1) -> 45 | D18: =VLOOKUP(A18,GE_Player_ID_Stats,11,FALSE) -> 8 | H18: =IF(F18="","",ROUND(VLOOKUP(F18,GE_Player_ID_Stats,10,FALSE),1)) ->  | I18: =IF(F18="","",VLOOKUP(F18,GE_Player_ID_Stats,11,FALSE)) ->  | L18: 88 | M18: =VLOOKUP(L18,GE_Player_ID_Name,2,FALSE) -> Bridwell, Glen | N18: =D17 -> 38 | O18: =ROUND(VLOOKUP(L18,GE_Player_ID_Stats,11,FALSE),0) -> 8 | P18: 7 | Q18: 3 | R18: 5 | S18: 5 | T18: 5 | U18: 4 | V18: 7 | W18: 5 | X18: 5 | Y18: =SUM(P18:X18) -> 46 | Z18: =Y18-O18 -> 38 | AA18: Holes | AB18: =IF(AB21="D",0,COUNTIF(P21:X21,Setup!$J$17)) -> 4 | AC18: =IF(AB21="D",0,COUNTIF(P21:X21,Setup!$J$18)) -> 3 | AD18: =IF(AB21="D",0,COUNTIF(P21:X21,Setup!$J$19)) -> 2 | AH18: 89 | AI18: =VLOOKUP(AH18,GE_Player_ID_Name,2,FALSE) -> Jonovski, Mendo | AJ18: =D17 -> 38 | AK18: =ROUND(VLOOKUP(AH18,GE_Player_ID_Stats,11,FALSE),0) -> 18 | AL18: 6 | AM18: 6 | AN18: 5 | AO18: 6 | AP18: 7 | AQ18: 8 | AR18: 6 | AS18: 7 | AT18: 8 | AU18: =SUM(AL18:AT18) -> 59 | AV18: =AU18-AK18 -> 41 | AW18: Holes | AX18: =IF(AX21="D",0,COUNTIF(AL21:AT21,Setup!$J$17)) -> 2 | AY18: =IF(AX21="D",0,COUNTIF(AL21:AT21,Setup!$J$18)) -> 3 | AZ18: =IF(AX21="D",0,COUNTIF(AL21:AT21,Setup!$J$19)) -> 4
A19: =VLOOKUP(Setup!Q42,GE_Team_PlayerIDs_1, 4,FALSE) -> 89 | B19: Jonovski, Mendo | C19: =ROUND(VLOOKUP(A19,GE_Player_ID_Stats,10,FALSE),1) -> 57 | D19: =VLOOKUP(A19,GE_Player_ID_Stats,11,FALSE) -> 17.6 | H19: =IF(F19="","",ROUND(VLOOKUP(F19,GE_Player_ID_Stats,10,FALSE),1)) ->  | I19: =IF(F19="","",VLOOKUP(F19,GE_Player_ID_Stats,11,FALSE)) ->  | M19: ="FT: "&VLOOKUP(L19,GE_Player_ID_Name,2,FALSE) ->  | N19: Strokes | O19: =IF(O18>O25,O18-O25,0) -> 0 | P19: =IF(O19>0,AE19+IF(AF19>=$P17,1,0),0) -> 0 | Q19: =IF(O19>0,AE19+IF(AF19>=$Q17,1,0),0) -> 0 | R19: =IF(O19>0,AE19+IF(AF19>=$R17,1,0),0) -> 0 | S19: =IF(O19>0,AE19+IF(AF19>=$S17,1,0),0) -> 0 | T19: =IF(O19>0,AE19+IF(AF19>=$T17,1,0),0) -> 0 | U19: =IF(O19>0,AE19+IF(AF19>=$U17,1,0),0) -> 0 | V19: =IF(O19>0,AE19+IF(AF19>=$V17,1,0),0) -> 0 | W19: =IF(O19>0,AE19+IF(AF19>=$W17,1,0),0) -> 0 | X19: =IF(O19>0,AE19+IF(AF19>=$X17,1,0),0) -> 0 | AA19: Match | AB19: =IF(AB21="D",0,COUNTIF(Z21:Z21,Setup!$J$22)) -> 1 | AC19: =IF(AB21="D",0,COUNTIF(Z21:Z21,Setup!$J$23)) -> 0 | AD19: =IF(AB21="D",0,COUNTIF(Z21:Z21,Setup!$J$24)) -> 0 | AE19: =IF(O19<9,0,IF(O19<18,1,IF(O19<27,2,3))) -> 0 | AF19: =IF(O19<9,O19,IF(O19<18,O19-9,IF(O19<27,8-18,IF(O19<36,O19-27,0)))) -> 0 | AI19: ="FT: "&VLOOKUP(AH19,GE_Player_ID_Name,2,FALSE) ->  | AJ19: Strokes | AK19: =IF(AK18>AK25,AK18-AK25,0) -> 0 | AL19: =IF(AK19>0,BA19+IF(BB19>=$AL17,1,0),0) -> 0 | AM19: =IF(AK19>0,BA19+IF(BB19>=$AM17,1,0),0) -> 0 | AN19: =IF(AK19>0,BA19+IF(BB19>=$AN17,1,0),0) -> 0 | AO19: =IF(AK19>0,BA19+IF(BB19>=$AO17,1,0),0) -> 0 | AP19: =IF(AK19>0,BA19+IF(BB19>=$AP17,1,0),0) -> 0 | AQ19: =IF(AK19>0,BA19+IF(BB19>=$AQ17,1,0),0) -> 0 | AR19: =IF(AK19>0,BA19+IF(BB19>=$AR17,1,0),0) -> 0 | AS19: =IF(AK19>0,BA19+IF(BB19>=$AS17,1,0),0) -> 0 | AT19: =IF(AK19>0,BA19+IF(BB19>=$AT17,1,0),0) -> 0 | AW19: Match | AX19: =IF(AX21="D",0,COUNTIF(AV21:AV21,Setup!$J$22)) -> 0 | AY19: =IF(AX21="D",0,COUNTIF(AV21:AV21,Setup!$J$23)) -> 0 | AZ19: =IF(AX21="D",0,COUNTIF(AV21:AV21,Setup!$J$24)) -> 1 | BA19: =IF(AK19<9,0,IF(AK19<18,1,IF(AK19<27,2,3))) -> 0 | BB19: =IF(AK19<9,AK19,IF(AK19<18,AK19-9,IF(AK19<27,8-18,IF(AK19<36,AK19-27,0)))) -> 0
A20: =VLOOKUP(Setup!R42,GE_Team_PlayerIDs_1, 2,FALSE) -> 85 | B20: Fry, Charles | C20: =ROUND(VLOOKUP(A20,GE_Player_ID_Stats,10,FALSE),1) -> 63.7 | D20: =VLOOKUP(A20,GE_Player_ID_Stats,11,FALSE) -> 22.93333333 | H20: =IF(F20="","",ROUND(VLOOKUP(F20,GE_Player_ID_Stats,10,FALSE),1)) ->  | I20: =IF(F20="","",VLOOKUP(F20,GE_Player_ID_Stats,11,FALSE)) ->  | N20: Net | P20: =P18-P19 -> 7 | Q20: =Q18-Q19 -> 3 | R20: 5 | S20: 5 | T20: 5 | U20: 4 | V20: 7 | W20: 5 | X20: 5 | AA20: =(AB18*Setup!$J$17)+(AC18*Setup!$J$18)+(AD18*Setup!$J$19)+(AB19*Setup!$J$22)+(AC19*Setup!$J$23)+(AD19*Setup!$J$24) -> 14 | AB20: =IF(AB21="D",0,IF(D25=Setup!$J$27,1,0)) -> 1 | AC20: =IF(AB21="D",0,IF(D25=Setup!$J$28,1,0)) -> 0 | AD20: =IF(AB21="D",0,IF(D25=Setup!$J$29,1,0)) -> 0 | AJ20: Net | AL20: =AL18-AL19 -> 6 | AM20: =AM18-AM19 -> 6 | AN20: 5 | AO20: 6 | AP20: 7 | AQ20: 8 | AR20: 6 | AS20: 7 | AT20: 8 | AW20: =(AX18*Setup!$J$17)+(AY18*Setup!$J$18)+(AZ18*Setup!$J$19)+(AX19*Setup!$J$22)+(AY19*Setup!$J$23)+(AZ19*Setup!$J$24) -> 10
A21: =VLOOKUP(Setup!R42,GE_Team_PlayerIDs_1, 4,FALSE) -> 86 | B21: Goetz, Rob | C21: =ROUND(VLOOKUP(A21,GE_Player_ID_Stats,10,FALSE),1) -> 61 | D21: =VLOOKUP(A21,GE_Player_ID_Stats,11,FALSE) -> 20.8 | F21: 87 | G21: Goetz, Matt | H21: =IF(F21="","",ROUND(VLOOKUP(F21,GE_Player_ID_Stats,10,FALSE),1)) -> 54 | I21: =IF(F21="","",VLOOKUP(F21,GE_Player_ID_Stats,11,FALSE)) -> 15.2 | L21: A | N21: Points | P21: =IF(P20<P23,Setup!$J$17,IF(P20=P23,Setup!$J$19,Setup!$J$18)) -> 1 | Q21: =IF(Q20<Q23,Setup!$J$17,IF(Q20=Q23,Setup!$J$19,Setup!$J$18)) -> 2 | R21: =IF(R20<R23,Setup!$J$17,IF(R20=R23,Setup!$J$19,Setup!$J$18)) -> 0 | S21: =IF(S20<S23,Setup!$J$17,IF(S20=S23,Setup!$J$19,Setup!$J$18)) -> 0 | T21: =IF(T20<T23,Setup!$J$17,IF(T20=T23,Setup!$J$19,Setup!$J$18)) -> 2 | U21: =IF(U20<U23,Setup!$J$17,IF(U20=U23,Setup!$J$19,Setup!$J$18)) -> 2 | V21: =IF(V20<V23,Setup!$J$17,IF(V20=V23,Setup!$J$19,Setup!$J$18)) -> 0 | W21: =IF(W20<W23,Setup!$J$17,IF(W20=W23,Setup!$J$19,Setup!$J$18)) -> 1 | X21: =IF(X20<X23,Setup!$J$17,IF(X20=X23,Setup!$J$19,Setup!$J$18)) -> 2 | Z21: =IF(Z18<Z25,Setup!$J$22,IF(Z18=Z25,Setup!$J$24,Setup!$J$23)) -> 4 | AA21: =IF(AB21="P","","DNP") ->  | AB21: P | AH21: B | AJ21: Points | AL21: =IF(AL20<AL23,Setup!$J$17,IF(AL20=AL23,Setup!$J$19,Setup!$J$18)) -> 1 | AM21: =IF(AM20<AM23,Setup!$J$17,IF(AM20=AM23,Setup!$J$19,Setup!$J$18)) -> 1 | AN21: =IF(AN20<AN23,Setup!$J$17,IF(AN20=AN23,Setup!$J$19,Setup!$J$18)) -> 2 | AO21: =IF(AO20<AO23,Setup!$J$17,IF(AO20=AO23,Setup!$J$19,Setup!$J$18)) -> 1 | AP21: =IF(AP20<AP23,Setup!$J$17,IF(AP20=AP23,Setup!$J$19,Setup!$J$18)) -> 1 | AQ21: =IF(AQ20<AQ23,Setup!$J$17,IF(AQ20=AQ23,Setup!$J$19,Setup!$J$18)) -> 0 | AR21: =IF(AR20<AR23,Setup!$J$17,IF(AR20=AR23,Setup!$J$19,Setup!$J$18)) -> 2 | AS21: =IF(AS20<AS23,Setup!$J$17,IF(AS20=AS23,Setup!$J$19,Setup!$J$18)) -> 0 | AT21: =IF(AT20<AT23,Setup!$J$17,IF(AT20=AT23,Setup!$J$19,Setup!$J$18)) -> 0 | AV21: =IF(AV18<AV25,Setup!$J$22,IF(AV18=AV25,Setup!$J$24,Setup!$J$23)) -> 2 | AW21: =IF(AX21="P","","DNP") ->  | AX21: P
A22: H | B22: =(AB18+AX18)&"-"&(AC18+AY18)&"-"&(AD18+AZ18) -> 6-6-6 | D22: =Z18 -> 38 | E22: A Net | F22: =Z25 -> 39 | G22: =(AB25+AX25)&"-"&(AC25+AY25)&"-"&(AD25+AZ25) -> 3-4-2 | H22: H | L22: 2 | M22: =VLOOKUP(L22,GE_SideNames,2,FALSE) -> Back 9 | N22: Points | P22: =IF(P23<P20,Setup!$J$17,IF(P23=P20,Setup!$J$19,Setup!$J$18)) -> 1 | Q22: =IF(Q23<Q20,Setup!$J$17,IF(Q23=Q20,Setup!$J$19,Setup!$J$18)) -> 0 | R22: =IF(R23<R20,Setup!$J$17,IF(R23=R20,Setup!$J$19,Setup!$J$18)) -> 2 | S22: =IF(S23<S20,Setup!$J$17,IF(S23=S20,Setup!$J$19,Setup!$J$18)) -> 2 | T22: =IF(T23<T20,Setup!$J$17,IF(T23=T20,Setup!$J$19,Setup!$J$18)) -> 0 | U22: =IF(U23<U20,Setup!$J$17,IF(U23=U20,Setup!$J$19,Setup!$J$18)) -> 0 | V22: =IF(V23<V20,Setup!$J$17,IF(V23=V20,Setup!$J$19,Setup!$J$18)) -> 2 | W22: =IF(W23<W20,Setup!$J$17,IF(W23=W20,Setup!$J$19,Setup!$J$18)) -> 1 | X22: =IF(X23<X20,Setup!$J$17,IF(X23=X20,Setup!$J$19,Setup!$J$18)) -> 0 | Z22: =IF(Z25<Z18,Setup!$J$22,IF(Z25=Z18,Setup!$J$24,Setup!$J$23)) -> 0 | AA22: =IF(AB22="P","","DNP") ->  | AB22: P | AH22: 2 | AI22: =VLOOKUP(AH22,GE_SideNames,2,FALSE) -> Back 9 | AJ22: Points | AL22: =IF(AL23<AL20,Setup!$J$17,IF(AL23=AL20,Setup!$J$19,Setup!$J$18)) -> 1 | AM22: =IF(AM23<AM20,Setup!$J$17,IF(AM23=AM20,Setup!$J$19,Setup!$J$18)) -> 1 | AN22: =IF(AN23<AN20,Setup!$J$17,IF(AN23=AN20,Setup!$J$19,Setup!$J$18)) -> 0 | AO22: =IF(AO23<AO20,Setup!$J$17,IF(AO23=AO20,Setup!$J$19,Setup!$J$18)) -> 1 | AP22: =IF(AP23<AP20,Setup!$J$17,IF(AP23=AP20,Setup!$J$19,Setup!$J$18)) -> 1 | AQ22: =IF(AQ23<AQ20,Setup!$J$17,IF(AQ23=AQ20,Setup!$J$19,Setup!$J$18)) -> 2 | AR22: =IF(AR23<AR20,Setup!$J$17,IF(AR23=AR20,Setup!$J$19,Setup!$J$18)) -> 0 | AS22: =IF(AS23<AS20,Setup!$J$17,IF(AS23=AS20,Setup!$J$19,Setup!$J$18)) -> 2 | AT22: =IF(AT23<AT20,Setup!$J$17,IF(AT23=AT20,Setup!$J$19,Setup!$J$18)) -> 2 | AV22: =IF(AV25<AV18,Setup!$J$22,IF(AV25=AV18,Setup!$J$24,Setup!$J$23)) -> 2 | AW22: =IF(AX22="P","","DNP") -> DNP | AX22: D
A23: M | B23: =(AB19+AX19)&"-"&(AC19+AY19)&"-"&(AD19+AZ19) -> 1-0-1 | D23: =AV18 -> 41 | E23: B Net | F23: =AV25 -> 41 | G23: =(AB24+AX24)&"-"&(AC24+AY24)&"-"&(AD24+AZ24) -> 0-1-0 | H23: M | N23: Net | P23: =P25-P24 -> 7 | Q23: =Q25-Q24 -> 5 | R23: 4 | S23: 4 | T23: 6 | U23: 5 | V23: 5 | W23: 5 | X23: 6 | AA23: =(AB25*Setup!$J$17)+(AC25*Setup!$J$18)+(AD25*Setup!$J$19)+(AB24*Setup!$J$22)+(AC24*Setup!$J$23)+(AD24*Setup!$J$24) -> 8 | AB23: =IF(AB22="D",0,IF(F25=Setup!$J$27,1,0)) -> 0 | AC23: =IF(AB22="D",0,IF(F25=Setup!$J$28,1,0)) -> 1 | AD23: =IF(AB22="D",0,IF(F25=Setup!$J$29,1,0)) -> 0 | AJ23: Net | AL23: =AL25-AL24 -> 6 | AM23: =AM25-AM24 -> 6 | AN23: 7 | AO23: 6 | AP23: 7 | AQ23: 7 | AR23: 7 | AS23: 6 | AT23: 7 | AW23: =(AX25*Setup!$J$17)+(AY25*Setup!$J$18)+(AZ25*Setup!$J$19)+(AX24*Setup!$J$22)+(AY24*Setup!$J$23)+(AZ24*Setup!$J$24) -> 0
A24: T | B24: =(AB20)&"-"&(AC20)&"-"&(AD20) -> 1-0-0 | D24: =D22+D23 -> 79 | E24: Total | F24: =F22+F23 -> 80 | G24: =(AB23)&"-"&(AC23)&"-"&(AD23) -> 0-1-0 | H24: T | L24: 86 | M24: ="FT: "&VLOOKUP(L24,GE_Player_ID_Name,2,FALSE) -> FT: Goetz, Rob | N24: Strokes | O24: =IF(O25>O18,O25-O18,0) -> 7 | P24: =IF(O24>0,AE24+IF(AF24>=$P17,1,0),0) -> 1 | Q24: =IF(O24>0,AE24+IF(AF24>=$Q17,1,0),0) -> 1 | R24: =IF(O24>0,AE24+IF(AF24>=$R17,1,0),0) -> 1 | S24: =IF(O24>0,AE24+IF(AF24>=$S17,1,0),0) -> 0 | T24: =IF(O24>0,AE24+IF(AF24>=$T17,1,0),0) -> 0 | U24: =IF(O24>0,AE24+IF(AF24>=$U17,1,0),0) -> 1 | V24: =IF(O24>0,AE24+IF(AF24>=$V17,1,0),0) -> 1 | W24: =IF(O24>0,AE24+IF(AF24>=$W17,1,0),0) -> 1 | X24: =IF(O24>0,AE24+IF(AF24>=$X17,1,0),0) -> 1 | AA24: Match | AB24: =IF(AB22="D",0,COUNTIF(Z22:Z22,Setup!$J$22)) -> 0 | AC24: =IF(AB22="D",0,COUNTIF(Z22:Z22,Setup!$J$23)) -> 1 | AD24: =IF(AB22="D",0,COUNTIF(Z22:Z22,Setup!$J$24)) -> 0 | AE24: =IF(O24<9,0,IF(O24<18,1,IF(O24<27,2,3))) -> 0 | AF24: =IF(O24<9,O24,IF(O24<18,O24-9,IF(O24<27,8-18,IF(O24<36,O24-27,0)))) -> 7 | AI24: ="FT: "&VLOOKUP(AH24,GE_Player_ID_Name,2,FALSE) ->  | AJ24: Strokes | AK24: =IF(AK25>AK18,AK25-AK18,0) -> 5 | AL24: =IF(AK24>0,BA24+IF(BB24>=$AL17,1,0),0) -> 1 | AM24: =IF(AK24>0,BA24+IF(BB24>=$AM17,1,0),0) -> 0 | AN24: =IF(AK24>0,BA24+IF(BB24>=$AN17,1,0),0) -> 0 | AO24: =IF(AK24>0,BA24+IF(BB24>=$AO17,1,0),0) -> 0 | AP24: =IF(AK24>0,BA24+IF(BB24>=$AP17,1,0),0) -> 0 | AQ24: =IF(AK24>0,BA24+IF(BB24>=$AQ17,1,0),0) -> 1 | AR24: =IF(AK24>0,BA24+IF(BB24>=$AR17,1,0),0) -> 1 | AS24: =IF(AK24>0,BA24+IF(BB24>=$AS17,1,0),0) -> 1 | AT24: =IF(AK24>0,BA24+IF(BB24>=$AT17,1,0),0) -> 1 | AW24: Match | AX24: =IF(AX22="D",0,COUNTIF(AV22:AV22,Setup!$J$22)) -> 0 | AY24: =IF(AX22="D",0,COUNTIF(AV22:AV22,Setup!$J$23)) -> 0 | AZ24: =IF(AX22="D",0,COUNTIF(AV22:AV22,Setup!$J$24)) -> 0 | BA24: =IF(AK24<9,0,IF(AK24<18,1,IF(AK24<27,2,3))) -> 0 | BB24: =IF(AK24<9,AK24,IF(AK24<18,AK24-9,IF(AK24<27,8-18,IF(AK24<36,AK24-27,0)))) -> 5
B25: ="Match ID - "&Setup!S42 -> Match ID - 311 | D25: =IF(D24<F24,Setup!$J$27,IF(D24=F24,Setup!$J$29,Setup!$J$28)) -> 6 | E25: Points | F25: =IF(F24<D24,Setup!$J$27,IF(F24=D24,Setup!$J$29,Setup!$J$28)) -> 0 | L25: 87 | M25: =VLOOKUP(L25,GE_Player_ID_Name,2,FALSE) -> Goetz, Matt | N25: =F17 -> 37 | O25: =ROUND(VLOOKUP(L25,GE_Player_ID_Stats,11,FALSE),0) -> 15 | P25: 8 | Q25: 6 | R25: 5 | S25: 4 | T25: 6 | U25: 6 | V25: 6 | W25: 6 | X25: 7 | Y25: =SUM(P25:X25) -> 54 | Z25: =Y25-O25 -> 39 | AA25: Holes | AB25: =IF(AB22="D",0,COUNTIF(P22:X22,Setup!$J$17)) -> 3 | AC25: =IF(AB22="D",0,COUNTIF(P22:X22,Setup!$J$18)) -> 4 | AD25: =IF(AB22="D",0,COUNTIF(P22:X22,Setup!$J$19)) -> 2 | AH25: 85 | AI25: =VLOOKUP(AH25,GE_Player_ID_Name,2,FALSE) -> Fry, Charles | AJ25: =F17 -> 37 | AK25: =ROUND(VLOOKUP(AH25,GE_Player_ID_Stats,11,FALSE),0) -> 23 | AL25: 7 | AM25: 6 | AN25: 7 | AO25: 6 | AP25: 7 | AQ25: 8 | AR25: 8 | AS25: 7 | AT25: 8 | AU25: =SUM(AL25:AT25) -> 64 | AV25: =AU25-AK25 -> 41 | AW25: Holes | AX25: =IF(AX22="D",0,COUNTIF(AL22:AT22,Setup!$J$17)) -> 0 | AY25: =IF(AX22="D",0,COUNTIF(AL22:AT22,Setup!$J$18)) -> 0 | AZ25: =IF(AX22="D",0,COUNTIF(AL22:AT22,Setup!$J$19)) -> 0
O26: Par | P26: =VLOOKUP($L32,GE_Course_Pars,3,FALSE) -> 4 | Q26: =VLOOKUP($L32,GE_Course_Pars,4,FALSE) -> 3 | R26: =VLOOKUP($L32,GE_Course_Pars,5,FALSE) -> 4 | S26: =VLOOKUP($L32,GE_Course_Pars,6,FALSE) -> 4 | T26: =VLOOKUP($L32,GE_Course_Pars,7,FALSE) -> 4 | U26: =VLOOKUP($L32,GE_Course_Pars,8,FALSE) -> 4 | V26: =VLOOKUP($L32,GE_Course_Pars,9,FALSE) -> 4 | W26: =VLOOKUP($L32,GE_Course_Pars,10,FALSE) -> 3 | X26: =VLOOKUP($L32,GE_Course_Pars,11,FALSE) -> 5 | AK26: Par | AL26: =VLOOKUP($L32,GE_Course_Pars,3,FALSE) -> 4 | AM26: =VLOOKUP($L32,GE_Course_Pars,4,FALSE) -> 3 | AN26: =VLOOKUP($L32,GE_Course_Pars,5,FALSE) -> 4 | AO26: =VLOOKUP($L32,GE_Course_Pars,6,FALSE) -> 4 | AP26: =VLOOKUP($L32,GE_Course_Pars,7,FALSE) -> 4 | AQ26: =VLOOKUP($L32,GE_Course_Pars,8,FALSE) -> 4 | AR26: =VLOOKUP($L32,GE_Course_Pars,9,FALSE) -> 4 | AS26: =VLOOKUP($L32,GE_Course_Pars,10,FALSE) -> 3 | AT26: =VLOOKUP($L32,GE_Course_Pars,11,FALSE) -> 5
A27: =Setup!B18 -> 4:40 | B27: =VLOOKUP(Setup!Q43,GE_Teams_DBID,2,FALSE) -> Putt Pirates | D27: =Setup!Q43 -> 49 | E27: vs. | F27: =Setup!R43 -> 46 | G27: =VLOOKUP(Setup!R43,GE_Teams_DBID,2,FALSE) -> Evan and Jon | O27: Hdcp | P27: =LOOKUP(L32,Setup!$A$5:$A$7,Setup!$C$5:$C$7) -> 8 | Q27: =LOOKUP(L32,Setup!$A$5:$A$7,Setup!$D$5:$D$7) -> 6 | R27: =LOOKUP(L32,Setup!$A$5:$A$7,Setup!$E$5:$E$7) -> 1 | S27: =LOOKUP(L32,Setup!$A$5:$A$7,Setup!$F$5:$F$7) -> 2 | T27: =LOOKUP(L32,Setup!$A$5:$A$7,Setup!$G$5:$G$7) -> 9 | U27: =LOOKUP(L32,Setup!$A$5:$A$7,Setup!$H$5:$H$7) -> 5 | V27: =LOOKUP(L32,Setup!$A$5:$A$7,Setup!$I$5:$I$7) -> 4 | W27: =LOOKUP(L32,Setup!$A$5:$A$7,Setup!$J$5:$J$7) -> 7 | X27: =LOOKUP(L32,Setup!$A$5:$A$7,Setup!$K$5:$K$7) -> 3 | AK27: Hdcp | AL27: =LOOKUP(AH32,Setup!$A$5:$A$7,Setup!$C$5:$C$7) -> 8 | AM27: =LOOKUP(AH32,Setup!$A$5:$A$7,Setup!$D$5:$D$7) -> 6 | AN27: =LOOKUP(AH32,Setup!$A$5:$A$7,Setup!$E$5:$E$7) -> 1 | AO27: =LOOKUP(AH32,Setup!$A$5:$A$7,Setup!$F$5:$F$7) -> 2 | AP27: =LOOKUP(AH32,Setup!$A$5:$A$7,Setup!$G$5:$G$7) -> 9 | AQ27: =LOOKUP(AH32,Setup!$A$5:$A$7,Setup!$H$5:$H$7) -> 5 | AR27: =LOOKUP(AH32,Setup!$A$5:$A$7,Setup!$I$5:$I$7) -> 4 | AS27: =LOOKUP(AH32,Setup!$A$5:$A$7,Setup!$J$5:$J$7) -> 7 | AT27: =LOOKUP(AH32,Setup!$A$5:$A$7,Setup!$K$5:$K$7) -> 3
A28: =VLOOKUP(Setup!Q43,GE_Team_PlayerIDs_1, 2,FALSE) -> 118 | B28: =VLOOKUP(A28,GE_Player_ID_Name,2,FALSE) -> Farley, Adam | C28: =ROUND(VLOOKUP(A28,GE_Player_ID_Stats,10,FALSE),1) -> 41.5 | D28: =VLOOKUP(A28,GE_Player_ID_Stats,11,FALSE) -> 5.2 | H28: =IF(F28="","",ROUND(VLOOKUP(F28,GE_Player_ID_Stats,10,FALSE),1)) ->  | I28: =IF(F28="","",VLOOKUP(F28,GE_Player_ID_Stats,11,FALSE)) ->  | L28: 118 | M28: =VLOOKUP(L28,GE_Player_ID_Name,2,FALSE) -> Farley, Adam | N28: =D27 -> 49 | O28: =ROUND(VLOOKUP(L28,GE_Player_ID_Stats,11,FALSE),0) -> 5 | P28: 4 | Q28: 4 | R28: 5 | S28: 5 | T28: 6 | U28: 4 | V28: 5 | W28: 4 | X28: 5 | Y28: =SUM(P28:X28) -> 42 | Z28: =Y28-O28 -> 37 | AA28: Holes | AB28: =IF(AB31="D",0,COUNTIF(P31:X31,Setup!$J$17)) -> 2 | AC28: =IF(AB31="D",0,COUNTIF(P31:X31,Setup!$J$18)) -> 4 | AD28: =IF(AB31="D",0,COUNTIF(P31:X31,Setup!$J$19)) -> 3 | AH28: 120 | AI28: =VLOOKUP(AH28,GE_Player_ID_Name,2,FALSE) -> Reike, Tim | AJ28: =D27 -> 49 | AK28: =ROUND(VLOOKUP(AH28,GE_Player_ID_Stats,11,FALSE),0) -> 8 | AL28: 6 | AM28: 3 | AN28: 5 | AO28: 6 | AP28: 5 | AQ28: 6 | AR28: 6 | AS28: 4 | AT28: 5 | AU28: =SUM(AL28:AT28) -> 46 | AV28: =AU28-AK28 -> 38 | AW28: Holes | AX28: =IF(AX31="D",0,COUNTIF(AL31:AT31,Setup!$J$17)) -> 3 | AY28: =IF(AX31="D",0,COUNTIF(AL31:AT31,Setup!$J$18)) -> 2 | AZ28: =IF(AX31="D",0,COUNTIF(AL31:AT31,Setup!$J$19)) -> 4
A29: =VLOOKUP(Setup!Q43,GE_Team_PlayerIDs_1, 4,FALSE) -> 119 | B29: Young, Brandon | C29: =ROUND(VLOOKUP(A29,GE_Player_ID_Stats,10,FALSE),1) -> 52 | D29: =VLOOKUP(A29,GE_Player_ID_Stats,11,FALSE) -> 13.6 | F29: 120 | G29: Reike, Tim | H29: =IF(F29="","",ROUND(VLOOKUP(F29,GE_Player_ID_Stats,10,FALSE),1)) -> 45.3 | I29: =IF(F29="","",VLOOKUP(F29,GE_Player_ID_Stats,11,FALSE)) -> 8.266666667 | M29: ="FT: "&VLOOKUP(L29,GE_Player_ID_Name,2,FALSE) ->  | N29: Strokes | O29: =IF(O28>O35,O28-O35,0) -> 0 | P29: =IF(O29>0,AE29+IF(AF29>=$P27,1,0),0) -> 0 | Q29: =IF(O29>0,AE29+IF(AF29>=$Q27,1,0),0) -> 0 | R29: =IF(O29>0,AE29+IF(AF29>=$R27,1,0),0) -> 0 | S29: =IF(O29>0,AE29+IF(AF29>=$S27,1,0),0) -> 0 | T29: =IF(O29>0,AE29+IF(AF29>=$T27,1,0),0) -> 0 | U29: =IF(O29>0,AE29+IF(AF29>=$U27,1,0),0) -> 0 | V29: =IF(O29>0,AE29+IF(AF29>=$V27,1,0),0) -> 0 | W29: =IF(O29>0,AE29+IF(AF29>=$W27,1,0),0) -> 0 | X29: =IF(O29>0,AE29+IF(AF29>=$X27,1,0),0) -> 0 | AA29: Match | AB29: =IF(AB31="D",0,COUNTIF(Z31:Z31,Setup!$J$22)) -> 0 | AC29: =IF(AB31="D",0,COUNTIF(Z31:Z31,Setup!$J$23)) -> 0 | AD29: =IF(AB31="D",0,COUNTIF(Z31:Z31,Setup!$J$24)) -> 1 | AE29: =IF(O29<9,0,IF(O29<18,1,IF(O29<27,2,3))) -> 0 | AF29: =IF(O29<9,O29,IF(O29<18,O29-9,IF(O29<27,8-18,IF(O29<36,O29-27,0)))) -> 0 | AH29: 119 | AI29: ="FT: "&VLOOKUP(AH29,GE_Player_ID_Name,2,FALSE) -> FT: Young, Brandon | AJ29: Strokes | AK29: =IF(AK28>AK35,AK28-AK35,0) -> 0 | AL29: =IF(AK29>0,BA29+IF(BB29>=$AL27,1,0),0) -> 0 | AM29: =IF(AK29>0,BA29+IF(BB29>=$AM27,1,0),0) -> 0 | AN29: =IF(AK29>0,BA29+IF(BB29>=$AN27,1,0),0) -> 0 | AO29: =IF(AK29>0,BA29+IF(BB29>=$AO27,1,0),0) -> 0 | AP29: =IF(AK29>0,BA29+IF(BB29>=$AP27,1,0),0) -> 0 | AQ29: =IF(AK29>0,BA29+IF(BB29>=$AQ27,1,0),0) -> 0 | AR29: =IF(AK29>0,BA29+IF(BB29>=$AR27,1,0),0) -> 0 | AS29: =IF(AK29>0,BA29+IF(BB29>=$AS27,1,0),0) -> 0 | AT29: =IF(AK29>0,BA29+IF(BB29>=$AT27,1,0),0) -> 0 | AW29: Match | AX29: =IF(AX31="D",0,COUNTIF(AV31:AV31,Setup!$J$22)) -> 1 | AY29: =IF(AX31="D",0,COUNTIF(AV31:AV31,Setup!$J$23)) -> 0 | AZ29: =IF(AX31="D",0,COUNTIF(AV31:AV31,Setup!$J$24)) -> 0 | BA29: =IF(AK29<9,0,IF(AK29<18,1,IF(AK29<27,2,3))) -> 0 | BB29: =IF(AK29<9,AK29,IF(AK29<18,AK29-9,IF(AK29<27,8-18,IF(AK29<36,AK29-27,0)))) -> 0
A30: =VLOOKUP(Setup!R43,GE_Team_PlayerIDs_1, 2,FALSE) -> 111 | B30: Graves, Evan | C30: =ROUND(VLOOKUP(A30,GE_Player_ID_Stats,10,FALSE),1) -> 48.7 | D30: =VLOOKUP(A30,GE_Player_ID_Stats,11,FALSE) -> 10.93333333 | H30: =IF(F30="","",ROUND(VLOOKUP(F30,GE_Player_ID_Stats,10,FALSE),1)) ->  | I30: =IF(F30="","",VLOOKUP(F30,GE_Player_ID_Stats,11,FALSE)) ->  | N30: Net | P30: =P28-P29 -> 4 | Q30: =Q28-Q29 -> 4 | R30: 5 | S30: 5 | T30: 6 | U30: 4 | V30: 5 | W30: 4 | X30: 5 | AA30: =(AB28*Setup!$J$17)+(AC28*Setup!$J$18)+(AD28*Setup!$J$19)+(AB29*Setup!$J$22)+(AC29*Setup!$J$23)+(AD29*Setup!$J$24) -> 9 | AB30: =IF(AB31="D",0,IF(D35=Setup!$J$27,1,0)) -> 1 | AC30: =IF(AB31="D",0,IF(D35=Setup!$J$28,1,0)) -> 0 | AD30: =IF(AB31="D",0,IF(D35=Setup!$J$29,1,0)) -> 0 | AJ30: Net | AL30: =AL28-AL29 -> 6 | AM30: =AM28-AM29 -> 3 | AN30: 5 | AO30: 6 | AP30: 5 | AQ30: 6 | AR30: 6 | AS30: 4 | AT30: 5 | AW30: =(AX28*Setup!$J$17)+(AY28*Setup!$J$18)+(AZ28*Setup!$J$19)+(AX29*Setup!$J$22)+(AY29*Setup!$J$23)+(AZ29*Setup!$J$24) -> 14
A31: =VLOOKUP(Setup!R43,GE_Team_PlayerIDs_1, 4,FALSE) -> 112 | B31: Leonard, Jon | C31: =ROUND(VLOOKUP(A31,GE_Player_ID_Stats,10,FALSE),1) -> 59.7 | D31: =VLOOKUP(A31,GE_Player_ID_Stats,11,FALSE) -> 19.73333333 | H31: =IF(F31="","",ROUND(VLOOKUP(F31,GE_Player_ID_Stats,10,FALSE),1)) ->  | I31: =IF(F31="","",VLOOKUP(F31,GE_Player_ID_Stats,11,FALSE)) ->  | L31: A | N31: Points | P31: =IF(P30<P33,Setup!$J$17,IF(P30=P33,Setup!$J$19,Setup!$J$18)) -> 2 | Q31: =IF(Q30<Q33,Setup!$J$17,IF(Q30=Q33,Setup!$J$19,Setup!$J$18)) -> 0 | R31: =IF(R30<R33,Setup!$J$17,IF(R30=R33,Setup!$J$19,Setup!$J$18)) -> 0 | S31: =IF(S30<S33,Setup!$J$17,IF(S30=S33,Setup!$J$19,Setup!$J$18)) -> 1 | T31: =IF(T30<T33,Setup!$J$17,IF(T30=T33,Setup!$J$19,Setup!$J$18)) -> 0 | U31: =IF(U30<U33,Setup!$J$17,IF(U30=U33,Setup!$J$19,Setup!$J$18)) -> 1 | V31: =IF(V30<V33,Setup!$J$17,IF(V30=V33,Setup!$J$19,Setup!$J$18)) -> 0 | W31: =IF(W30<W33,Setup!$J$17,IF(W30=W33,Setup!$J$19,Setup!$J$18)) -> 1 | X31: =IF(X30<X33,Setup!$J$17,IF(X30=X33,Setup!$J$19,Setup!$J$18)) -> 2 | Z31: =IF(Z28<Z35,Setup!$J$22,IF(Z28=Z35,Setup!$J$24,Setup!$J$23)) -> 2 | AA31: =IF(AB31="P","","DNP") ->  | AB31: P | AH31: B | AJ31: Points | AL31: =IF(AL30<AL33,Setup!$J$17,IF(AL30=AL33,Setup!$J$19,Setup!$J$18)) -> 0 | AM31: =IF(AM30<AM33,Setup!$J$17,IF(AM30=AM33,Setup!$J$19,Setup!$J$18)) -> 2 | AN31: =IF(AN30<AN33,Setup!$J$17,IF(AN30=AN33,Setup!$J$19,Setup!$J$18)) -> 1 | AO31: =IF(AO30<AO33,Setup!$J$17,IF(AO30=AO33,Setup!$J$19,Setup!$J$18)) -> 0 | AP31: =IF(AP30<AP33,Setup!$J$17,IF(AP30=AP33,Setup!$J$19,Setup!$J$18)) -> 1 | AQ31: =IF(AQ30<AQ33,Setup!$J$17,IF(AQ30=AQ33,Setup!$J$19,Setup!$J$18)) -> 1 | AR31: =IF(AR30<AR33,Setup!$J$17,IF(AR30=AR33,Setup!$J$19,Setup!$J$18)) -> 1 | AS31: =IF(AS30<AS33,Setup!$J$17,IF(AS30=AS33,Setup!$J$19,Setup!$J$18)) -> 2 | AT31: =IF(AT30<AT33,Setup!$J$17,IF(AT30=AT33,Setup!$J$19,Setup!$J$18)) -> 2 | AV31: =IF(AV28<AV35,Setup!$J$22,IF(AV28=AV35,Setup!$J$24,Setup!$J$23)) -> 4 | AW31: =IF(AX31="P","","DNP") ->  | AX31: P
A32: H | B32: =(AB28+AX28)&"-"&(AC28+AY28)&"-"&(AD28+AZ28) -> 5-6-7 | D32: =Z28 -> 37 | E32: A Net | F32: =Z35 -> 37 | G32: =(AB35+AX35)&"-"&(AC35+AY35)&"-"&(AD35+AZ35) -> 4-2-3 | H32: H | L32: 1 | M32: =VLOOKUP(L32,GE_SideNames,2,FALSE) -> Front 9 | N32: Points | P32: =IF(P33<P30,Setup!$J$17,IF(P33=P30,Setup!$J$19,Setup!$J$18)) -> 0 | Q32: =IF(Q33<Q30,Setup!$J$17,IF(Q33=Q30,Setup!$J$19,Setup!$J$18)) -> 2 | R32: =IF(R33<R30,Setup!$J$17,IF(R33=R30,Setup!$J$19,Setup!$J$18)) -> 2 | S32: =IF(S33<S30,Setup!$J$17,IF(S33=S30,Setup!$J$19,Setup!$J$18)) -> 1 | T32: =IF(T33<T30,Setup!$J$17,IF(T33=T30,Setup!$J$19,Setup!$J$18)) -> 2 | U32: =IF(U33<U30,Setup!$J$17,IF(U33=U30,Setup!$J$19,Setup!$J$18)) -> 1 | V32: =IF(V33<V30,Setup!$J$17,IF(V33=V30,Setup!$J$19,Setup!$J$18)) -> 2 | W32: =IF(W33<W30,Setup!$J$17,IF(W33=W30,Setup!$J$19,Setup!$J$18)) -> 1 | X32: =IF(X33<X30,Setup!$J$17,IF(X33=X30,Setup!$J$19,Setup!$J$18)) -> 0 | Z32: =IF(Z35<Z28,Setup!$J$22,IF(Z35=Z28,Setup!$J$24,Setup!$J$23)) -> 2 | AA32: =IF(AB32="P","","DNP") ->  | AB32: P | AH32: 1 | AI32: =VLOOKUP(AH32,GE_SideNames,2,FALSE) -> Front 9 | AJ32: Points | AL32: =IF(AL33<AL30,Setup!$J$17,IF(AL33=AL30,Setup!$J$19,Setup!$J$18)) -> 2 | AM32: =IF(AM33<AM30,Setup!$J$17,IF(AM33=AM30,Setup!$J$19,Setup!$J$18)) -> 0 | AN32: =IF(AN33<AN30,Setup!$J$17,IF(AN33=AN30,Setup!$J$19,Setup!$J$18)) -> 1 | AO32: =IF(AO33<AO30,Setup!$J$17,IF(AO33=AO30,Setup!$J$19,Setup!$J$18)) -> 2 | AP32: =IF(AP33<AP30,Setup!$J$17,IF(AP33=AP30,Setup!$J$19,Setup!$J$18)) -> 1 | AQ32: =IF(AQ33<AQ30,Setup!$J$17,IF(AQ33=AQ30,Setup!$J$19,Setup!$J$18)) -> 1 | AR32: =IF(AR33<AR30,Setup!$J$17,IF(AR33=AR30,Setup!$J$19,Setup!$J$18)) -> 1 | AS32: =IF(AS33<AS30,Setup!$J$17,IF(AS33=AS30,Setup!$J$19,Setup!$J$18)) -> 0 | AT32: =IF(AT33<AT30,Setup!$J$17,IF(AT33=AT30,Setup!$J$19,Setup!$J$18)) -> 0 | AV32: =IF(AV35<AV28,Setup!$J$22,IF(AV35=AV28,Setup!$J$24,Setup!$J$23)) -> 0 | AW32: =IF(AX32="P","","DNP") -> DNP | AX32: D
A33: M | B33: =(AB29+AX29)&"-"&(AC29+AY29)&"-"&(AD29+AZ29) -> 1-0-1 | D33: =AV28 -> 38 | E33: B Net | F33: =AV35 -> 40 | G33: =(AB34+AX34)&"-"&(AC34+AY34)&"-"&(AD34+AZ34) -> 0-0-1 | H33: M | N33: Net | P33: =P35-P34 -> 6 | Q33: =Q35-Q34 -> 3 | R33: 4 | S33: 5 | T33: 5 | U33: 4 | V33: 4 | W33: 4 | X33: 7 | AA33: =(AB35*Setup!$J$17)+(AC35*Setup!$J$18)+(AD35*Setup!$J$19)+(AB34*Setup!$J$22)+(AC34*Setup!$J$23)+(AD34*Setup!$J$24) -> 13 | AB33: =IF(AB32="D",0,IF(F35=Setup!$J$27,1,0)) -> 0 | AC33: =IF(AB32="D",0,IF(F35=Setup!$J$28,1,0)) -> 1 | AD33: =IF(AB32="D",0,IF(F35=Setup!$J$29,1,0)) -> 0 | AJ33: Net | AL33: =AL35-AL34 -> 5 | AM33: =AM35-AM34 -> 5 | AN33: 5 | AO33: 5 | AP33: 5 | AQ33: 6 | AR33: 6 | AS33: 5 | AT33: 6 | AW33: =(AX35*Setup!$J$17)+(AY35*Setup!$J$18)+(AZ35*Setup!$J$19)+(AX34*Setup!$J$22)+(AY34*Setup!$J$23)+(AZ34*Setup!$J$24) -> 0
A34: T | B34: =(AB30)&"-"&(AC30)&"-"&(AD30) -> 1-0-0 | D34: =D32+D33 -> 75 | E34: Total | F34: =F32+F33 -> 77 | G34: =(AB33)&"-"&(AC33)&"-"&(AD33) -> 0-1-0 | H34: T | M34: ="FT: "&VLOOKUP(L34,GE_Player_ID_Name,2,FALSE) ->  | N34: Strokes | O34: =IF(O35>O28,O35-O28,0) -> 6 | P34: =IF(O34>0,AE34+IF(AF34>=$P27,1,0),0) -> 0 | Q34: =IF(O34>0,AE34+IF(AF34>=$Q27,1,0),0) -> 1 | R34: =IF(O34>0,AE34+IF(AF34>=$R27,1,0),0) -> 1 | S34: =IF(O34>0,AE34+IF(AF34>=$S27,1,0),0) -> 1 | T34: =IF(O34>0,AE34+IF(AF34>=$T27,1,0),0) -> 0 | U34: =IF(O34>0,AE34+IF(AF34>=$U27,1,0),0) -> 1 | V34: =IF(O34>0,AE34+IF(AF34>=$V27,1,0),0) -> 1 | W34: =IF(O34>0,AE34+IF(AF34>=$W27,1,0),0) -> 0 | X34: =IF(O34>0,AE34+IF(AF34>=$X27,1,0),0) -> 1 | AA34: Match | AB34: =IF(AB32="D",0,COUNTIF(Z32:Z32,Setup!$J$22)) -> 0 | AC34: =IF(AB32="D",0,COUNTIF(Z32:Z32,Setup!$J$23)) -> 0 | AD34: =IF(AB32="D",0,COUNTIF(Z32:Z32,Setup!$J$24)) -> 1 | AE34: =IF(O34<9,0,IF(O34<18,1,IF(O34<27,2,3))) -> 0 | AF34: =IF(O34<9,O34,IF(O34<18,O34-9,IF(O34<27,8-18,IF(O34<36,O34-27,0)))) -> 6 | AI34: ="FT: "&VLOOKUP(AH34,GE_Player_ID_Name,2,FALSE) ->  | AJ34: Strokes | AK34: =IF(AK35>AK28,AK35-AK28,0) -> 12 | AL34: =IF(AK34>0,BA34+IF(BB34>=$AL27,1,0),0) -> 1 | AM34: =IF(AK34>0,BA34+IF(BB34>=$AM27,1,0),0) -> 1 | AN34: =IF(AK34>0,BA34+IF(BB34>=$AN27,1,0),0) -> 2 | AO34: =IF(AK34>0,BA34+IF(BB34>=$AO27,1,0),0) -> 2 | AP34: =IF(AK34>0,BA34+IF(BB34>=$AP27,1,0),0) -> 1 | AQ34: =IF(AK34>0,BA34+IF(BB34>=$AQ27,1,0),0) -> 1 | AR34: =IF(AK34>0,BA34+IF(BB34>=$AR27,1,0),0) -> 1 | AS34: =IF(AK34>0,BA34+IF(BB34>=$AS27,1,0),0) -> 1 | AT34: =IF(AK34>0,BA34+IF(BB34>=$AT27,1,0),0) -> 2 | AW34: Match | AX34: =IF(AX32="D",0,COUNTIF(AV32:AV32,Setup!$J$22)) -> 0 | AY34: =IF(AX32="D",0,COUNTIF(AV32:AV32,Setup!$J$23)) -> 0 | AZ34: =IF(AX32="D",0,COUNTIF(AV32:AV32,Setup!$J$24)) -> 0 | BA34: =IF(AK34<9,0,IF(AK34<18,1,IF(AK34<27,2,3))) -> 1 | BB34: =IF(AK34<9,AK34,IF(AK34<18,AK34-9,IF(AK34<27,8-18,IF(AK34<36,AK34-27,0)))) -> 3
B35: ="Match ID - "&Setup!S43 -> Match ID - 312 | D35: =IF(D34<F34,Setup!$J$27,IF(D34=F34,Setup!$J$29,Setup!$J$28)) -> 6 | E35: Points | F35: =IF(F34<D34,Setup!$J$27,IF(F34=D34,Setup!$J$29,Setup!$J$28)) -> 0 | L35: 111 | M35: =VLOOKUP(L35,GE_Player_ID_Name,2,FALSE) -> Graves, Evan | N35: =F27 -> 46 | O35: =ROUND(VLOOKUP(L35,GE_Player_ID_Stats,11,FALSE),0) -> 11 | P35: 6 | Q35: 4 | R35: 5 | S35: 6 | T35: 5 | U35: 5 | V35: 5 | W35: 4 | X35: 8 | Y35: =SUM(P35:X35) -> 48 | Z35: =Y35-O35 -> 37 | AA35: Holes | AB35: =IF(AB32="D",0,COUNTIF(P32:X32,Setup!$J$17)) -> 4 | AC35: =IF(AB32="D",0,COUNTIF(P32:X32,Setup!$J$18)) -> 2 | AD35: =IF(AB32="D",0,COUNTIF(P32:X32,Setup!$J$19)) -> 3 | AH35: 112 | AI35: =VLOOKUP(AH35,GE_Player_ID_Name,2,FALSE) -> Leonard, Jon | AJ35: =F27 -> 46 | AK35: =ROUND(VLOOKUP(AH35,GE_Player_ID_Stats,11,FALSE),0) -> 20 | AL35: 6 | AM35: 6 | AN35: 7 | AO35: 7 | AP35: 6 | AQ35: 7 | AR35: 7 | AS35: 6 | AT35: 8 | AU35: =SUM(AL35:AT35) -> 60 | AV35: =AU35-AK35 -> 40 | AW35: Holes | AX35: =IF(AX32="D",0,COUNTIF(AL32:AT32,Setup!$J$17)) -> 0 | AY35: =IF(AX32="D",0,COUNTIF(AL32:AT32,Setup!$J$18)) -> 0 | AZ35: =IF(AX32="D",0,COUNTIF(AL32:AT32,Setup!$J$19)) -> 0
O36: Par | P36: =VLOOKUP($L42,GE_Course_Pars,3,FALSE) -> 4 | Q36: =VLOOKUP($L42,GE_Course_Pars,4,FALSE) -> 3 | R36: =VLOOKUP($L42,GE_Course_Pars,5,FALSE) -> 4 | S36: =VLOOKUP($L42,GE_Course_Pars,6,FALSE) -> 3 | T36: =VLOOKUP($L42,GE_Course_Pars,7,FALSE) -> 4 | U36: =VLOOKUP($L42,GE_Course_Pars,8,FALSE) -> 4 | V36: =VLOOKUP($L42,GE_Course_Pars,9,FALSE) -> 5 | W36: =VLOOKUP($L42,GE_Course_Pars,10,FALSE) -> 4 | X36: =VLOOKUP($L42,GE_Course_Pars,11,FALSE) -> 4 | AK36: Par | AL36: =VLOOKUP($L42,GE_Course_Pars,3,FALSE) -> 4 | AM36: =VLOOKUP($L42,GE_Course_Pars,4,FALSE) -> 3 | AN36: =VLOOKUP($L42,GE_Course_Pars,5,FALSE) -> 4 | AO36: =VLOOKUP($L42,GE_Course_Pars,6,FALSE) -> 3 | AP36: =VLOOKUP($L42,GE_Course_Pars,7,FALSE) -> 4 | AQ36: =VLOOKUP($L42,GE_Course_Pars,8,FALSE) -> 4 | AR36: =VLOOKUP($L42,GE_Course_Pars,9,FALSE) -> 5 | AS36: =VLOOKUP($L42,GE_Course_Pars,10,FALSE) -> 4 | AT36: =VLOOKUP($L42,GE_Course_Pars,11,FALSE) -> 4
A37: =Setup!B19 -> 4:50 | B37: =VLOOKUP(Setup!Q44,GE_Teams_DBID,2,FALSE) -> Dave, Joe and Rick | D37: =Setup!Q44 -> 39 | E37: vs. | F37: =Setup!R44 -> 36 | G37: =VLOOKUP(Setup!R44,GE_Teams_DBID,2,FALSE) -> Bob and Mike | O37: Hdcp | P37: =LOOKUP(L42,Setup!$A$5:$A$7,Setup!$C$5:$C$7) -> 4 | Q37: =LOOKUP(L42,Setup!$A$5:$A$7,Setup!$D$5:$D$7) -> 6 | R37: =LOOKUP(L42,Setup!$A$5:$A$7,Setup!$E$5:$E$7) -> 7 | S37: =LOOKUP(L42,Setup!$A$5:$A$7,Setup!$F$5:$F$7) -> 8 | T37: =LOOKUP(L42,Setup!$A$5:$A$7,Setup!$G$5:$G$7) -> 9 | U37: =LOOKUP(L42,Setup!$A$5:$A$7,Setup!$H$5:$H$7) -> 1 | V37: =LOOKUP(L42,Setup!$A$5:$A$7,Setup!$I$5:$I$7) -> 3 | W37: =LOOKUP(L42,Setup!$A$5:$A$7,Setup!$J$5:$J$7) -> 5 | X37: =LOOKUP(L42,Setup!$A$5:$A$7,Setup!$K$5:$K$7) -> 2 | AK37: Hdcp | AL37: =LOOKUP(AH42,Setup!$A$5:$A$7,Setup!$C$5:$C$7) -> 4 | AM37: =LOOKUP(AH42,Setup!$A$5:$A$7,Setup!$D$5:$D$7) -> 6 | AN37: =LOOKUP(AH42,Setup!$A$5:$A$7,Setup!$E$5:$E$7) -> 7 | AO37: =LOOKUP(AH42,Setup!$A$5:$A$7,Setup!$F$5:$F$7) -> 8 | AP37: =LOOKUP(AH42,Setup!$A$5:$A$7,Setup!$G$5:$G$7) -> 9 | AQ37: =LOOKUP(AH42,Setup!$A$5:$A$7,Setup!$H$5:$H$7) -> 1 | AR37: =LOOKUP(AH42,Setup!$A$5:$A$7,Setup!$I$5:$I$7) -> 3 | AS37: =LOOKUP(AH42,Setup!$A$5:$A$7,Setup!$J$5:$J$7) -> 5 | AT37: =LOOKUP(AH42,Setup!$A$5:$A$7,Setup!$K$5:$K$7) -> 2
A38: =VLOOKUP(Setup!Q44,GE_Team_PlayerIDs_1, 2,FALSE) -> 92 | B38: =VLOOKUP(A38,GE_Player_ID_Name,2,FALSE) -> Hanna, Dave | C38: =ROUND(VLOOKUP(A38,GE_Player_ID_Stats,10,FALSE),1) -> 56 | D38: =VLOOKUP(A38,GE_Player_ID_Stats,11,FALSE) -> 16.8 | H38: =IF(F38="","",ROUND(VLOOKUP(F38,GE_Player_ID_Stats,10,FALSE),1)) ->  | I38: =IF(F38="","",VLOOKUP(F38,GE_Player_ID_Stats,11,FALSE)) ->  | L38: 92 | M38: =VLOOKUP(L38,GE_Player_ID_Name,2,FALSE) -> Hanna, Dave | N38: =D37 -> 39 | O38: =ROUND(VLOOKUP(L38,GE_Player_ID_Stats,11,FALSE),0) -> 17 | P38: 6 | Q38: 5 | R38: 6 | S38: 5 | T38: 6 | U38: 7 | V38: 8 | W38: 6 | X38: 7 | Y38: =SUM(P38:X38) -> 56 | Z38: =Y38-O38 -> 39 | AA38: Holes | AB38: =IF(AB41="D",0,COUNTIF(P41:X41,Setup!$J$17)) -> 0 | AC38: =IF(AB41="D",0,COUNTIF(P41:X41,Setup!$J$18)) -> 0 | AD38: =IF(AB41="D",0,COUNTIF(P41:X41,Setup!$J$19)) -> 0 | AH38: 93 | AI38: =VLOOKUP(AH38,GE_Player_ID_Name,2,FALSE) -> Shoaf, Joe | AJ38: =D37 -> 39 | AK38: =ROUND(VLOOKUP(AH38,GE_Player_ID_Stats,11,FALSE),0) -> 20 | AL38: 7 | AM38: 6 | AN38: 7 | AO38: 5 | AP38: 6 | AQ38: 7 | AR38: 8 | AS38: 7 | AT38: 7 | AU38: =SUM(AL38:AT38) -> 60 | AV38: =AU38-AK38 -> 40 | AW38: Holes | AX38: =IF(AX41="D",0,COUNTIF(AL41:AT41,Setup!$J$17)) -> 0 | AY38: =IF(AX41="D",0,COUNTIF(AL41:AT41,Setup!$J$18)) -> 0 | AZ38: =IF(AX41="D",0,COUNTIF(AL41:AT41,Setup!$J$19)) -> 0
A39: =VLOOKUP(Setup!Q44,GE_Team_PlayerIDs_1, 4,FALSE) -> 93 | B39: Shoaf, Joe | C39: =ROUND(VLOOKUP(A39,GE_Player_ID_Stats,10,FALSE),1) -> 60 | D39: =VLOOKUP(A39,GE_Player_ID_Stats,11,FALSE) -> 20 | H39: =IF(F39="","",ROUND(VLOOKUP(F39,GE_Player_ID_Stats,10,FALSE),1)) ->  | I39: =IF(F39="","",VLOOKUP(F39,GE_Player_ID_Stats,11,FALSE)) ->  | M39: ="FT: "&VLOOKUP(L39,GE_Player_ID_Name,2,FALSE) ->  | N39: Strokes | O39: =IF(O38>O45,O38-O45,0) -> 6 | P39: =IF(O39>0,AE39+IF(AF39>=$P37,1,0),0) -> 1 | Q39: =IF(O39>0,AE39+IF(AF39>=$Q37,1,0),0) -> 1 | R39: =IF(O39>0,AE39+IF(AF39>=$R37,1,0),0) -> 0 | S39: =IF(O39>0,AE39+IF(AF39>=$S37,1,0),0) -> 0 | T39: =IF(O39>0,AE39+IF(AF39>=$T37,1,0),0) -> 0 | U39: =IF(O39>0,AE39+IF(AF39>=$U37,1,0),0) -> 1 | V39: =IF(O39>0,AE39+IF(AF39>=$V37,1,0),0) -> 1 | W39: =IF(O39>0,AE39+IF(AF39>=$W37,1,0),0) -> 1 | X39: =IF(O39>0,AE39+IF(AF39>=$X37,1,0),0) -> 1 | AA39: Match | AB39: =IF(AB41="D",0,COUNTIF(Z41:Z41,Setup!$J$22)) -> 0 | AC39: =IF(AB41="D",0,COUNTIF(Z41:Z41,Setup!$J$23)) -> 0 | AD39: =IF(AB41="D",0,COUNTIF(Z41:Z41,Setup!$J$24)) -> 0 | AE39: =IF(O39<9,0,IF(O39<18,1,IF(O39<27,2,3))) -> 0 | AF39: =IF(O39<9,O39,IF(O39<18,O39-9,IF(O39<27,8-18,IF(O39<36,O39-27,0)))) -> 6 | AI39: ="FT: "&VLOOKUP(AH39,GE_Player_ID_Name,2,FALSE) ->  | AJ39: Strokes | AK39: =IF(AK38>AK45,AK38-AK45,0) -> 3 | AL39: =IF(AK39>0,BA39+IF(BB39>=$AL37,1,0),0) -> 0 | AM39: =IF(AK39>0,BA39+IF(BB39>=$AM37,1,0),0) -> 0 | AN39: =IF(AK39>0,BA39+IF(BB39>=$AN37,1,0),0) -> 0 | AO39: =IF(AK39>0,BA39+IF(BB39>=$AO37,1,0),0) -> 0 | AP39: =IF(AK39>0,BA39+IF(BB39>=$AP37,1,0),0) -> 0 | AQ39: =IF(AK39>0,BA39+IF(BB39>=$AQ37,1,0),0) -> 1 | AR39: =IF(AK39>0,BA39+IF(BB39>=$AR37,1,0),0) -> 1 | AS39: =IF(AK39>0,BA39+IF(BB39>=$AS37,1,0),0) -> 0 | AT39: =IF(AK39>0,BA39+IF(BB39>=$AT37,1,0),0) -> 1 | AW39: Match | AX39: =IF(AX41="D",0,COUNTIF(AV41:AV41,Setup!$J$22)) -> 0 | AY39: =IF(AX41="D",0,COUNTIF(AV41:AV41,Setup!$J$23)) -> 0 | AZ39: =IF(AX41="D",0,COUNTIF(AV41:AV41,Setup!$J$24)) -> 0 | BA39: =IF(AK39<9,0,IF(AK39<18,1,IF(AK39<27,2,3))) -> 0 | BB39: =IF(AK39<9,AK39,IF(AK39<18,AK39-9,IF(AK39<27,8-18,IF(AK39<36,AK39-27,0)))) -> 3
A40: =VLOOKUP(Setup!R44,GE_Team_PlayerIDs_1, 2,FALSE) -> 81 | B40: Dehner, Bob | C40: =ROUND(VLOOKUP(A40,GE_Player_ID_Stats,10,FALSE),1) -> 56 | D40: =VLOOKUP(A40,GE_Player_ID_Stats,11,FALSE) -> 16.8 | H40: =IF(F40="","",ROUND(VLOOKUP(F40,GE_Player_ID_Stats,10,FALSE),1)) ->  | I40: =IF(F40="","",VLOOKUP(F40,GE_Player_ID_Stats,11,FALSE)) ->  | N40: Net | P40: =P38-P39 -> 5 | Q40: =Q38-Q39 -> 4 | R40: 6 | S40: 5 | T40: 6 | U40: 6 | V40: 7 | W40: 5 | X40: 6 | AA40: =(AB38*Setup!$J$17)+(AC38*Setup!$J$18)+(AD38*Setup!$J$19)+(AB39*Setup!$J$22)+(AC39*Setup!$J$23)+(AD39*Setup!$J$24) -> 0 | AB40: =IF(AB41="D",0,IF(D45=Setup!$J$27,1,0)) -> 0 | AC40: =IF(AB41="D",0,IF(D45=Setup!$J$28,1,0)) -> 0 | AD40: =IF(AB41="D",0,IF(D45=Setup!$J$29,1,0)) -> 0 | AJ40: Net | AL40: =AL38-AL39 -> 7 | AM40: =AM38-AM39 -> 6 | AN40: 7 | AO40: 5 | AP40: 6 | AQ40: 6 | AR40: 7 | AS40: 7 | AT40: 6 | AW40: =(AX38*Setup!$J$17)+(AY38*Setup!$J$18)+(AZ38*Setup!$J$19)+(AX39*Setup!$J$22)+(AY39*Setup!$J$23)+(AZ39*Setup!$J$24) -> 0
A41: =VLOOKUP(Setup!R44,GE_Team_PlayerIDs_1, 4,FALSE) -> 82 | B41: Upchurch, Mike | C41: =ROUND(VLOOKUP(A41,GE_Player_ID_Stats,10,FALSE),1) -> 49.3 | D41: =VLOOKUP(A41,GE_Player_ID_Stats,11,FALSE) -> 11.4 | H41: =IF(F41="","",ROUND(VLOOKUP(F41,GE_Player_ID_Stats,10,FALSE),1)) ->  | I41: =IF(F41="","",VLOOKUP(F41,GE_Player_ID_Stats,11,FALSE)) ->  | L41: A | N41: Points | P41: =IF(P40<P43,Setup!$J$17,IF(P40=P43,Setup!$J$19,Setup!$J$18)) -> 1 | Q41: =IF(Q40<Q43,Setup!$J$17,IF(Q40=Q43,Setup!$J$19,Setup!$J$18)) -> 1 | R41: =IF(R40<R43,Setup!$J$17,IF(R40=R43,Setup!$J$19,Setup!$J$18)) -> 1 | S41: =IF(S40<S43,Setup!$J$17,IF(S40=S43,Setup!$J$19,Setup!$J$18)) -> 0 | T41: =IF(T40<T43,Setup!$J$17,IF(T40=T43,Setup!$J$19,Setup!$J$18)) -> 0 | U41: =IF(U40<U43,Setup!$J$17,IF(U40=U43,Setup!$J$19,Setup!$J$18)) -> 0 | V41: =IF(V40<V43,Setup!$J$17,IF(V40=V43,Setup!$J$19,Setup!$J$18)) -> 1 | W41: =IF(W40<W43,Setup!$J$17,IF(W40=W43,Setup!$J$19,Setup!$J$18)) -> 2 | X41: =IF(X40<X43,Setup!$J$17,IF(X40=X43,Setup!$J$19,Setup!$J$18)) -> 0 | Z41: =IF(Z38<Z45,Setup!$J$22,IF(Z38=Z45,Setup!$J$24,Setup!$J$23)) -> 0 | AA41: =IF(AB41="P","","DNP") -> DNP | AB41: D | AH41: B | AJ41: Points | AL41: =IF(AL40<AL43,Setup!$J$17,IF(AL40=AL43,Setup!$J$19,Setup!$J$18)) -> 1 | AM41: =IF(AM40<AM43,Setup!$J$17,IF(AM40=AM43,Setup!$J$19,Setup!$J$18)) -> 0 | AN41: =IF(AN40<AN43,Setup!$J$17,IF(AN40=AN43,Setup!$J$19,Setup!$J$18)) -> 0 | AO41: =IF(AO40<AO43,Setup!$J$17,IF(AO40=AO43,Setup!$J$19,Setup!$J$18)) -> 0 | AP41: =IF(AP40<AP43,Setup!$J$17,IF(AP40=AP43,Setup!$J$19,Setup!$J$18)) -> 1 | AQ41: =IF(AQ40<AQ43,Setup!$J$17,IF(AQ40=AQ43,Setup!$J$19,Setup!$J$18)) -> 2 | AR41: =IF(AR40<AR43,Setup!$J$17,IF(AR40=AR43,Setup!$J$19,Setup!$J$18)) -> 2 | AS41: =IF(AS40<AS43,Setup!$J$17,IF(AS40=AS43,Setup!$J$19,Setup!$J$18)) -> 0 | AT41: =IF(AT40<AT43,Setup!$J$17,IF(AT40=AT43,Setup!$J$19,Setup!$J$18)) -> 2 | AV41: =IF(AV38<AV45,Setup!$J$22,IF(AV38=AV45,Setup!$J$24,Setup!$J$23)) -> 0 | AW41: =IF(AX41="P","","DNP") -> DNP | AX41: D
A42: H | B42: =(AB38+AX38)&"-"&(AC38+AY38)&"-"&(AD38+AZ38) -> 0-0-0 | D42: =Z38 -> 39 | E42: A Net | F42: =Z45 -> 36 | G42: =(AB45+AX45)&"-"&(AC45+AY45)&"-"&(AD45+AZ45) -> 8-4-6 | H42: H | L42: 2 | M42: =VLOOKUP(L42,GE_SideNames,2,FALSE) -> Back 9 | N42: Points | P42: =IF(P43<P40,Setup!$J$17,IF(P43=P40,Setup!$J$19,Setup!$J$18)) -> 1 | Q42: =IF(Q43<Q40,Setup!$J$17,IF(Q43=Q40,Setup!$J$19,Setup!$J$18)) -> 1 | R42: =IF(R43<R40,Setup!$J$17,IF(R43=R40,Setup!$J$19,Setup!$J$18)) -> 1 | S42: =IF(S43<S40,Setup!$J$17,IF(S43=S40,Setup!$J$19,Setup!$J$18)) -> 2 | T42: =IF(T43<T40,Setup!$J$17,IF(T43=T40,Setup!$J$19,Setup!$J$18)) -> 2 | U42: =IF(U43<U40,Setup!$J$17,IF(U43=U40,Setup!$J$19,Setup!$J$18)) -> 2 | V42: =IF(V43<V40,Setup!$J$17,IF(V43=V40,Setup!$J$19,Setup!$J$18)) -> 1 | W42: =IF(W43<W40,Setup!$J$17,IF(W43=W40,Setup!$J$19,Setup!$J$18)) -> 0 | X42: =IF(X43<X40,Setup!$J$17,IF(X43=X40,Setup!$J$19,Setup!$J$18)) -> 2 | Z42: =IF(Z45<Z38,Setup!$J$22,IF(Z45=Z38,Setup!$J$24,Setup!$J$23)) -> 4 | AA42: =IF(AB42="P","","DNP") ->  | AB42: P | AH42: 2 | AI42: =VLOOKUP(AH42,GE_SideNames,2,FALSE) -> Back 9 | AJ42: Points | AL42: =IF(AL43<AL40,Setup!$J$17,IF(AL43=AL40,Setup!$J$19,Setup!$J$18)) -> 1 | AM42: =IF(AM43<AM40,Setup!$J$17,IF(AM43=AM40,Setup!$J$19,Setup!$J$18)) -> 2 | AN42: =IF(AN43<AN40,Setup!$J$17,IF(AN43=AN40,Setup!$J$19,Setup!$J$18)) -> 2 | AO42: =IF(AO43<AO40,Setup!$J$17,IF(AO43=AO40,Setup!$J$19,Setup!$J$18)) -> 2 | AP42: =IF(AP43<AP40,Setup!$J$17,IF(AP43=AP40,Setup!$J$19,Setup!$J$18)) -> 1 | AQ42: =IF(AQ43<AQ40,Setup!$J$17,IF(AQ43=AQ40,Setup!$J$19,Setup!$J$18)) -> 0 | AR42: =IF(AR43<AR40,Setup!$J$17,IF(AR43=AR40,Setup!$J$19,Setup!$J$18)) -> 0 | AS42: =IF(AS43<AS40,Setup!$J$17,IF(AS43=AS40,Setup!$J$19,Setup!$J$18)) -> 2 | AT42: =IF(AT43<AT40,Setup!$J$17,IF(AT43=AT40,Setup!$J$19,Setup!$J$18)) -> 0 | AV42: =IF(AV45<AV38,Setup!$J$22,IF(AV45=AV38,Setup!$J$24,Setup!$J$23)) -> 4 | AW42: =IF(AX42="P","","DNP") ->  | AX42: P
A43: M | B43: =(AB39+AX39)&"-"&(AC39+AY39)&"-"&(AD39+AZ39) -> 0-0-0 | D43: =AV38 -> 40 | E43: B Net | F43: =AV45 -> 39 | G43: =(AB44+AX44)&"-"&(AC44+AY44)&"-"&(AD44+AZ44) -> 2-0-0 | H43: M | N43: Net | P43: =P45-P44 -> 5 | Q43: =Q45-Q44 -> 4 | R43: 6 | S43: 3 | T43: 5 | U43: 5 | V43: 7 | W43: 7 | X43: 5 | AA43: =(AB45*Setup!$J$17)+(AC45*Setup!$J$18)+(AD45*Setup!$J$19)+(AB44*Setup!$J$22)+(AC44*Setup!$J$23)+(AD44*Setup!$J$24) -> 16 | AB43: =IF(AB42="D",0,IF(F45=Setup!$J$27,1,0)) -> 1 | AC43: =IF(AB42="D",0,IF(F45=Setup!$J$28,1,0)) -> 0 | AD43: =IF(AB42="D",0,IF(F45=Setup!$J$29,1,0)) -> 0 | AJ43: Net | AL43: =AL45-AL44 -> 7 | AM43: =AM45-AM44 -> 5 | AN43: 6 | AO43: 4 | AP43: 6 | AQ43: 7 | AR43: 8 | AS43: 5 | AT43: 8 | AW43: =(AX45*Setup!$J$17)+(AY45*Setup!$J$18)+(AZ45*Setup!$J$19)+(AX44*Setup!$J$22)+(AY44*Setup!$J$23)+(AZ44*Setup!$J$24) -> 14
A44: T | B44: =(AB40)&"-"&(AC40)&"-"&(AD40) -> 0-0-0 | D44: =D42+D43 -> 79 | E44: Total | F44: =F42+F43 -> 75 | G44: =(AB43)&"-"&(AC43)&"-"&(AD43) -> 1-0-0 | H44: T | M44: ="FT: "&VLOOKUP(L44,GE_Player_ID_Name,2,FALSE) ->  | N44: Strokes | O44: =IF(O45>O38,O45-O38,0) -> 0 | P44: =IF(O44>0,AE44+IF(AF44>=$P37,1,0),0) -> 0 | Q44: =IF(O44>0,AE44+IF(AF44>=$Q37,1,0),0) -> 0 | R44: =IF(O44>0,AE44+IF(AF44>=$R37,1,0),0) -> 0 | S44: =IF(O44>0,AE44+IF(AF44>=$S37,1,0),0) -> 0 | T44: =IF(O44>0,AE44+IF(AF44>=$T37,1,0),0) -> 0 | U44: =IF(O44>0,AE44+IF(AF44>=$U37,1,0),0) -> 0 | V44: =IF(O44>0,AE44+IF(AF44>=$V37,1,0),0) -> 0 | W44: =IF(O44>0,AE44+IF(AF44>=$W37,1,0),0) -> 0 | X44: =IF(O44>0,AE44+IF(AF44>=$X37,1,0),0) -> 0 | AA44: Match | AB44: =IF(AB42="D",0,COUNTIF(Z42:Z42,Setup!$J$22)) -> 1 | AC44: =IF(AB42="D",0,COUNTIF(Z42:Z42,Setup!$J$23)) -> 0 | AD44: =IF(AB42="D",0,COUNTIF(Z42:Z42,Setup!$J$24)) -> 0 | AE44: =IF(O44<9,0,IF(O44<18,1,IF(O44<27,2,3))) -> 0 | AF44: =IF(O44<9,O44,IF(O44<18,O44-9,IF(O44<27,8-18,IF(O44<36,O44-27,0)))) -> 0 | AI44: ="FT: "&VLOOKUP(AH44,GE_Player_ID_Name,2,FALSE) ->  | AJ44: Strokes | AK44: =IF(AK45>AK38,AK45-AK38,0) -> 0 | AL44: =IF(AK44>0,BA44+IF(BB44>=$AL37,1,0),0) -> 0 | AM44: =IF(AK44>0,BA44+IF(BB44>=$AM37,1,0),0) -> 0 | AN44: =IF(AK44>0,BA44+IF(BB44>=$AN37,1,0),0) -> 0 | AO44: =IF(AK44>0,BA44+IF(BB44>=$AO37,1,0),0) -> 0 | AP44: =IF(AK44>0,BA44+IF(BB44>=$AP37,1,0),0) -> 0 | AQ44: =IF(AK44>0,BA44+IF(BB44>=$AQ37,1,0),0) -> 0 | AR44: =IF(AK44>0,BA44+IF(BB44>=$AR37,1,0),0) -> 0 | AS44: =IF(AK44>0,BA44+IF(BB44>=$AS37,1,0),0) -> 0 | AT44: =IF(AK44>0,BA44+IF(BB44>=$AT37,1,0),0) -> 0 | AW44: Match | AX44: =IF(AX42="D",0,COUNTIF(AV42:AV42,Setup!$J$22)) -> 1 | AY44: =IF(AX42="D",0,COUNTIF(AV42:AV42,Setup!$J$23)) -> 0 | AZ44: =IF(AX42="D",0,COUNTIF(AV42:AV42,Setup!$J$24)) -> 0 | BA44: =IF(AK44<9,0,IF(AK44<18,1,IF(AK44<27,2,3))) -> 0 | BB44: =IF(AK44<9,AK44,IF(AK44<18,AK44-9,IF(AK44<27,8-18,IF(AK44<36,AK44-27,0)))) -> 0
B45: ="Match ID - "&Setup!S44 -> Match ID - 313 | D45: =IF(D44<F44,Setup!$J$27,IF(D44=F44,Setup!$J$29,Setup!$J$28)) -> 0 | E45: Points | F45: =IF(F44<D44,Setup!$J$27,IF(F44=D44,Setup!$J$29,Setup!$J$28)) -> 6 | L45: 82 | M45: =VLOOKUP(L45,GE_Player_ID_Name,2,FALSE) -> Upchurch, Mike | N45: =F37 -> 36 | O45: =ROUND(VLOOKUP(L45,GE_Player_ID_Stats,11,FALSE),0) -> 11 | P45: 5 | Q45: 4 | R45: 6 | S45: 3 | T45: 5 | U45: 5 | V45: 7 | W45: 7 | X45: 5 | Y45: =SUM(P45:X45) -> 47 | Z45: =Y45-O45 -> 36 | AA45: Holes | AB45: =IF(AB42="D",0,COUNTIF(P42:X42,Setup!$J$17)) -> 4 | AC45: =IF(AB42="D",0,COUNTIF(P42:X42,Setup!$J$18)) -> 1 | AD45: =IF(AB42="D",0,COUNTIF(P42:X42,Setup!$J$19)) -> 4 | AH45: 81 | AI45: =VLOOKUP(AH45,GE_Player_ID_Name,2,FALSE) -> Dehner, Bob | AJ45: =F37 -> 36 | AK45: =ROUND(VLOOKUP(AH45,GE_Player_ID_Stats,11,FALSE),0) -> 17 | AL45: 7 | AM45: 5 | AN45: 6 | AO45: 4 | AP45: 6 | AQ45: 7 | AR45: 8 | AS45: 5 | AT45: 8 | AU45: =SUM(AL45:AT45) -> 56 | AV45: =AU45-AK45 -> 39 | AW45: Holes | AX45: =IF(AX42="D",0,COUNTIF(AL42:AT42,Setup!$J$17)) -> 4 | AY45: =IF(AX42="D",0,COUNTIF(AL42:AT42,Setup!$J$18)) -> 3 | AZ45: =IF(AX42="D",0,COUNTIF(AL42:AT42,Setup!$J$19)) -> 2
O46: Par | P46: =VLOOKUP($L52,GE_Course_Pars,3,FALSE) -> 4 | Q46: =VLOOKUP($L52,GE_Course_Pars,4,FALSE) -> 3 | R46: =VLOOKUP($L52,GE_Course_Pars,5,FALSE) -> 4 | S46: =VLOOKUP($L52,GE_Course_Pars,6,FALSE) -> 4 | T46: =VLOOKUP($L52,GE_Course_Pars,7,FALSE) -> 4 | U46: =VLOOKUP($L52,GE_Course_Pars,8,FALSE) -> 4 | V46: =VLOOKUP($L52,GE_Course_Pars,9,FALSE) -> 4 | W46: =VLOOKUP($L52,GE_Course_Pars,10,FALSE) -> 3 | X46: =VLOOKUP($L52,GE_Course_Pars,11,FALSE) -> 5 | AK46: Par | AL46: =VLOOKUP($L52,GE_Course_Pars,3,FALSE) -> 4 | AM46: =VLOOKUP($L52,GE_Course_Pars,4,FALSE) -> 3 | AN46: =VLOOKUP($L52,GE_Course_Pars,5,FALSE) -> 4 | AO46: =VLOOKUP($L52,GE_Course_Pars,6,FALSE) -> 4 | AP46: =VLOOKUP($L52,GE_Course_Pars,7,FALSE) -> 4 | AQ46: =VLOOKUP($L52,GE_Course_Pars,8,FALSE) -> 4 | AR46: =VLOOKUP($L52,GE_Course_Pars,9,FALSE) -> 4 | AS46: =VLOOKUP($L52,GE_Course_Pars,10,FALSE) -> 3 | AT46: =VLOOKUP($L52,GE_Course_Pars,11,FALSE) -> 5
A47: =Setup!B19 -> 4:50 | B47: =VLOOKUP(Setup!Q45,GE_Teams_DBID,2,FALSE) -> Reckless Drivers | D47: =Setup!Q45 -> 50 | E47: vs. | F47: =Setup!R45 -> 45 | G47: =VLOOKUP(Setup!R45,GE_Teams_DBID,2,FALSE) -> Dude Wheres My Par | O47: Hdcp | P47: =LOOKUP(L52,Setup!$A$5:$A$7,Setup!$C$5:$C$7) -> 8 | Q47: =LOOKUP(L52,Setup!$A$5:$A$7,Setup!$D$5:$D$7) -> 6 | R47: =LOOKUP(L52,Setup!$A$5:$A$7,Setup!$E$5:$E$7) -> 1 | S47: =LOOKUP(L52,Setup!$A$5:$A$7,Setup!$F$5:$F$7) -> 2 | T47: =LOOKUP(L52,Setup!$A$5:$A$7,Setup!$G$5:$G$7) -> 9 | U47: =LOOKUP(L52,Setup!$A$5:$A$7,Setup!$H$5:$H$7) -> 5 | V47: =LOOKUP(L52,Setup!$A$5:$A$7,Setup!$I$5:$I$7) -> 4 | W47: =LOOKUP(L52,Setup!$A$5:$A$7,Setup!$J$5:$J$7) -> 7 | X47: =LOOKUP(L52,Setup!$A$5:$A$7,Setup!$K$5:$K$7) -> 3 | AK47: Hdcp | AL47: =LOOKUP(AH52,Setup!$A$5:$A$7,Setup!$C$5:$C$7) -> 8 | AM47: =LOOKUP(AH52,Setup!$A$5:$A$7,Setup!$D$5:$D$7) -> 6 | AN47: =LOOKUP(AH52,Setup!$A$5:$A$7,Setup!$E$5:$E$7) -> 1 | AO47: =LOOKUP(AH52,Setup!$A$5:$A$7,Setup!$F$5:$F$7) -> 2 | AP47: =LOOKUP(AH52,Setup!$A$5:$A$7,Setup!$G$5:$G$7) -> 9 | AQ47: =LOOKUP(AH52,Setup!$A$5:$A$7,Setup!$H$5:$H$7) -> 5 | AR47: =LOOKUP(AH52,Setup!$A$5:$A$7,Setup!$I$5:$I$7) -> 4 | AS47: =LOOKUP(AH52,Setup!$A$5:$A$7,Setup!$J$5:$J$7) -> 7 | AT47: =LOOKUP(AH52,Setup!$A$5:$A$7,Setup!$K$5:$K$7) -> 3
A48: =VLOOKUP(Setup!Q45,GE_Team_PlayerIDs_1, 2,FALSE) -> 121 | B48: =VLOOKUP(A48,GE_Player_ID_Name,2,FALSE) -> Lamb, David | C48: =ROUND(VLOOKUP(A48,GE_Player_ID_Stats,10,FALSE),1) -> 47 | D48: =VLOOKUP(A48,GE_Player_ID_Stats,11,FALSE) -> 9.6 | F48: 151 | G48: Ruter, Brian | H48: =IF(F48="","",ROUND(VLOOKUP(F48,GE_Player_ID_Stats,10,FALSE),1)) -> 52.3 | I48: =IF(F48="","",VLOOKUP(F48,GE_Player_ID_Stats,11,FALSE)) -> 13.86666667 | L48: 122 | M48: =VLOOKUP(L48,GE_Player_ID_Name,2,FALSE) -> Ruter, Eric | N48: =D47 -> 50 | O48: =ROUND(VLOOKUP(L48,GE_Player_ID_Stats,11,FALSE),0) -> 9 | P48: 4 | Q48: 5 | R48: 5 | S48: 5 | T48: 3 | U48: 4 | V48: 6 | W48: 4 | X48: 7 | Y48: =SUM(P48:X48) -> 43 | Z48: =Y48-O48 -> 34 | AA48: Holes | AB48: =IF(AB51="D",0,COUNTIF(P51:X51,Setup!$J$17)) -> 3 | AC48: =IF(AB51="D",0,COUNTIF(P51:X51,Setup!$J$18)) -> 3 | AD48: =IF(AB51="D",0,COUNTIF(P51:X51,Setup!$J$19)) -> 3 | AH48: 151 | AI48: =VLOOKUP(AH48,GE_Player_ID_Name,2,FALSE) -> Ruter, Brian | AJ48: =D47 -> 50 | AK48: =ROUND(VLOOKUP(AH48,GE_Player_ID_Stats,11,FALSE),0) -> 14 | AL48: 7 | AM48: 5 | AN48: 4 | AO48: 6 | AP48: 7 | AQ48: 5 | AR48: 6 | AS48: 5 | AT48: 9 | AU48: =SUM(AL48:AT48) -> 54 | AV48: =AU48-AK48 -> 40 | AW48: Holes | AX48: =IF(AX51="D",0,COUNTIF(AL51:AT51,Setup!$J$17)) -> 3 | AY48: =IF(AX51="D",0,COUNTIF(AL51:AT51,Setup!$J$18)) -> 5 | AZ48: =IF(AX51="D",0,COUNTIF(AL51:AT51,Setup!$J$19)) -> 1
A49: =VLOOKUP(Setup!Q45,GE_Team_PlayerIDs_1, 4,FALSE) -> 122 | B49: Ruter, Eric | C49: =ROUND(VLOOKUP(A49,GE_Player_ID_Stats,10,FALSE),1) -> 45.8 | D49: =VLOOKUP(A49,GE_Player_ID_Stats,11,FALSE) -> 8.6 | H49: =IF(F49="","",ROUND(VLOOKUP(F49,GE_Player_ID_Stats,10,FALSE),1)) ->  | I49: =IF(F49="","",VLOOKUP(F49,GE_Player_ID_Stats,11,FALSE)) ->  | M49: ="FT: "&VLOOKUP(L49,GE_Player_ID_Name,2,FALSE) ->  | N49: Strokes | O49: =IF(O48>O55,O48-O55,0) -> 4 | P49: =IF(O49>0,AE49+IF(AF49>=$P47,1,0),0) -> 0 | Q49: =IF(O49>0,AE49+IF(AF49>=$Q47,1,0),0) -> 0 | R49: =IF(O49>0,AE49+IF(AF49>=$R47,1,0),0) -> 1 | S49: =IF(O49>0,AE49+IF(AF49>=$S47,1,0),0) -> 1 | T49: =IF(O49>0,AE49+IF(AF49>=$T47,1,0),0) -> 0 | U49: =IF(O49>0,AE49+IF(AF49>=$U47,1,0),0) -> 0 | V49: =IF(O49>0,AE49+IF(AF49>=$V47,1,0),0) -> 1 | W49: =IF(O49>0,AE49+IF(AF49>=$W47,1,0),0) -> 0 | X49: =IF(O49>0,AE49+IF(AF49>=$X47,1,0),0) -> 1 | AA49: Match | AB49: =IF(AB51="D",0,COUNTIF(Z51:Z51,Setup!$J$22)) -> 1 | AC49: =IF(AB51="D",0,COUNTIF(Z51:Z51,Setup!$J$23)) -> 0 | AD49: =IF(AB51="D",0,COUNTIF(Z51:Z51,Setup!$J$24)) -> 0 | AE49: =IF(O49<9,0,IF(O49<18,1,IF(O49<27,2,3))) -> 0 | AF49: =IF(O49<9,O49,IF(O49<18,O49-9,IF(O49<27,8-18,IF(O49<36,O49-27,0)))) -> 4 | AH49: 121 | AI49: ="FT: "&VLOOKUP(AH49,GE_Player_ID_Name,2,FALSE) -> FT: Lamb, David | AJ49: Strokes | AK49: =IF(AK48>AK55,AK48-AK55,0) -> 3 | AL49: =IF(AK49>0,BA49+IF(BB49>=$AL47,1,0),0) -> 0 | AM49: =IF(AK49>0,BA49+IF(BB49>=$AM47,1,0),0) -> 0 | AN49: =IF(AK49>0,BA49+IF(BB49>=$AN47,1,0),0) -> 1 | AO49: =IF(AK49>0,BA49+IF(BB49>=$AO47,1,0),0) -> 1 | AP49: =IF(AK49>0,BA49+IF(BB49>=$AP47,1,0),0) -> 0 | AQ49: =IF(AK49>0,BA49+IF(BB49>=$AQ47,1,0),0) -> 0 | AR49: =IF(AK49>0,BA49+IF(BB49>=$AR47,1,0),0) -> 0 | AS49: =IF(AK49>0,BA49+IF(BB49>=$AS47,1,0),0) -> 0 | AT49: =IF(AK49>0,BA49+IF(BB49>=$AT47,1,0),0) -> 1 | AW49: Match | AX49: =IF(AX51="D",0,COUNTIF(AV51:AV51,Setup!$J$22)) -> 0 | AY49: =IF(AX51="D",0,COUNTIF(AV51:AV51,Setup!$J$23)) -> 1 | AZ49: =IF(AX51="D",0,COUNTIF(AV51:AV51,Setup!$J$24)) -> 0 | BA49: =IF(AK49<9,0,IF(AK49<18,1,IF(AK49<27,2,3))) -> 0 | BB49: =IF(AK49<9,AK49,IF(AK49<18,AK49-9,IF(AK49<27,8-18,IF(AK49<36,AK49-27,0)))) -> 3
A50: =VLOOKUP(Setup!R45,GE_Team_PlayerIDs_1, 2,FALSE) -> 109 | B50: McGrew, Doug | C50: =ROUND(VLOOKUP(A50,GE_Player_ID_Stats,10,FALSE),1) -> 40.8 | D50: =VLOOKUP(A50,GE_Player_ID_Stats,11,FALSE) -> 4.6 | H50: =IF(F50="","",ROUND(VLOOKUP(F50,GE_Player_ID_Stats,10,FALSE),1)) ->  | I50: =IF(F50="","",VLOOKUP(F50,GE_Player_ID_Stats,11,FALSE)) ->  | N50: Net | P50: =P48-P49 -> 4 | Q50: =Q48-Q49 -> 5 | R50: 4 | S50: 4 | T50: 3 | U50: 4 | V50: 5 | W50: 4 | X50: 6 | AA50: =(AB48*Setup!$J$17)+(AC48*Setup!$J$18)+(AD48*Setup!$J$19)+(AB49*Setup!$J$22)+(AC49*Setup!$J$23)+(AD49*Setup!$J$24) -> 13 | AB50: =IF(AB51="D",0,IF(D55=Setup!$J$27,1,0)) -> 0 | AC50: =IF(AB51="D",0,IF(D55=Setup!$J$28,1,0)) -> 1 | AD50: =IF(AB51="D",0,IF(D55=Setup!$J$29,1,0)) -> 0 | AJ50: Net | AL50: =AL48-AL49 -> 7 | AM50: =AM48-AM49 -> 5 | AN50: 3 | AO50: 5 | AP50: 7 | AQ50: 5 | AR50: 6 | AS50: 5 | AT50: 8 | AW50: =(AX48*Setup!$J$17)+(AY48*Setup!$J$18)+(AZ48*Setup!$J$19)+(AX49*Setup!$J$22)+(AY49*Setup!$J$23)+(AZ49*Setup!$J$24) -> 7
A51: =VLOOKUP(Setup!R45,GE_Team_PlayerIDs_1, 4,FALSE) -> 110 | B51: Tate, Melvin | C51: =ROUND(VLOOKUP(A51,GE_Player_ID_Stats,10,FALSE),1) -> 48.7 | D51: =VLOOKUP(A51,GE_Player_ID_Stats,11,FALSE) -> 10.93333333 | H51: =IF(F51="","",ROUND(VLOOKUP(F51,GE_Player_ID_Stats,10,FALSE),1)) ->  | I51: =IF(F51="","",VLOOKUP(F51,GE_Player_ID_Stats,11,FALSE)) ->  | L51: A | N51: Points | P51: =IF(P50<P53,Setup!$J$17,IF(P50=P53,Setup!$J$19,Setup!$J$18)) -> 1 | Q51: =IF(Q50<Q53,Setup!$J$17,IF(Q50=Q53,Setup!$J$19,Setup!$J$18)) -> 0 | R51: =IF(R50<R53,Setup!$J$17,IF(R50=R53,Setup!$J$19,Setup!$J$18)) -> 2 | S51: =IF(S50<S53,Setup!$J$17,IF(S50=S53,Setup!$J$19,Setup!$J$18)) -> 2 | T51: =IF(T50<T53,Setup!$J$17,IF(T50=T53,Setup!$J$19,Setup!$J$18)) -> 2 | U51: =IF(U50<U53,Setup!$J$17,IF(U50=U53,Setup!$J$19,Setup!$J$18)) -> 1 | V51: =IF(V50<V53,Setup!$J$17,IF(V50=V53,Setup!$J$19,Setup!$J$18)) -> 0 | W51: =IF(W50<W53,Setup!$J$17,IF(W50=W53,Setup!$J$19,Setup!$J$18)) -> 1 | X51: =IF(X50<X53,Setup!$J$17,IF(X50=X53,Setup!$J$19,Setup!$J$18)) -> 0 | Z51: =IF(Z48<Z55,Setup!$J$22,IF(Z48=Z55,Setup!$J$24,Setup!$J$23)) -> 4 | AA51: =IF(AB51="P","","DNP") ->  | AB51: P | AH51: B | AJ51: Points | AL51: =IF(AL50<AL53,Setup!$J$17,IF(AL50=AL53,Setup!$J$19,Setup!$J$18)) -> 0 | AM51: =IF(AM50<AM53,Setup!$J$17,IF(AM50=AM53,Setup!$J$19,Setup!$J$18)) -> 0 | AN51: =IF(AN50<AN53,Setup!$J$17,IF(AN50=AN53,Setup!$J$19,Setup!$J$18)) -> 2 | AO51: =IF(AO50<AO53,Setup!$J$17,IF(AO50=AO53,Setup!$J$19,Setup!$J$18)) -> 2 | AP51: =IF(AP50<AP53,Setup!$J$17,IF(AP50=AP53,Setup!$J$19,Setup!$J$18)) -> 0 | AQ51: =IF(AQ50<AQ53,Setup!$J$17,IF(AQ50=AQ53,Setup!$J$19,Setup!$J$18)) -> 2 | AR51: =IF(AR50<AR53,Setup!$J$17,IF(AR50=AR53,Setup!$J$19,Setup!$J$18)) -> 1 | AS51: =IF(AS50<AS53,Setup!$J$17,IF(AS50=AS53,Setup!$J$19,Setup!$J$18)) -> 0 | AT51: =IF(AT50<AT53,Setup!$J$17,IF(AT50=AT53,Setup!$J$19,Setup!$J$18)) -> 0 | AV51: =IF(AV48<AV55,Setup!$J$22,IF(AV48=AV55,Setup!$J$24,Setup!$J$23)) -> 0 | AW51: =IF(AX51="P","","DNP") ->  | AX51: P
A52: H | B52: =(AB48+AX48)&"-"&(AC48+AY48)&"-"&(AD48+AZ48) -> 6-8-4 | D52: =Z48 -> 34 | E52: A Net | F52: =Z55 -> 35 | G52: =(AB55+AX55)&"-"&(AC55+AY55)&"-"&(AD55+AZ55) -> 3-3-3 | H52: H | L52: 1 | M52: =VLOOKUP(L52,GE_SideNames,2,FALSE) -> Front 9 | N52: Points | P52: =IF(P53<P50,Setup!$J$17,IF(P53=P50,Setup!$J$19,Setup!$J$18)) -> 1 | Q52: =IF(Q53<Q50,Setup!$J$17,IF(Q53=Q50,Setup!$J$19,Setup!$J$18)) -> 2 | R52: =IF(R53<R50,Setup!$J$17,IF(R53=R50,Setup!$J$19,Setup!$J$18)) -> 0 | S52: =IF(S53<S50,Setup!$J$17,IF(S53=S50,Setup!$J$19,Setup!$J$18)) -> 0 | T52: =IF(T53<T50,Setup!$J$17,IF(T53=T50,Setup!$J$19,Setup!$J$18)) -> 0 | U52: =IF(U53<U50,Setup!$J$17,IF(U53=U50,Setup!$J$19,Setup!$J$18)) -> 1 | V52: =IF(V53<V50,Setup!$J$17,IF(V53=V50,Setup!$J$19,Setup!$J$18)) -> 2 | W52: =IF(W53<W50,Setup!$J$17,IF(W53=W50,Setup!$J$19,Setup!$J$18)) -> 1 | X52: =IF(X53<X50,Setup!$J$17,IF(X53=X50,Setup!$J$19,Setup!$J$18)) -> 2 | Z52: =IF(Z55<Z48,Setup!$J$22,IF(Z55=Z48,Setup!$J$24,Setup!$J$23)) -> 0 | AA52: =IF(AB52="P","","DNP") ->  | AB52: P | AH52: 1 | AI52: =VLOOKUP(AH52,GE_SideNames,2,FALSE) -> Front 9 | AJ52: Points | AL52: =IF(AL53<AL50,Setup!$J$17,IF(AL53=AL50,Setup!$J$19,Setup!$J$18)) -> 2 | AM52: =IF(AM53<AM50,Setup!$J$17,IF(AM53=AM50,Setup!$J$19,Setup!$J$18)) -> 2 | AN52: =IF(AN53<AN50,Setup!$J$17,IF(AN53=AN50,Setup!$J$19,Setup!$J$18)) -> 0 | AO52: =IF(AO53<AO50,Setup!$J$17,IF(AO53=AO50,Setup!$J$19,Setup!$J$18)) -> 0 | AP52: =IF(AP53<AP50,Setup!$J$17,IF(AP53=AP50,Setup!$J$19,Setup!$J$18)) -> 2 | AQ52: =IF(AQ53<AQ50,Setup!$J$17,IF(AQ53=AQ50,Setup!$J$19,Setup!$J$18)) -> 0 | AR52: =IF(AR53<AR50,Setup!$J$17,IF(AR53=AR50,Setup!$J$19,Setup!$J$18)) -> 1 | AS52: =IF(AS53<AS50,Setup!$J$17,IF(AS53=AS50,Setup!$J$19,Setup!$J$18)) -> 2 | AT52: =IF(AT53<AT50,Setup!$J$17,IF(AT53=AT50,Setup!$J$19,Setup!$J$18)) -> 2 | AV52: =IF(AV55<AV48,Setup!$J$22,IF(AV55=AV48,Setup!$J$24,Setup!$J$23)) -> 4 | AW52: =IF(AX52="P","","DNP") -> DNP | AX52: D
A53: M | B53: =(AB49+AX49)&"-"&(AC49+AY49)&"-"&(AD49+AZ49) -> 1-1-0 | D53: =AV48 -> 40 | E53: B Net | F53: =AV55 -> 38 | G53: =(AB54+AX54)&"-"&(AC54+AY54)&"-"&(AD54+AZ54) -> 0-1-0 | H53: M | N53: Net | P53: =P55-P54 -> 4 | Q53: =Q55-Q54 -> 3 | R53: 5 | S53: 5 | T53: 6 | U53: 4 | V53: 4 | W53: 4 | X53: 5 | AA53: =(AB55*Setup!$J$17)+(AC55*Setup!$J$18)+(AD55*Setup!$J$19)+(AB54*Setup!$J$22)+(AC54*Setup!$J$23)+(AD54*Setup!$J$24) -> 9 | AB53: =IF(AB52="D",0,IF(F55=Setup!$J$27,1,0)) -> 1 | AC53: =IF(AB52="D",0,IF(F55=Setup!$J$28,1,0)) -> 0 | AD53: =IF(AB52="D",0,IF(F55=Setup!$J$29,1,0)) -> 0 | AJ53: Net | AL53: =AL55-AL54 -> 5 | AM53: =AM55-AM54 -> 4 | AN53: 6 | AO53: 6 | AP53: 5 | AQ53: 6 | AR53: 6 | AS53: 4 | AT53: 7 | AW53: =(AX55*Setup!$J$17)+(AY55*Setup!$J$18)+(AZ55*Setup!$J$19)+(AX54*Setup!$J$22)+(AY54*Setup!$J$23)+(AZ54*Setup!$J$24) -> 0
A54: T | B54: =(AB50)&"-"&(AC50)&"-"&(AD50) -> 0-1-0 | D54: =D52+D53 -> 74 | E54: Total | F54: =F52+F53 -> 73 | G54: =(AB53)&"-"&(AC53)&"-"&(AD53) -> 1-0-0 | H54: T | M54: ="FT: "&VLOOKUP(L54,GE_Player_ID_Name,2,FALSE) ->  | N54: Strokes | O54: =IF(O55>O48,O55-O48,0) -> 0 | P54: =IF(O54>0,AE54+IF(AF54>=$P47,1,0),0) -> 0 | Q54: =IF(O54>0,AE54+IF(AF54>=$Q47,1,0),0) -> 0 | R54: =IF(O54>0,AE54+IF(AF54>=$R47,1,0),0) -> 0 | S54: =IF(O54>0,AE54+IF(AF54>=$S47,1,0),0) -> 0 | T54: =IF(O54>0,AE54+IF(AF54>=$T47,1,0),0) -> 0 | U54: =IF(O54>0,AE54+IF(AF54>=$U47,1,0),0) -> 0 | V54: =IF(O54>0,AE54+IF(AF54>=$V47,1,0),0) -> 0 | W54: =IF(O54>0,AE54+IF(AF54>=$W47,1,0),0) -> 0 | X54: =IF(O54>0,AE54+IF(AF54>=$X47,1,0),0) -> 0 | AA54: Match | AB54: =IF(AB52="D",0,COUNTIF(Z52:Z52,Setup!$J$22)) -> 0 | AC54: =IF(AB52="D",0,COUNTIF(Z52:Z52,Setup!$J$23)) -> 1 | AD54: =IF(AB52="D",0,COUNTIF(Z52:Z52,Setup!$J$24)) -> 0 | AE54: =IF(O54<9,0,IF(O54<18,1,IF(O54<27,2,3))) -> 0 | AF54: =IF(O54<9,O54,IF(O54<18,O54-9,IF(O54<27,8-18,IF(O54<36,O54-27,0)))) -> 0 | AI54: ="FT: "&VLOOKUP(AH54,GE_Player_ID_Name,2,FALSE) ->  | AJ54: Strokes | AK54: =IF(AK55>AK48,AK55-AK48,0) -> 0 | AL54: =IF(AK54>0,BA54+IF(BB54>=$AL47,1,0),0) -> 0 | AM54: =IF(AK54>0,BA54+IF(BB54>=$AM47,1,0),0) -> 0 | AN54: =IF(AK54>0,BA54+IF(BB54>=$AN47,1,0),0) -> 0 | AO54: =IF(AK54>0,BA54+IF(BB54>=$AO47,1,0),0) -> 0 | AP54: =IF(AK54>0,BA54+IF(BB54>=$AP47,1,0),0) -> 0 | AQ54: =IF(AK54>0,BA54+IF(BB54>=$AQ47,1,0),0) -> 0 | AR54: =IF(AK54>0,BA54+IF(BB54>=$AR47,1,0),0) -> 0 | AS54: =IF(AK54>0,BA54+IF(BB54>=$AS47,1,0),0) -> 0 | AT54: =IF(AK54>0,BA54+IF(BB54>=$AT47,1,0),0) -> 0 | AW54: Match | AX54: =IF(AX52="D",0,COUNTIF(AV52:AV52,Setup!$J$22)) -> 0 | AY54: =IF(AX52="D",0,COUNTIF(AV52:AV52,Setup!$J$23)) -> 0 | AZ54: =IF(AX52="D",0,COUNTIF(AV52:AV52,Setup!$J$24)) -> 0 | BA54: =IF(AK54<9,0,IF(AK54<18,1,IF(AK54<27,2,3))) -> 0 | BB54: =IF(AK54<9,AK54,IF(AK54<18,AK54-9,IF(AK54<27,8-18,IF(AK54<36,AK54-27,0)))) -> 0
B55: ="Match ID - "&Setup!S45 -> Match ID - 314 | D55: =IF(D54<F54,Setup!$J$27,IF(D54=F54,Setup!$J$29,Setup!$J$28)) -> 0 | E55: Points | F55: =IF(F54<D54,Setup!$J$27,IF(F54=D54,Setup!$J$29,Setup!$J$28)) -> 6 | L55: 109 | M55: =VLOOKUP(L55,GE_Player_ID_Name,2,FALSE) -> McGrew, Doug | N55: =F47 -> 45 | O55: =ROUND(VLOOKUP(L55,GE_Player_ID_Stats,11,FALSE),0) -> 5 | P55: 4 | Q55: 3 | R55: 5 | S55: 5 | T55: 6 | U55: 4 | V55: 4 | W55: 4 | X55: 5 | Y55: =SUM(P55:X55) -> 40 | Z55: =Y55-O55 -> 35 | AA55: Holes | AB55: =IF(AB52="D",0,COUNTIF(P52:X52,Setup!$J$17)) -> 3 | AC55: =IF(AB52="D",0,COUNTIF(P52:X52,Setup!$J$18)) -> 3 | AD55: =IF(AB52="D",0,COUNTIF(P52:X52,Setup!$J$19)) -> 3 | AH55: 110 | AI55: =VLOOKUP(AH55,GE_Player_ID_Name,2,FALSE) -> Tate, Melvin | AJ55: =F47 -> 45 | AK55: =ROUND(VLOOKUP(AH55,GE_Player_ID_Stats,11,FALSE),0) -> 11 | AL55: 5 | AM55: 4 | AN55: 6 | AO55: 6 | AP55: 5 | AQ55: 6 | AR55: 6 | AS55: 4 | AT55: 7 | AU55: =SUM(AL55:AT55) -> 49 | AV55: =AU55-AK55 -> 38 | AW55: Holes | AX55: =IF(AX52="D",0,COUNTIF(AL52:AT52,Setup!$J$17)) -> 0 | AY55: =IF(AX52="D",0,COUNTIF(AL52:AT52,Setup!$J$18)) -> 0 | AZ55: =IF(AX52="D",0,COUNTIF(AL52:AT52,Setup!$J$19)) -> 0
O56: Par | P56: =VLOOKUP($L62,GE_Course_Pars,3,FALSE) -> 4 | Q56: =VLOOKUP($L62,GE_Course_Pars,4,FALSE) -> 3 | R56: =VLOOKUP($L62,GE_Course_Pars,5,FALSE) -> 4 | S56: =VLOOKUP($L62,GE_Course_Pars,6,FALSE) -> 3 | T56: =VLOOKUP($L62,GE_Course_Pars,7,FALSE) -> 4 | U56: =VLOOKUP($L62,GE_Course_Pars,8,FALSE) -> 4 | V56: =VLOOKUP($L62,GE_Course_Pars,9,FALSE) -> 5 | W56: =VLOOKUP($L62,GE_Course_Pars,10,FALSE) -> 4 | X56: =VLOOKUP($L62,GE_Course_Pars,11,FALSE) -> 4 | AK56: Par | AL56: =VLOOKUP($L62,GE_Course_Pars,3,FALSE) -> 4 | AM56: =VLOOKUP($L62,GE_Course_Pars,4,FALSE) -> 3 | AN56: =VLOOKUP($L62,GE_Course_Pars,5,FALSE) -> 4 | AO56: =VLOOKUP($L62,GE_Course_Pars,6,FALSE) -> 3 | AP56: =VLOOKUP($L62,GE_Course_Pars,7,FALSE) -> 4 | AQ56: =VLOOKUP($L62,GE_Course_Pars,8,FALSE) -> 4 | AR56: =VLOOKUP($L62,GE_Course_Pars,9,FALSE) -> 5 | AS56: =VLOOKUP($L62,GE_Course_Pars,10,FALSE) -> 4 | AT56: =VLOOKUP($L62,GE_Course_Pars,11,FALSE) -> 4
A57: =Setup!B20 -> 5:00 | B57: =VLOOKUP(Setup!Q46,GE_Teams_DBID,2,FALSE) -> Schmitts Creek | D57: =Setup!Q46 -> 40 | E57: vs. | F57: =Setup!R46 -> 35 | G57: =VLOOKUP(Setup!R46,GE_Teams_DBID,2,FALSE) -> Bill and John | O57: Hdcp | P57: =LOOKUP(L62,Setup!$A$5:$A$7,Setup!$C$5:$C$7) -> 4 | Q57: =LOOKUP(L62,Setup!$A$5:$A$7,Setup!$D$5:$D$7) -> 6 | R57: =LOOKUP(L62,Setup!$A$5:$A$7,Setup!$E$5:$E$7) -> 7 | S57: =LOOKUP(L62,Setup!$A$5:$A$7,Setup!$F$5:$F$7) -> 8 | T57: =LOOKUP(L62,Setup!$A$5:$A$7,Setup!$G$5:$G$7) -> 9 | U57: =LOOKUP(L62,Setup!$A$5:$A$7,Setup!$H$5:$H$7) -> 1 | V57: =LOOKUP(L62,Setup!$A$5:$A$7,Setup!$I$5:$I$7) -> 3 | W57: =LOOKUP(L62,Setup!$A$5:$A$7,Setup!$J$5:$J$7) -> 5 | X57: =LOOKUP(L62,Setup!$A$5:$A$7,Setup!$K$5:$K$7) -> 2 | AK57: Hdcp | AL57: =LOOKUP(AH62,Setup!$A$5:$A$7,Setup!$C$5:$C$7) -> 4 | AM57: =LOOKUP(AH62,Setup!$A$5:$A$7,Setup!$D$5:$D$7) -> 6 | AN57: =LOOKUP(AH62,Setup!$A$5:$A$7,Setup!$E$5:$E$7) -> 7 | AO57: =LOOKUP(AH62,Setup!$A$5:$A$7,Setup!$F$5:$F$7) -> 8 | AP57: =LOOKUP(AH62,Setup!$A$5:$A$7,Setup!$G$5:$G$7) -> 9 | AQ57: =LOOKUP(AH62,Setup!$A$5:$A$7,Setup!$H$5:$H$7) -> 1 | AR57: =LOOKUP(AH62,Setup!$A$5:$A$7,Setup!$I$5:$I$7) -> 3 | AS57: =LOOKUP(AH62,Setup!$A$5:$A$7,Setup!$J$5:$J$7) -> 5 | AT57: =LOOKUP(AH62,Setup!$A$5:$A$7,Setup!$K$5:$K$7) -> 2
A58: =VLOOKUP(Setup!Q46,GE_Team_PlayerIDs_1, 2,FALSE) -> 96 | B58: =VLOOKUP(A58,GE_Player_ID_Name,2,FALSE) -> Schmitt, Andy | C58: =ROUND(VLOOKUP(A58,GE_Player_ID_Stats,10,FALSE),1) -> 50.3 | D58: =VLOOKUP(A58,GE_Player_ID_Stats,11,FALSE) -> 12.2 | H58: =IF(F58="","",ROUND(VLOOKUP(F58,GE_Player_ID_Stats,10,FALSE),1)) ->  | I58: =IF(F58="","",VLOOKUP(F58,GE_Player_ID_Stats,11,FALSE)) ->  | L58: 97 | M58: =VLOOKUP(L58,GE_Player_ID_Name,2,FALSE) -> Schmitt, Peter | N58: =D57 -> 40 | O58: =ROUND(VLOOKUP(L58,GE_Player_ID_Stats,11,FALSE),0) -> 10 | P58: 5 | Q58: 5 | R58: 7 | S58: 4 | T58: 6 | U58: 5 | V58: 6 | W58: 5 | X58: 6 | Y58: =SUM(P58:X58) -> 49 | Z58: =Y58-O58 -> 39 | AA58: Holes | AB58: =IF(AB61="D",0,COUNTIF(P61:X61,Setup!$J$17)) -> 2 | AC58: =IF(AB61="D",0,COUNTIF(P61:X61,Setup!$J$18)) -> 6 | AD58: =IF(AB61="D",0,COUNTIF(P61:X61,Setup!$J$19)) -> 1 | AH58: 96 | AI58: =VLOOKUP(AH58,GE_Player_ID_Name,2,FALSE) -> Schmitt, Andy | AJ58: =D57 -> 40 | AK58: =ROUND(VLOOKUP(AH58,GE_Player_ID_Stats,11,FALSE),0) -> 12 | AL58: 6 | AM58: 5 | AN58: 5 | AO58: 7 | AP58: 6 | AQ58: 6 | AR58: 6 | AS58: 8 | AT58: 4 | AU58: =SUM(AL58:AT58) -> 53 | AV58: =AU58-AK58 -> 41 | AW58: Holes | AX58: =IF(AX61="D",0,COUNTIF(AL61:AT61,Setup!$J$17)) -> 1 | AY58: =IF(AX61="D",0,COUNTIF(AL61:AT61,Setup!$J$18)) -> 6 | AZ58: =IF(AX61="D",0,COUNTIF(AL61:AT61,Setup!$J$19)) -> 2
A59: =VLOOKUP(Setup!Q46,GE_Team_PlayerIDs_1, 4,FALSE) -> 97 | B59: Schmitt, Peter | C59: =ROUND(VLOOKUP(A59,GE_Player_ID_Stats,10,FALSE),1) -> 47 | D59: =VLOOKUP(A59,GE_Player_ID_Stats,11,FALSE) -> 9.6 | H59: =IF(F59="","",ROUND(VLOOKUP(F59,GE_Player_ID_Stats,10,FALSE),1)) ->  | I59: =IF(F59="","",VLOOKUP(F59,GE_Player_ID_Stats,11,FALSE)) ->  | M59: ="FT: "&VLOOKUP(L59,GE_Player_ID_Name,2,FALSE) ->  | N59: Strokes | O59: =IF(O58>O65,O58-O65,0) -> 1 | P59: =IF(O59>0,AE59+IF(AF59>=$P57,1,0),0) -> 0 | Q59: =IF(O59>0,AE59+IF(AF59>=$Q57,1,0),0) -> 0 | R59: =IF(O59>0,AE59+IF(AF59>=$R57,1,0),0) -> 0 | S59: =IF(O59>0,AE59+IF(AF59>=$S57,1,0),0) -> 0 | T59: =IF(O59>0,AE59+IF(AF59>=$T57,1,0),0) -> 0 | U59: =IF(O59>0,AE59+IF(AF59>=$U57,1,0),0) -> 1 | V59: =IF(O59>0,AE59+IF(AF59>=$V57,1,0),0) -> 0 | W59: =IF(O59>0,AE59+IF(AF59>=$W57,1,0),0) -> 0 | X59: =IF(O59>0,AE59+IF(AF59>=$X57,1,0),0) -> 0 | AA59: Match | AB59: =IF(AB61="D",0,COUNTIF(Z61:Z61,Setup!$J$22)) -> 0 | AC59: =IF(AB61="D",0,COUNTIF(Z61:Z61,Setup!$J$23)) -> 1 | AD59: =IF(AB61="D",0,COUNTIF(Z61:Z61,Setup!$J$24)) -> 0 | AE59: =IF(O59<9,0,IF(O59<18,1,IF(O59<27,2,3))) -> 0 | AF59: =IF(O59<9,O59,IF(O59<18,O59-9,IF(O59<27,8-18,IF(O59<36,O59-27,0)))) -> 1 | AI59: ="FT: "&VLOOKUP(AH59,GE_Player_ID_Name,2,FALSE) ->  | AJ59: Strokes | AK59: =IF(AK58>AK65,AK58-AK65,0) -> 0 | AL59: =IF(AK59>0,BA59+IF(BB59>=$AL57,1,0),0) -> 0 | AM59: =IF(AK59>0,BA59+IF(BB59>=$AM57,1,0),0) -> 0 | AN59: =IF(AK59>0,BA59+IF(BB59>=$AN57,1,0),0) -> 0 | AO59: =IF(AK59>0,BA59+IF(BB59>=$AO57,1,0),0) -> 0 | AP59: =IF(AK59>0,BA59+IF(BB59>=$AP57,1,0),0) -> 0 | AQ59: =IF(AK59>0,BA59+IF(BB59>=$AQ57,1,0),0) -> 0 | AR59: =IF(AK59>0,BA59+IF(BB59>=$AR57,1,0),0) -> 0 | AS59: =IF(AK59>0,BA59+IF(BB59>=$AS57,1,0),0) -> 0 | AT59: =IF(AK59>0,BA59+IF(BB59>=$AT57,1,0),0) -> 0 | AW59: Match | AX59: =IF(AX61="D",0,COUNTIF(AV61:AV61,Setup!$J$22)) -> 0 | AY59: =IF(AX61="D",0,COUNTIF(AV61:AV61,Setup!$J$23)) -> 1 | AZ59: =IF(AX61="D",0,COUNTIF(AV61:AV61,Setup!$J$24)) -> 0 | BA59: =IF(AK59<9,0,IF(AK59<18,1,IF(AK59<27,2,3))) -> 0 | BB59: =IF(AK59<9,AK59,IF(AK59<18,AK59-9,IF(AK59<27,8-18,IF(AK59<36,AK59-27,0)))) -> 0
A60: =VLOOKUP(Setup!R46,GE_Team_PlayerIDs_1, 2,FALSE) -> 79 | B60: Hobek, Bill | C60: =ROUND(VLOOKUP(A60,GE_Player_ID_Stats,10,FALSE),1) -> 46.8 | D60: =VLOOKUP(A60,GE_Player_ID_Stats,11,FALSE) -> 9.4 | H60: =IF(F60="","",ROUND(VLOOKUP(F60,GE_Player_ID_Stats,10,FALSE),1)) ->  | I60: =IF(F60="","",VLOOKUP(F60,GE_Player_ID_Stats,11,FALSE)) ->  | N60: Net | P60: =P58-P59 -> 5 | Q60: =Q58-Q59 -> 5 | R60: 7 | S60: 4 | T60: 6 | U60: 4 | V60: 6 | W60: 5 | X60: 6 | AA60: =(AB58*Setup!$J$17)+(AC58*Setup!$J$18)+(AD58*Setup!$J$19)+(AB59*Setup!$J$22)+(AC59*Setup!$J$23)+(AD59*Setup!$J$24) -> 5 | AB60: =IF(AB61="D",0,IF(D65=Setup!$J$27,1,0)) -> 0 | AC60: =IF(AB61="D",0,IF(D65=Setup!$J$28,1,0)) -> 1 | AD60: =IF(AB61="D",0,IF(D65=Setup!$J$29,1,0)) -> 0 | AJ60: Net | AL60: =AL58-AL59 -> 6 | AM60: =AM58-AM59 -> 5 | AN60: 5 | AO60: 7 | AP60: 6 | AQ60: 6 | AR60: 6 | AS60: 8 | AT60: 4 | AW60: =(AX58*Setup!$J$17)+(AY58*Setup!$J$18)+(AZ58*Setup!$J$19)+(AX59*Setup!$J$22)+(AY59*Setup!$J$23)+(AZ59*Setup!$J$24) -> 4
A61: =VLOOKUP(Setup!R46,GE_Team_PlayerIDs_1, 4,FALSE) -> 80 | B61: Coop, John | C61: =ROUND(VLOOKUP(A61,GE_Player_ID_Stats,10,FALSE),1) -> 54.7 | D61: =VLOOKUP(A61,GE_Player_ID_Stats,11,FALSE) -> 15.73333333 | F61: 145 | G61: Heinrich, Trevor | H61: =IF(F61="","",ROUND(VLOOKUP(F61,GE_Player_ID_Stats,10,FALSE),1)) -> 56.3 | I61: =IF(F61="","",VLOOKUP(F61,GE_Player_ID_Stats,11,FALSE)) -> 17.06666667 | L61: A | N61: Points | P61: =IF(P60<P63,Setup!$J$17,IF(P60=P63,Setup!$J$19,Setup!$J$18)) -> 2 | Q61: =IF(Q60<Q63,Setup!$J$17,IF(Q60=Q63,Setup!$J$19,Setup!$J$18)) -> 0 | R61: =IF(R60<R63,Setup!$J$17,IF(R60=R63,Setup!$J$19,Setup!$J$18)) -> 0 | S61: =IF(S60<S63,Setup!$J$17,IF(S60=S63,Setup!$J$19,Setup!$J$18)) -> 1 | T61: =IF(T60<T63,Setup!$J$17,IF(T60=T63,Setup!$J$19,Setup!$J$18)) -> 0 | U61: =IF(U60<U63,Setup!$J$17,IF(U60=U63,Setup!$J$19,Setup!$J$18)) -> 2 | V61: =IF(V60<V63,Setup!$J$17,IF(V60=V63,Setup!$J$19,Setup!$J$18)) -> 0 | W61: =IF(W60<W63,Setup!$J$17,IF(W60=W63,Setup!$J$19,Setup!$J$18)) -> 0 | X61: =IF(X60<X63,Setup!$J$17,IF(X60=X63,Setup!$J$19,Setup!$J$18)) -> 0 | Z61: =IF(Z58<Z65,Setup!$J$22,IF(Z58=Z65,Setup!$J$24,Setup!$J$23)) -> 0 | AA61: =IF(AB61="P","","DNP") ->  | AB61: P | AH61: B | AJ61: Points | AL61: =IF(AL60<AL63,Setup!$J$17,IF(AL60=AL63,Setup!$J$19,Setup!$J$18)) -> 0 | AM61: =IF(AM60<AM63,Setup!$J$17,IF(AM60=AM63,Setup!$J$19,Setup!$J$18)) -> 2 | AN61: =IF(AN60<AN63,Setup!$J$17,IF(AN60=AN63,Setup!$J$19,Setup!$J$18)) -> 1 | AO61: =IF(AO60<AO63,Setup!$J$17,IF(AO60=AO63,Setup!$J$19,Setup!$J$18)) -> 1 | AP61: =IF(AP60<AP63,Setup!$J$17,IF(AP60=AP63,Setup!$J$19,Setup!$J$18)) -> 0 | AQ61: =IF(AQ60<AQ63,Setup!$J$17,IF(AQ60=AQ63,Setup!$J$19,Setup!$J$18)) -> 0 | AR61: =IF(AR60<AR63,Setup!$J$17,IF(AR60=AR63,Setup!$J$19,Setup!$J$18)) -> 0 | AS61: =IF(AS60<AS63,Setup!$J$17,IF(AS60=AS63,Setup!$J$19,Setup!$J$18)) -> 0 | AT61: =IF(AT60<AT63,Setup!$J$17,IF(AT60=AT63,Setup!$J$19,Setup!$J$18)) -> 0 | AV61: =IF(AV58<AV65,Setup!$J$22,IF(AV58=AV65,Setup!$J$24,Setup!$J$23)) -> 0 | AW61: =IF(AX61="P","","DNP") ->  | AX61: P
A62: H | B62: =(AB58+AX58)&"-"&(AC58+AY58)&"-"&(AD58+AZ58) -> 3-12-3 | D62: =Z58 -> 39 | E62: A Net | F62: =Z65 -> 35 | G62: =(AB65+AX65)&"-"&(AC65+AY65)&"-"&(AD65+AZ65) -> 12-3-3 | H62: H | L62: 2 | M62: =VLOOKUP(L62,GE_SideNames,2,FALSE) -> Back 9 | N62: Points | P62: =IF(P63<P60,Setup!$J$17,IF(P63=P60,Setup!$J$19,Setup!$J$18)) -> 0 | Q62: =IF(Q63<Q60,Setup!$J$17,IF(Q63=Q60,Setup!$J$19,Setup!$J$18)) -> 2 | R62: =IF(R63<R60,Setup!$J$17,IF(R63=R60,Setup!$J$19,Setup!$J$18)) -> 2 | S62: =IF(S63<S60,Setup!$J$17,IF(S63=S60,Setup!$J$19,Setup!$J$18)) -> 1 | T62: =IF(T63<T60,Setup!$J$17,IF(T63=T60,Setup!$J$19,Setup!$J$18)) -> 2 | U62: =IF(U63<U60,Setup!$J$17,IF(U63=U60,Setup!$J$19,Setup!$J$18)) -> 0 | V62: =IF(V63<V60,Setup!$J$17,IF(V63=V60,Setup!$J$19,Setup!$J$18)) -> 2 | W62: =IF(W63<W60,Setup!$J$17,IF(W63=W60,Setup!$J$19,Setup!$J$18)) -> 2 | X62: =IF(X63<X60,Setup!$J$17,IF(X63=X60,Setup!$J$19,Setup!$J$18)) -> 2 | Z62: =IF(Z65<Z58,Setup!$J$22,IF(Z65=Z58,Setup!$J$24,Setup!$J$23)) -> 4 | AA62: =IF(AB62="P","","DNP") ->  | AB62: P | AH62: 2 | AI62: =VLOOKUP(AH62,GE_SideNames,2,FALSE) -> Back 9 | AJ62: Points | AL62: =IF(AL63<AL60,Setup!$J$17,IF(AL63=AL60,Setup!$J$19,Setup!$J$18)) -> 2 | AM62: =IF(AM63<AM60,Setup!$J$17,IF(AM63=AM60,Setup!$J$19,Setup!$J$18)) -> 0 | AN62: =IF(AN63<AN60,Setup!$J$17,IF(AN63=AN60,Setup!$J$19,Setup!$J$18)) -> 1 | AO62: =IF(AO63<AO60,Setup!$J$17,IF(AO63=AO60,Setup!$J$19,Setup!$J$18)) -> 1 | AP62: =IF(AP63<AP60,Setup!$J$17,IF(AP63=AP60,Setup!$J$19,Setup!$J$18)) -> 2 | AQ62: =IF(AQ63<AQ60,Setup!$J$17,IF(AQ63=AQ60,Setup!$J$19,Setup!$J$18)) -> 2 | AR62: =IF(AR63<AR60,Setup!$J$17,IF(AR63=AR60,Setup!$J$19,Setup!$J$18)) -> 2 | AS62: =IF(AS63<AS60,Setup!$J$17,IF(AS63=AS60,Setup!$J$19,Setup!$J$18)) -> 2 | AT62: =IF(AT63<AT60,Setup!$J$17,IF(AT63=AT60,Setup!$J$19,Setup!$J$18)) -> 2 | AV62: =IF(AV65<AV58,Setup!$J$22,IF(AV65=AV58,Setup!$J$24,Setup!$J$23)) -> 4 | AW62: =IF(AX62="P","","DNP") ->  | AX62: P
A63: M | B63: =(AB59+AX59)&"-"&(AC59+AY59)&"-"&(AD59+AZ59) -> 0-2-0 | D63: =AV58 -> 41 | E63: B Net | F63: =AV65 -> 33 | G63: =(AB64+AX64)&"-"&(AC64+AY64)&"-"&(AD64+AZ64) -> 2-0-0 | H63: M | N63: Net | P63: =P65-P64 -> 7 | Q63: =Q65-Q64 -> 4 | R63: 5 | S63: 4 | T63: 5 | U63: 5 | V63: 5 | W63: 4 | X63: 5 | AA63: =(AB65*Setup!$J$17)+(AC65*Setup!$J$18)+(AD65*Setup!$J$19)+(AB64*Setup!$J$22)+(AC64*Setup!$J$23)+(AD64*Setup!$J$24) -> 17 | AB63: =IF(AB62="D",0,IF(F65=Setup!$J$27,1,0)) -> 1 | AC63: =IF(AB62="D",0,IF(F65=Setup!$J$28,1,0)) -> 0 | AD63: =IF(AB62="D",0,IF(F65=Setup!$J$29,1,0)) -> 0 | AJ63: Net | AL63: =AL65-AL64 -> 5 | AM63: =AM65-AM64 -> 6 | AN63: 5 | AO63: 7 | AP63: 5 | AQ63: 5 | AR63: 5 | AS63: 4 | AT63: 3 | AW63: =(AX65*Setup!$J$17)+(AY65*Setup!$J$18)+(AZ65*Setup!$J$19)+(AX64*Setup!$J$22)+(AY64*Setup!$J$23)+(AZ64*Setup!$J$24) -> 18
A64: T | B64: =(AB60)&"-"&(AC60)&"-"&(AD60) -> 0-1-0 | D64: =D62+D63 -> 80 | E64: Total | F64: =F62+F63 -> 68 | G64: =(AB63)&"-"&(AC63)&"-"&(AD63) -> 1-0-0 | H64: T | M64: ="FT: "&VLOOKUP(L64,GE_Player_ID_Name,2,FALSE) ->  | N64: Strokes | O64: =IF(O65>O58,O65-O58,0) -> 0 | P64: =IF(O64>0,AE64+IF(AF64>=$P57,1,0),0) -> 0 | Q64: =IF(O64>0,AE64+IF(AF64>=$Q57,1,0),0) -> 0 | R64: =IF(O64>0,AE64+IF(AF64>=$R57,1,0),0) -> 0 | S64: =IF(O64>0,AE64+IF(AF64>=$S57,1,0),0) -> 0 | T64: =IF(O64>0,AE64+IF(AF64>=$T57,1,0),0) -> 0 | U64: =IF(O64>0,AE64+IF(AF64>=$U57,1,0),0) -> 0 | V64: =IF(O64>0,AE64+IF(AF64>=$V57,1,0),0) -> 0 | W64: =IF(O64>0,AE64+IF(AF64>=$W57,1,0),0) -> 0 | X64: =IF(O64>0,AE64+IF(AF64>=$X57,1,0),0) -> 0 | AA64: Match | AB64: =IF(AB62="D",0,COUNTIF(Z62:Z62,Setup!$J$22)) -> 1 | AC64: =IF(AB62="D",0,COUNTIF(Z62:Z62,Setup!$J$23)) -> 0 | AD64: =IF(AB62="D",0,COUNTIF(Z62:Z62,Setup!$J$24)) -> 0 | AE64: =IF(O64<9,0,IF(O64<18,1,IF(O64<27,2,3))) -> 0 | AF64: =IF(O64<9,O64,IF(O64<18,O64-9,IF(O64<27,8-18,IF(O64<36,O64-27,0)))) -> 0 | AH64: 80 | AI64: ="FT: "&VLOOKUP(AH64,GE_Player_ID_Name,2,FALSE) -> FT: Coop, John | AJ64: Strokes | AK64: =IF(AK65>AK58,AK65-AK58,0) -> 5 | AL64: =IF(AK64>0,BA64+IF(BB64>=$AL57,1,0),0) -> 1 | AM64: =IF(AK64>0,BA64+IF(BB64>=$AM57,1,0),0) -> 0 | AN64: =IF(AK64>0,BA64+IF(BB64>=$AN57,1,0),0) -> 0 | AO64: =IF(AK64>0,BA64+IF(BB64>=$AO57,1,0),0) -> 0 | AP64: =IF(AK64>0,BA64+IF(BB64>=$AP57,1,0),0) -> 0 | AQ64: =IF(AK64>0,BA64+IF(BB64>=$AQ57,1,0),0) -> 1 | AR64: =IF(AK64>0,BA64+IF(BB64>=$AR57,1,0),0) -> 1 | AS64: =IF(AK64>0,BA64+IF(BB64>=$AS57,1,0),0) -> 1 | AT64: =IF(AK64>0,BA64+IF(BB64>=$AT57,1,0),0) -> 1 | AW64: Match | AX64: =IF(AX62="D",0,COUNTIF(AV62:AV62,Setup!$J$22)) -> 1 | AY64: =IF(AX62="D",0,COUNTIF(AV62:AV62,Setup!$J$23)) -> 0 | AZ64: =IF(AX62="D",0,COUNTIF(AV62:AV62,Setup!$J$24)) -> 0 | BA64: =IF(AK64<9,0,IF(AK64<18,1,IF(AK64<27,2,3))) -> 0 | BB64: =IF(AK64<9,AK64,IF(AK64<18,AK64-9,IF(AK64<27,8-18,IF(AK64<36,AK64-27,0)))) -> 5
B65: ="Match ID - "&Setup!S46 -> Match ID - 315 | D65: =IF(D64<F64,Setup!$J$27,IF(D64=F64,Setup!$J$29,Setup!$J$28)) -> 0 | E65: Points | F65: =IF(F64<D64,Setup!$J$27,IF(F64=D64,Setup!$J$29,Setup!$J$28)) -> 6 | L65: 79 | M65: =VLOOKUP(L65,GE_Player_ID_Name,2,FALSE) -> Hobek, Bill | N65: =F57 -> 35 | O65: =ROUND(VLOOKUP(L65,GE_Player_ID_Stats,11,FALSE),0) -> 9 | P65: 7 | Q65: 4 | R65: 5 | S65: 4 | T65: 5 | U65: 5 | V65: 5 | W65: 4 | X65: 5 | Y65: =SUM(P65:X65) -> 44 | Z65: =Y65-O65 -> 35 | AA65: Holes | AB65: =IF(AB62="D",0,COUNTIF(P62:X62,Setup!$J$17)) -> 6 | AC65: =IF(AB62="D",0,COUNTIF(P62:X62,Setup!$J$18)) -> 2 | AD65: =IF(AB62="D",0,COUNTIF(P62:X62,Setup!$J$19)) -> 1 | AH65: 145 | AI65: =VLOOKUP(AH65,GE_Player_ID_Name,2,FALSE) -> Heinrich, Trevor | AJ65: =F57 -> 35 | AK65: =ROUND(VLOOKUP(AH65,GE_Player_ID_Stats,11,FALSE),0) -> 17 | AL65: 6 | AM65: 6 | AN65: 5 | AO65: 7 | AP65: 5 | AQ65: 6 | AR65: 6 | AS65: 5 | AT65: 4 | AU65: =SUM(AL65:AT65) -> 50 | AV65: =AU65-AK65 -> 33 | AW65: Holes | AX65: =IF(AX62="D",0,COUNTIF(AL62:AT62,Setup!$J$17)) -> 6 | AY65: =IF(AX62="D",0,COUNTIF(AL62:AT62,Setup!$J$18)) -> 1 | AZ65: =IF(AX62="D",0,COUNTIF(AL62:AT62,Setup!$J$19)) -> 2
O66: Par | P66: =VLOOKUP($L72,GE_Course_Pars,3,FALSE) -> 4 | Q66: =VLOOKUP($L72,GE_Course_Pars,4,FALSE) -> 3 | R66: =VLOOKUP($L72,GE_Course_Pars,5,FALSE) -> 4 | S66: =VLOOKUP($L72,GE_Course_Pars,6,FALSE) -> 4 | T66: =VLOOKUP($L72,GE_Course_Pars,7,FALSE) -> 4 | U66: =VLOOKUP($L72,GE_Course_Pars,8,FALSE) -> 4 | V66: =VLOOKUP($L72,GE_Course_Pars,9,FALSE) -> 4 | W66: =VLOOKUP($L72,GE_Course_Pars,10,FALSE) -> 3 | X66: =VLOOKUP($L72,GE_Course_Pars,11,FALSE) -> 5 | AK66: Par | AL66: =VLOOKUP($L72,GE_Course_Pars,3,FALSE) -> 4 | AM66: =VLOOKUP($L72,GE_Course_Pars,4,FALSE) -> 3 | AN66: =VLOOKUP($L72,GE_Course_Pars,5,FALSE) -> 4 | AO66: =VLOOKUP($L72,GE_Course_Pars,6,FALSE) -> 4 | AP66: =VLOOKUP($L72,GE_Course_Pars,7,FALSE) -> 4 | AQ66: =VLOOKUP($L72,GE_Course_Pars,8,FALSE) -> 4 | AR66: =VLOOKUP($L72,GE_Course_Pars,9,FALSE) -> 4 | AS66: =VLOOKUP($L72,GE_Course_Pars,10,FALSE) -> 3 | AT66: =VLOOKUP($L72,GE_Course_Pars,11,FALSE) -> 5
A67: =Setup!B20 -> 5:00 | B67: =VLOOKUP(Setup!Q47,GE_Teams_DBID,2,FALSE) -> Shootist 1 | D67: =Setup!Q47 -> 51 | E67: vs. | F67: =Setup!R47 -> 53 | G67: =VLOOKUP(Setup!R47,GE_Teams_DBID,2,FALSE) -> Snowmen | O67: Hdcp | P67: =LOOKUP(L72,Setup!$A$5:$A$7,Setup!$C$5:$C$7) -> 8 | Q67: =LOOKUP(L72,Setup!$A$5:$A$7,Setup!$D$5:$D$7) -> 6 | R67: =LOOKUP(L72,Setup!$A$5:$A$7,Setup!$E$5:$E$7) -> 1 | S67: =LOOKUP(L72,Setup!$A$5:$A$7,Setup!$F$5:$F$7) -> 2 | T67: =LOOKUP(L72,Setup!$A$5:$A$7,Setup!$G$5:$G$7) -> 9 | U67: =LOOKUP(L72,Setup!$A$5:$A$7,Setup!$H$5:$H$7) -> 5 | V67: =LOOKUP(L72,Setup!$A$5:$A$7,Setup!$I$5:$I$7) -> 4 | W67: =LOOKUP(L72,Setup!$A$5:$A$7,Setup!$J$5:$J$7) -> 7 | X67: =LOOKUP(L72,Setup!$A$5:$A$7,Setup!$K$5:$K$7) -> 3 | AK67: Hdcp | AL67: =LOOKUP(AH72,Setup!$A$5:$A$7,Setup!$C$5:$C$7) -> 8 | AM67: =LOOKUP(AH72,Setup!$A$5:$A$7,Setup!$D$5:$D$7) -> 6 | AN67: =LOOKUP(AH72,Setup!$A$5:$A$7,Setup!$E$5:$E$7) -> 1 | AO67: =LOOKUP(AH72,Setup!$A$5:$A$7,Setup!$F$5:$F$7) -> 2 | AP67: =LOOKUP(AH72,Setup!$A$5:$A$7,Setup!$G$5:$G$7) -> 9 | AQ67: =LOOKUP(AH72,Setup!$A$5:$A$7,Setup!$H$5:$H$7) -> 5 | AR67: =LOOKUP(AH72,Setup!$A$5:$A$7,Setup!$I$5:$I$7) -> 4 | AS67: =LOOKUP(AH72,Setup!$A$5:$A$7,Setup!$J$5:$J$7) -> 7 | AT67: =LOOKUP(AH72,Setup!$A$5:$A$7,Setup!$K$5:$K$7) -> 3
A68: =VLOOKUP(Setup!Q47,GE_Team_PlayerIDs_1, 2,FALSE) -> 125 | B68: =VLOOKUP(A68,GE_Player_ID_Name,2,FALSE) -> Rickards, Charlie | C68: =ROUND(VLOOKUP(A68,GE_Player_ID_Stats,10,FALSE),1) -> 49 | D68: =VLOOKUP(A68,GE_Player_ID_Stats,11,FALSE) -> 11.2 | H68: =IF(F68="","",ROUND(VLOOKUP(F68,GE_Player_ID_Stats,10,FALSE),1)) ->  | I68: =IF(F68="","",VLOOKUP(F68,GE_Player_ID_Stats,11,FALSE)) ->  | L68: 123 | M68: =VLOOKUP(L68,GE_Player_ID_Name,2,FALSE) -> Miller, Jim | N68: =D67 -> 51 | O68: =ROUND(VLOOKUP(L68,GE_Player_ID_Stats,11,FALSE),0) -> 8 | P68: 4 | Q68: 3 | R68: 3 | S68: 7 | T68: 5 | U68: 4 | V68: 6 | W68: 5 | X68: 8 | Y68: =SUM(P68:X68) -> 45 | Z68: =Y68-O68 -> 37 | AA68: Holes | AB68: =IF(AB71="D",0,COUNTIF(P71:X71,Setup!$J$17)) -> 4 | AC68: =IF(AB71="D",0,COUNTIF(P71:X71,Setup!$J$18)) -> 3 | AD68: =IF(AB71="D",0,COUNTIF(P71:X71,Setup!$J$19)) -> 2 | AH68: 125 | AI68: =VLOOKUP(AH68,GE_Player_ID_Name,2,FALSE) -> Rickards, Charlie | AJ68: =D67 -> 51 | AK68: =ROUND(VLOOKUP(AH68,GE_Player_ID_Stats,11,FALSE),0) -> 11 | AL68: 3 | AM68: 4 | AN68: 7 | AO68: 6 | AP68: 6 | AQ68: 6 | AR68: 6 | AS68: 5 | AT68: 8 | AU68: =SUM(AL68:AT68) -> 51 | AV68: =AU68-AK68 -> 40 | AW68: Holes | AX68: =IF(AX71="D",0,COUNTIF(AL71:AT71,Setup!$J$17)) -> 2 | AY68: =IF(AX71="D",0,COUNTIF(AL71:AT71,Setup!$J$18)) -> 3 | AZ68: =IF(AX71="D",0,COUNTIF(AL71:AT71,Setup!$J$19)) -> 4
A69: =VLOOKUP(Setup!Q47,GE_Team_PlayerIDs_1, 4,FALSE) -> 123 | B69: Miller, Jim | C69: =ROUND(VLOOKUP(A69,GE_Player_ID_Stats,10,FALSE),1) -> 45 | D69: =VLOOKUP(A69,GE_Player_ID_Stats,11,FALSE) -> 8 | H69: =IF(F69="","",ROUND(VLOOKUP(F69,GE_Player_ID_Stats,10,FALSE),1)) ->  | I69: =IF(F69="","",VLOOKUP(F69,GE_Player_ID_Stats,11,FALSE)) ->  | M69: ="FT: "&VLOOKUP(L69,GE_Player_ID_Name,2,FALSE) ->  | N69: Strokes | O69: =IF(O68>O75,O68-O75,0) -> 0 | P69: =IF(O69>0,AE69+IF(AF69>=$P67,1,0),0) -> 0 | Q69: =IF(O69>0,AE69+IF(AF69>=$Q67,1,0),0) -> 0 | R69: =IF(O69>0,AE69+IF(AF69>=$R67,1,0),0) -> 0 | S69: =IF(O69>0,AE69+IF(AF69>=$S67,1,0),0) -> 0 | T69: =IF(O69>0,AE69+IF(AF69>=$T67,1,0),0) -> 0 | U69: =IF(O69>0,AE69+IF(AF69>=$U67,1,0),0) -> 0 | V69: =IF(O69>0,AE69+IF(AF69>=$V67,1,0),0) -> 0 | W69: =IF(O69>0,AE69+IF(AF69>=$W67,1,0),0) -> 0 | X69: =IF(O69>0,AE69+IF(AF69>=$X67,1,0),0) -> 0 | AA69: Match | AB69: =IF(AB71="D",0,COUNTIF(Z71:Z71,Setup!$J$22)) -> 0 | AC69: =IF(AB71="D",0,COUNTIF(Z71:Z71,Setup!$J$23)) -> 0 | AD69: =IF(AB71="D",0,COUNTIF(Z71:Z71,Setup!$J$24)) -> 1 | AE69: =IF(O69<9,0,IF(O69<18,1,IF(O69<27,2,3))) -> 0 | AF69: =IF(O69<9,O69,IF(O69<18,O69-9,IF(O69<27,8-18,IF(O69<36,O69-27,0)))) -> 0 | AI69: ="FT: "&VLOOKUP(AH69,GE_Player_ID_Name,2,FALSE) ->  | AJ69: Strokes | AK69: =IF(AK68>AK75,AK68-AK75,0) -> 0 | AL69: =IF(AK69>0,BA69+IF(BB69>=$AL67,1,0),0) -> 0 | AM69: =IF(AK69>0,BA69+IF(BB69>=$AM67,1,0),0) -> 0 | AN69: =IF(AK69>0,BA69+IF(BB69>=$AN67,1,0),0) -> 0 | AO69: =IF(AK69>0,BA69+IF(BB69>=$AO67,1,0),0) -> 0 | AP69: =IF(AK69>0,BA69+IF(BB69>=$AP67,1,0),0) -> 0 | AQ69: =IF(AK69>0,BA69+IF(BB69>=$AQ67,1,0),0) -> 0 | AR69: =IF(AK69>0,BA69+IF(BB69>=$AR67,1,0),0) -> 0 | AS69: =IF(AK69>0,BA69+IF(BB69>=$AS67,1,0),0) -> 0 | AT69: =IF(AK69>0,BA69+IF(BB69>=$AT67,1,0),0) -> 0 | AW69: Match | AX69: =IF(AX71="D",0,COUNTIF(AV71:AV71,Setup!$J$22)) -> 0 | AY69: =IF(AX71="D",0,COUNTIF(AV71:AV71,Setup!$J$23)) -> 1 | AZ69: =IF(AX71="D",0,COUNTIF(AV71:AV71,Setup!$J$24)) -> 0 | BA69: =IF(AK69<9,0,IF(AK69<18,1,IF(AK69<27,2,3))) -> 0 | BB69: =IF(AK69<9,AK69,IF(AK69<18,AK69-9,IF(AK69<27,8-18,IF(AK69<36,AK69-27,0)))) -> 0
A70: =VLOOKUP(Setup!R47,GE_Team_PlayerIDs_1, 2,FALSE) -> 129 | B70: Pignone, Gary | C70: =ROUND(VLOOKUP(A70,GE_Player_ID_Stats,10,FALSE),1) -> 50.5 | D70: =VLOOKUP(A70,GE_Player_ID_Stats,11,FALSE) -> 12.4 | H70: =IF(F70="","",ROUND(VLOOKUP(F70,GE_Player_ID_Stats,10,FALSE),1)) ->  | I70: =IF(F70="","",VLOOKUP(F70,GE_Player_ID_Stats,11,FALSE)) ->  | N70: Net | P70: =P68-P69 -> 4 | Q70: =Q68-Q69 -> 3 | R70: 3 | S70: 7 | T70: 5 | U70: 4 | V70: 6 | W70: 5 | X70: 8 | AA70: =(AB68*Setup!$J$17)+(AC68*Setup!$J$18)+(AD68*Setup!$J$19)+(AB69*Setup!$J$22)+(AC69*Setup!$J$23)+(AD69*Setup!$J$24) -> 12 | AB70: =IF(AB71="D",0,IF(D75=Setup!$J$27,1,0)) -> 0 | AC70: =IF(AB71="D",0,IF(D75=Setup!$J$28,1,0)) -> 1 | AD70: =IF(AB71="D",0,IF(D75=Setup!$J$29,1,0)) -> 0 | AJ70: Net | AL70: =AL68-AL69 -> 3 | AM70: =AM68-AM69 -> 4 | AN70: 7 | AO70: 6 | AP70: 6 | AQ70: 6 | AR70: 6 | AS70: 5 | AT70: 8 | AW70: =(AX68*Setup!$J$17)+(AY68*Setup!$J$18)+(AZ68*Setup!$J$19)+(AX69*Setup!$J$22)+(AY69*Setup!$J$23)+(AZ69*Setup!$J$24) -> 8
A71: =VLOOKUP(Setup!R47,GE_Team_PlayerIDs_1, 4,FALSE) -> 130 | B71: Okeefe, Kevin | C71: =ROUND(VLOOKUP(A71,GE_Player_ID_Stats,10,FALSE),1) -> 51 | D71: =VLOOKUP(A71,GE_Player_ID_Stats,11,FALSE) -> 12.8 | F71: 132 | G71: Weinle, Jerry | H71: =IF(F71="","",ROUND(VLOOKUP(F71,GE_Player_ID_Stats,10,FALSE),1)) -> 47 | I71: =IF(F71="","",VLOOKUP(F71,GE_Player_ID_Stats,11,FALSE)) -> 9.6 | L71: A | N71: Points | P71: =IF(P70<P73,Setup!$J$17,IF(P70=P73,Setup!$J$19,Setup!$J$18)) -> 2 | Q71: =IF(Q70<Q73,Setup!$J$17,IF(Q70=Q73,Setup!$J$19,Setup!$J$18)) -> 2 | R71: =IF(R70<R73,Setup!$J$17,IF(R70=R73,Setup!$J$19,Setup!$J$18)) -> 1 | S71: =IF(S70<S73,Setup!$J$17,IF(S70=S73,Setup!$J$19,Setup!$J$18)) -> 0 | T71: =IF(T70<T73,Setup!$J$17,IF(T70=T73,Setup!$J$19,Setup!$J$18)) -> 2 | U71: =IF(U70<U73,Setup!$J$17,IF(U70=U73,Setup!$J$19,Setup!$J$18)) -> 2 | V71: =IF(V70<V73,Setup!$J$17,IF(V70=V73,Setup!$J$19,Setup!$J$18)) -> 0 | W71: =IF(W70<W73,Setup!$J$17,IF(W70=W73,Setup!$J$19,Setup!$J$18)) -> 1 | X71: =IF(X70<X73,Setup!$J$17,IF(X70=X73,Setup!$J$19,Setup!$J$18)) -> 0 | Z71: =IF(Z68<Z75,Setup!$J$22,IF(Z68=Z75,Setup!$J$24,Setup!$J$23)) -> 2 | AA71: =IF(AB71="P","","DNP") ->  | AB71: P | AH71: B | AJ71: Points | AL71: =IF(AL70<AL73,Setup!$J$17,IF(AL70=AL73,Setup!$J$19,Setup!$J$18)) -> 2 | AM71: =IF(AM70<AM73,Setup!$J$17,IF(AM70=AM73,Setup!$J$19,Setup!$J$18)) -> 1 | AN71: =IF(AN70<AN73,Setup!$J$17,IF(AN70=AN73,Setup!$J$19,Setup!$J$18)) -> 0 | AO71: =IF(AO70<AO73,Setup!$J$17,IF(AO70=AO73,Setup!$J$19,Setup!$J$18)) -> 2 | AP71: =IF(AP70<AP73,Setup!$J$17,IF(AP70=AP73,Setup!$J$19,Setup!$J$18)) -> 1 | AQ71: =IF(AQ70<AQ73,Setup!$J$17,IF(AQ70=AQ73,Setup!$J$19,Setup!$J$18)) -> 1 | AR71: =IF(AR70<AR73,Setup!$J$17,IF(AR70=AR73,Setup!$J$19,Setup!$J$18)) -> 1 | AS71: =IF(AS70<AS73,Setup!$J$17,IF(AS70=AS73,Setup!$J$19,Setup!$J$18)) -> 0 | AT71: =IF(AT70<AT73,Setup!$J$17,IF(AT70=AT73,Setup!$J$19,Setup!$J$18)) -> 0 | AV71: =IF(AV68<AV75,Setup!$J$22,IF(AV68=AV75,Setup!$J$24,Setup!$J$23)) -> 0 | AW71: =IF(AX71="P","","DNP") ->  | AX71: P
A72: H | B72: =(AB68+AX68)&"-"&(AC68+AY68)&"-"&(AD68+AZ68) -> 6-6-6 | D72: =Z68 -> 37 | E72: A Net | F72: =Z75 -> 37 | G72: =(AB75+AX75)&"-"&(AC75+AY75)&"-"&(AD75+AZ75) -> 6-6-6 | H72: H | L72: 1 | M72: =VLOOKUP(L72,GE_SideNames,2,FALSE) -> Front 9 | N72: Points | P72: =IF(P73<P70,Setup!$J$17,IF(P73=P70,Setup!$J$19,Setup!$J$18)) -> 0 | Q72: =IF(Q73<Q70,Setup!$J$17,IF(Q73=Q70,Setup!$J$19,Setup!$J$18)) -> 0 | R72: =IF(R73<R70,Setup!$J$17,IF(R73=R70,Setup!$J$19,Setup!$J$18)) -> 1 | S72: =IF(S73<S70,Setup!$J$17,IF(S73=S70,Setup!$J$19,Setup!$J$18)) -> 2 | T72: =IF(T73<T70,Setup!$J$17,IF(T73=T70,Setup!$J$19,Setup!$J$18)) -> 0 | U72: =IF(U73<U70,Setup!$J$17,IF(U73=U70,Setup!$J$19,Setup!$J$18)) -> 0 | V72: =IF(V73<V70,Setup!$J$17,IF(V73=V70,Setup!$J$19,Setup!$J$18)) -> 2 | W72: =IF(W73<W70,Setup!$J$17,IF(W73=W70,Setup!$J$19,Setup!$J$18)) -> 1 | X72: =IF(X73<X70,Setup!$J$17,IF(X73=X70,Setup!$J$19,Setup!$J$18)) -> 2 | Z72: =IF(Z75<Z68,Setup!$J$22,IF(Z75=Z68,Setup!$J$24,Setup!$J$23)) -> 2 | AA72: =IF(AB72="P","","DNP") ->  | AB72: P | AH72: 1 | AI72: =VLOOKUP(AH72,GE_SideNames,2,FALSE) -> Front 9 | AJ72: Points | AL72: =IF(AL73<AL70,Setup!$J$17,IF(AL73=AL70,Setup!$J$19,Setup!$J$18)) -> 0 | AM72: =IF(AM73<AM70,Setup!$J$17,IF(AM73=AM70,Setup!$J$19,Setup!$J$18)) -> 1 | AN72: =IF(AN73<AN70,Setup!$J$17,IF(AN73=AN70,Setup!$J$19,Setup!$J$18)) -> 2 | AO72: =IF(AO73<AO70,Setup!$J$17,IF(AO73=AO70,Setup!$J$19,Setup!$J$18)) -> 0 | AP72: =IF(AP73<AP70,Setup!$J$17,IF(AP73=AP70,Setup!$J$19,Setup!$J$18)) -> 1 | AQ72: =IF(AQ73<AQ70,Setup!$J$17,IF(AQ73=AQ70,Setup!$J$19,Setup!$J$18)) -> 1 | AR72: =IF(AR73<AR70,Setup!$J$17,IF(AR73=AR70,Setup!$J$19,Setup!$J$18)) -> 1 | AS72: =IF(AS73<AS70,Setup!$J$17,IF(AS73=AS70,Setup!$J$19,Setup!$J$18)) -> 2 | AT72: =IF(AT73<AT70,Setup!$J$17,IF(AT73=AT70,Setup!$J$19,Setup!$J$18)) -> 2 | AV72: =IF(AV75<AV68,Setup!$J$22,IF(AV75=AV68,Setup!$J$24,Setup!$J$23)) -> 4 | AW72: =IF(AX72="P","","DNP") ->  | AX72: P
A73: M | B73: =(AB69+AX69)&"-"&(AC69+AY69)&"-"&(AD69+AZ69) -> 0-1-1 | D73: =AV68 -> 40 | E73: B Net | F73: =AV75 -> 39 | G73: =(AB74+AX74)&"-"&(AC74+AY74)&"-"&(AD74+AZ74) -> 1-0-1 | H73: M | N73: Net | P73: =P75-P74 -> 7 | Q73: =Q75-Q74 -> 4 | R73: 3 | S73: 3 | T73: 6 | U73: 5 | V73: 5 | W73: 5 | X73: 7 | AA73: =(AB75*Setup!$J$17)+(AC75*Setup!$J$18)+(AD75*Setup!$J$19)+(AB74*Setup!$J$22)+(AC74*Setup!$J$23)+(AD74*Setup!$J$24) -> 10 | AB73: =IF(AB72="D",0,IF(F75=Setup!$J$27,1,0)) -> 1 | AC73: =IF(AB72="D",0,IF(F75=Setup!$J$28,1,0)) -> 0 | AD73: =IF(AB72="D",0,IF(F75=Setup!$J$29,1,0)) -> 0 | AJ73: Net | AL73: =AL75-AL74 -> 5 | AM73: =AM75-AM74 -> 4 | AN73: 4 | AO73: 8 | AP73: 6 | AQ73: 6 | AR73: 6 | AS73: 4 | AT73: 7 | AW73: =(AX75*Setup!$J$17)+(AY75*Setup!$J$18)+(AZ75*Setup!$J$19)+(AX74*Setup!$J$22)+(AY74*Setup!$J$23)+(AZ74*Setup!$J$24) -> 14
A74: T | B74: =(AB70)&"-"&(AC70)&"-"&(AD70) -> 0-1-0 | D74: =D72+D73 -> 77 | E74: Total | F74: =F72+F73 -> 76 | G74: =(AB73)&"-"&(AC73)&"-"&(AD73) -> 1-0-0 | H74: T | L74: 130 | M74: ="FT: "&VLOOKUP(L74,GE_Player_ID_Name,2,FALSE) -> FT: Okeefe, Kevin | N74: Strokes | O74: =IF(O75>O68,O75-O68,0) -> 2 | P74: =IF(O74>0,AE74+IF(AF74>=$P67,1,0),0) -> 0 | Q74: =IF(O74>0,AE74+IF(AF74>=$Q67,1,0),0) -> 0 | R74: =IF(O74>0,AE74+IF(AF74>=$R67,1,0),0) -> 1 | S74: =IF(O74>0,AE74+IF(AF74>=$S67,1,0),0) -> 1 | T74: =IF(O74>0,AE74+IF(AF74>=$T67,1,0),0) -> 0 | U74: =IF(O74>0,AE74+IF(AF74>=$U67,1,0),0) -> 0 | V74: =IF(O74>0,AE74+IF(AF74>=$V67,1,0),0) -> 0 | W74: =IF(O74>0,AE74+IF(AF74>=$W67,1,0),0) -> 0 | X74: =IF(O74>0,AE74+IF(AF74>=$X67,1,0),0) -> 0 | AA74: Match | AB74: =IF(AB72="D",0,COUNTIF(Z72:Z72,Setup!$J$22)) -> 0 | AC74: =IF(AB72="D",0,COUNTIF(Z72:Z72,Setup!$J$23)) -> 0 | AD74: =IF(AB72="D",0,COUNTIF(Z72:Z72,Setup!$J$24)) -> 1 | AE74: =IF(O74<9,0,IF(O74<18,1,IF(O74<27,2,3))) -> 0 | AF74: =IF(O74<9,O74,IF(O74<18,O74-9,IF(O74<27,8-18,IF(O74<36,O74-27,0)))) -> 2 | AI74: ="FT: "&VLOOKUP(AH74,GE_Player_ID_Name,2,FALSE) ->  | AJ74: Strokes | AK74: =IF(AK75>AK68,AK75-AK68,0) -> 1 | AL74: =IF(AK74>0,BA74+IF(BB74>=$AL67,1,0),0) -> 0 | AM74: =IF(AK74>0,BA74+IF(BB74>=$AM67,1,0),0) -> 0 | AN74: =IF(AK74>0,BA74+IF(BB74>=$AN67,1,0),0) -> 1 | AO74: =IF(AK74>0,BA74+IF(BB74>=$AO67,1,0),0) -> 0 | AP74: =IF(AK74>0,BA74+IF(BB74>=$AP67,1,0),0) -> 0 | AQ74: =IF(AK74>0,BA74+IF(BB74>=$AQ67,1,0),0) -> 0 | AR74: =IF(AK74>0,BA74+IF(BB74>=$AR67,1,0),0) -> 0 | AS74: =IF(AK74>0,BA74+IF(BB74>=$AS67,1,0),0) -> 0 | AT74: =IF(AK74>0,BA74+IF(BB74>=$AT67,1,0),0) -> 0 | AW74: Match | AX74: =IF(AX72="D",0,COUNTIF(AV72:AV72,Setup!$J$22)) -> 1 | AY74: =IF(AX72="D",0,COUNTIF(AV72:AV72,Setup!$J$23)) -> 0 | AZ74: =IF(AX72="D",0,COUNTIF(AV72:AV72,Setup!$J$24)) -> 0 | BA74: =IF(AK74<9,0,IF(AK74<18,1,IF(AK74<27,2,3))) -> 0 | BB74: =IF(AK74<9,AK74,IF(AK74<18,AK74-9,IF(AK74<27,8-18,IF(AK74<36,AK74-27,0)))) -> 1
B75: ="Match ID - "&Setup!S47 -> Match ID - 316 | D75: =IF(D74<F74,Setup!$J$27,IF(D74=F74,Setup!$J$29,Setup!$J$28)) -> 0 | E75: Points | F75: =IF(F74<D74,Setup!$J$27,IF(F74=D74,Setup!$J$29,Setup!$J$28)) -> 6 | L75: 132 | M75: =VLOOKUP(L75,GE_Player_ID_Name,2,FALSE) -> Weinle, Jerry | N75: =F67 -> 53 | O75: =ROUND(VLOOKUP(L75,GE_Player_ID_Stats,11,FALSE),0) -> 10 | P75: 7 | Q75: 4 | R75: 4 | S75: 4 | T75: 6 | U75: 5 | V75: 5 | W75: 5 | X75: 7 | Y75: =SUM(P75:X75) -> 47 | Z75: =Y75-O75 -> 37 | AA75: Holes | AB75: =IF(AB72="D",0,COUNTIF(P72:X72,Setup!$J$17)) -> 3 | AC75: =IF(AB72="D",0,COUNTIF(P72:X72,Setup!$J$18)) -> 4 | AD75: =IF(AB72="D",0,COUNTIF(P72:X72,Setup!$J$19)) -> 2 | AH75: 129 | AI75: =VLOOKUP(AH75,GE_Player_ID_Name,2,FALSE) -> Pignone, Gary | AJ75: =F67 -> 53 | AK75: =ROUND(VLOOKUP(AH75,GE_Player_ID_Stats,11,FALSE),0) -> 12 | AL75: 5 | AM75: 4 | AN75: 5 | AO75: 8 | AP75: 6 | AQ75: 6 | AR75: 6 | AS75: 4 | AT75: 7 | AU75: =SUM(AL75:AT75) -> 51 | AV75: =AU75-AK75 -> 39 | AW75: Holes | AX75: =IF(AX72="D",0,COUNTIF(AL72:AT72,Setup!$J$17)) -> 3 | AY75: =IF(AX72="D",0,COUNTIF(AL72:AT72,Setup!$J$18)) -> 2 | AZ75: =IF(AX72="D",0,COUNTIF(AL72:AT72,Setup!$J$19)) -> 4
O76: Par | P76: =VLOOKUP($L82,GE_Course_Pars,3,FALSE) -> 4 | Q76: =VLOOKUP($L82,GE_Course_Pars,4,FALSE) -> 3 | R76: =VLOOKUP($L82,GE_Course_Pars,5,FALSE) -> 4 | S76: =VLOOKUP($L82,GE_Course_Pars,6,FALSE) -> 3 | T76: =VLOOKUP($L82,GE_Course_Pars,7,FALSE) -> 4 | U76: =VLOOKUP($L82,GE_Course_Pars,8,FALSE) -> 4 | V76: =VLOOKUP($L82,GE_Course_Pars,9,FALSE) -> 5 | W76: =VLOOKUP($L82,GE_Course_Pars,10,FALSE) -> 4 | X76: =VLOOKUP($L82,GE_Course_Pars,11,FALSE) -> 4 | AK76: Par | AL76: =VLOOKUP($L82,GE_Course_Pars,3,FALSE) -> 4 | AM76: =VLOOKUP($L82,GE_Course_Pars,4,FALSE) -> 3 | AN76: =VLOOKUP($L82,GE_Course_Pars,5,FALSE) -> 4 | AO76: =VLOOKUP($L82,GE_Course_Pars,6,FALSE) -> 3 | AP76: =VLOOKUP($L82,GE_Course_Pars,7,FALSE) -> 4 | AQ76: =VLOOKUP($L82,GE_Course_Pars,8,FALSE) -> 4 | AR76: =VLOOKUP($L82,GE_Course_Pars,9,FALSE) -> 5 | AS76: =VLOOKUP($L82,GE_Course_Pars,10,FALSE) -> 4 | AT76: =VLOOKUP($L82,GE_Course_Pars,11,FALSE) -> 4
A77: =Setup!B21 -> 5:10 | B77: =VLOOKUP(Setup!Q48,GE_Teams_DBID,2,FALSE) -> McAvoys | D77: =Setup!Q48 -> 41 | E77: vs. | F77: =Setup!R48 -> 43 | G77: =VLOOKUP(Setup!R48,GE_Teams_DBID,2,FALSE) -> Stewart Shankers | O77: Hdcp | P77: =LOOKUP(L82,Setup!$A$5:$A$7,Setup!$C$5:$C$7) -> 4 | Q77: =LOOKUP(L82,Setup!$A$5:$A$7,Setup!$D$5:$D$7) -> 6 | R77: =LOOKUP(L82,Setup!$A$5:$A$7,Setup!$E$5:$E$7) -> 7 | S77: =LOOKUP(L82,Setup!$A$5:$A$7,Setup!$F$5:$F$7) -> 8 | T77: =LOOKUP(L82,Setup!$A$5:$A$7,Setup!$G$5:$G$7) -> 9 | U77: =LOOKUP(L82,Setup!$A$5:$A$7,Setup!$H$5:$H$7) -> 1 | V77: =LOOKUP(L82,Setup!$A$5:$A$7,Setup!$I$5:$I$7) -> 3 | W77: =LOOKUP(L82,Setup!$A$5:$A$7,Setup!$J$5:$J$7) -> 5 | X77: =LOOKUP(L82,Setup!$A$5:$A$7,Setup!$K$5:$K$7) -> 2 | AK77: Hdcp | AL77: =LOOKUP(AH82,Setup!$A$5:$A$7,Setup!$C$5:$C$7) -> 4 | AM77: =LOOKUP(AH82,Setup!$A$5:$A$7,Setup!$D$5:$D$7) -> 6 | AN77: =LOOKUP(AH82,Setup!$A$5:$A$7,Setup!$E$5:$E$7) -> 7 | AO77: =LOOKUP(AH82,Setup!$A$5:$A$7,Setup!$F$5:$F$7) -> 8 | AP77: =LOOKUP(AH82,Setup!$A$5:$A$7,Setup!$G$5:$G$7) -> 9 | AQ77: =LOOKUP(AH82,Setup!$A$5:$A$7,Setup!$H$5:$H$7) -> 1 | AR77: =LOOKUP(AH82,Setup!$A$5:$A$7,Setup!$I$5:$I$7) -> 3 | AS77: =LOOKUP(AH82,Setup!$A$5:$A$7,Setup!$J$5:$J$7) -> 5 | AT77: =LOOKUP(AH82,Setup!$A$5:$A$7,Setup!$K$5:$K$7) -> 2
A78: =VLOOKUP(Setup!Q48,GE_Team_PlayerIDs_1, 2,FALSE) -> 98 | B78: =VLOOKUP(A78,GE_Player_ID_Name,2,FALSE) -> Doll, Mike | C78: =ROUND(VLOOKUP(A78,GE_Player_ID_Stats,10,FALSE),1) -> 56 | D78: =VLOOKUP(A78,GE_Player_ID_Stats,11,FALSE) -> 16.8 | H78: =IF(F78="","",ROUND(VLOOKUP(F78,GE_Player_ID_Stats,10,FALSE),1)) ->  | I78: =IF(F78="","",VLOOKUP(F78,GE_Player_ID_Stats,11,FALSE)) ->  | L78: 99 | M78: =VLOOKUP(L78,GE_Player_ID_Name,2,FALSE) -> Recher, Jason | N78: =D77 -> 41 | O78: =ROUND(VLOOKUP(L78,GE_Player_ID_Stats,11,FALSE),0) -> 15 | P78: 7 | Q78: 5 | R78: 7 | S78: 4 | T78: 6 | U78: 8 | V78: 8 | W78: 5 | X78: 6 | Y78: =SUM(P78:X78) -> 56 | Z78: =Y78-O78 -> 41 | AA78: Holes | AB78: =IF(AB81="D",0,COUNTIF(P81:X81,Setup!$J$17)) -> 5 | AC78: =IF(AB81="D",0,COUNTIF(P81:X81,Setup!$J$18)) -> 3 | AD78: =IF(AB81="D",0,COUNTIF(P81:X81,Setup!$J$19)) -> 1 | AH78: 98 | AI78: =VLOOKUP(AH78,GE_Player_ID_Name,2,FALSE) -> Doll, Mike | AJ78: =D77 -> 41 | AK78: =ROUND(VLOOKUP(AH78,GE_Player_ID_Stats,11,FALSE),0) -> 17 | AL78: 8 | AM78: 5 | AN78: 7 | AO78: 5 | AP78: 5 | AQ78: 7 | AR78: 6 | AS78: 6 | AT78: 7 | AU78: =SUM(AL78:AT78) -> 56 | AV78: =AU78-AK78 -> 39 | AW78: Holes | AX78: =IF(AX81="D",0,COUNTIF(AL81:AT81,Setup!$J$17)) -> 3 | AY78: =IF(AX81="D",0,COUNTIF(AL81:AT81,Setup!$J$18)) -> 2 | AZ78: =IF(AX81="D",0,COUNTIF(AL81:AT81,Setup!$J$19)) -> 4
A79: =VLOOKUP(Setup!Q48,GE_Team_PlayerIDs_1, 4,FALSE) -> 99 | B79: Recher, Jason | C79: =ROUND(VLOOKUP(A79,GE_Player_ID_Stats,10,FALSE),1) -> 53.3 | D79: =VLOOKUP(A79,GE_Player_ID_Stats,11,FALSE) -> 14.66666667 | F79: =IF(G79<>"",VLOOKUP(G79,GE_SubList,2,FALSE),"") ->  | H79: =IF(F79="","",ROUND(VLOOKUP(F79,GE_Player_ID_Stats,10,FALSE),1)) ->  | I79: =IF(F79="","",VLOOKUP(F79,GE_Player_ID_Stats,11,FALSE)) ->  | M79: ="FT: "&VLOOKUP(L79,GE_Player_ID_Name,2,FALSE) ->  | N79: Strokes | O79: =IF(O78>O85,O78-O85,0) -> 1 | P79: =IF(O79>0,AE79+IF(AF79>=$P77,1,0),0) -> 0 | Q79: =IF(O79>0,AE79+IF(AF79>=$Q77,1,0),0) -> 0 | R79: =IF(O79>0,AE79+IF(AF79>=$R77,1,0),0) -> 0 | S79: =IF(O79>0,AE79+IF(AF79>=$S77,1,0),0) -> 0 | T79: =IF(O79>0,AE79+IF(AF79>=$T77,1,0),0) -> 0 | U79: =IF(O79>0,AE79+IF(AF79>=$U77,1,0),0) -> 1 | V79: =IF(O79>0,AE79+IF(AF79>=$V77,1,0),0) -> 0 | W79: =IF(O79>0,AE79+IF(AF79>=$W77,1,0),0) -> 0 | X79: =IF(O79>0,AE79+IF(AF79>=$X77,1,0),0) -> 0 | AA79: Match | AB79: =IF(AB81="D",0,COUNTIF(Z81:Z81,Setup!$J$22)) -> 0 | AC79: =IF(AB81="D",0,COUNTIF(Z81:Z81,Setup!$J$23)) -> 1 | AD79: =IF(AB81="D",0,COUNTIF(Z81:Z81,Setup!$J$24)) -> 0 | AE79: =IF(O79<9,0,IF(O79<18,1,IF(O79<27,2,3))) -> 0 | AF79: =IF(O79<9,O79,IF(O79<18,O79-9,IF(O79<27,8-18,IF(O79<36,O79-27,0)))) -> 1 | AI79: ="FT: "&VLOOKUP(AH79,GE_Player_ID_Name,2,FALSE) ->  | AJ79: Strokes | AK79: =IF(AK78>AK85,AK78-AK85,0) -> 0 | AL79: =IF(AK79>0,BA79+IF(BB79>=$AL77,1,0),0) -> 0 | AM79: =IF(AK79>0,BA79+IF(BB79>=$AM77,1,0),0) -> 0 | AN79: =IF(AK79>0,BA79+IF(BB79>=$AN77,1,0),0) -> 0 | AO79: =IF(AK79>0,BA79+IF(BB79>=$AO77,1,0),0) -> 0 | AP79: =IF(AK79>0,BA79+IF(BB79>=$AP77,1,0),0) -> 0 | AQ79: =IF(AK79>0,BA79+IF(BB79>=$AQ77,1,0),0) -> 0 | AR79: =IF(AK79>0,BA79+IF(BB79>=$AR77,1,0),0) -> 0 | AS79: =IF(AK79>0,BA79+IF(BB79>=$AS77,1,0),0) -> 0 | AT79: =IF(AK79>0,BA79+IF(BB79>=$AT77,1,0),0) -> 0 | AW79: Match | AX79: =IF(AX81="D",0,COUNTIF(AV81:AV81,Setup!$J$22)) -> 1 | AY79: =IF(AX81="D",0,COUNTIF(AV81:AV81,Setup!$J$23)) -> 0 | AZ79: =IF(AX81="D",0,COUNTIF(AV81:AV81,Setup!$J$24)) -> 0 | BA79: =IF(AK79<9,0,IF(AK79<18,1,IF(AK79<27,2,3))) -> 0 | BB79: =IF(AK79<9,AK79,IF(AK79<18,AK79-9,IF(AK79<27,8-18,IF(AK79<36,AK79-27,0)))) -> 0
A80: =VLOOKUP(Setup!R48,GE_Team_PlayerIDs_1, 2,FALSE) -> 105 | B80: Stewart, Brain | C80: =ROUND(VLOOKUP(A80,GE_Player_ID_Stats,10,FALSE),1) -> 52.5 | D80: =VLOOKUP(A80,GE_Player_ID_Stats,11,FALSE) -> 14 | F80: =IF(G80<>"",VLOOKUP(G80,GE_SubList,2,FALSE),"") ->  | H80: =IF(F80="","",ROUND(VLOOKUP(F80,GE_Player_ID_Stats,10,FALSE),1)) ->  | I80: =IF(F80="","",VLOOKUP(F80,GE_Player_ID_Stats,11,FALSE)) ->  | N80: Net | P80: =P78-P79 -> 7 | Q80: =Q78-Q79 -> 5 | R80: 7 | S80: 4 | T80: 6 | U80: 7 | V80: 8 | W80: 5 | X80: 6 | AA80: =(AB78*Setup!$J$17)+(AC78*Setup!$J$18)+(AD78*Setup!$J$19)+(AB79*Setup!$J$22)+(AC79*Setup!$J$23)+(AD79*Setup!$J$24) -> 11 | AB80: =IF(AB81="D",0,IF(D85=Setup!$J$27,1,0)) -> 1 | AC80: =IF(AB81="D",0,IF(D85=Setup!$J$28,1,0)) -> 0 | AD80: =IF(AB81="D",0,IF(D85=Setup!$J$29,1,0)) -> 0 | AJ80: Net | AL80: =AL78-AL79 -> 8 | AM80: =AM78-AM79 -> 5 | AN80: 7 | AO80: 5 | AP80: 5 | AQ80: 7 | AR80: 6 | AS80: 6 | AT80: 7 | AW80: =(AX78*Setup!$J$17)+(AY78*Setup!$J$18)+(AZ78*Setup!$J$19)+(AX79*Setup!$J$22)+(AY79*Setup!$J$23)+(AZ79*Setup!$J$24) -> 14
A81: =VLOOKUP(Setup!R48,GE_Team_PlayerIDs_1, 4,FALSE) -> 106 | B81: Stewart, Drake | C81: =ROUND(VLOOKUP(A81,GE_Player_ID_Stats,10,FALSE),1) -> 56.3 | D81: =VLOOKUP(A81,GE_Player_ID_Stats,11,FALSE) -> 17 | H81: =IF(F81="","",ROUND(VLOOKUP(F81,GE_Player_ID_Stats,10,FALSE),1)) ->  | I81: =IF(F81="","",VLOOKUP(F81,GE_Player_ID_Stats,11,FALSE)) ->  | L81: A | N81: Points | P81: =IF(P80<P83,Setup!$J$17,IF(P80=P83,Setup!$J$19,Setup!$J$18)) -> 0 | Q81: =IF(Q80<Q83,Setup!$J$17,IF(Q80=Q83,Setup!$J$19,Setup!$J$18)) -> 2 | R81: =IF(R80<R83,Setup!$J$17,IF(R80=R83,Setup!$J$19,Setup!$J$18)) -> 0 | S81: =IF(S80<S83,Setup!$J$17,IF(S80=S83,Setup!$J$19,Setup!$J$18)) -> 2 | T81: =IF(T80<T83,Setup!$J$17,IF(T80=T83,Setup!$J$19,Setup!$J$18)) -> 0 | U81: =IF(U80<U83,Setup!$J$17,IF(U80=U83,Setup!$J$19,Setup!$J$18)) -> 1 | V81: =IF(V80<V83,Setup!$J$17,IF(V80=V83,Setup!$J$19,Setup!$J$18)) -> 2 | W81: =IF(W80<W83,Setup!$J$17,IF(W80=W83,Setup!$J$19,Setup!$J$18)) -> 2 | X81: =IF(X80<X83,Setup!$J$17,IF(X80=X83,Setup!$J$19,Setup!$J$18)) -> 2 | Z81: =IF(Z78<Z85,Setup!$J$22,IF(Z78=Z85,Setup!$J$24,Setup!$J$23)) -> 0 | AA81: =IF(AB81="P","","DNP") ->  | AB81: P | AH81: B | AJ81: Points | AL81: =IF(AL80<AL83,Setup!$J$17,IF(AL80=AL83,Setup!$J$19,Setup!$J$18)) -> 1 | AM81: =IF(AM80<AM83,Setup!$J$17,IF(AM80=AM83,Setup!$J$19,Setup!$J$18)) -> 1 | AN81: =IF(AN80<AN83,Setup!$J$17,IF(AN80=AN83,Setup!$J$19,Setup!$J$18)) -> 2 | AO81: =IF(AO80<AO83,Setup!$J$17,IF(AO80=AO83,Setup!$J$19,Setup!$J$18)) -> 1 | AP81: =IF(AP80<AP83,Setup!$J$17,IF(AP80=AP83,Setup!$J$19,Setup!$J$18)) -> 2 | AQ81: =IF(AQ80<AQ83,Setup!$J$17,IF(AQ80=AQ83,Setup!$J$19,Setup!$J$18)) -> 1 | AR81: =IF(AR80<AR83,Setup!$J$17,IF(AR80=AR83,Setup!$J$19,Setup!$J$18)) -> 2 | AS81: =IF(AS80<AS83,Setup!$J$17,IF(AS80=AS83,Setup!$J$19,Setup!$J$18)) -> 0 | AT81: =IF(AT80<AT83,Setup!$J$17,IF(AT80=AT83,Setup!$J$19,Setup!$J$18)) -> 0 | AV81: =IF(AV78<AV85,Setup!$J$22,IF(AV78=AV85,Setup!$J$24,Setup!$J$23)) -> 4 | AW81: =IF(AX81="P","","DNP") ->  | AX81: P
A82: H | B82: =(AB78+AX78)&"-"&(AC78+AY78)&"-"&(AD78+AZ78) -> 8-5-5 | D82: =Z78 -> 41 | E82: A Net | F82: =Z85 -> 40 | G82: =(AB85+AX85)&"-"&(AC85+AY85)&"-"&(AD85+AZ85) -> 5-8-5 | H82: H | L82: 2 | M82: =VLOOKUP(L82,GE_SideNames,2,FALSE) -> Back 9 | N82: Points | P82: =IF(P83<P80,Setup!$J$17,IF(P83=P80,Setup!$J$19,Setup!$J$18)) -> 2 | Q82: =IF(Q83<Q80,Setup!$J$17,IF(Q83=Q80,Setup!$J$19,Setup!$J$18)) -> 0 | R82: =IF(R83<R80,Setup!$J$17,IF(R83=R80,Setup!$J$19,Setup!$J$18)) -> 2 | S82: =IF(S83<S80,Setup!$J$17,IF(S83=S80,Setup!$J$19,Setup!$J$18)) -> 0 | T82: =IF(T83<T80,Setup!$J$17,IF(T83=T80,Setup!$J$19,Setup!$J$18)) -> 2 | U82: =IF(U83<U80,Setup!$J$17,IF(U83=U80,Setup!$J$19,Setup!$J$18)) -> 1 | V82: =IF(V83<V80,Setup!$J$17,IF(V83=V80,Setup!$J$19,Setup!$J$18)) -> 0 | W82: =IF(W83<W80,Setup!$J$17,IF(W83=W80,Setup!$J$19,Setup!$J$18)) -> 0 | X82: =IF(X83<X80,Setup!$J$17,IF(X83=X80,Setup!$J$19,Setup!$J$18)) -> 0 | Z82: =IF(Z85<Z78,Setup!$J$22,IF(Z85=Z78,Setup!$J$24,Setup!$J$23)) -> 4 | AA82: =IF(AB82="P","","DNP") ->  | AB82: P | AH82: 2 | AI82: =VLOOKUP(AH82,GE_SideNames,2,FALSE) -> Back 9 | AJ82: Points | AL82: =IF(AL83<AL80,Setup!$J$17,IF(AL83=AL80,Setup!$J$19,Setup!$J$18)) -> 1 | AM82: =IF(AM83<AM80,Setup!$J$17,IF(AM83=AM80,Setup!$J$19,Setup!$J$18)) -> 1 | AN82: =IF(AN83<AN80,Setup!$J$17,IF(AN83=AN80,Setup!$J$19,Setup!$J$18)) -> 0 | AO82: =IF(AO83<AO80,Setup!$J$17,IF(AO83=AO80,Setup!$J$19,Setup!$J$18)) -> 1 | AP82: =IF(AP83<AP80,Setup!$J$17,IF(AP83=AP80,Setup!$J$19,Setup!$J$18)) -> 0 | AQ82: =IF(AQ83<AQ80,Setup!$J$17,IF(AQ83=AQ80,Setup!$J$19,Setup!$J$18)) -> 1 | AR82: =IF(AR83<AR80,Setup!$J$17,IF(AR83=AR80,Setup!$J$19,Setup!$J$18)) -> 0 | AS82: =IF(AS83<AS80,Setup!$J$17,IF(AS83=AS80,Setup!$J$19,Setup!$J$18)) -> 2 | AT82: =IF(AT83<AT80,Setup!$J$17,IF(AT83=AT80,Setup!$J$19,Setup!$J$18)) -> 2 | AV82: =IF(AV85<AV78,Setup!$J$22,IF(AV85=AV78,Setup!$J$24,Setup!$J$23)) -> 0 | AW82: =IF(AX82="P","","DNP") ->  | AX82: P
A83: M | B83: =(AB79+AX79)&"-"&(AC79+AY79)&"-"&(AD79+AZ79) -> 1-1-0 | D83: =AV78 -> 39 | E83: B Net | F83: =AV85 -> 42 | G83: =(AB84+AX84)&"-"&(AC84+AY84)&"-"&(AD84+AZ84) -> 1-1-0 | H83: M | N83: Net | P83: =P85-P84 -> 5 | Q83: =Q85-Q84 -> 6 | R83: 5 | S83: 5 | T83: 4 | U83: 7 | V83: 9 | W83: 6 | X83: 7 | AA83: =(AB85*Setup!$J$17)+(AC85*Setup!$J$18)+(AD85*Setup!$J$19)+(AB84*Setup!$J$22)+(AC84*Setup!$J$23)+(AD84*Setup!$J$24) -> 11 | AB83: =IF(AB82="D",0,IF(F85=Setup!$J$27,1,0)) -> 0 | AC83: =IF(AB82="D",0,IF(F85=Setup!$J$28,1,0)) -> 1 | AD83: =IF(AB82="D",0,IF(F85=Setup!$J$29,1,0)) -> 0 | AJ83: Net | AL83: =AL85-AL84 -> 8 | AM83: =AM85-AM84 -> 5 | AN83: 8 | AO83: 5 | AP83: 8 | AQ83: 7 | AR83: 9 | AS83: 5 | AT83: 4 | AW83: =(AX85*Setup!$J$17)+(AY85*Setup!$J$18)+(AZ85*Setup!$J$19)+(AX84*Setup!$J$22)+(AY84*Setup!$J$23)+(AZ84*Setup!$J$24) -> 8
A84: T | B84: =(AB80)&"-"&(AC80)&"-"&(AD80) -> 1-0-0 | D84: =D82+D83 -> 80 | E84: Total | F84: =F82+F83 -> 82 | G84: =(AB83)&"-"&(AC83)&"-"&(AD83) -> 0-1-0 | H84: T | M84: ="FT: "&VLOOKUP(L84,GE_Player_ID_Name,2,FALSE) ->  | N84: Strokes | O84: =IF(O85>O78,O85-O78,0) -> 0 | P84: =IF(O84>0,AE84+IF(AF84>=$P77,1,0),0) -> 0 | Q84: =IF(O84>0,AE84+IF(AF84>=$Q77,1,0),0) -> 0 | R84: =IF(O84>0,AE84+IF(AF84>=$R77,1,0),0) -> 0 | S84: =IF(O84>0,AE84+IF(AF84>=$S77,1,0),0) -> 0 | T84: =IF(O84>0,AE84+IF(AF84>=$T77,1,0),0) -> 0 | U84: =IF(O84>0,AE84+IF(AF84>=$U77,1,0),0) -> 0 | V84: =IF(O84>0,AE84+IF(AF84>=$V77,1,0),0) -> 0 | W84: =IF(O84>0,AE84+IF(AF84>=$W77,1,0),0) -> 0 | X84: =IF(O84>0,AE84+IF(AF84>=$X77,1,0),0) -> 0 | AA84: Match | AB84: =IF(AB82="D",0,COUNTIF(Z82:Z82,Setup!$J$22)) -> 1 | AC84: =IF(AB82="D",0,COUNTIF(Z82:Z82,Setup!$J$23)) -> 0 | AD84: =IF(AB82="D",0,COUNTIF(Z82:Z82,Setup!$J$24)) -> 0 | AE84: =IF(O84<9,0,IF(O84<18,1,IF(O84<27,2,3))) -> 0 | AF84: =IF(O84<9,O84,IF(O84<18,O84-9,IF(O84<27,8-18,IF(O84<36,O84-27,0)))) -> 0 | AI84: ="FT: "&VLOOKUP(AH84,GE_Player_ID_Name,2,FALSE) ->  | AJ84: Strokes | AK84: =IF(AK85>AK78,AK85-AK78,0) -> 0 | AL84: =IF(AK84>0,BA84+IF(BB84>=$AL77,1,0),0) -> 0 | AM84: =IF(AK84>0,BA84+IF(BB84>=$AM77,1,0),0) -> 0 | AN84: =IF(AK84>0,BA84+IF(BB84>=$AN77,1,0),0) -> 0 | AO84: =IF(AK84>0,BA84+IF(BB84>=$AO77,1,0),0) -> 0 | AP84: =IF(AK84>0,BA84+IF(BB84>=$AP77,1,0),0) -> 0 | AQ84: =IF(AK84>0,BA84+IF(BB84>=$AQ77,1,0),0) -> 0 | AR84: =IF(AK84>0,BA84+IF(BB84>=$AR77,1,0),0) -> 0 | AS84: =IF(AK84>0,BA84+IF(BB84>=$AS77,1,0),0) -> 0 | AT84: =IF(AK84>0,BA84+IF(BB84>=$AT77,1,0),0) -> 0 | AW84: Match | AX84: =IF(AX82="D",0,COUNTIF(AV82:AV82,Setup!$J$22)) -> 0 | AY84: =IF(AX82="D",0,COUNTIF(AV82:AV82,Setup!$J$23)) -> 1 | AZ84: =IF(AX82="D",0,COUNTIF(AV82:AV82,Setup!$J$24)) -> 0 | BA84: =IF(AK84<9,0,IF(AK84<18,1,IF(AK84<27,2,3))) -> 0 | BB84: =IF(AK84<9,AK84,IF(AK84<18,AK84-9,IF(AK84<27,8-18,IF(AK84<36,AK84-27,0)))) -> 0
B85: ="Match ID - "&Setup!S48 -> Match ID - 317 | D85: =IF(D84<F84,Setup!$J$27,IF(D84=F84,Setup!$J$29,Setup!$J$28)) -> 6 | E85: Points | F85: =IF(F84<D84,Setup!$J$27,IF(F84=D84,Setup!$J$29,Setup!$J$28)) -> 0 | L85: 105 | M85: =VLOOKUP(L85,GE_Player_ID_Name,2,FALSE) -> Stewart, Brain | N85: =F77 -> 43 | O85: =ROUND(VLOOKUP(L85,GE_Player_ID_Stats,11,FALSE),0) -> 14 | P85: 5 | Q85: 6 | R85: 5 | S85: 5 | T85: 4 | U85: 7 | V85: 9 | W85: 6 | X85: 7 | Y85: =SUM(P85:X85) -> 54 | Z85: =Y85-O85 -> 40 | AA85: Holes | AB85: =IF(AB82="D",0,COUNTIF(P82:X82,Setup!$J$17)) -> 3 | AC85: =IF(AB82="D",0,COUNTIF(P82:X82,Setup!$J$18)) -> 5 | AD85: =IF(AB82="D",0,COUNTIF(P82:X82,Setup!$J$19)) -> 1 | AH85: 106 | AI85: =VLOOKUP(AH85,GE_Player_ID_Name,2,FALSE) -> Stewart, Drake | AJ85: =F77 -> 43 | AK85: =ROUND(VLOOKUP(AH85,GE_Player_ID_Stats,11,FALSE),0) -> 17 | AL85: 8 | AM85: 5 | AN85: 8 | AO85: 5 | AP85: 8 | AQ85: 7 | AR85: 9 | AS85: 5 | AT85: 4 | AU85: =SUM(AL85:AT85) -> 59 | AV85: =AU85-AK85 -> 42 | AW85: Holes | AX85: =IF(AX82="D",0,COUNTIF(AL82:AT82,Setup!$J$17)) -> 2 | AY85: =IF(AX82="D",0,COUNTIF(AL82:AT82,Setup!$J$18)) -> 3 | AZ85: =IF(AX82="D",0,COUNTIF(AL82:AT82,Setup!$J$19)) -> 4
O86: Par | P86: =VLOOKUP($L92,GE_Course_Pars,3,FALSE) -> 4 | Q86: =VLOOKUP($L92,GE_Course_Pars,4,FALSE) -> 3 | R86: =VLOOKUP($L92,GE_Course_Pars,5,FALSE) -> 4 | S86: =VLOOKUP($L92,GE_Course_Pars,6,FALSE) -> 4 | T86: =VLOOKUP($L92,GE_Course_Pars,7,FALSE) -> 4 | U86: =VLOOKUP($L92,GE_Course_Pars,8,FALSE) -> 4 | V86: =VLOOKUP($L92,GE_Course_Pars,9,FALSE) -> 4 | W86: =VLOOKUP($L92,GE_Course_Pars,10,FALSE) -> 3 | X86: =VLOOKUP($L92,GE_Course_Pars,11,FALSE) -> 5 | AK86: Par | AL86: =VLOOKUP($L92,GE_Course_Pars,3,FALSE) -> 4 | AM86: =VLOOKUP($L92,GE_Course_Pars,4,FALSE) -> 3 | AN86: =VLOOKUP($L92,GE_Course_Pars,5,FALSE) -> 4 | AO86: =VLOOKUP($L92,GE_Course_Pars,6,FALSE) -> 4 | AP86: =VLOOKUP($L92,GE_Course_Pars,7,FALSE) -> 4 | AQ86: =VLOOKUP($L92,GE_Course_Pars,8,FALSE) -> 4 | AR86: =VLOOKUP($L92,GE_Course_Pars,9,FALSE) -> 4 | AS86: =VLOOKUP($L92,GE_Course_Pars,10,FALSE) -> 3 | AT86: =VLOOKUP($L92,GE_Course_Pars,11,FALSE) -> 5
A87: =Setup!B21 -> 5:10 | B87: =VLOOKUP(Setup!Q49,GE_Teams_DBID,2,FALSE) -> Shootist 2 | D87: =Setup!Q49 -> 52 | E87: vs. | F87: =Setup!R49 -> 44 | G87: =VLOOKUP(Setup!R49,GE_Teams_DBID,2,FALSE) -> Delivery Divots | O87: Hdcp | P87: =LOOKUP(L92,Setup!$A$5:$A$7,Setup!$C$5:$C$7) -> 8 | Q87: =LOOKUP(L92,Setup!$A$5:$A$7,Setup!$D$5:$D$7) -> 6 | R87: =LOOKUP(L92,Setup!$A$5:$A$7,Setup!$E$5:$E$7) -> 1 | S87: =LOOKUP(L92,Setup!$A$5:$A$7,Setup!$F$5:$F$7) -> 2 | T87: =LOOKUP(L92,Setup!$A$5:$A$7,Setup!$G$5:$G$7) -> 9 | U87: =LOOKUP(L92,Setup!$A$5:$A$7,Setup!$H$5:$H$7) -> 5 | V87: =LOOKUP(L92,Setup!$A$5:$A$7,Setup!$I$5:$I$7) -> 4 | W87: =LOOKUP(L92,Setup!$A$5:$A$7,Setup!$J$5:$J$7) -> 7 | X87: =LOOKUP(L92,Setup!$A$5:$A$7,Setup!$K$5:$K$7) -> 3 | AK87: Hdcp | AL87: =LOOKUP(AH92,Setup!$A$5:$A$7,Setup!$C$5:$C$7) -> 8 | AM87: =LOOKUP(AH92,Setup!$A$5:$A$7,Setup!$D$5:$D$7) -> 6 | AN87: =LOOKUP(AH92,Setup!$A$5:$A$7,Setup!$E$5:$E$7) -> 1 | AO87: =LOOKUP(AH92,Setup!$A$5:$A$7,Setup!$F$5:$F$7) -> 2 | AP87: =LOOKUP(AH92,Setup!$A$5:$A$7,Setup!$G$5:$G$7) -> 9 | AQ87: =LOOKUP(AH92,Setup!$A$5:$A$7,Setup!$H$5:$H$7) -> 5 | AR87: =LOOKUP(AH92,Setup!$A$5:$A$7,Setup!$I$5:$I$7) -> 4 | AS87: =LOOKUP(AH92,Setup!$A$5:$A$7,Setup!$J$5:$J$7) -> 7 | AT87: =LOOKUP(AH92,Setup!$A$5:$A$7,Setup!$K$5:$K$7) -> 3
A88: =VLOOKUP(Setup!Q49,GE_Team_PlayerIDs_1, 2,FALSE) -> 127 | B88: =VLOOKUP(A88,GE_Player_ID_Name,2,FALSE) -> Dudley, Stan | C88: =ROUND(VLOOKUP(A88,GE_Player_ID_Stats,10,FALSE),1) -> 51 | D88: =VLOOKUP(A88,GE_Player_ID_Stats,11,FALSE) -> 12.8 | F88: =IF(G88<>"",VLOOKUP(G88,GE_SubList,2,FALSE),"") -> 128 | G88: Wisniewski, Karl | H88: =IF(F88="","",ROUND(VLOOKUP(F88,GE_Player_ID_Stats,10,FALSE),1)) -> 51.3 | I88: =IF(F88="","",VLOOKUP(F88,GE_Player_ID_Stats,11,FALSE)) -> 13.06666667 | L88: 126 | M88: =VLOOKUP(L88,GE_Player_ID_Name,2,FALSE) -> Saum, Craig | N88: =D87 -> 52 | O88: =ROUND(VLOOKUP(L88,GE_Player_ID_Stats,11,FALSE),0) -> 7 | P88: 4 | Q88: 3 | R88: 6 | S88: 5 | T88: 5 | U88: 8 | V88: 6 | W88: 3 | X88: 6 | Y88: =SUM(P88:X88) -> 46 | Z88: =Y88-O88 -> 39 | AA88: Holes | AB88: =IF(AB91="D",0,COUNTIF(P91:X91,Setup!$J$17)) -> 4 | AC88: =IF(AB91="D",0,COUNTIF(P91:X91,Setup!$J$18)) -> 3 | AD88: =IF(AB91="D",0,COUNTIF(P91:X91,Setup!$J$19)) -> 2 | AH88: 128 | AI88: =VLOOKUP(AH88,GE_Player_ID_Name,2,FALSE) -> Wisniewski, Karl | AJ88: =D87 -> 52 | AK88: =ROUND(VLOOKUP(AH88,GE_Player_ID_Stats,11,FALSE),0) -> 13 | AL88: 5 | AM88: 4 | AN88: 6 | AO88: 8 | AP88: 6 | AQ88: 5 | AR88: 5 | AS88: 5 | AT88: 8 | AU88: =SUM(AL88:AT88) -> 52 | AV88: =AU88-AK88 -> 39 | AW88: Holes | AX88: =IF(AX91="D",0,COUNTIF(AL91:AT91,Setup!$J$17)) -> 4 | AY88: =IF(AX91="D",0,COUNTIF(AL91:AT91,Setup!$J$18)) -> 5 | AZ88: =IF(AX91="D",0,COUNTIF(AL91:AT91,Setup!$J$19)) -> 0 | DE88: 8
A89: =VLOOKUP(Setup!Q49,GE_Team_PlayerIDs_1, 4,FALSE) -> 126 | B89: Saum, Craig | C89: =ROUND(VLOOKUP(A89,GE_Player_ID_Stats,10,FALSE),1) -> 44 | D89: =VLOOKUP(A89,GE_Player_ID_Stats,11,FALSE) -> 7.2 | H89: =IF(F89="","",ROUND(VLOOKUP(F89,GE_Player_ID_Stats,10,FALSE),1)) ->  | I89: =IF(F89="","",VLOOKUP(F89,GE_Player_ID_Stats,11,FALSE)) ->  | M89: ="FT: "&VLOOKUP(L89,GE_Player_ID_Name,2,FALSE) ->  | N89: Strokes | O89: =IF(O88>O95,O88-O95,0) -> 0 | P89: =IF(O89>0,AE89+IF(AF89>=$P87,1,0),0) -> 0 | Q89: =IF(O89>0,AE89+IF(AF89>=$Q87,1,0),0) -> 0 | R89: =IF(O89>0,AE89+IF(AF89>=$R87,1,0),0) -> 0 | S89: =IF(O89>0,AE89+IF(AF89>=$S87,1,0),0) -> 0 | T89: =IF(O89>0,AE89+IF(AF89>=$T87,1,0),0) -> 0 | U89: =IF(O89>0,AE89+IF(AF89>=$U87,1,0),0) -> 0 | V89: =IF(O89>0,AE89+IF(AF89>=$V87,1,0),0) -> 0 | W89: =IF(O89>0,AE89+IF(AF89>=$W87,1,0),0) -> 0 | X89: =IF(O89>0,AE89+IF(AF89>=$X87,1,0),0) -> 0 | AA89: Match | AB89: =IF(AB91="D",0,COUNTIF(Z91:Z91,Setup!$J$22)) -> 0 | AC89: =IF(AB91="D",0,COUNTIF(Z91:Z91,Setup!$J$23)) -> 1 | AD89: =IF(AB91="D",0,COUNTIF(Z91:Z91,Setup!$J$24)) -> 0 | AE89: =IF(O89<9,0,IF(O89<18,1,IF(O89<27,2,3))) -> 0 | AF89: =IF(O89<9,O89,IF(O89<18,O89-9,IF(O89<27,8-18,IF(O89<36,O89-27,0)))) -> 0 | AH89: 127 | AI89: ="FT: "&VLOOKUP(AH89,GE_Player_ID_Name,2,FALSE) -> FT: Dudley, Stan | AJ89: Strokes | AK89: =IF(AK88>AK95,AK88-AK95,0) -> 0 | AL89: =IF(AK89>0,BA89+IF(BB89>=$AL87,1,0),0) -> 0 | AM89: =IF(AK89>0,BA89+IF(BB89>=$AM87,1,0),0) -> 0 | AN89: =IF(AK89>0,BA89+IF(BB89>=$AN87,1,0),0) -> 0 | AO89: =IF(AK89>0,BA89+IF(BB89>=$AO87,1,0),0) -> 0 | AP89: =IF(AK89>0,BA89+IF(BB89>=$AP87,1,0),0) -> 0 | AQ89: =IF(AK89>0,BA89+IF(BB89>=$AQ87,1,0),0) -> 0 | AR89: =IF(AK89>0,BA89+IF(BB89>=$AR87,1,0),0) -> 0 | AS89: =IF(AK89>0,BA89+IF(BB89>=$AS87,1,0),0) -> 0 | AT89: =IF(AK89>0,BA89+IF(BB89>=$AT87,1,0),0) -> 0 | AW89: Match | AX89: =IF(AX91="D",0,COUNTIF(AV91:AV91,Setup!$J$22)) -> 1 | AY89: =IF(AX91="D",0,COUNTIF(AV91:AV91,Setup!$J$23)) -> 0 | AZ89: =IF(AX91="D",0,COUNTIF(AV91:AV91,Setup!$J$24)) -> 0 | BA89: =IF(AK89<9,0,IF(AK89<18,1,IF(AK89<27,2,3))) -> 0 | BB89: =IF(AK89<9,AK89,IF(AK89<18,AK89-9,IF(AK89<27,8-18,IF(AK89<36,AK89-27,0)))) -> 0
A90: =VLOOKUP(Setup!R49,GE_Team_PlayerIDs_1, 2,FALSE) -> 107 | B90: Metzger, Mike | C90: =ROUND(VLOOKUP(A90,GE_Player_ID_Stats,10,FALSE),1) -> 46.7 | D90: =VLOOKUP(A90,GE_Player_ID_Stats,11,FALSE) -> 9.333333333 | H90: =IF(F90="","",ROUND(VLOOKUP(F90,GE_Player_ID_Stats,10,FALSE),1)) ->  | I90: =IF(F90="","",VLOOKUP(F90,GE_Player_ID_Stats,11,FALSE)) ->  | N90: Net | P90: =P88-P89 -> 4 | Q90: =Q88-Q89 -> 3 | R90: 6 | S90: 5 | T90: 5 | U90: 8 | V90: 6 | W90: 3 | X90: 6 | AA90: =(AB88*Setup!$J$17)+(AC88*Setup!$J$18)+(AD88*Setup!$J$19)+(AB89*Setup!$J$22)+(AC89*Setup!$J$23)+(AD89*Setup!$J$24) -> 10 | AB90: =IF(AB91="D",0,IF(D95=Setup!$J$27,1,0)) -> 0 | AC90: =IF(AB91="D",0,IF(D95=Setup!$J$28,1,0)) -> 0 | AD90: =IF(AB91="D",0,IF(D95=Setup!$J$29,1,0)) -> 1 | AJ90: Net | AL90: =AL88-AL89 -> 5 | AM90: =AM88-AM89 -> 4 | AN90: 6 | AO90: 8 | AP90: 6 | AQ90: 5 | AR90: 5 | AS90: 5 | AT90: 8 | AW90: =(AX88*Setup!$J$17)+(AY88*Setup!$J$18)+(AZ88*Setup!$J$19)+(AX89*Setup!$J$22)+(AY89*Setup!$J$23)+(AZ89*Setup!$J$24) -> 12
A91: =VLOOKUP(Setup!R49,GE_Team_PlayerIDs_1, 4,FALSE) -> 108 | B91: Dulan, Bob | C91: =ROUND(VLOOKUP(A91,GE_Player_ID_Stats,10,FALSE),1) -> 57.8 | D91: =VLOOKUP(A91,GE_Player_ID_Stats,11,FALSE) -> 18.2 | H91: =IF(F91="","",ROUND(VLOOKUP(F91,GE_Player_ID_Stats,10,FALSE),1)) ->  | I91: =IF(F91="","",VLOOKUP(F91,GE_Player_ID_Stats,11,FALSE)) ->  | L91: A | N91: Points | P91: =IF(P90<P93,Setup!$J$17,IF(P90=P93,Setup!$J$19,Setup!$J$18)) -> 2 | Q91: =IF(Q90<Q93,Setup!$J$17,IF(Q90=Q93,Setup!$J$19,Setup!$J$18)) -> 2 | R91: =IF(R90<R93,Setup!$J$17,IF(R90=R93,Setup!$J$19,Setup!$J$18)) -> 0 | S91: =IF(S90<S93,Setup!$J$17,IF(S90=S93,Setup!$J$19,Setup!$J$18)) -> 1 | T91: =IF(T90<T93,Setup!$J$17,IF(T90=T93,Setup!$J$19,Setup!$J$18)) -> 1 | U91: =IF(U90<U93,Setup!$J$17,IF(U90=U93,Setup!$J$19,Setup!$J$18)) -> 0 | V91: =IF(V90<V93,Setup!$J$17,IF(V90=V93,Setup!$J$19,Setup!$J$18)) -> 0 | W91: =IF(W90<W93,Setup!$J$17,IF(W90=W93,Setup!$J$19,Setup!$J$18)) -> 2 | X91: =IF(X90<X93,Setup!$J$17,IF(X90=X93,Setup!$J$19,Setup!$J$18)) -> 2 | Z91: =IF(Z88<Z95,Setup!$J$22,IF(Z88=Z95,Setup!$J$24,Setup!$J$23)) -> 0 | AA91: =IF(AB91="P","","DNP") ->  | AB91: P | AH91: B | AJ91: Points | AL91: =IF(AL90<AL93,Setup!$J$17,IF(AL90=AL93,Setup!$J$19,Setup!$J$18)) -> 2 | AM91: =IF(AM90<AM93,Setup!$J$17,IF(AM90=AM93,Setup!$J$19,Setup!$J$18)) -> 2 | AN91: =IF(AN90<AN93,Setup!$J$17,IF(AN90=AN93,Setup!$J$19,Setup!$J$18)) -> 0 | AO91: =IF(AO90<AO93,Setup!$J$17,IF(AO90=AO93,Setup!$J$19,Setup!$J$18)) -> 0 | AP91: =IF(AP90<AP93,Setup!$J$17,IF(AP90=AP93,Setup!$J$19,Setup!$J$18)) -> 2 | AQ91: =IF(AQ90<AQ93,Setup!$J$17,IF(AQ90=AQ93,Setup!$J$19,Setup!$J$18)) -> 0 | AR91: =IF(AR90<AR93,Setup!$J$17,IF(AR90=AR93,Setup!$J$19,Setup!$J$18)) -> 2 | AS91: =IF(AS90<AS93,Setup!$J$17,IF(AS90=AS93,Setup!$J$19,Setup!$J$18)) -> 0 | AT91: =IF(AT90<AT93,Setup!$J$17,IF(AT90=AT93,Setup!$J$19,Setup!$J$18)) -> 0 | AV91: =IF(AV88<AV95,Setup!$J$22,IF(AV88=AV95,Setup!$J$24,Setup!$J$23)) -> 4 | AW91: =IF(AX91="P","","DNP") ->  | AX91: P
A92: H | B92: =(AB88+AX88)&"-"&(AC88+AY88)&"-"&(AD88+AZ88) -> 8-8-2 | D92: =Z88 -> 39 | E92: A Net | F92: =Z95 -> 38 | G92: =(AB95+AX95)&"-"&(AC95+AY95)&"-"&(AD95+AZ95) -> 5-4-0 | H92: H | L92: 1 | M92: =VLOOKUP(L92,GE_SideNames,2,FALSE) -> Front 9 | N92: Points | P92: =IF(P93<P90,Setup!$J$17,IF(P93=P90,Setup!$J$19,Setup!$J$18)) -> 0 | Q92: =IF(Q93<Q90,Setup!$J$17,IF(Q93=Q90,Setup!$J$19,Setup!$J$18)) -> 0 | R92: =IF(R93<R90,Setup!$J$17,IF(R93=R90,Setup!$J$19,Setup!$J$18)) -> 2 | S92: =IF(S93<S90,Setup!$J$17,IF(S93=S90,Setup!$J$19,Setup!$J$18)) -> 1 | T92: =IF(T93<T90,Setup!$J$17,IF(T93=T90,Setup!$J$19,Setup!$J$18)) -> 1 | U92: =IF(U93<U90,Setup!$J$17,IF(U93=U90,Setup!$J$19,Setup!$J$18)) -> 2 | V92: =IF(V93<V90,Setup!$J$17,IF(V93=V90,Setup!$J$19,Setup!$J$18)) -> 2 | W92: =IF(W93<W90,Setup!$J$17,IF(W93=W90,Setup!$J$19,Setup!$J$18)) -> 0 | X92: =IF(X93<X90,Setup!$J$17,IF(X93=X90,Setup!$J$19,Setup!$J$18)) -> 0 | Z92: =IF(Z95<Z88,Setup!$J$22,IF(Z95=Z88,Setup!$J$24,Setup!$J$23)) -> 4 | AA92: =IF(AB92="P","","DNP") -> DNP | AB92: D | AH92: 1 | AI92: =VLOOKUP(AH92,GE_SideNames,2,FALSE) -> Front 9 | AJ92: Points | AL92: =IF(AL93<AL90,Setup!$J$17,IF(AL93=AL90,Setup!$J$19,Setup!$J$18)) -> 0 | AM92: =IF(AM93<AM90,Setup!$J$17,IF(AM93=AM90,Setup!$J$19,Setup!$J$18)) -> 0 | AN92: =IF(AN93<AN90,Setup!$J$17,IF(AN93=AN90,Setup!$J$19,Setup!$J$18)) -> 2 | AO92: =IF(AO93<AO90,Setup!$J$17,IF(AO93=AO90,Setup!$J$19,Setup!$J$18)) -> 2 | AP92: =IF(AP93<AP90,Setup!$J$17,IF(AP93=AP90,Setup!$J$19,Setup!$J$18)) -> 0 | AQ92: =IF(AQ93<AQ90,Setup!$J$17,IF(AQ93=AQ90,Setup!$J$19,Setup!$J$18)) -> 2 | AR92: =IF(AR93<AR90,Setup!$J$17,IF(AR93=AR90,Setup!$J$19,Setup!$J$18)) -> 0 | AS92: =IF(AS93<AS90,Setup!$J$17,IF(AS93=AS90,Setup!$J$19,Setup!$J$18)) -> 2 | AT92: =IF(AT93<AT90,Setup!$J$17,IF(AT93=AT90,Setup!$J$19,Setup!$J$18)) -> 2 | AV92: =IF(AV95<AV88,Setup!$J$22,IF(AV95=AV88,Setup!$J$24,Setup!$J$23)) -> 0 | AW92: =IF(AX92="P","","DNP") ->  | AX92: P
A93: M | B93: =(AB89+AX89)&"-"&(AC89+AY89)&"-"&(AD89+AZ89) -> 1-1-0 | D93: =AV88 -> 39 | E93: B Net | F93: =AV95 -> 40 | G93: =(AB94+AX94)&"-"&(AC94+AY94)&"-"&(AD94+AZ94) -> 0-1-0 | H93: M | N93: Net | P93: =P95-P94 -> 5 | Q93: =Q95-Q94 -> 4 | R93: 5 | S93: 5 | T93: 5 | U93: 5 | V93: 5 | W93: 4 | X93: 7 | AA93: =(AB95*Setup!$J$17)+(AC95*Setup!$J$18)+(AD95*Setup!$J$19)+(AB94*Setup!$J$22)+(AC94*Setup!$J$23)+(AD94*Setup!$J$24) -> 0 | AB93: =IF(AB92="D",0,IF(F95=Setup!$J$27,1,0)) -> 0 | AC93: =IF(AB92="D",0,IF(F95=Setup!$J$28,1,0)) -> 0 | AD93: =IF(AB92="D",0,IF(F95=Setup!$J$29,1,0)) -> 0 | AJ93: Net | AL93: =AL95-AL94 -> 7 | AM93: =AM95-AM94 -> 6 | AN93: 5 | AO93: 7 | AP93: 7 | AQ93: 4 | AR93: 6 | AS93: 4 | AT93: 7 | AW93: =(AX95*Setup!$J$17)+(AY95*Setup!$J$18)+(AZ95*Setup!$J$19)+(AX94*Setup!$J$22)+(AY94*Setup!$J$23)+(AZ94*Setup!$J$24) -> 10
A94: T | B94: =(AB90)&"-"&(AC90)&"-"&(AD90) -> 0-0-1 | D94: =D92+D93 -> 78 | E94: Total | F94: =F92+F93 -> 78 | G94: =(AB93)&"-"&(AC93)&"-"&(AD93) -> 0-0-0 | H94: T | M94: ="FT: "&VLOOKUP(L94,GE_Player_ID_Name,2,FALSE) ->  | N94: Strokes | O94: =IF(O95>O88,O95-O88,0) -> 2 | P94: =IF(O94>0,AE94+IF(AF94>=$P87,1,0),0) -> 0 | Q94: =IF(O94>0,AE94+IF(AF94>=$Q87,1,0),0) -> 0 | R94: =IF(O94>0,AE94+IF(AF94>=$R87,1,0),0) -> 1 | S94: =IF(O94>0,AE94+IF(AF94>=$S87,1,0),0) -> 1 | T94: =IF(O94>0,AE94+IF(AF94>=$T87,1,0),0) -> 0 | U94: =IF(O94>0,AE94+IF(AF94>=$U87,1,0),0) -> 0 | V94: =IF(O94>0,AE94+IF(AF94>=$V87,1,0),0) -> 0 | W94: =IF(O94>0,AE94+IF(AF94>=$W87,1,0),0) -> 0 | X94: =IF(O94>0,AE94+IF(AF94>=$X87,1,0),0) -> 0 | AA94: Match | AB94: =IF(AB92="D",0,COUNTIF(Z92:Z92,Setup!$J$22)) -> 0 | AC94: =IF(AB92="D",0,COUNTIF(Z92:Z92,Setup!$J$23)) -> 0 | AD94: =IF(AB92="D",0,COUNTIF(Z92:Z92,Setup!$J$24)) -> 0 | AE94: =IF(O94<9,0,IF(O94<18,1,IF(O94<27,2,3))) -> 0 | AF94: =IF(O94<9,O94,IF(O94<18,O94-9,IF(O94<27,8-18,IF(O94<36,O94-27,0)))) -> 2 | AI94: ="FT: "&VLOOKUP(AH94,GE_Player_ID_Name,2,FALSE) ->  | AJ94: Strokes | AK94: =IF(AK95>AK88,AK95-AK88,0) -> 5 | AL94: =IF(AK94>0,BA94+IF(BB94>=$AL87,1,0),0) -> 0 | AM94: =IF(AK94>0,BA94+IF(BB94>=$AM87,1,0),0) -> 0 | AN94: =IF(AK94>0,BA94+IF(BB94>=$AN87,1,0),0) -> 1 | AO94: =IF(AK94>0,BA94+IF(BB94>=$AO87,1,0),0) -> 1 | AP94: =IF(AK94>0,BA94+IF(BB94>=$AP87,1,0),0) -> 0 | AQ94: =IF(AK94>0,BA94+IF(BB94>=$AQ87,1,0),0) -> 1 | AR94: =IF(AK94>0,BA94+IF(BB94>=$AR87,1,0),0) -> 1 | AS94: =IF(AK94>0,BA94+IF(BB94>=$AS87,1,0),0) -> 0 | AT94: =IF(AK94>0,BA94+IF(BB94>=$AT87,1,0),0) -> 1 | AW94: Match | AX94: =IF(AX92="D",0,COUNTIF(AV92:AV92,Setup!$J$22)) -> 0 | AY94: =IF(AX92="D",0,COUNTIF(AV92:AV92,Setup!$J$23)) -> 1 | AZ94: =IF(AX92="D",0,COUNTIF(AV92:AV92,Setup!$J$24)) -> 0 | BA94: =IF(AK94<9,0,IF(AK94<18,1,IF(AK94<27,2,3))) -> 0 | BB94: =IF(AK94<9,AK94,IF(AK94<18,AK94-9,IF(AK94<27,8-18,IF(AK94<36,AK94-27,0)))) -> 5
B95: ="Match ID - "&Setup!S49 -> Match ID - 318 | D95: =IF(D94<F94,Setup!$J$27,IF(D94=F94,Setup!$J$29,Setup!$J$28)) -> 3 | E95: Points | F95: =IF(F94<D94,Setup!$J$27,IF(F94=D94,Setup!$J$29,Setup!$J$28)) -> 3 | L95: 107 | M95: =VLOOKUP(L95,GE_Player_ID_Name,2,FALSE) -> Metzger, Mike | N95: =F87 -> 44 | O95: =ROUND(VLOOKUP(L95,GE_Player_ID_Stats,11,FALSE),0) -> 9 | P95: 5 | Q95: 4 | R95: 6 | S95: 6 | T95: 5 | U95: 5 | V95: 5 | W95: 4 | X95: 7 | Y95: =SUM(P95:X95) -> 47 | Z95: =Y95-O95 -> 38 | AA95: Holes | AB95: =IF(AB92="D",0,COUNTIF(P92:X92,Setup!$J$17)) -> 0 | AC95: =IF(AB92="D",0,COUNTIF(P92:X92,Setup!$J$18)) -> 0 | AD95: =IF(AB92="D",0,COUNTIF(P92:X92,Setup!$J$19)) -> 0 | AH95: 108 | AI95: =VLOOKUP(AH95,GE_Player_ID_Name,2,FALSE) -> Dulan, Bob | AJ95: =F87 -> 44 | AK95: =ROUND(VLOOKUP(AH95,GE_Player_ID_Stats,11,FALSE),0) -> 18 | AL95: 7 | AM95: 6 | AN95: 6 | AO95: 8 | AP95: 7 | AQ95: 5 | AR95: 7 | AS95: 4 | AT95: 8 | AU95: =SUM(AL95:AT95) -> 58 | AV95: =AU95-AK95 -> 40 | AW95: Holes | AX95: =IF(AX92="D",0,COUNTIF(AL92:AT92,Setup!$J$17)) -> 5 | AY95: =IF(AX92="D",0,COUNTIF(AL92:AT92,Setup!$J$18)) -> 4 | AZ95: =IF(AX92="D",0,COUNTIF(AL92:AT92,Setup!$J$19)) -> 0
O96: Par | P96: =VLOOKUP($L102,GE_Course_Pars,3,FALSE) -> 4 | Q96: =VLOOKUP($L102,GE_Course_Pars,4,FALSE) -> 3 | R96: =VLOOKUP($L102,GE_Course_Pars,5,FALSE) -> 4 | S96: =VLOOKUP($L102,GE_Course_Pars,6,FALSE) -> 3 | T96: =VLOOKUP($L102,GE_Course_Pars,7,FALSE) -> 4 | U96: =VLOOKUP($L102,GE_Course_Pars,8,FALSE) -> 4 | V96: =VLOOKUP($L102,GE_Course_Pars,9,FALSE) -> 5 | W96: =VLOOKUP($L102,GE_Course_Pars,10,FALSE) -> 4 | X96: =VLOOKUP($L102,GE_Course_Pars,11,FALSE) -> 4 | AK96: Par | AL96: =VLOOKUP($L102,GE_Course_Pars,3,FALSE) -> 4 | AM96: =VLOOKUP($L102,GE_Course_Pars,4,FALSE) -> 3 | AN96: =VLOOKUP($L102,GE_Course_Pars,5,FALSE) -> 4 | AO96: =VLOOKUP($L102,GE_Course_Pars,6,FALSE) -> 3 | AP96: =VLOOKUP($L102,GE_Course_Pars,7,FALSE) -> 4 | AQ96: =VLOOKUP($L102,GE_Course_Pars,8,FALSE) -> 4 | AR96: =VLOOKUP($L102,GE_Course_Pars,9,FALSE) -> 5 | AS96: =VLOOKUP($L102,GE_Course_Pars,10,FALSE) -> 4 | AT96: =VLOOKUP($L102,GE_Course_Pars,11,FALSE) -> 4
A97: =Setup!B22 -> 5:20 | B97: =VLOOKUP(Setup!Q50,GE_Teams_DBID,2,FALSE) -> Dingers Ringers | D97: =Setup!Q50 -> 42 | E97: vs. | F97: =Setup!R50 -> 34 | G97: =VLOOKUP(Setup!R50,GE_Teams_DBID,2,FALSE) -> Alex and Carl | O97: Hdcp | P97: =LOOKUP(L102,Setup!$A$5:$A$7,Setup!$C$5:$C$7) -> 4 | Q97: =LOOKUP(L102,Setup!$A$5:$A$7,Setup!$D$5:$D$7) -> 6 | R97: =LOOKUP(L102,Setup!$A$5:$A$7,Setup!$E$5:$E$7) -> 7 | S97: =LOOKUP(L102,Setup!$A$5:$A$7,Setup!$F$5:$F$7) -> 8 | T97: =LOOKUP(L102,Setup!$A$5:$A$7,Setup!$G$5:$G$7) -> 9 | U97: =LOOKUP(L102,Setup!$A$5:$A$7,Setup!$H$5:$H$7) -> 1 | V97: =LOOKUP(L102,Setup!$A$5:$A$7,Setup!$I$5:$I$7) -> 3 | W97: =LOOKUP(L102,Setup!$A$5:$A$7,Setup!$J$5:$J$7) -> 5 | X97: =LOOKUP(L102,Setup!$A$5:$A$7,Setup!$K$5:$K$7) -> 2 | AK97: Hdcp | AL97: =LOOKUP(AH102,Setup!$A$5:$A$7,Setup!$C$5:$C$7) -> 4 | AM97: =LOOKUP(AH102,Setup!$A$5:$A$7,Setup!$D$5:$D$7) -> 6 | AN97: =LOOKUP(AH102,Setup!$A$5:$A$7,Setup!$E$5:$E$7) -> 7 | AO97: =LOOKUP(AH102,Setup!$A$5:$A$7,Setup!$F$5:$F$7) -> 8 | AP97: =LOOKUP(AH102,Setup!$A$5:$A$7,Setup!$G$5:$G$7) -> 9 | AQ97: =LOOKUP(AH102,Setup!$A$5:$A$7,Setup!$H$5:$H$7) -> 1 | AR97: =LOOKUP(AH102,Setup!$A$5:$A$7,Setup!$I$5:$I$7) -> 3 | AS97: =LOOKUP(AH102,Setup!$A$5:$A$7,Setup!$J$5:$J$7) -> 5 | AT97: =LOOKUP(AH102,Setup!$A$5:$A$7,Setup!$K$5:$K$7) -> 2
A98: =VLOOKUP(Setup!Q50,GE_Team_PlayerIDs_1, 2,FALSE) -> 102 | B98: =VLOOKUP(A98,GE_Player_ID_Name,2,FALSE) -> Simendinger, Joe | C98: =ROUND(VLOOKUP(A98,GE_Player_ID_Stats,10,FALSE),1) -> 44 | D98: =VLOOKUP(A98,GE_Player_ID_Stats,11,FALSE) -> 7.2 | F98: =IF(G98<>"",VLOOKUP(G98,GE_SubList,2,FALSE),"") -> 104 | G98: Simendinger, Sam | H98: =IF(F98="","",ROUND(VLOOKUP(F98,GE_Player_ID_Stats,10,FALSE),1)) -> 47 | I98: =IF(F98="","",VLOOKUP(F98,GE_Player_ID_Stats,11,FALSE)) -> 9.6 | L98: 103 | M98: =VLOOKUP(L98,GE_Player_ID_Name,2,FALSE) -> Simendinger, Joel | N98: =D97 -> 42 | O98: =ROUND(VLOOKUP(L98,GE_Player_ID_Stats,11,FALSE),0) -> 8 | P98: 5 | Q98: 4 | R98: 5 | S98: 3 | T98: 5 | U98: 6 | V98: 6 | W98: 5 | X98: 5 | Y98: =SUM(P98:X98) -> 44 | Z98: =Y98-O98 -> 36 | AA98: Holes | AB98: =IF(AB101="D",0,COUNTIF(P101:X101,Setup!$J$17)) -> 4 | AC98: =IF(AB101="D",0,COUNTIF(P101:X101,Setup!$J$18)) -> 4 | AD98: =IF(AB101="D",0,COUNTIF(P101:X101,Setup!$J$19)) -> 1 | AH98: 104 | AI98: =VLOOKUP(AH98,GE_Player_ID_Name,2,FALSE) -> Simendinger, Sam | AJ98: =D97 -> 42 | AK98: =ROUND(VLOOKUP(AH98,GE_Player_ID_Stats,11,FALSE),0) -> 10 | AL98: 5 | AM98: 5 | AN98: 4 | AO98: 5 | AP98: 5 | AQ98: 5 | AR98: 9 | AS98: 5 | AT98: 5 | AU98: =SUM(AL98:AT98) -> 48 | AV98: =AU98-AK98 -> 38 | AW98: Holes | AX98: =IF(AX101="D",0,COUNTIF(AL101:AT101,Setup!$J$17)) -> 5 | AY98: =IF(AX101="D",0,COUNTIF(AL101:AT101,Setup!$J$18)) -> 2 | AZ98: =IF(AX101="D",0,COUNTIF(AL101:AT101,Setup!$J$19)) -> 2
A99: =VLOOKUP(Setup!Q50,GE_Team_PlayerIDs_1, 4,FALSE) -> 103 | B99: Simendinger, Joel | C99: =ROUND(VLOOKUP(A99,GE_Player_ID_Stats,10,FALSE),1) -> 44.5 | D99: =VLOOKUP(A99,GE_Player_ID_Stats,11,FALSE) -> 7.6 | H99: =IF(F99="","",ROUND(VLOOKUP(F99,GE_Player_ID_Stats,10,FALSE),1)) ->  | I99: =IF(F99="","",VLOOKUP(F99,GE_Player_ID_Stats,11,FALSE)) ->  | M99: ="FT: "&VLOOKUP(L99,GE_Player_ID_Name,2,FALSE) ->  | N99: Strokes | O99: =IF(O98>O105,O98-O105,0) -> 2 | P99: =IF(O99>0,AE99+IF(AF99>=$P97,1,0),0) -> 0 | Q99: =IF(O99>0,AE99+IF(AF99>=$Q97,1,0),0) -> 0 | R99: =IF(O99>0,AE99+IF(AF99>=$R97,1,0),0) -> 0 | S99: =IF(O99>0,AE99+IF(AF99>=$S97,1,0),0) -> 0 | T99: =IF(O99>0,AE99+IF(AF99>=$T97,1,0),0) -> 0 | U99: =IF(O99>0,AE99+IF(AF99>=$U97,1,0),0) -> 1 | V99: =IF(O99>0,AE99+IF(AF99>=$V97,1,0),0) -> 0 | W99: =IF(O99>0,AE99+IF(AF99>=$W97,1,0),0) -> 0 | X99: =IF(O99>0,AE99+IF(AF99>=$X97,1,0),0) -> 1 | AA99: Match | AB99: =IF(AB101="D",0,COUNTIF(Z101:Z101,Setup!$J$22)) -> 1 | AC99: =IF(AB101="D",0,COUNTIF(Z101:Z101,Setup!$J$23)) -> 0 | AD99: =IF(AB101="D",0,COUNTIF(Z101:Z101,Setup!$J$24)) -> 0 | AE99: =IF(O99<9,0,IF(O99<18,1,IF(O99<27,2,3))) -> 0 | AF99: =IF(O99<9,O99,IF(O99<18,O99-9,IF(O99<27,8-18,IF(O99<36,O99-27,0)))) -> 2 | AH99: 102 | AI99: ="FT: "&VLOOKUP(AH99,GE_Player_ID_Name,2,FALSE) -> FT: Simendinger, Joe | AJ99: Strokes | AK99: =IF(AK98>AK105,AK98-AK105,0) -> 0 | AL99: =IF(AK99>0,BA99+IF(BB99>=$AL97,1,0),0) -> 0 | AM99: =IF(AK99>0,BA99+IF(BB99>=$AM97,1,0),0) -> 0 | AN99: =IF(AK99>0,BA99+IF(BB99>=$AN97,1,0),0) -> 0 | AO99: =IF(AK99>0,BA99+IF(BB99>=$AO97,1,0),0) -> 0 | AP99: =IF(AK99>0,BA99+IF(BB99>=$AP97,1,0),0) -> 0 | AQ99: =IF(AK99>0,BA99+IF(BB99>=$AQ97,1,0),0) -> 0 | AR99: =IF(AK99>0,BA99+IF(BB99>=$AR97,1,0),0) -> 0 | AS99: =IF(AK99>0,BA99+IF(BB99>=$AS97,1,0),0) -> 0 | AT99: =IF(AK99>0,BA99+IF(BB99>=$AT97,1,0),0) -> 0 | AW99: Match | AX99: =IF(AX101="D",0,COUNTIF(AV101:AV101,Setup!$J$22)) -> 1 | AY99: =IF(AX101="D",0,COUNTIF(AV101:AV101,Setup!$J$23)) -> 0 | AZ99: =IF(AX101="D",0,COUNTIF(AV101:AV101,Setup!$J$24)) -> 0 | BA99: =IF(AK99<9,0,IF(AK99<18,1,IF(AK99<27,2,3))) -> 0 | BB99: =IF(AK99<9,AK99,IF(AK99<18,AK99-9,IF(AK99<27,8-18,IF(AK99<36,AK99-27,0)))) -> 0
A100: =VLOOKUP(Setup!R50,GE_Team_PlayerIDs_1, 2,FALSE) -> 77 | B100: Schock, Alex | C100: =ROUND(VLOOKUP(A100,GE_Player_ID_Stats,10,FALSE),1) -> 42.5 | D100: =VLOOKUP(A100,GE_Player_ID_Stats,11,FALSE) -> 6 | H100: =IF(F100="","",ROUND(VLOOKUP(F100,GE_Player_ID_Stats,10,FALSE),1)) ->  | I100: =IF(F100="","",VLOOKUP(F100,GE_Player_ID_Stats,11,FALSE)) ->  | N100: Net | P100: =P98-P99 -> 5 | Q100: =Q98-Q99 -> 4 | R100: 5 | S100: 3 | T100: 5 | U100: 5 | V100: 6 | W100: 5 | X100: 4 | AA100: =(AB98*Setup!$J$17)+(AC98*Setup!$J$18)+(AD98*Setup!$J$19)+(AB99*Setup!$J$22)+(AC99*Setup!$J$23)+(AD99*Setup!$J$24) -> 13 | AB100: =IF(AB101="D",0,IF(D105=Setup!$J$27,1,0)) -> 1 | AC100: =IF(AB101="D",0,IF(D105=Setup!$J$28,1,0)) -> 0 | AD100: =IF(AB101="D",0,IF(D105=Setup!$J$29,1,0)) -> 0 | AJ100: Net | AL100: =AL98-AL99 -> 5 | AM100: =AM98-AM99 -> 5 | AN100: 4 | AO100: 5 | AP100: 5 | AQ100: 5 | AR100: 9 | AS100: 5 | AT100: 5 | AW100: =(AX98*Setup!$J$17)+(AY98*Setup!$J$18)+(AZ98*Setup!$J$19)+(AX99*Setup!$J$22)+(AY99*Setup!$J$23)+(AZ99*Setup!$J$24) -> 16
A101: =VLOOKUP(Setup!R50,GE_Team_PlayerIDs_1, 4,FALSE) -> 78 | B101: Tenkman, Carl | C101: =ROUND(VLOOKUP(A101,GE_Player_ID_Stats,10,FALSE),1) -> 47 | D101: =VLOOKUP(A101,GE_Player_ID_Stats,11,FALSE) -> 9.6 | H101: =IF(F101="","",ROUND(VLOOKUP(F101,GE_Player_ID_Stats,10,FALSE),1)) ->  | I101: =IF(F101="","",VLOOKUP(F101,GE_Player_ID_Stats,11,FALSE)) ->  | L101: A | N101: Points | P101: =IF(P100<P103,Setup!$J$17,IF(P100=P103,Setup!$J$19,Setup!$J$18)) -> 2 | Q101: =IF(Q100<Q103,Setup!$J$17,IF(Q100=Q103,Setup!$J$19,Setup!$J$18)) -> 2 | R101: =IF(R100<R103,Setup!$J$17,IF(R100=R103,Setup!$J$19,Setup!$J$18)) -> 0 | S101: =IF(S100<S103,Setup!$J$17,IF(S100=S103,Setup!$J$19,Setup!$J$18)) -> 2 | T101: =IF(T100<T103,Setup!$J$17,IF(T100=T103,Setup!$J$19,Setup!$J$18)) -> 1 | U101: =IF(U100<U103,Setup!$J$17,IF(U100=U103,Setup!$J$19,Setup!$J$18)) -> 0 | V101: =IF(V100<V103,Setup!$J$17,IF(V100=V103,Setup!$J$19,Setup!$J$18)) -> 0 | W101: =IF(W100<W103,Setup!$J$17,IF(W100=W103,Setup!$J$19,Setup!$J$18)) -> 0 | X101: =IF(X100<X103,Setup!$J$17,IF(X100=X103,Setup!$J$19,Setup!$J$18)) -> 2 | Z101: =IF(Z98<Z105,Setup!$J$22,IF(Z98=Z105,Setup!$J$24,Setup!$J$23)) -> 4 | AA101: =IF(AB101="P","","DNP") ->  | AB101: P | AH101: B | AJ101: Points | AL101: =IF(AL100<AL103,Setup!$J$17,IF(AL100=AL103,Setup!$J$19,Setup!$J$18)) -> 2 | AM101: =IF(AM100<AM103,Setup!$J$17,IF(AM100=AM103,Setup!$J$19,Setup!$J$18)) -> 1 | AN101: =IF(AN100<AN103,Setup!$J$17,IF(AN100=AN103,Setup!$J$19,Setup!$J$18)) -> 2 | AO101: =IF(AO100<AO103,Setup!$J$17,IF(AO100=AO103,Setup!$J$19,Setup!$J$18)) -> 0 | AP101: =IF(AP100<AP103,Setup!$J$17,IF(AP100=AP103,Setup!$J$19,Setup!$J$18)) -> 2 | AQ101: =IF(AQ100<AQ103,Setup!$J$17,IF(AQ100=AQ103,Setup!$J$19,Setup!$J$18)) -> 1 | AR101: =IF(AR100<AR103,Setup!$J$17,IF(AR100=AR103,Setup!$J$19,Setup!$J$18)) -> 0 | AS101: =IF(AS100<AS103,Setup!$J$17,IF(AS100=AS103,Setup!$J$19,Setup!$J$18)) -> 2 | AT101: =IF(AT100<AT103,Setup!$J$17,IF(AT100=AT103,Setup!$J$19,Setup!$J$18)) -> 2 | AV101: =IF(AV98<AV105,Setup!$J$22,IF(AV98=AV105,Setup!$J$24,Setup!$J$23)) -> 4 | AW101: =IF(AX101="P","","DNP") ->  | AX101: P
A102: H | B102: =(AB98+AX98)&"-"&(AC98+AY98)&"-"&(AD98+AZ98) -> 9-6-3 | D102: =Z98 -> 36 | E102: A Net | F102: =Z105 -> 37 | G102: =(AB105+AX105)&"-"&(AC105+AY105)&"-"&(AD105+AZ105) -> 6-9-3 | H102: H | L102: 2 | M102: =VLOOKUP(L102,GE_SideNames,2,FALSE) -> Back 9 | N102: Points | P102: =IF(P103<P100,Setup!$J$17,IF(P103=P100,Setup!$J$19,Setup!$J$18)) -> 0 | Q102: =IF(Q103<Q100,Setup!$J$17,IF(Q103=Q100,Setup!$J$19,Setup!$J$18)) -> 0 | R102: =IF(R103<R100,Setup!$J$17,IF(R103=R100,Setup!$J$19,Setup!$J$18)) -> 2 | S102: =IF(S103<S100,Setup!$J$17,IF(S103=S100,Setup!$J$19,Setup!$J$18)) -> 0 | T102: =IF(T103<T100,Setup!$J$17,IF(T103=T100,Setup!$J$19,Setup!$J$18)) -> 1 | U102: =IF(U103<U100,Setup!$J$17,IF(U103=U100,Setup!$J$19,Setup!$J$18)) -> 2 | V102: =IF(V103<V100,Setup!$J$17,IF(V103=V100,Setup!$J$19,Setup!$J$18)) -> 2 | W102: =IF(W103<W100,Setup!$J$17,IF(W103=W100,Setup!$J$19,Setup!$J$18)) -> 2 | X102: =IF(X103<X100,Setup!$J$17,IF(X103=X100,Setup!$J$19,Setup!$J$18)) -> 0 | Z102: =IF(Z105<Z98,Setup!$J$22,IF(Z105=Z98,Setup!$J$24,Setup!$J$23)) -> 0 | AA102: =IF(AB102="P","","DNP") ->  | AB102: P | AH102: 2 | AI102: =VLOOKUP(AH102,GE_SideNames,2,FALSE) -> Back 9 | AJ102: Points | AL102: =IF(AL103<AL100,Setup!$J$17,IF(AL103=AL100,Setup!$J$19,Setup!$J$18)) -> 0 | AM102: =IF(AM103<AM100,Setup!$J$17,IF(AM103=AM100,Setup!$J$19,Setup!$J$18)) -> 1 | AN102: =IF(AN103<AN100,Setup!$J$17,IF(AN103=AN100,Setup!$J$19,Setup!$J$18)) -> 0 | AO102: =IF(AO103<AO100,Setup!$J$17,IF(AO103=AO100,Setup!$J$19,Setup!$J$18)) -> 2 | AP102: =IF(AP103<AP100,Setup!$J$17,IF(AP103=AP100,Setup!$J$19,Setup!$J$18)) -> 0 | AQ102: =IF(AQ103<AQ100,Setup!$J$17,IF(AQ103=AQ100,Setup!$J$19,Setup!$J$18)) -> 1 | AR102: =IF(AR103<AR100,Setup!$J$17,IF(AR103=AR100,Setup!$J$19,Setup!$J$18)) -> 2 | AS102: =IF(AS103<AS100,Setup!$J$17,IF(AS103=AS100,Setup!$J$19,Setup!$J$18)) -> 0 | AT102: =IF(AT103<AT100,Setup!$J$17,IF(AT103=AT100,Setup!$J$19,Setup!$J$18)) -> 0 | AV102: =IF(AV105<AV98,Setup!$J$22,IF(AV105=AV98,Setup!$J$24,Setup!$J$23)) -> 0 | AW102: =IF(AX102="P","","DNP") ->  | AX102: P
A103: M | B103: =(AB99+AX99)&"-"&(AC99+AY99)&"-"&(AD99+AZ99) -> 2-0-0 | D103: =AV98 -> 38 | E103: B Net | F103: =AV105 -> 44 | G103: =(AB104+AX104)&"-"&(AC104+AY104)&"-"&(AD104+AZ104) -> 0-2-0 | H103: M | N103: Net | P103: =P105-P104 -> 8 | Q103: =Q105-Q104 -> 5 | R103: 3 | S103: 4 | T103: 5 | U103: 4 | V103: 5 | W103: 4 | X103: 5 | AA103: =(AB105*Setup!$J$17)+(AC105*Setup!$J$18)+(AD105*Setup!$J$19)+(AB104*Setup!$J$22)+(AC104*Setup!$J$23)+(AD104*Setup!$J$24) -> 9 | AB103: =IF(AB102="D",0,IF(F105=Setup!$J$27,1,0)) -> 0 | AC103: =IF(AB102="D",0,IF(F105=Setup!$J$28,1,0)) -> 1 | AD103: =IF(AB102="D",0,IF(F105=Setup!$J$29,1,0)) -> 0 | AJ103: Net | AL103: =AL105-AL104 -> 7 | AM103: =AM105-AM104 -> 5 | AN103: 5 | AO103: 4 | AP103: 6 | AQ103: 5 | AR103: 8 | AS103: 8 | AT103: 6 | AW103: =(AX105*Setup!$J$17)+(AY105*Setup!$J$18)+(AZ105*Setup!$J$19)+(AX104*Setup!$J$22)+(AY104*Setup!$J$23)+(AZ104*Setup!$J$24) -> 6
A104: T | B104: =(AB100)&"-"&(AC100)&"-"&(AD100) -> 1-0-0 | D104: =D102+D103 -> 74 | E104: Total | F104: =F102+F103 -> 81 | G104: =(AB103)&"-"&(AC103)&"-"&(AD103) -> 0-1-0 | H104: T | M104: ="FT: "&VLOOKUP(L104,GE_Player_ID_Name,2,FALSE) ->  | N104: Strokes | O104: =IF(O105>O98,O105-O98,0) -> 0 | P104: =IF(O104>0,AE104+IF(AF104>=$P97,1,0),0) -> 0 | Q104: =IF(O104>0,AE104+IF(AF104>=$Q97,1,0),0) -> 0 | R104: =IF(O104>0,AE104+IF(AF104>=$R97,1,0),0) -> 0 | S104: =IF(O104>0,AE104+IF(AF104>=$S97,1,0),0) -> 0 | T104: =IF(O104>0,AE104+IF(AF104>=$T97,1,0),0) -> 0 | U104: =IF(O104>0,AE104+IF(AF104>=$U97,1,0),0) -> 0 | V104: =IF(O104>0,AE104+IF(AF104>=$V97,1,0),0) -> 0 | W104: =IF(O104>0,AE104+IF(AF104>=$W97,1,0),0) -> 0 | X104: =IF(O104>0,AE104+IF(AF104>=$X97,1,0),0) -> 0 | AA104: Match | AB104: =IF(AB102="D",0,COUNTIF(Z102:Z102,Setup!$J$22)) -> 0 | AC104: =IF(AB102="D",0,COUNTIF(Z102:Z102,Setup!$J$23)) -> 1 | AD104: =IF(AB102="D",0,COUNTIF(Z102:Z102,Setup!$J$24)) -> 0 | AE104: =IF(O104<9,0,IF(O104<18,1,IF(O104<27,2,3))) -> 0 | AF104: =IF(O104<9,O104,IF(O104<18,O104-9,IF(O104<27,8-18,IF(O104<36,O104-27,0)))) -> 0 | AI104: ="FT: "&VLOOKUP(AH104,GE_Player_ID_Name,2,FALSE) ->  | AJ104: Strokes | AK104: =IF(AK105>AK98,AK105-AK98,0) -> 0 | AL104: =IF(AK104>0,BA104+IF(BB104>=$AL97,1,0),0) -> 0 | AM104: =IF(AK104>0,BA104+IF(BB104>=$AM97,1,0),0) -> 0 | AN104: =IF(AK104>0,BA104+IF(BB104>=$AN97,1,0),0) -> 0 | AO104: =IF(AK104>0,BA104+IF(BB104>=$AO97,1,0),0) -> 0 | AP104: =IF(AK104>0,BA104+IF(BB104>=$AP97,1,0),0) -> 0 | AQ104: =IF(AK104>0,BA104+IF(BB104>=$AQ97,1,0),0) -> 0 | AR104: =IF(AK104>0,BA104+IF(BB104>=$AR97,1,0),0) -> 0 | AS104: =IF(AK104>0,BA104+IF(BB104>=$AS97,1,0),0) -> 0 | AT104: =IF(AK104>0,BA104+IF(BB104>=$AT97,1,0),0) -> 0 | AW104: Match | AX104: =IF(AX102="D",0,COUNTIF(AV102:AV102,Setup!$J$22)) -> 0 | AY104: =IF(AX102="D",0,COUNTIF(AV102:AV102,Setup!$J$23)) -> 1 | AZ104: =IF(AX102="D",0,COUNTIF(AV102:AV102,Setup!$J$24)) -> 0 | BA104: =IF(AK104<9,0,IF(AK104<18,1,IF(AK104<27,2,3))) -> 0 | BB104: =IF(AK104<9,AK104,IF(AK104<18,AK104-9,IF(AK104<27,8-18,IF(AK104<36,AK104-27,0)))) -> 0
B105: ="Match ID - "&Setup!S50 -> Match ID - 319 | D105: =IF(D104<F104,Setup!$J$27,IF(D104=F104,Setup!$J$29,Setup!$J$28)) -> 6 | E105: Points | F105: =IF(F104<D104,Setup!$J$27,IF(F104=D104,Setup!$J$29,Setup!$J$28)) -> 0 | L105: 77 | M105: =VLOOKUP(L105,GE_Player_ID_Name,2,FALSE) -> Schock, Alex | N105: =F97 -> 34 | O105: =ROUND(VLOOKUP(L105,GE_Player_ID_Stats,11,FALSE),0) -> 6 | P105: 8 | Q105: 5 | R105: 3 | S105: 4 | T105: 5 | U105: 4 | V105: 5 | W105: 4 | X105: 5 | Y105: =SUM(P105:X105) -> 43 | Z105: =Y105-O105 -> 37 | AA105: Holes | AB105: =IF(AB102="D",0,COUNTIF(P102:X102,Setup!$J$17)) -> 4 | AC105: =IF(AB102="D",0,COUNTIF(P102:X102,Setup!$J$18)) -> 4 | AD105: =IF(AB102="D",0,COUNTIF(P102:X102,Setup!$J$19)) -> 1 | AH105: 78 | AI105: =VLOOKUP(AH105,GE_Player_ID_Name,2,FALSE) -> Tenkman, Carl | AJ105: =F97 -> 34 | AK105: =ROUND(VLOOKUP(AH105,GE_Player_ID_Stats,11,FALSE),0) -> 10 | AL105: 7 | AM105: 5 | AN105: 5 | AO105: 4 | AP105: 6 | AQ105: 5 | AR105: 8 | AS105: 8 | AT105: 6 | AU105: =SUM(AL105:AT105) -> 54 | AV105: =AU105-AK105 -> 44 | AW105: Holes | AX105: =IF(AX102="D",0,COUNTIF(AL102:AT102,Setup!$J$17)) -> 2 | AY105: =IF(AX102="D",0,COUNTIF(AL102:AT102,Setup!$J$18)) -> 5 | AZ105: =IF(AX102="D",0,COUNTIF(AL102:AT102,Setup!$J$19)) -> 2

Sheet Golfers
A1: Golfer ID | B1: Golfer Name | C1: PID Repeat | D1: Type | E1: Rounds | F1: L6 Tot | G1: L6 Count | H1: Min | I1: Max | J1: L6 Net | K1: L6 Den | L1: Average | M1: Handicap | N1: Holes Won | O1: Holes Lost | P1: Holes Tied | Q1: Match Won | R1: Match Lost | S1: Match Tied | T1: Sub Points | U1: Total Points | V1: Eagles | W1: Birdies | X1: Pars | Y1: W01 | Z1: L6-01 | AA1: W02 | AB1: L6-02 | AC1: W03 | AD1: L6-03 | AE1: W04 | AF1: L6-04 | AG1: W05 | AH1: L6-05 | AI1: W06 | AJ1: L6-06 | AK1: W07 | AL1: L6-07 | AM1: W08 | AN1: L6-08 | AO1: W09 | AP1: L6-09 | AQ1: W10 | AR1: L6-10 | AS1: W11 | AT1: L6-11 | AU1: W12 | AV1: L6-12 | AW1: W13 | AX1: L6-13 | AY1: W14 | AZ1: L6-14 | BA1: W15 | BB1: L6-15 | BC1: W16 | BD1: L6-16 | BE1: W17 | BF1: L6-17 | BG1: W18 | BH1: L6-18 | BI1: W19 | BJ1: L6-19 | BK1: W20 | BL1: L6-20
A2: 77 | B2: Schock, Alex | C2: =A2 -> 77 | D2: R | E2: =COUNTA(Y2,AA2,AC2,AE2,AG2,AI2,AK2,AM2,AO2,AQ2,AS2,AU2,AW2,AY2,BA2,BC2,BE2,BG2,BI2,BK2) -> 4 | F2: =SUM(Z2,AB2,AD2,AF2,AH2,AJ2,AL2,AN2,AP2,AR2,AT2,AV2,AX2,AZ2,BB2,BD2,BF2,BH2,BJ2,BL2) -> 170 | G2: =COUNTA(Z2,AB2,AD2,AF2,AH2,AJ2,AL2,AN2,AP2,AR2,AT2,AV2,AX2,AZ2,BB2,BD2,BF2,BH2,BJ2,BL2) -> 4 | H2: =IF(G2>=6,MIN(Z2,AB2,AD2,AF2,AH2,AJ2,AL2,AN2,AP2,AR2,AT2,AV2,AX2,AZ2,BB2,BD2,BF2,BH2,BJ2,BL2),0) -> 0 | I2: =IF(G2>=6,MAX(Z2,AB2,AD2,AF2,AH2,AJ2,AL2,AN2,AP2,AR2,AT2,AV2,AX2,AZ2,BB2,BD2,BF2,BH2,BJ2,BL2),0) -> 0 | J2: =(F2-(H2+I2)) -> 170 | K2: =IF(G2>=6,G2-2,G2) -> 4 | L2: =IF(K2=0,0,(F2-(H2+I2))/K2) -> 42.5 | M2: =IF(K2=0,0,(L2-35)*0.8) -> 6 | N2: =SUMIF('X-DSP-ALL'!$E$2:$E$883,A2,'X-DSP-ALL'!$L$2:$L$883) -> 14 | O2: =SUMIF('X-DSP-ALL'!$E$2:$E$883,A2,'X-DSP-ALL'!$M$2:$M$883) -> 14 | P2: =SUMIF('X-DSP-ALL'!$E$2:$E$883,A2,'X-DSP-ALL'!$N$2:$N$883) -> 8 | Q2: =SUMIF('X-DSP-ALL'!$E$2:$E$883,A2,'X-DSP-ALL'!$O$2:$O$883) -> 2 | R2: =SUMIF('X-DSP-ALL'!$E$2:$E$883,A2,'X-DSP-ALL'!$P$2:$P$883) -> 2 | S2: =SUMIF('X-DSP-ALL'!$E$2:$E$883,A2,'X-DSP-ALL'!$Q$2:$Q$883) -> 0 | T2: =IF(A2=0,0,SUMIF('X-DSP-ALL'!$F$2:$F$883,A2,'X-DSP-ALL'!$BE$2:$BE$883)) -> 0 | U2: =IF(A2=0,0,(N2*Setup!$J$17)+(O2*Setup!$J$18)+(P2*Setup!$J$19)+(Q2*Setup!$J$22)+(R2*Setup!$J$23)+(S2*Setup!$J$24)+(T2)) -> 44 | V2: =SUMIF('X-DSP-ALL'!$E$2:$E$883,A2,'X-DSP-ALL'!$BO$2:$BO$883) -> 0 | W2: =SUMIF('X-DSP-ALL'!$E$2:$E$883,A2,'X-DSP-ALL'!$BP$2:$BP$883) -> 2 | X2: =SUMIF('X-DSP-ALL'!$E$2:$E$883,A2,'X-DSP-ALL'!$BQ$2:$BQ$883) -> 16 | Y2: 41 | Z2: 41 | AA2: 42 | AB2: 42 | AC2: 44 | AD2: 44 | AE2: 43 | AF2: 43
A3: 78 | B3: Tenkman, Carl | C3: =A3 -> 78 | D3: R | E3: 4 | F3: 188 | G3: 4 | H3: 0 | I3: 0 | J3: =(F3-(H3+I3)) -> 188 | K3: =IF(G3>=6,G3-2,G3) -> 4 | L3: =IF(K3=0,0,(F3-(H3+I3))/K3) -> 47 | M3: =IF(K3=0,0,(L3-35)*0.8) -> 9.6 | N3: =SUMIF('X-DSP-ALL'!$E$2:$E$883,A3,'X-DSP-ALL'!$L$2:$L$883) -> 9 | O3: =SUMIF('X-DSP-ALL'!$E$2:$E$883,A3,'X-DSP-ALL'!$M$2:$M$883) -> 17 | P3: =SUMIF('X-DSP-ALL'!$E$2:$E$883,A3,'X-DSP-ALL'!$N$2:$N$883) -> 10 | Q3: =SUMIF('X-DSP-ALL'!$E$2:$E$883,A3,'X-DSP-ALL'!$O$2:$O$883) -> 1 | R3: =SUMIF('X-DSP-ALL'!$E$2:$E$883,A3,'X-DSP-ALL'!$P$2:$P$883) -> 3 | S3: =SUMIF('X-DSP-ALL'!$E$2:$E$883,A3,'X-DSP-ALL'!$Q$2:$Q$883) -> 0 | T3: =IF(A3=0,0,SUMIF('X-DSP-ALL'!$F$2:$F$883,A3,'X-DSP-ALL'!$BE$2:$BE$883)) -> 0 | U3: =IF(A3=0,0,(N3*Setup!$J$17)+(O3*Setup!$J$18)+(P3*Setup!$J$19)+(Q3*Setup!$J$22)+(R3*Setup!$J$23)+(S3*Setup!$J$24)+(T3)) -> 32 | V3: =SUMIF('X-DSP-ALL'!$E$2:$E$883,A3,'X-DSP-ALL'!$BO$2:$BO$883) -> 0 | W3: =SUMIF('X-DSP-ALL'!$E$2:$E$883,A3,'X-DSP-ALL'!$BP$2:$BP$883) -> 0 | X3: =SUMIF('X-DSP-ALL'!$E$2:$E$883,A3,'X-DSP-ALL'!$BQ$2:$BQ$883) -> 12 | Y3: 42 | Z3: 42 | AA3: 45 | AB3: 45 | AC3: 47 | AD3: 47 | AE3: 54 | AF3: 54
A4: 79 | B4: Hobek, Bill | C4: 79 | D4: R | E4: 4 | F4: 187 | G4: 4 | H4: 0 | I4: 0 | J4: 187 | K4: 4 | L4: 46.75 | M4: 9.4 | N4: =SUMIF('X-DSP-ALL'!$E$2:$E$883,A4,'X-DSP-ALL'!$L$2:$L$883) -> 14 | O4: =SUMIF('X-DSP-ALL'!$E$2:$E$883,A4,'X-DSP-ALL'!$M$2:$M$883) -> 10 | P4: =SUMIF('X-DSP-ALL'!$E$2:$E$883,A4,'X-DSP-ALL'!$N$2:$N$883) -> 12 | Q4: =SUMIF('X-DSP-ALL'!$E$2:$E$883,A4,'X-DSP-ALL'!$O$2:$O$883) -> 3 | R4: =SUMIF('X-DSP-ALL'!$E$2:$E$883,A4,'X-DSP-ALL'!$P$2:$P$883) -> 1 | S4: =SUMIF('X-DSP-ALL'!$E$2:$E$883,A4,'X-DSP-ALL'!$Q$2:$Q$883) -> 0 | T4: =IF(A4=0,0,SUMIF('X-DSP-ALL'!$F$2:$F$883,A4,'X-DSP-ALL'!$BE$2:$BE$883)) -> 0 | U4: =IF(A4=0,0,(N4*Setup!$J$17)+(O4*Setup!$J$18)+(P4*Setup!$J$19)+(Q4*Setup!$J$22)+(R4*Setup!$J$23)+(S4*Setup!$J$24)+(T4)) -> 52 | V4: =SUMIF('X-DSP-ALL'!$E$2:$E$883,A4,'X-DSP-ALL'!$BO$2:$BO$883) -> 0 | W4: =SUMIF('X-DSP-ALL'!$E$2:$E$883,A4,'X-DSP-ALL'!$BP$2:$BP$883) -> 0 | X4: =SUMIF('X-DSP-ALL'!$E$2:$E$883,A4,'X-DSP-ALL'!$BQ$2:$BQ$883) -> 10 | Y4: 48 | Z4: 48 | AA4: 42 | AB4: 42 | AC4: 53 | AD4: 53 | AE4: 44 | AF4: 44
A5: 80 | B5: Coop, John | C5: 80 | D5: R | E5: 3 | F5: 164 | G5: 3 | H5: 0 | I5: 0 | J5: 164 | K5: 3 | L5: 54.66666667 | M5: 15.73333333 | N5: =SUMIF('X-DSP-ALL'!$E$2:$E$883,A5,'X-DSP-ALL'!$L$2:$L$883) -> 10 | O5: =SUMIF('X-DSP-ALL'!$E$2:$E$883,A5,'X-DSP-ALL'!$M$2:$M$883) -> 9 | P5: =SUMIF('X-DSP-ALL'!$E$2:$E$883,A5,'X-DSP-ALL'!$N$2:$N$883) -> 8 | Q5: =SUMIF('X-DSP-ALL'!$E$2:$E$883,A5,'X-DSP-ALL'!$O$2:$O$883) -> 3 | R5: =SUMIF('X-DSP-ALL'!$E$2:$E$883,A5,'X-DSP-ALL'!$P$2:$P$883) -> 0 | S5: =SUMIF('X-DSP-ALL'!$E$2:$E$883,A5,'X-DSP-ALL'!$Q$2:$Q$883) -> 0 | T5: =IF(A5=0,0,SUMIF('X-DSP-ALL'!$F$2:$F$883,A5,'X-DSP-ALL'!$BE$2:$BE$883)) -> 21 | U5: =IF(A5=0,0,(N5*Setup!$J$17)+(O5*Setup!$J$18)+(P5*Setup!$J$19)+(Q5*Setup!$J$22)+(R5*Setup!$J$23)+(S5*Setup!$J$24)+(T5)) -> 61 | V5: =SUMIF('X-DSP-ALL'!$E$2:$E$883,A5,'X-DSP-ALL'!$BO$2:$BO$883) -> 0 | W5: =SUMIF('X-DSP-ALL'!$E$2:$E$883,A5,'X-DSP-ALL'!$BP$2:$BP$883) -> 0 | X5: =SUMIF('X-DSP-ALL'!$E$2:$E$883,A5,'X-DSP-ALL'!$BQ$2:$BQ$883) -> 1 | Y5: 57 | Z5: 57 | AA5: 54 | AB5: 54 | AC5: 53 | AD5: 53
A6: 81 | B6: Dehner, Bob | C6: 81 | D6: R | E6: 4 | F6: 224 | G6: 4 | H6: 0 | I6: 0 | J6: 224 | K6: 4 | L6: 56 | M6: 16.8 | N6: =SUMIF('X-DSP-ALL'!$E$2:$E$883,A6,'X-DSP-ALL'!$L$2:$L$883) -> 13 | O6: =SUMIF('X-DSP-ALL'!$E$2:$E$883,A6,'X-DSP-ALL'!$M$2:$M$883) -> 14 | P6: =SUMIF('X-DSP-ALL'!$E$2:$E$883,A6,'X-DSP-ALL'!$N$2:$N$883) -> 9 | Q6: =SUMIF('X-DSP-ALL'!$E$2:$E$883,A6,'X-DSP-ALL'!$O$2:$O$883) -> 1 | R6: =SUMIF('X-DSP-ALL'!$E$2:$E$883,A6,'X-DSP-ALL'!$P$2:$P$883) -> 2 | S6: =SUMIF('X-DSP-ALL'!$E$2:$E$883,A6,'X-DSP-ALL'!$Q$2:$Q$883) -> 1 | T6: =IF(A6=0,0,SUMIF('X-DSP-ALL'!$F$2:$F$883,A6,'X-DSP-ALL'!$BE$2:$BE$883)) -> 0 | U6: =IF(A6=0,0,(N6*Setup!$J$17)+(O6*Setup!$J$18)+(P6*Setup!$J$19)+(Q6*Setup!$J$22)+(R6*Setup!$J$23)+(S6*Setup!$J$24)+(T6)) -> 41 | V6: =SUMIF('X-DSP-ALL'!$E$2:$E$883,A6,'X-DSP-ALL'!$BO$2:$BO$883) -> 0 | W6: =SUMIF('X-DSP-ALL'!$E$2:$E$883,A6,'X-DSP-ALL'!$BP$2:$BP$883) -> 0 | X6: =SUMIF('X-DSP-ALL'!$E$2:$E$883,A6,'X-DSP-ALL'!$BQ$2:$BQ$883) -> 3 | Y6: 51 | Z6: 51 | AA6: 55 | AB6: 55 | AC6: 62 | AD6: 62 | AE6: 56 | AF6: 56
A7: 82 | B7: Upchurch, Mike | C7: 82 | D7: R | E7: 4 | F7: 197 | G7: 4 | H7: 0 | I7: 0 | J7: 197 | K7: 4 | L7: 49.25 | M7: 11.4 | N7: =SUMIF('X-DSP-ALL'!$E$2:$E$883,A7,'X-DSP-ALL'!$L$2:$L$883) -> 13 | O7: =SUMIF('X-DSP-ALL'!$E$2:$E$883,A7,'X-DSP-ALL'!$M$2:$M$883) -> 9 | P7: =SUMIF('X-DSP-ALL'!$E$2:$E$883,A7,'X-DSP-ALL'!$N$2:$N$883) -> 14 | Q7: =SUMIF('X-DSP-ALL'!$E$2:$E$883,A7,'X-DSP-ALL'!$O$2:$O$883) -> 1 | R7: =SUMIF('X-DSP-ALL'!$E$2:$E$883,A7,'X-DSP-ALL'!$P$2:$P$883) -> 1 | S7: =SUMIF('X-DSP-ALL'!$E$2:$E$883,A7,'X-DSP-ALL'!$Q$2:$Q$883) -> 2 | T7: =IF(A7=0,0,SUMIF('X-DSP-ALL'!$F$2:$F$883,A7,'X-DSP-ALL'!$BE$2:$BE$883)) -> 0 | U7: =IF(A7=0,0,(N7*Setup!$J$17)+(O7*Setup!$J$18)+(P7*Setup!$J$19)+(Q7*Setup!$J$22)+(R7*Setup!$J$23)+(S7*Setup!$J$24)+(T7)) -> 48 | V7: =SUMIF('X-DSP-ALL'!$E$2:$E$883,A7,'X-DSP-ALL'!$BO$2:$BO$883) -> 0 | W7: =SUMIF('X-DSP-ALL'!$E$2:$E$883,A7,'X-DSP-ALL'!$BP$2:$BP$883) -> 0 | X7: =SUMIF('X-DSP-ALL'!$E$2:$E$883,A7,'X-DSP-ALL'!$BQ$2:$BQ$883) -> 5 | Y7: 50 | Z7: 50 | AA7: 49 | AB7: 49 | AC7: 51 | AD7: 51 | AE7: 47 | AF7: 47
A8: 83 | B8: Upchurch, Nancy | C8: 83 | D8: R | E8: 0 | F8: 0 | G8: 0 | H8: 0 | I8: 0 | J8: 0 | K8: 0 | L8: 0 | M8: 0 | N8: =SUMIF('X-DSP-ALL'!$E$2:$E$883,A8,'X-DSP-ALL'!$L$2:$L$883) -> 0 | O8: =SUMIF('X-DSP-ALL'!$E$2:$E$883,A8,'X-DSP-ALL'!$M$2:$M$883) -> 0 | P8: =SUMIF('X-DSP-ALL'!$E$2:$E$883,A8,'X-DSP-ALL'!$N$2:$N$883) -> 0 | Q8: =SUMIF('X-DSP-ALL'!$E$2:$E$883,A8,'X-DSP-ALL'!$O$2:$O$883) -> 0 | R8: =SUMIF('X-DSP-ALL'!$E$2:$E$883,A8,'X-DSP-ALL'!$P$2:$P$883) -> 0 | S8: =SUMIF('X-DSP-ALL'!$E$2:$E$883,A8,'X-DSP-ALL'!$Q$2:$Q$883) -> 0 | T8: =IF(A8=0,0,SUMIF('X-DSP-ALL'!$F$2:$F$883,A8,'X-DSP-ALL'!$BE$2:$BE$883)) -> 0 | U8: =IF(A8=0,0,(N8*Setup!$J$17)+(O8*Setup!$J$18)+(P8*Setup!$J$19)+(Q8*Setup!$J$22)+(R8*Setup!$J$23)+(S8*Setup!$J$24)+(T8)) -> 0 | V8: =SUMIF('X-DSP-ALL'!$E$2:$E$883,A8,'X-DSP-ALL'!$BO$2:$BO$883) -> 0 | W8: =SUMIF('X-DSP-ALL'!$E$2:$E$883,A8,'X-DSP-ALL'!$BP$2:$BP$883) -> 0 | X8: =SUMIF('X-DSP-ALL'!$E$2:$E$883,A8,'X-DSP-ALL'!$BQ$2:$BQ$883) -> 0
A9: 84 | B9: Gavin, Steve | C9: 84 | D9: R | E9: 0 | F9: 0 | G9: 0 | H9: 0 | I9: 0 | J9: 0 | K9: 0 | L9: 0 | M9: 0 | N9: =SUMIF('X-DSP-ALL'!$E$2:$E$883,A9,'X-DSP-ALL'!$L$2:$L$883) -> 0 | O9: =SUMIF('X-DSP-ALL'!$E$2:$E$883,A9,'X-DSP-ALL'!$M$2:$M$883) -> 0 | P9: =SUMIF('X-DSP-ALL'!$E$2:$E$883,A9,'X-DSP-ALL'!$N$2:$N$883) -> 0 | Q9: =SUMIF('X-DSP-ALL'!$E$2:$E$883,A9,'X-DSP-ALL'!$O$2:$O$883) -> 0 | R9: =SUMIF('X-DSP-ALL'!$E$2:$E$883,A9,'X-DSP-ALL'!$P$2:$P$883) -> 0 | S9: =SUMIF('X-DSP-ALL'!$E$2:$E$883,A9,'X-DSP-ALL'!$Q$2:$Q$883) -> 0 | T9: =IF(A9=0,0,SUMIF('X-DSP-ALL'!$F$2:$F$883,A9,'X-DSP-ALL'!$BE$2:$BE$883)) -> 0 | U9: =IF(A9=0,0,(N9*Setup!$J$17)+(O9*Setup!$J$18)+(P9*Setup!$J$19)+(Q9*Setup!$J$22)+(R9*Setup!$J$23)+(S9*Setup!$J$24)+(T9)) -> 0 | V9: =SUMIF('X-DSP-ALL'!$E$2:$E$883,A9,'X-DSP-ALL'!$BO$2:$BO$883) -> 0 | W9: =SUMIF('X-DSP-ALL'!$E$2:$E$883,A9,'X-DSP-ALL'!$BP$2:$BP$883) -> 0 | X9: =SUMIF('X-DSP-ALL'!$E$2:$E$883,A9,'X-DSP-ALL'!$BQ$2:$BQ$883) -> 0
A10: 85 | B10: Fry, Charles | C10: 85 | D10: R | E10: 3 | F10: 191 | G10: 3 | H10: 0 | I10: 0 | J10: 191 | K10: 3 | L10: 63.66666667 | M10: 22.93333333 | N10: =SUMIF('X-DSP-ALL'!$E$2:$E$883,A10,'X-DSP-ALL'!$L$2:$L$883) -> 6 | O10: =SUMIF('X-DSP-ALL'!$E$2:$E$883,A10,'X-DSP-ALL'!$M$2:$M$883) -> 15 | P10: =SUMIF('X-DSP-ALL'!$E$2:$E$883,A10,'X-DSP-ALL'!$N$2:$N$883) -> 6 | Q10: =SUMIF('X-DSP-ALL'!$E$2:$E$883,A10,'X-DSP-ALL'!$O$2:$O$883) -> 0 | R10: =SUMIF('X-DSP-ALL'!$E$2:$E$883,A10,'X-DSP-ALL'!$P$2:$P$883) -> 3 | S10: =SUMIF('X-DSP-ALL'!$E$2:$E$883,A10,'X-DSP-ALL'!$Q$2:$Q$883) -> 0 | T10: =IF(A10=0,0,SUMIF('X-DSP-ALL'!$F$2:$F$883,A10,'X-DSP-ALL'!$BE$2:$BE$883)) -> 0 | U10: =IF(A10=0,0,(N10*Setup!$J$17)+(O10*Setup!$J$18)+(P10*Setup!$J$19)+(Q10*Setup!$J$22)+(R10*Setup!$J$23)+(S10*Setup!$J$24)+(T10)) -> 18 | V10: =SUMIF('X-DSP-ALL'!$E$2:$E$883,A10,'X-DSP-ALL'!$BO$2:$BO$883) -> 0 | W10: =SUMIF('X-DSP-ALL'!$E$2:$E$883,A10,'X-DSP-ALL'!$BP$2:$BP$883) -> 0 | X10: =SUMIF('X-DSP-ALL'!$E$2:$E$883,A10,'X-DSP-ALL'!$BQ$2:$BQ$883) -> 0 | Y10: 65 | Z10: 65 | AA10: 61 | AB10: 61 | AC10: 65 | AD10: 65
A11: 86 | B11: Goetz, Rob | C11: 86 | D11: R | E11: 2 | F11: 122 | G11: 2 | H11: 0 | I11: 0 | J11: 122 | K11: 2 | L11: 61 | M11: 20.8 | N11: =SUMIF('X-DSP-ALL'!$E$2:$E$883,A11,'X-DSP-ALL'!$L$2:$L$883) -> 5 | O11: =SUMIF('X-DSP-ALL'!$E$2:$E$883,A11,'X-DSP-ALL'!$M$2:$M$883) -> 9 | P11: =SUMIF('X-DSP-ALL'!$E$2:$E$883,A11,'X-DSP-ALL'!$N$2:$N$883) -> 4 | Q11: =SUMIF('X-DSP-ALL'!$E$2:$E$883,A11,'X-DSP-ALL'!$O$2:$O$883) -> 0 | R11: =SUMIF('X-DSP-ALL'!$E$2:$E$883,A11,'X-DSP-ALL'!$P$2:$P$883) -> 2 | S11: =SUMIF('X-DSP-ALL'!$E$2:$E$883,A11,'X-DSP-ALL'!$Q$2:$Q$883) -> 0 | T11: =IF(A11=0,0,SUMIF('X-DSP-ALL'!$F$2:$F$883,A11,'X-DSP-ALL'!$BE$2:$BE$883)) -> 17 | U11: =IF(A11=0,0,(N11*Setup!$J$17)+(O11*Setup!$J$18)+(P11*Setup!$J$19)+(Q11*Setup!$J$22)+(R11*Setup!$J$23)+(S11*Setup!$J$24)+(T11)) -> 31 | V11: =SUMIF('X-DSP-ALL'!$E$2:$E$883,A11,'X-DSP-ALL'!$BO$2:$BO$883) -> 0 | W11: =SUMIF('X-DSP-ALL'!$E$2:$E$883,A11,'X-DSP-ALL'!$BP$2:$BP$883) -> 0 | X11: =SUMIF('X-DSP-ALL'!$E$2:$E$883,A11,'X-DSP-ALL'!$BQ$2:$BQ$883) -> 0 | Y11: 62 | Z11: 62 | AA11: 60 | AB11: 60
A12: 87 | B12: Goetz, Matt | C12: 87 | D12: R | E12: 2 | F12: 108 | G12: 2 | H12: 0 | I12: 0 | J12: 108 | K12: 2 | L12: 54 | M12: 15.2 | N12: =SUMIF('X-DSP-ALL'!$E$2:$E$883,A12,'X-DSP-ALL'!$L$2:$L$883) -> 5 | O12: =SUMIF('X-DSP-ALL'!$E$2:$E$883,A12,'X-DSP-ALL'!$M$2:$M$883) -> 8 | P12: =SUMIF('X-DSP-ALL'!$E$2:$E$883,A12,'X-DSP-ALL'!$N$2:$N$883) -> 5 | Q12: =SUMIF('X-DSP-ALL'!$E$2:$E$883,A12,'X-DSP-ALL'!$O$2:$O$883) -> 0 | R12: =SUMIF('X-DSP-ALL'!$E$2:$E$883,A12,'X-DSP-ALL'!$P$2:$P$883) -> 1 | S12: =SUMIF('X-DSP-ALL'!$E$2:$E$883,A12,'X-DSP-ALL'!$Q$2:$Q$883) -> 1 | T12: =IF(A12=0,0,SUMIF('X-DSP-ALL'!$F$2:$F$883,A12,'X-DSP-ALL'!$BE$2:$BE$883)) -> 0 | U12: =IF(A12=0,0,(N12*Setup!$J$17)+(O12*Setup!$J$18)+(P12*Setup!$J$19)+(Q12*Setup!$J$22)+(R12*Setup!$J$23)+(S12*Setup!$J$24)+(T12)) -> 17 | V12: =SUMIF('X-DSP-ALL'!$E$2:$E$883,A12,'X-DSP-ALL'!$BO$2:$BO$883) -> 0 | W12: =SUMIF('X-DSP-ALL'!$E$2:$E$883,A12,'X-DSP-ALL'!$BP$2:$BP$883) -> 0 | X12: =SUMIF('X-DSP-ALL'!$E$2:$E$883,A12,'X-DSP-ALL'!$BQ$2:$BQ$883) -> 0 | AC12: 54 | AD12: 54 | AE12: 54 | AF12: 54
A13: 88 | B13: Bridwell, Glen | C13: 88 | D13: R | E13: 2 | F13: 90 | G13: 2 | H13: 0 | I13: 0 | J13: 90 | K13: 2 | L13: 45 | M13: 8 | N13: =SUMIF('X-DSP-ALL'!$E$2:$E$883,A13,'X-DSP-ALL'!$L$2:$L$883) -> 6 | O13: =SUMIF('X-DSP-ALL'!$E$2:$E$883,A13,'X-DSP-ALL'!$M$2:$M$883) -> 7 | P13: =SUMIF('X-DSP-ALL'!$E$2:$E$883,A13,'X-DSP-ALL'!$N$2:$N$883) -> 5 | Q13: =SUMIF('X-DSP-ALL'!$E$2:$E$883,A13,'X-DSP-ALL'!$O$2:$O$883) -> 0 | R13: =SUMIF('X-DSP-ALL'!$E$2:$E$883,A13,'X-DSP-ALL'!$P$2:$P$883) -> 0 | S13: =SUMIF('X-DSP-ALL'!$E$2:$E$883,A13,'X-DSP-ALL'!$Q$2:$Q$883) -> 2 | T13: =IF(A13=0,0,SUMIF('X-DSP-ALL'!$F$2:$F$883,A13,'X-DSP-ALL'!$BE$2:$BE$883)) -> 16 | U13: =IF(A13=0,0,(N13*Setup!$J$17)+(O13*Setup!$J$18)+(P13*Setup!$J$19)+(Q13*Setup!$J$22)+(R13*Setup!$J$23)+(S13*Setup!$J$24)+(T13)) -> 37 | V13: =SUMIF('X-DSP-ALL'!$E$2:$E$883,A13,'X-DSP-ALL'!$BO$2:$BO$883) -> 0 | W13: =SUMIF('X-DSP-ALL'!$E$2:$E$883,A13,'X-DSP-ALL'!$BP$2:$BP$883) -> 1 | X13: =SUMIF('X-DSP-ALL'!$E$2:$E$883,A13,'X-DSP-ALL'!$BQ$2:$BQ$883) -> 3 | Y13: 44 | Z13: 44 | AE13: 46 | AF13: 46
A14: 89 | B14: Jonovski, Mendo | C14: 89 | D14: R | E14: 2 | F14: 114 | G14: 2 | H14: 0 | I14: 0 | J14: 114 | K14: 2 | L14: 57 | M14: 17.6 | N14: =SUMIF('X-DSP-ALL'!$E$2:$E$883,A14,'X-DSP-ALL'!$L$2:$L$883) -> 5 | O14: =SUMIF('X-DSP-ALL'!$E$2:$E$883,A14,'X-DSP-ALL'!$M$2:$M$883) -> 8 | P14: =SUMIF('X-DSP-ALL'!$E$2:$E$883,A14,'X-DSP-ALL'!$N$2:$N$883) -> 5 | Q14: =SUMIF('X-DSP-ALL'!$E$2:$E$883,A14,'X-DSP-ALL'!$O$2:$O$883) -> 0 | R14: =SUMIF('X-DSP-ALL'!$E$2:$E$883,A14,'X-DSP-ALL'!$P$2:$P$883) -> 1 | S14: =SUMIF('X-DSP-ALL'!$E$2:$E$883,A14,'X-DSP-ALL'!$Q$2:$Q$883) -> 1 | T14: =IF(A14=0,0,SUMIF('X-DSP-ALL'!$F$2:$F$883,A14,'X-DSP-ALL'!$BE$2:$BE$883)) -> 15 | U14: =IF(A14=0,0,(N14*Setup!$J$17)+(O14*Setup!$J$18)+(P14*Setup!$J$19)+(Q14*Setup!$J$22)+(R14*Setup!$J$23)+(S14*Setup!$J$24)+(T14)) -> 32 | V14: =SUMIF('X-DSP-ALL'!$E$2:$E$883,A14,'X-DSP-ALL'!$BO$2:$BO$883) -> 0 | W14: =SUMIF('X-DSP-ALL'!$E$2:$E$883,A14,'X-DSP-ALL'!$BP$2:$BP$883) -> 0 | X14: =SUMIF('X-DSP-ALL'!$E$2:$E$883,A14,'X-DSP-ALL'!$BQ$2:$BQ$883) -> 0 | AA14: 55 | AB14: 55 | AE14: 59 | AF14: 59
A15: 90 | B15: Johnson, Mike | C15: 90 | D15: R | E15: 2 | F15: 127 | G15: 2 | H15: 0 | I15: 0 | J15: 127 | K15: 2 | L15: 63.5 | M15: 22.8 | N15: =SUMIF('X-DSP-ALL'!$E$2:$E$883,A15,'X-DSP-ALL'!$L$2:$L$883) -> 7 | O15: =SUMIF('X-DSP-ALL'!$E$2:$E$883,A15,'X-DSP-ALL'!$M$2:$M$883) -> 7 | P15: =SUMIF('X-DSP-ALL'!$E$2:$E$883,A15,'X-DSP-ALL'!$N$2:$N$883) -> 4 | Q15: =SUMIF('X-DSP-ALL'!$E$2:$E$883,A15,'X-DSP-ALL'!$O$2:$O$883) -> 0 | R15: =SUMIF('X-DSP-ALL'!$E$2:$E$883,A15,'X-DSP-ALL'!$P$2:$P$883) -> 2 | S15: =SUMIF('X-DSP-ALL'!$E$2:$E$883,A15,'X-DSP-ALL'!$Q$2:$Q$883) -> 0 | T15: =IF(A15=0,0,SUMIF('X-DSP-ALL'!$F$2:$F$883,A15,'X-DSP-ALL'!$BE$2:$BE$883)) -> 0 | U15: =IF(A15=0,0,(N15*Setup!$J$17)+(O15*Setup!$J$18)+(P15*Setup!$J$19)+(Q15*Setup!$J$22)+(R15*Setup!$J$23)+(S15*Setup!$J$24)+(T15)) -> 18 | V15: =SUMIF('X-DSP-ALL'!$E$2:$E$883,A15,'X-DSP-ALL'!$BO$2:$BO$883) -> 0 | W15: =SUMIF('X-DSP-ALL'!$E$2:$E$883,A15,'X-DSP-ALL'!$BP$2:$BP$883) -> 0 | X15: =SUMIF('X-DSP-ALL'!$E$2:$E$883,A15,'X-DSP-ALL'!$BQ$2:$BQ$883) -> 0 | Y15: 61 | Z15: 61 | AC15: 66 | AD15: 66
A16: 91 | B16: Jonovski, Mire | C16: 91 | D16: R | E16: 2 | F16: 120 | G16: 2 | H16: 0 | I16: 0 | J16: 120 | K16: 2 | L16: 60 | M16: 20 | N16: =SUMIF('X-DSP-ALL'!$E$2:$E$883,A16,'X-DSP-ALL'!$L$2:$L$883) -> 4 | O16: =SUMIF('X-DSP-ALL'!$E$2:$E$883,A16,'X-DSP-ALL'!$M$2:$M$883) -> 9 | P16: =SUMIF('X-DSP-ALL'!$E$2:$E$883,A16,'X-DSP-ALL'!$N$2:$N$883) -> 5 | Q16: =SUMIF('X-DSP-ALL'!$E$2:$E$883,A16,'X-DSP-ALL'!$O$2:$O$883) -> 0 | R16: =SUMIF('X-DSP-ALL'!$E$2:$E$883,A16,'X-DSP-ALL'!$P$2:$P$883) -> 2 | S16: =SUMIF('X-DSP-ALL'!$E$2:$E$883,A16,'X-DSP-ALL'!$Q$2:$Q$883) -> 0 | T16: =IF(A16=0,0,SUMIF('X-DSP-ALL'!$F$2:$F$883,A16,'X-DSP-ALL'!$BE$2:$BE$883)) -> 0 | U16: =IF(A16=0,0,(N16*Setup!$J$17)+(O16*Setup!$J$18)+(P16*Setup!$J$19)+(Q16*Setup!$J$22)+(R16*Setup!$J$23)+(S16*Setup!$J$24)+(T16)) -> 13 | V16: =SUMIF('X-DSP-ALL'!$E$2:$E$883,A16,'X-DSP-ALL'!$BO$2:$BO$883) -> 0 | W16: =SUMIF('X-DSP-ALL'!$E$2:$E$883,A16,'X-DSP-ALL'!$BP$2:$BP$883) -> 0 | X16: =SUMIF('X-DSP-ALL'!$E$2:$E$883,A16,'X-DSP-ALL'!$BQ$2:$BQ$883) -> 1 | AA16: 61 | AB16: 61 | AC16: 59 | AD16: 59
A17: 92 | B17: Hanna, Dave | C17: 92 | D17: R | E17: 1 | F17: 56 | G17: 1 | H17: 0 | I17: 0 | J17: 56 | K17: 1 | L17: 56 | M17: 16.8 | N17: =SUMIF('X-DSP-ALL'!$E$2:$E$883,A17,'X-DSP-ALL'!$L$2:$L$883) -> 0 | O17: =SUMIF('X-DSP-ALL'!$E$2:$E$883,A17,'X-DSP-ALL'!$M$2:$M$883) -> 0 | P17: =SUMIF('X-DSP-ALL'!$E$2:$E$883,A17,'X-DSP-ALL'!$N$2:$N$883) -> 0 | Q17: =SUMIF('X-DSP-ALL'!$E$2:$E$883,A17,'X-DSP-ALL'!$O$2:$O$883) -> 0 | R17: =SUMIF('X-DSP-ALL'!$E$2:$E$883,A17,'X-DSP-ALL'!$P$2:$P$883) -> 0 | S17: =SUMIF('X-DSP-ALL'!$E$2:$E$883,A17,'X-DSP-ALL'!$Q$2:$Q$883) -> 0 | T17: =IF(A17=0,0,SUMIF('X-DSP-ALL'!$F$2:$F$883,A17,'X-DSP-ALL'!$BE$2:$BE$883)) -> 28 | U17: =IF(A17=0,0,(N17*Setup!$J$17)+(O17*Setup!$J$18)+(P17*Setup!$J$19)+(Q17*Setup!$J$22)+(R17*Setup!$J$23)+(S17*Setup!$J$24)+(T17)) -> 28 | V17: =SUMIF('X-DSP-ALL'!$E$2:$E$883,A17,'X-DSP-ALL'!$BO$2:$BO$883) -> 0 | W17: =SUMIF('X-DSP-ALL'!$E$2:$E$883,A17,'X-DSP-ALL'!$BP$2:$BP$883) -> 0 | X17: =SUMIF('X-DSP-ALL'!$E$2:$E$883,A17,'X-DSP-ALL'!$BQ$2:$BQ$883) -> 1 | AC17: 56 | AD17: 56
A18: 93 | B18: Shoaf, Joe | C18: 93 | D18: R | E18: 2 | F18: 120 | G18: 2 | H18: 0 | I18: 0 | J18: 120 | K18: 2 | L18: 60 | M18: 20 | N18: =SUMIF('X-DSP-ALL'!$E$2:$E$883,A18,'X-DSP-ALL'!$L$2:$L$883) -> 3 | O18: =SUMIF('X-DSP-ALL'!$E$2:$E$883,A18,'X-DSP-ALL'!$M$2:$M$883) -> 3 | P18: =SUMIF('X-DSP-ALL'!$E$2:$E$883,A18,'X-DSP-ALL'!$N$2:$N$883) -> 3 | Q18: =SUMIF('X-DSP-ALL'!$E$2:$E$883,A18,'X-DSP-ALL'!$O$2:$O$883) -> 0 | R18: =SUMIF('X-DSP-ALL'!$E$2:$E$883,A18,'X-DSP-ALL'!$P$2:$P$883) -> 1 | S18: =SUMIF('X-DSP-ALL'!$E$2:$E$883,A18,'X-DSP-ALL'!$Q$2:$Q$883) -> 0 | T18: =IF(A18=0,0,SUMIF('X-DSP-ALL'!$F$2:$F$883,A18,'X-DSP-ALL'!$BE$2:$BE$883)) -> 22 | U18: =IF(A18=0,0,(N18*Setup!$J$17)+(O18*Setup!$J$18)+(P18*Setup!$J$19)+(Q18*Setup!$J$22)+(R18*Setup!$J$23)+(S18*Setup!$J$24)+(T18)) -> 31 | V18: =SUMIF('X-DSP-ALL'!$E$2:$E$883,A18,'X-DSP-ALL'!$BO$2:$BO$883) -> 0 | W18: =SUMIF('X-DSP-ALL'!$E$2:$E$883,A18,'X-DSP-ALL'!$BP$2:$BP$883) -> 0 | X18: =SUMIF('X-DSP-ALL'!$E$2:$E$883,A18,'X-DSP-ALL'!$BQ$2:$BQ$883) -> 0 | Y18: 60 | Z18: 60 | AE18: 60 | AF18: 60
A19: 94 | B19: Kern, Rick | C19: 94 | D19: R | E19: 2 | F19: 105 | G19: 2 | H19: 0 | I19: 0 | J19: 105 | K19: 2 | L19: 52.5 | M19: 14 | N19: =SUMIF('X-DSP-ALL'!$E$2:$E$883,A19,'X-DSP-ALL'!$L$2:$L$883) -> 7 | O19: =SUMIF('X-DSP-ALL'!$E$2:$E$883,A19,'X-DSP-ALL'!$M$2:$M$883) -> 9 | P19: =SUMIF('X-DSP-ALL'!$E$2:$E$883,A19,'X-DSP-ALL'!$N$2:$N$883) -> 2 | Q19: =SUMIF('X-DSP-ALL'!$E$2:$E$883,A19,'X-DSP-ALL'!$O$2:$O$883) -> 1 | R19: =SUMIF('X-DSP-ALL'!$E$2:$E$883,A19,'X-DSP-ALL'!$P$2:$P$883) -> 1 | S19: =SUMIF('X-DSP-ALL'!$E$2:$E$883,A19,'X-DSP-ALL'!$Q$2:$Q$883) -> 0 | T19: =IF(A19=0,0,SUMIF('X-DSP-ALL'!$F$2:$F$883,A19,'X-DSP-ALL'!$BE$2:$BE$883)) -> 0 | U19: =IF(A19=0,0,(N19*Setup!$J$17)+(O19*Setup!$J$18)+(P19*Setup!$J$19)+(Q19*Setup!$J$22)+(R19*Setup!$J$23)+(S19*Setup!$J$24)+(T19)) -> 20 | V19: =SUMIF('X-DSP-ALL'!$E$2:$E$883,A19,'X-DSP-ALL'!$BO$2:$BO$883) -> 0 | W19: =SUMIF('X-DSP-ALL'!$E$2:$E$883,A19,'X-DSP-ALL'!$BP$2:$BP$883) -> 0 | X19: =SUMIF('X-DSP-ALL'!$E$2:$E$883,A19,'X-DSP-ALL'!$BQ$2:$BQ$883) -> 3 | AA19: 56 | AB19: 56 | AC19: 49 | AD19: 49
A20: 95 | B20: Hollstegge, Steve | C20: 95 | D20: R | E20: 1 | F20: 56 | G20: 1 | H20: 0 | I20: 0 | J20: 56 | K20: 1 | L20: 56 | M20: 16.8 | N20: =SUMIF('X-DSP-ALL'!$E$2:$E$883,A20,'X-DSP-ALL'!$L$2:$L$883) -> 2 | O20: =SUMIF('X-DSP-ALL'!$E$2:$E$883,A20,'X-DSP-ALL'!$M$2:$M$883) -> 4 | P20: =SUMIF('X-DSP-ALL'!$E$2:$E$883,A20,'X-DSP-ALL'!$N$2:$N$883) -> 3 | Q20: =SUMIF('X-DSP-ALL'!$E$2:$E$883,A20,'X-DSP-ALL'!$O$2:$O$883) -> 0 | R20: =SUMIF('X-DSP-ALL'!$E$2:$E$883,A20,'X-DSP-ALL'!$P$2:$P$883) -> 1 | S20: =SUMIF('X-DSP-ALL'!$E$2:$E$883,A20,'X-DSP-ALL'!$Q$2:$Q$883) -> 0 | T20: =IF(A20=0,0,SUMIF('X-DSP-ALL'!$F$2:$F$883,A20,'X-DSP-ALL'!$BE$2:$BE$883)) -> 0 | U20: =IF(A20=0,0,(N20*Setup!$J$17)+(O20*Setup!$J$18)+(P20*Setup!$J$19)+(Q20*Setup!$J$22)+(R20*Setup!$J$23)+(S20*Setup!$J$24)+(T20)) -> 7 | V20: =SUMIF('X-DSP-ALL'!$E$2:$E$883,A20,'X-DSP-ALL'!$BO$2:$BO$883) -> 0 | W20: =SUMIF('X-DSP-ALL'!$E$2:$E$883,A20,'X-DSP-ALL'!$BP$2:$BP$883) -> 0 | X20: =SUMIF('X-DSP-ALL'!$E$2:$E$883,A20,'X-DSP-ALL'!$BQ$2:$BQ$883) -> 0 | Y20: 56 | Z20: 56
A21: 96 | B21: Schmitt, Andy | C21: 96 | D21: R | E21: 4 | F21: 201 | G21: 4 | H21: 0 | I21: 0 | J21: 201 | K21: 4 | L21: 50.25 | M21: 12.2 | N21: =SUMIF('X-DSP-ALL'!$E$2:$E$883,A21,'X-DSP-ALL'!$L$2:$L$883) -> 10 | O21: =SUMIF('X-DSP-ALL'!$E$2:$E$883,A21,'X-DSP-ALL'!$M$2:$M$883) -> 16 | P21: =SUMIF('X-DSP-ALL'!$E$2:$E$883,A21,'X-DSP-ALL'!$N$2:$N$883) -> 10 | Q21: =SUMIF('X-DSP-ALL'!$E$2:$E$883,A21,'X-DSP-ALL'!$O$2:$O$883) -> 2 | R21: =SUMIF('X-DSP-ALL'!$E$2:$E$883,A21,'X-DSP-ALL'!$P$2:$P$883) -> 2 | S21: =SUMIF('X-DSP-ALL'!$E$2:$E$883,A21,'X-DSP-ALL'!$Q$2:$Q$883) -> 0 | T21: =IF(A21=0,0,SUMIF('X-DSP-ALL'!$F$2:$F$883,A21,'X-DSP-ALL'!$BE$2:$BE$883)) -> 0 | U21: =IF(A21=0,0,(N21*Setup!$J$17)+(O21*Setup!$J$18)+(P21*Setup!$J$19)+(Q21*Setup!$J$22)+(R21*Setup!$J$23)+(S21*Setup!$J$24)+(T21)) -> 38 | V21: =SUMIF('X-DSP-ALL'!$E$2:$E$883,A21,'X-DSP-ALL'!$BO$2:$BO$883) -> 0 | W21: =SUMIF('X-DSP-ALL'!$E$2:$E$883,A21,'X-DSP-ALL'!$BP$2:$BP$883) -> 1 | X21: =SUMIF('X-DSP-ALL'!$E$2:$E$883,A21,'X-DSP-ALL'!$BQ$2:$BQ$883) -> 2 | Y21: 51 | Z21: 51 | AA21: 50 | AB21: 50 | AC21: 47 | AD21: 47 | AE21: 53 | AF21: 53
A22: 97 | B22: Schmitt, Peter | C22: 97 | D22: R | E22: 4 | F22: 188 | G22: 4 | H22: 0 | I22: 0 | J22: 188 | K22: 4 | L22: 47 | M22: 9.6 | N22: =SUMIF('X-DSP-ALL'!$E$2:$E$883,A22,'X-DSP-ALL'!$L$2:$L$883) -> 7 | O22: =SUMIF('X-DSP-ALL'!$E$2:$E$883,A22,'X-DSP-ALL'!$M$2:$M$883) -> 19 | P22: =SUMIF('X-DSP-ALL'!$E$2:$E$883,A22,'X-DSP-ALL'!$N$2:$N$883) -> 10 | Q22: =SUMIF('X-DSP-ALL'!$E$2:$E$883,A22,'X-DSP-ALL'!$O$2:$O$883) -> 1 | R22: =SUMIF('X-DSP-ALL'!$E$2:$E$883,A22,'X-DSP-ALL'!$P$2:$P$883) -> 2 | S22: =SUMIF('X-DSP-ALL'!$E$2:$E$883,A22,'X-DSP-ALL'!$Q$2:$Q$883) -> 1 | T22: =IF(A22=0,0,SUMIF('X-DSP-ALL'!$F$2:$F$883,A22,'X-DSP-ALL'!$BE$2:$BE$883)) -> 0 | U22: =IF(A22=0,0,(N22*Setup!$J$17)+(O22*Setup!$J$18)+(P22*Setup!$J$19)+(Q22*Setup!$J$22)+(R22*Setup!$J$23)+(S22*Setup!$J$24)+(T22)) -> 30 | V22: =SUMIF('X-DSP-ALL'!$E$2:$E$883,A22,'X-DSP-ALL'!$BO$2:$BO$883) -> 0 | W22: =SUMIF('X-DSP-ALL'!$E$2:$E$883,A22,'X-DSP-ALL'!$BP$2:$BP$883) -> 0 | X22: =SUMIF('X-DSP-ALL'!$E$2:$E$883,A22,'X-DSP-ALL'!$BQ$2:$BQ$883) -> 6 | Y22: 47 | Z22: 47 | AA22: 48 | AB22: 48 | AC22: 44 | AD22: 44 | AE22: 49 | AF22: 49
A23: 98 | B23: Doll, Mike | C23: 98 | D23: R | E23: 4 | F23: 224 | G23: 4 | H23: 0 | I23: 0 | J23: 224 | K23: 4 | L23: 56 | M23: 16.8 | N23: =SUMIF('X-DSP-ALL'!$E$2:$E$883,A23,'X-DSP-ALL'!$L$2:$L$883) -> 12 | O23: =SUMIF('X-DSP-ALL'!$E$2:$E$883,A23,'X-DSP-ALL'!$M$2:$M$883) -> 11 | P23: =SUMIF('X-DSP-ALL'!$E$2:$E$883,A23,'X-DSP-ALL'!$N$2:$N$883) -> 13 | Q23: =SUMIF('X-DSP-ALL'!$E$2:$E$883,A23,'X-DSP-ALL'!$O$2:$O$883) -> 2 | R23: =SUMIF('X-DSP-ALL'!$E$2:$E$883,A23,'X-DSP-ALL'!$P$2:$P$883) -> 1 | S23: =SUMIF('X-DSP-ALL'!$E$2:$E$883,A23,'X-DSP-ALL'!$Q$2:$Q$883) -> 1 | T23: =IF(A23=0,0,SUMIF('X-DSP-ALL'!$F$2:$F$883,A23,'X-DSP-ALL'!$BE$2:$BE$883)) -> 0 | U23: =IF(A23=0,0,(N23*Setup!$J$17)+(O23*Setup!$J$18)+(P23*Setup!$J$19)+(Q23*Setup!$J$22)+(R23*Setup!$J$23)+(S23*Setup!$J$24)+(T23)) -> 47 | V23: =SUMIF('X-DSP-ALL'!$E$2:$E$883,A23,'X-DSP-ALL'!$BO$2:$BO$883) -> 0 | W23: =SUMIF('X-DSP-ALL'!$E$2:$E$883,A23,'X-DSP-ALL'!$BP$2:$BP$883) -> 0 | X23: =SUMIF('X-DSP-ALL'!$E$2:$E$883,A23,'X-DSP-ALL'!$BQ$2:$BQ$883) -> 2 | Y23: 58 | Z23: 58 | AA23: 52 | AB23: 52 | AC23: 58 | AD23: 58 | AE23: 56 | AF23: 56
A24: 99 | B24: Recher, Jason | C24: 99 | D24: R | E24: 3 | F24: 160 | G24: 3 | H24: 0 | I24: 0 | J24: 160 | K24: 3 | L24: 53.33333333 | M24: 14.66666667 | N24: =SUMIF('X-DSP-ALL'!$E$2:$E$883,A24,'X-DSP-ALL'!$L$2:$L$883) -> 11 | O24: =SUMIF('X-DSP-ALL'!$E$2:$E$883,A24,'X-DSP-ALL'!$M$2:$M$883) -> 11 | P24: =SUMIF('X-DSP-ALL'!$E$2:$E$883,A24,'X-DSP-ALL'!$N$2:$N$883) -> 5 | Q24: =SUMIF('X-DSP-ALL'!$E$2:$E$883,A24,'X-DSP-ALL'!$O$2:$O$883) -> 1 | R24: =SUMIF('X-DSP-ALL'!$E$2:$E$883,A24,'X-DSP-ALL'!$P$2:$P$883) -> 2 | S24: =SUMIF('X-DSP-ALL'!$E$2:$E$883,A24,'X-DSP-ALL'!$Q$2:$Q$883) -> 0 | T24: =IF(A24=0,0,SUMIF('X-DSP-ALL'!$F$2:$F$883,A24,'X-DSP-ALL'!$BE$2:$BE$883)) -> 8 | U24: =IF(A24=0,0,(N24*Setup!$J$17)+(O24*Setup!$J$18)+(P24*Setup!$J$19)+(Q24*Setup!$J$22)+(R24*Setup!$J$23)+(S24*Setup!$J$24)+(T24)) -> 39 | V24: =SUMIF('X-DSP-ALL'!$E$2:$E$883,A24,'X-DSP-ALL'!$BO$2:$BO$883) -> 0 | W24: =SUMIF('X-DSP-ALL'!$E$2:$E$883,A24,'X-DSP-ALL'!$BP$2:$BP$883) -> 0 | X24: =SUMIF('X-DSP-ALL'!$E$2:$E$883,A24,'X-DSP-ALL'!$BQ$2:$BQ$883) -> 0 | Y24: 52 | Z24: 52 | AA24: 52 | AB24: 52 | AE24: 56 | AF24: 56
A25: 100 | B25: Landrum, Rick | C25: 100 | D25: R | E25: 1 | F25: 50 | G25: 1 | H25: 0 | I25: 0 | J25: 50 | K25: 1 | L25: 50 | M25: 12 | N25: =SUMIF('X-DSP-ALL'!$E$2:$E$883,A25,'X-DSP-ALL'!$L$2:$L$883) -> 3 | O25: =SUMIF('X-DSP-ALL'!$E$2:$E$883,A25,'X-DSP-ALL'!$M$2:$M$883) -> 4 | P25: =SUMIF('X-DSP-ALL'!$E$2:$E$883,A25,'X-DSP-ALL'!$N$2:$N$883) -> 2 | Q25: =SUMIF('X-DSP-ALL'!$E$2:$E$883,A25,'X-DSP-ALL'!$O$2:$O$883) -> 0 | R25: =SUMIF('X-DSP-ALL'!$E$2:$E$883,A25,'X-DSP-ALL'!$P$2:$P$883) -> 1 | S25: =SUMIF('X-DSP-ALL'!$E$2:$E$883,A25,'X-DSP-ALL'!$Q$2:$Q$883) -> 0 | T25: =IF(A25=0,0,SUMIF('X-DSP-ALL'!$F$2:$F$883,A25,'X-DSP-ALL'!$BE$2:$BE$883)) -> 0 | U25: =IF(A25=0,0,(N25*Setup!$J$17)+(O25*Setup!$J$18)+(P25*Setup!$J$19)+(Q25*Setup!$J$22)+(R25*Setup!$J$23)+(S25*Setup!$J$24)+(T25)) -> 8 | V25: =SUMIF('X-DSP-ALL'!$E$2:$E$883,A25,'X-DSP-ALL'!$BO$2:$BO$883) -> 0 | W25: =SUMIF('X-DSP-ALL'!$E$2:$E$883,A25,'X-DSP-ALL'!$BP$2:$BP$883) -> 0 | X25: =SUMIF('X-DSP-ALL'!$E$2:$E$883,A25,'X-DSP-ALL'!$BQ$2:$BQ$883) -> 4 | AC25: 50 | AD25: 50
A26: 101 | B26: Reese, Clint | C26: 101 | D26: R | E26: 0 | F26: 0 | G26: 0 | H26: 0 | I26: 0 | J26: 0 | K26: 0 | L26: 0 | M26: 0 | N26: =SUMIF('X-DSP-ALL'!$E$2:$E$883,A26,'X-DSP-ALL'!$L$2:$L$883) -> 0 | O26: =SUMIF('X-DSP-ALL'!$E$2:$E$883,A26,'X-DSP-ALL'!$M$2:$M$883) -> 0 | P26: =SUMIF('X-DSP-ALL'!$E$2:$E$883,A26,'X-DSP-ALL'!$N$2:$N$883) -> 0 | Q26: =SUMIF('X-DSP-ALL'!$E$2:$E$883,A26,'X-DSP-ALL'!$O$2:$O$883) -> 0 | R26: =SUMIF('X-DSP-ALL'!$E$2:$E$883,A26,'X-DSP-ALL'!$P$2:$P$883) -> 0 | S26: =SUMIF('X-DSP-ALL'!$E$2:$E$883,A26,'X-DSP-ALL'!$Q$2:$Q$883) -> 0 | T26: =IF(A26=0,0,SUMIF('X-DSP-ALL'!$F$2:$F$883,A26,'X-DSP-ALL'!$BE$2:$BE$883)) -> 0 | U26: =IF(A26=0,0,(N26*Setup!$J$17)+(O26*Setup!$J$18)+(P26*Setup!$J$19)+(Q26*Setup!$J$22)+(R26*Setup!$J$23)+(S26*Setup!$J$24)+(T26)) -> 0 | V26: =SUMIF('X-DSP-ALL'!$E$2:$E$883,A26,'X-DSP-ALL'!$BO$2:$BO$883) -> 0 | W26: =SUMIF('X-DSP-ALL'!$E$2:$E$883,A26,'X-DSP-ALL'!$BP$2:$BP$883) -> 0 | X26: =SUMIF('X-DSP-ALL'!$E$2:$E$883,A26,'X-DSP-ALL'!$BQ$2:$BQ$883) -> 0
A27: 102 | B27: Simendinger, Joe | C27: 102 | D27: R | E27: 2 | F27: 88 | G27: 2 | H27: 0 | I27: 0 | J27: 88 | K27: 2 | L27: 44 | M27: 7.2 | N27: =SUMIF('X-DSP-ALL'!$E$2:$E$883,A27,'X-DSP-ALL'!$L$2:$L$883) -> 10 | O27: =SUMIF('X-DSP-ALL'!$E$2:$E$883,A27,'X-DSP-ALL'!$M$2:$M$883) -> 5 | P27: =SUMIF('X-DSP-ALL'!$E$2:$E$883,A27,'X-DSP-ALL'!$N$2:$N$883) -> 3 | Q27: =SUMIF('X-DSP-ALL'!$E$2:$E$883,A27,'X-DSP-ALL'!$O$2:$O$883) -> 2 | R27: =SUMIF('X-DSP-ALL'!$E$2:$E$883,A27,'X-DSP-ALL'!$P$2:$P$883) -> 0 | S27: =SUMIF('X-DSP-ALL'!$E$2:$E$883,A27,'X-DSP-ALL'!$Q$2:$Q$883) -> 0 | T27: =IF(A27=0,0,SUMIF('X-DSP-ALL'!$F$2:$F$883,A27,'X-DSP-ALL'!$BE$2:$BE$883)) -> 35 | U27: =IF(A27=0,0,(N27*Setup!$J$17)+(O27*Setup!$J$18)+(P27*Setup!$J$19)+(Q27*Setup!$J$22)+(R27*Setup!$J$23)+(S27*Setup!$J$24)+(T27)) -> 66 | V27: =SUMIF('X-DSP-ALL'!$E$2:$E$883,A27,'X-DSP-ALL'!$BO$2:$BO$883) -> 0 | W27: =SUMIF('X-DSP-ALL'!$E$2:$E$883,A27,'X-DSP-ALL'!$BP$2:$BP$883) -> 1 | X27: =SUMIF('X-DSP-ALL'!$E$2:$E$883,A27,'X-DSP-ALL'!$BQ$2:$BQ$883) -> 7 | Y27: 45 | Z27: 45 | AA27: 43 | AB27: 43
A28: 103 | B28: Simendinger, Joel | C28: 103 | D28: R | E28: 4 | F28: 178 | G28: 4 | H28: 0 | I28: 0 | J28: 178 | K28: 4 | L28: 44.5 | M28: 7.6 | N28: =SUMIF('X-DSP-ALL'!$E$2:$E$883,A28,'X-DSP-ALL'!$L$2:$L$883) -> 14 | O28: =SUMIF('X-DSP-ALL'!$E$2:$E$883,A28,'X-DSP-ALL'!$M$2:$M$883) -> 13 | P28: =SUMIF('X-DSP-ALL'!$E$2:$E$883,A28,'X-DSP-ALL'!$N$2:$N$883) -> 9 | Q28: =SUMIF('X-DSP-ALL'!$E$2:$E$883,A28,'X-DSP-ALL'!$O$2:$O$883) -> 3 | R28: =SUMIF('X-DSP-ALL'!$E$2:$E$883,A28,'X-DSP-ALL'!$P$2:$P$883) -> 1 | S28: =SUMIF('X-DSP-ALL'!$E$2:$E$883,A28,'X-DSP-ALL'!$Q$2:$Q$883) -> 0 | T28: =IF(A28=0,0,SUMIF('X-DSP-ALL'!$F$2:$F$883,A28,'X-DSP-ALL'!$BE$2:$BE$883)) -> 0 | U28: =IF(A28=0,0,(N28*Setup!$J$17)+(O28*Setup!$J$18)+(P28*Setup!$J$19)+(Q28*Setup!$J$22)+(R28*Setup!$J$23)+(S28*Setup!$J$24)+(T28)) -> 49 | V28: =SUMIF('X-DSP-ALL'!$E$2:$E$883,A28,'X-DSP-ALL'!$BO$2:$BO$883) -> 0 | W28: =SUMIF('X-DSP-ALL'!$E$2:$E$883,A28,'X-DSP-ALL'!$BP$2:$BP$883) -> 1 | X28: =SUMIF('X-DSP-ALL'!$E$2:$E$883,A28,'X-DSP-ALL'!$BQ$2:$BQ$883) -> 6 | Y28: 42 | Z28: 42 | AA28: 43 | AB28: 43 | AC28: 49 | AD28: 49 | AE28: 44 | AF28: 44
A29: 104 | B29: Simendinger, Sam | C29: 104 | D29: R | E29: 2 | F29: 94 | G29: 2 | H29: 0 | I29: 0 | J29: 94 | K29: 2 | L29: 47 | M29: 9.6 | N29: =SUMIF('X-DSP-ALL'!$E$2:$E$883,A29,'X-DSP-ALL'!$L$2:$L$883) -> 12 | O29: =SUMIF('X-DSP-ALL'!$E$2:$E$883,A29,'X-DSP-ALL'!$M$2:$M$883) -> 3 | P29: =SUMIF('X-DSP-ALL'!$E$2:$E$883,A29,'X-DSP-ALL'!$N$2:$N$883) -> 3 | Q29: =SUMIF('X-DSP-ALL'!$E$2:$E$883,A29,'X-DSP-ALL'!$O$2:$O$883) -> 2 | R29: =SUMIF('X-DSP-ALL'!$E$2:$E$883,A29,'X-DSP-ALL'!$P$2:$P$883) -> 0 | S29: =SUMIF('X-DSP-ALL'!$E$2:$E$883,A29,'X-DSP-ALL'!$Q$2:$Q$883) -> 0 | T29: =IF(A29=0,0,SUMIF('X-DSP-ALL'!$F$2:$F$883,A29,'X-DSP-ALL'!$BE$2:$BE$883)) -> 0 | U29: =IF(A29=0,0,(N29*Setup!$J$17)+(O29*Setup!$J$18)+(P29*Setup!$J$19)+(Q29*Setup!$J$22)+(R29*Setup!$J$23)+(S29*Setup!$J$24)+(T29)) -> 35 | V29: =SUMIF('X-DSP-ALL'!$E$2:$E$883,A29,'X-DSP-ALL'!$BO$2:$BO$883) -> 0 | W29: =SUMIF('X-DSP-ALL'!$E$2:$E$883,A29,'X-DSP-ALL'!$BP$2:$BP$883) -> 0 | X29: =SUMIF('X-DSP-ALL'!$E$2:$E$883,A29,'X-DSP-ALL'!$BQ$2:$BQ$883) -> 4 | AC29: 46 | AD29: 46 | AE29: 48 | AF29: 48
A30: 105 | B30: Stewart, Brain | C30: 105 | D30: R | E30: 4 | F30: 210 | G30: 4 | H30: 0 | I30: 0 | J30: 210 | K30: 4 | L30: 52.5 | M30: 14 | N30: =SUMIF('X-DSP-ALL'!$E$2:$E$883,A30,'X-DSP-ALL'!$L$2:$L$883) -> 14 | O30: =SUMIF('X-DSP-ALL'!$E$2:$E$883,A30,'X-DSP-ALL'!$M$2:$M$883) -> 17 | P30: =SUMIF('X-DSP-ALL'!$E$2:$E$883,A30,'X-DSP-ALL'!$N$2:$N$883) -> 5 | Q30: =SUMIF('X-DSP-ALL'!$E$2:$E$883,A30,'X-DSP-ALL'!$O$2:$O$883) -> 2 | R30: =SUMIF('X-DSP-ALL'!$E$2:$E$883,A30,'X-DSP-ALL'!$P$2:$P$883) -> 2 | S30: =SUMIF('X-DSP-ALL'!$E$2:$E$883,A30,'X-DSP-ALL'!$Q$2:$Q$883) -> 0 | T30: =IF(A30=0,0,SUMIF('X-DSP-ALL'!$F$2:$F$883,A30,'X-DSP-ALL'!$BE$2:$BE$883)) -> 0 | U30: =IF(A30=0,0,(N30*Setup!$J$17)+(O30*Setup!$J$18)+(P30*Setup!$J$19)+(Q30*Setup!$J$22)+(R30*Setup!$J$23)+(S30*Setup!$J$24)+(T30)) -> 41 | V30: =SUMIF('X-DSP-ALL'!$E$2:$E$883,A30,'X-DSP-ALL'!$BO$2:$BO$883) -> 0 | W30: =SUMIF('X-DSP-ALL'!$E$2:$E$883,A30,'X-DSP-ALL'!$BP$2:$BP$883) -> 1 | X30: =SUMIF('X-DSP-ALL'!$E$2:$E$883,A30,'X-DSP-ALL'!$BQ$2:$BQ$883) -> 4 | Y30: 51 | Z30: 51 | AA30: 49 | AB30: 49 | AC30: 56 | AD30: 56 | AE30: 54 | AF30: 54
A31: 106 | B31: Stewart, Drake | C31: 106 | D31: R | E31: 4 | F31: 225 | G31: 4 | H31: 0 | I31: 0 | J31: 225 | K31: 4 | L31: 56.25 | M31: 17 | N31: =SUMIF('X-DSP-ALL'!$E$2:$E$883,A31,'X-DSP-ALL'!$L$2:$L$883) -> 8 | O31: =SUMIF('X-DSP-ALL'!$E$2:$E$883,A31,'X-DSP-ALL'!$M$2:$M$883) -> 17 | P31: =SUMIF('X-DSP-ALL'!$E$2:$E$883,A31,'X-DSP-ALL'!$N$2:$N$883) -> 11 | Q31: =SUMIF('X-DSP-ALL'!$E$2:$E$883,A31,'X-DSP-ALL'!$O$2:$O$883) -> 0 | R31: =SUMIF('X-DSP-ALL'!$E$2:$E$883,A31,'X-DSP-ALL'!$P$2:$P$883) -> 3 | S31: =SUMIF('X-DSP-ALL'!$E$2:$E$883,A31,'X-DSP-ALL'!$Q$2:$Q$883) -> 1 | T31: =IF(A31=0,0,SUMIF('X-DSP-ALL'!$F$2:$F$883,A31,'X-DSP-ALL'!$BE$2:$BE$883)) -> 0 | U31: =IF(A31=0,0,(N31*Setup!$J$17)+(O31*Setup!$J$18)+(P31*Setup!$J$19)+(Q31*Setup!$J$22)+(R31*Setup!$J$23)+(S31*Setup!$J$24)+(T31)) -> 29 | V31: =SUMIF('X-DSP-ALL'!$E$2:$E$883,A31,'X-DSP-ALL'!$BO$2:$BO$883) -> 0 | W31: =SUMIF('X-DSP-ALL'!$E$2:$E$883,A31,'X-DSP-ALL'!$BP$2:$BP$883) -> 0 | X31: =SUMIF('X-DSP-ALL'!$E$2:$E$883,A31,'X-DSP-ALL'!$BQ$2:$BQ$883) -> 3 | Y31: 52 | Z31: 52 | AA31: 56 | AB31: 56 | AC31: 58 | AD31: 58 | AE31: 59 | AF31: 59
A32: 107 | B32: Metzger, Mike | C32: 107 | D32: R | E32: 3 | F32: 140 | G32: 3 | H32: 0 | I32: 0 | J32: 140 | K32: 3 | L32: 46.66666667 | M32: 9.333333333 | N32: =SUMIF('X-DSP-ALL'!$E$2:$E$883,A32,'X-DSP-ALL'!$L$2:$L$883) -> 10 | O32: =SUMIF('X-DSP-ALL'!$E$2:$E$883,A32,'X-DSP-ALL'!$M$2:$M$883) -> 11 | P32: =SUMIF('X-DSP-ALL'!$E$2:$E$883,A32,'X-DSP-ALL'!$N$2:$N$883) -> 6 | Q32: =SUMIF('X-DSP-ALL'!$E$2:$E$883,A32,'X-DSP-ALL'!$O$2:$O$883) -> 2 | R32: =SUMIF('X-DSP-ALL'!$E$2:$E$883,A32,'X-DSP-ALL'!$P$2:$P$883) -> 1 | S32: =SUMIF('X-DSP-ALL'!$E$2:$E$883,A32,'X-DSP-ALL'!$Q$2:$Q$883) -> 0 | T32: =IF(A32=0,0,SUMIF('X-DSP-ALL'!$F$2:$F$883,A32,'X-DSP-ALL'!$BE$2:$BE$883)) -> 0 | U32: =IF(A32=0,0,(N32*Setup!$J$17)+(O32*Setup!$J$18)+(P32*Setup!$J$19)+(Q32*Setup!$J$22)+(R32*Setup!$J$23)+(S32*Setup!$J$24)+(T32)) -> 34 | V32: =SUMIF('X-DSP-ALL'!$E$2:$E$883,A32,'X-DSP-ALL'!$BO$2:$BO$883) -> 0 | W32: =SUMIF('X-DSP-ALL'!$E$2:$E$883,A32,'X-DSP-ALL'!$BP$2:$BP$883) -> 0 | X32: =SUMIF('X-DSP-ALL'!$E$2:$E$883,A32,'X-DSP-ALL'!$BQ$2:$BQ$883) -> 8 | Y32: 48 | Z32: 48 | AA32: 45 | AB32: 45 | AC32: 47 | AD32: 47
A33: 108 | B33: Dulan, Bob | C33: 108 | D33: R | E33: 4 | F33: 231 | G33: 4 | H33: 0 | I33: 0 | J33: 231 | K33: 4 | L33: 57.75 | M33: 18.2 | N33: =SUMIF('X-DSP-ALL'!$E$2:$E$883,A33,'X-DSP-ALL'!$L$2:$L$883) -> 13 | O33: =SUMIF('X-DSP-ALL'!$E$2:$E$883,A33,'X-DSP-ALL'!$M$2:$M$883) -> 14 | P33: =SUMIF('X-DSP-ALL'!$E$2:$E$883,A33,'X-DSP-ALL'!$N$2:$N$883) -> 9 | Q33: =SUMIF('X-DSP-ALL'!$E$2:$E$883,A33,'X-DSP-ALL'!$O$2:$O$883) -> 1 | R33: =SUMIF('X-DSP-ALL'!$E$2:$E$883,A33,'X-DSP-ALL'!$P$2:$P$883) -> 3 | S33: =SUMIF('X-DSP-ALL'!$E$2:$E$883,A33,'X-DSP-ALL'!$Q$2:$Q$883) -> 0 | T33: =IF(A33=0,0,SUMIF('X-DSP-ALL'!$F$2:$F$883,A33,'X-DSP-ALL'!$BE$2:$BE$883)) -> 0 | U33: =IF(A33=0,0,(N33*Setup!$J$17)+(O33*Setup!$J$18)+(P33*Setup!$J$19)+(Q33*Setup!$J$22)+(R33*Setup!$J$23)+(S33*Setup!$J$24)+(T33)) -> 39 | V33: =SUMIF('X-DSP-ALL'!$E$2:$E$883,A33,'X-DSP-ALL'!$BO$2:$BO$883) -> 0 | W33: =SUMIF('X-DSP-ALL'!$E$2:$E$883,A33,'X-DSP-ALL'!$BP$2:$BP$883) -> 0 | X33: =SUMIF('X-DSP-ALL'!$E$2:$E$883,A33,'X-DSP-ALL'!$BQ$2:$BQ$883) -> 0 | Y33: 55 | Z33: 55 | AA33: 55 | AB33: 55 | AC33: 63 | AD33: 63 | AE33: 58 | AF33: 58
A34: 109 | B34: McGrew, Doug | C34: 109 | D34: R | E34: =COUNTA(Y34,AA34,AC34,AE34,AG34,AI34,AK34,AM34,AO34,AQ34,AS34,AU34,AW34,AY34,BA34,BC34,BE34,BG34,BI34,BK34) -> 4 | F34: =SUM(Z34,AB34,AD34,AF34,AH34,AJ34,AL34,AN34,AP34,AR34,AT34,AV34,AX34,AZ34,BB34,BD34,BF34,BH34,BJ34,BL34) -> 163 | G34: =COUNTA(Z34,AB34,AD34,AF34,AH34,AJ34,AL34,AN34,AP34,AR34,AT34,AV34,AX34,AZ34,BB34,BD34,BF34,BH34,BJ34,BL34) -> 4 | H34: =IF(G34>=6,MIN(Z34,AB34,AD34,AF34,AH34,AJ34,AL34,AN34,AP34,AR34,AT34,AV34,AX34,AZ34,BB34,BD34,BF34,BH34,BJ34,BL34),0) -> 0 | I34: =IF(G34>=6,MAX(Z34,AB34,AD34,AF34,AH34,AJ34,AL34,AN34,AP34,AR34,AT34,AV34,AX34,AZ34,BB34,BD34,BF34,BH34,BJ34,BL34),0) -> 0 | J34: 163 | K34: 4 | L34: 40.75 | M34: 4.6 | N34: =SUMIF('X-DSP-ALL'!$E$2:$E$883,A34,'X-DSP-ALL'!$L$2:$L$883) -> 15 | O34: =SUMIF('X-DSP-ALL'!$E$2:$E$883,A34,'X-DSP-ALL'!$M$2:$M$883) -> 10 | P34: =SUMIF('X-DSP-ALL'!$E$2:$E$883,A34,'X-DSP-ALL'!$N$2:$N$883) -> 11 | Q34: =SUMIF('X-DSP-ALL'!$E$2:$E$883,A34,'X-DSP-ALL'!$O$2:$O$883) -> 3 | R34: =SUMIF('X-DSP-ALL'!$E$2:$E$883,A34,'X-DSP-ALL'!$P$2:$P$883) -> 1 | S34: =SUMIF('X-DSP-ALL'!$E$2:$E$883,A34,'X-DSP-ALL'!$Q$2:$Q$883) -> 0 | T34: =IF(A34=0,0,SUMIF('X-DSP-ALL'!$F$2:$F$883,A34,'X-DSP-ALL'!$BE$2:$BE$883)) -> 0 | U34: =IF(A34=0,0,(N34*Setup!$J$17)+(O34*Setup!$J$18)+(P34*Setup!$J$19)+(Q34*Setup!$J$22)+(R34*Setup!$J$23)+(S34*Setup!$J$24)+(T34)) -> 53 | V34: =SUMIF('X-DSP-ALL'!$E$2:$E$883,A34,'X-DSP-ALL'!$BO$2:$BO$883) -> 0 | W34: =SUMIF('X-DSP-ALL'!$E$2:$E$883,A34,'X-DSP-ALL'!$BP$2:$BP$883) -> 1 | X34: =SUMIF('X-DSP-ALL'!$E$2:$E$883,A34,'X-DSP-ALL'!$BQ$2:$BQ$883) -> 18 | Y34: 44 | Z34: 44 | AA34: 39 | AB34: 39 | AC34: 40 | AD34: 40 | AE34: 40 | AF34: 40
A35: 110 | B35: Tate, Melvin | C35: 110 | D35: R | E35: 3 | F35: 146 | G35: 3 | H35: 0 | I35: 0 | J35: 146 | K35: 3 | L35: 48.66666667 | M35: 10.93333333 | N35: =SUMIF('X-DSP-ALL'!$E$2:$E$883,A35,'X-DSP-ALL'!$L$2:$L$883) -> 13 | O35: =SUMIF('X-DSP-ALL'!$E$2:$E$883,A35,'X-DSP-ALL'!$M$2:$M$883) -> 9 | P35: =SUMIF('X-DSP-ALL'!$E$2:$E$883,A35,'X-DSP-ALL'!$N$2:$N$883) -> 5 | Q35: =SUMIF('X-DSP-ALL'!$E$2:$E$883,A35,'X-DSP-ALL'!$O$2:$O$883) -> 1 | R35: =SUMIF('X-DSP-ALL'!$E$2:$E$883,A35,'X-DSP-ALL'!$P$2:$P$883) -> 0 | S35: =SUMIF('X-DSP-ALL'!$E$2:$E$883,A35,'X-DSP-ALL'!$Q$2:$Q$883) -> 2 | T35: =IF(A35=0,0,SUMIF('X-DSP-ALL'!$F$2:$F$883,A35,'X-DSP-ALL'!$BE$2:$BE$883)) -> 0 | U35: =IF(A35=0,0,(N35*Setup!$J$17)+(O35*Setup!$J$18)+(P35*Setup!$J$19)+(Q35*Setup!$J$22)+(R35*Setup!$J$23)+(S35*Setup!$J$24)+(T35)) -> 39 | V35: =SUMIF('X-DSP-ALL'!$E$2:$E$883,A35,'X-DSP-ALL'!$BO$2:$BO$883) -> 0 | W35: =SUMIF('X-DSP-ALL'!$E$2:$E$883,A35,'X-DSP-ALL'!$BP$2:$BP$883) -> 0 | X35: =SUMIF('X-DSP-ALL'!$E$2:$E$883,A35,'X-DSP-ALL'!$BQ$2:$BQ$883) -> 3 | Y35: 50 | Z35: 50 | AA35: 47 | AB35: 47 | AC35: 49 | AD35: 49
A36: 111 | B36: Graves, Evan | C36: 111 | D36: R | E36: 3 | F36: 146 | G36: 3 | H36: 0 | I36: 0 | J36: 146 | K36: 3 | L36: 48.66666667 | M36: 10.93333333 | N36: =SUMIF('X-DSP-ALL'!$E$2:$E$883,A36,'X-DSP-ALL'!$L$2:$L$883) -> 9 | O36: =SUMIF('X-DSP-ALL'!$E$2:$E$883,A36,'X-DSP-ALL'!$M$2:$M$883) -> 8 | P36: =SUMIF('X-DSP-ALL'!$E$2:$E$883,A36,'X-DSP-ALL'!$N$2:$N$883) -> 10 | Q36: =SUMIF('X-DSP-ALL'!$E$2:$E$883,A36,'X-DSP-ALL'!$O$2:$O$883) -> 0 | R36: =SUMIF('X-DSP-ALL'!$E$2:$E$883,A36,'X-DSP-ALL'!$P$2:$P$883) -> 2 | S36: =SUMIF('X-DSP-ALL'!$E$2:$E$883,A36,'X-DSP-ALL'!$Q$2:$Q$883) -> 1 | T36: =IF(A36=0,0,SUMIF('X-DSP-ALL'!$F$2:$F$883,A36,'X-DSP-ALL'!$BE$2:$BE$883)) -> 14 | U36: =IF(A36=0,0,(N36*Setup!$J$17)+(O36*Setup!$J$18)+(P36*Setup!$J$19)+(Q36*Setup!$J$22)+(R36*Setup!$J$23)+(S36*Setup!$J$24)+(T36)) -> 44 | V36: =SUMIF('X-DSP-ALL'!$E$2:$E$883,A36,'X-DSP-ALL'!$BO$2:$BO$883) -> 0 | W36: =SUMIF('X-DSP-ALL'!$E$2:$E$883,A36,'X-DSP-ALL'!$BP$2:$BP$883) -> 0 | X36: =SUMIF('X-DSP-ALL'!$E$2:$E$883,A36,'X-DSP-ALL'!$BQ$2:$BQ$883) -> 5 | Y36: 48 | Z36: 48 | AA36: 50 | AB36: 50 | AE36: 48 | AF36: 48
A37: 112 | B37: Leonard, Jon | C37: 112 | D37: R | E37: 3 | F37: 179 | G37: 3 | H37: 0 | I37: 0 | J37: 179 | K37: 3 | L37: 59.66666667 | M37: 19.73333333 | N37: =SUMIF('X-DSP-ALL'!$E$2:$E$883,A37,'X-DSP-ALL'!$L$2:$L$883) -> 8 | O37: =SUMIF('X-DSP-ALL'!$E$2:$E$883,A37,'X-DSP-ALL'!$M$2:$M$883) -> 11 | P37: =SUMIF('X-DSP-ALL'!$E$2:$E$883,A37,'X-DSP-ALL'!$N$2:$N$883) -> 8 | Q37: =SUMIF('X-DSP-ALL'!$E$2:$E$883,A37,'X-DSP-ALL'!$O$2:$O$883) -> 1 | R37: =SUMIF('X-DSP-ALL'!$E$2:$E$883,A37,'X-DSP-ALL'!$P$2:$P$883) -> 2 | S37: =SUMIF('X-DSP-ALL'!$E$2:$E$883,A37,'X-DSP-ALL'!$Q$2:$Q$883) -> 0 | T37: =IF(A37=0,0,SUMIF('X-DSP-ALL'!$F$2:$F$883,A37,'X-DSP-ALL'!$BE$2:$BE$883)) -> 0 | U37: =IF(A37=0,0,(N37*Setup!$J$17)+(O37*Setup!$J$18)+(P37*Setup!$J$19)+(Q37*Setup!$J$22)+(R37*Setup!$J$23)+(S37*Setup!$J$24)+(T37)) -> 28 | V37: =SUMIF('X-DSP-ALL'!$E$2:$E$883,A37,'X-DSP-ALL'!$BO$2:$BO$883) -> 0 | W37: =SUMIF('X-DSP-ALL'!$E$2:$E$883,A37,'X-DSP-ALL'!$BP$2:$BP$883) -> 0 | X37: =SUMIF('X-DSP-ALL'!$E$2:$E$883,A37,'X-DSP-ALL'!$BQ$2:$BQ$883) -> 0 | Y37: 60 | Z37: 60 | AA37: 62 | AB37: 62 | AC37: 57 | AD37: 57
A38: 113 | B38: Boswell, Clyde | C38: 113 | D38: R | E38: 2 | F38: 113 | G38: 2 | H38: 0 | I38: 0 | J38: 113 | K38: 2 | L38: 56.5 | M38: 17.2 | N38: =SUMIF('X-DSP-ALL'!$E$2:$E$883,A38,'X-DSP-ALL'!$L$2:$L$883) -> 7 | O38: =SUMIF('X-DSP-ALL'!$E$2:$E$883,A38,'X-DSP-ALL'!$M$2:$M$883) -> 8 | P38: =SUMIF('X-DSP-ALL'!$E$2:$E$883,A38,'X-DSP-ALL'!$N$2:$N$883) -> 3 | Q38: =SUMIF('X-DSP-ALL'!$E$2:$E$883,A38,'X-DSP-ALL'!$O$2:$O$883) -> 0 | R38: =SUMIF('X-DSP-ALL'!$E$2:$E$883,A38,'X-DSP-ALL'!$P$2:$P$883) -> 2 | S38: =SUMIF('X-DSP-ALL'!$E$2:$E$883,A38,'X-DSP-ALL'!$Q$2:$Q$883) -> 0 | T38: =IF(A38=0,0,SUMIF('X-DSP-ALL'!$F$2:$F$883,A38,'X-DSP-ALL'!$BE$2:$BE$883)) -> 8 | U38: =IF(A38=0,0,(N38*Setup!$J$17)+(O38*Setup!$J$18)+(P38*Setup!$J$19)+(Q38*Setup!$J$22)+(R38*Setup!$J$23)+(S38*Setup!$J$24)+(T38)) -> 25 | V38: =SUMIF('X-DSP-ALL'!$E$2:$E$883,A38,'X-DSP-ALL'!$BO$2:$BO$883) -> 0 | W38: =SUMIF('X-DSP-ALL'!$E$2:$E$883,A38,'X-DSP-ALL'!$BP$2:$BP$883) -> 0 | X38: =SUMIF('X-DSP-ALL'!$E$2:$E$883,A38,'X-DSP-ALL'!$BQ$2:$BQ$883) -> 0 | AA38: 55 | AB38: 55 | AC38: 58 | AD38: 58
